Workbook

Sheet Data
B1: 件名を入力すると他のシートに反映されます。 | G1: 最小二乗法による境界復元
B5: 件名 | C5: 川崎市筆界特定事件データ
G6: =NOW() -> 2025-03-09T05:28:12.750
A7: 右の表から並べ替え後，データが指定シートに転送されます | K7: 並べ替え前データ
K8: =MAX(K11:K510) -> 26 | O8: =MAX(O11:O510) -> 26
B9: 図面値 | F9: 実測値 | K9: A | L9: 図面値 | O9: B | P9: 実測値
A10: 点番 | B10: 点名 | C10: X | D10: Y | F10: 点名 | G10: X | H10: Y | K10: 順 | L10: 点名 | M10: X | N10: Y | O10: 順 | P10: 点名 | Q10: X | R10: Y
A11: 1 | B11: P0453 | C11: -43870.35 | D11: -26024.937 | F11: 105 | G11: -43870.36 | H11: -26024.951 | K11: 1 | L11: P0453 | M11: -43870.35 | N11: -26024.937 | O11: 1 | P11: 105 | Q11: -43870.36 | R11: -26024.951
A12: 2 | B12: P0451 | C12: -43873.995 | D12: -26021.08 | F12: 81 | G12: -43874.011 | H12: -26021.094 | K12: 2 | L12: P0451 | M12: -43873.995 | N12: -26021.08 | O12: 2 | P12: 81 | Q12: -43874.011 | R12: -26021.094
A13: 3 | B13: P0750 | C13: -43873.664 | D13: -26009.124 | F13: 83 | G13: -43873.668 | H13: -26009.137 | K13: 3 | L13: P0750 | M13: -43873.664 | N13: -26009.124 | O13: 3 | P13: 83 | Q13: -43873.668 | R13: -26009.137
A14: 4 | B14: P0745 | C14: -43884.818 | D14: -25992.594 | F14: 89 | G14: -43884.833 | H14: -25992.605 | K14: 4 | L14: P0745 | M14: -43884.818 | N14: -25992.594 | O14: 4 | P14: 89 | Q14: -43884.833 | R14: -25992.605
A15: 5 | B15: P0743 | C15: -43893.259 | D15: -25980.694 | F15: 70 | G15: -43893.27 | H15: -25980.705 | K15: 5 | L15: P0743 | M15: -43893.259 | N15: -25980.694 | O15: 5 | P15: 70 | Q15: -43893.27 | R15: -25980.705
A16: 6 | B16: P0814 | C16: -43905.726 | D16: -25964.813 | F16: 4 | G16: -43905.727 | H16: -25964.841 | K16: 6 | L16: P0814 | M16: -43905.726 | N16: -25964.813 | O16: 6 | P16: 4 | Q16: -43905.727 | R16: -25964.841
A17: 7 | B17: P0744 | C17: -43895.04 | D17: -25981.353 | F17: 69 | G17: -43895.05 | H17: -25981.365 | K17: 7 | L17: P0744 | M17: -43895.04 | N17: -25981.353 | O17: 7 | P17: 69 | Q17: -43895.05 | R17: -25981.365
A18: 8 | B18: P0746 | C18: -43886.196 | D18: -25993.798 | F18: 88 | G18: -43886.207 | H18: -25993.812 | K18: 8 | L18: P0746 | M18: -43886.196 | N18: -25993.798 | O18: 8 | P18: 88 | Q18: -43886.207 | R18: -25993.812
A19: 9 | B19: P0747 | C19: -43878.409 | D19: -26003.379 | F19: 86 | G19: -43878.424 | H19: -26003.395 | K19: 9 | L19: P0747 | M19: -43878.409 | N19: -26003.379 | O19: 9 | P19: 86 | Q19: -43878.424 | R19: -26003.395
A20: 10 | B20: P0749 | C20: -43876.338 | D20: -26007.735 | F20: 85 | G20: -43876.349 | H20: -26007.748 | K20: 10 | L20: P0749 | M20: -43876.338 | N20: -26007.735 | O20: 10 | P20: 85 | Q20: -43876.349 | R20: -26007.748
A21: 11 | B21: P0457 | C21: -43890.211 | D21: -26007.954 | F21: 121 | G21: -43890.231 | H21: -26007.966 | K21: 11 | L21: P0457 | M21: -43890.211 | N21: -26007.954 | O21: 11 | P21: 121 | Q21: -43890.231 | R21: -26007.966
A22: 12 | B22: P0445 | C22: -43913.137 | D22: -26013.669 | F22: 137 | G22: -43913.146 | H22: -26013.678 | K22: 12 | L22: P0445 | M22: -43913.137 | N22: -26013.669 | O22: 12 | P22: 137 | Q22: -43913.146 | R22: -26013.678
A23: 13 | B23: P0434-1 | C23: -43930.776 | D23: -26017.442 | F23: 195 | G23: -43930.784 | H23: -26017.453 | K23: 13 | L23: P0434-1 | M23: -43930.776 | N23: -26017.442 | O23: 13 | P23: 195 | Q23: -43930.784 | R23: -26017.453
A24: 14 | B24: P0439 | C24: -43950.973 | D24: -26016.711 | F24: 189 | G24: -43950.979 | H24: -26016.718 | K24: 14 | L24: P0439 | M24: -43950.973 | N24: -26016.711 | O24: 14 | P24: 189 | Q24: -43950.979 | R24: -26016.718
A25: 15 | B25: 0779 | C25: -43906.053 | D25: -25979.428 | F25: 1 | G25: -43906.07 | H25: -25979.442 | K25: 15 | L25: 0779 | M25: -43906.053 | N25: -25979.428 | O25: 15 | P25: 1 | Q25: -43906.07 | R25: -25979.442
A26: 16 | B26: 0356 | C26: -43923.606 | D26: -25980.185 | F26: 45 | G26: -43923.617 | H26: -25980.204 | K26: 16 | L26: 0356 | M26: -43923.606 | N26: -25980.185 | O26: 16 | P26: 45 | Q26: -43923.617 | R26: -25980.204
A27: 17 | B27: P0454 | C27: -43861.993 | D27: -26028.297 | F27: 107 | G27: -43862.003 | H27: -26028.311 | K27: 17 | L27: P0454 | M27: -43861.993 | N27: -26028.297 | O27: 17 | P27: 107 | Q27: -43862.003 | R27: -26028.311
A28: 18 | B28: P0452 | C28: -43871.328 | D28: -26026.639 | F28: 106 | G28: -43871.335 | H28: -26026.66 | K28: 18 | L28: P0452 | M28: -43871.328 | N28: -26026.639 | O28: 18 | P28: 106 | Q28: -43871.335 | R28: -26026.66
A29: 19 | B29: P0450 | C29: -43875.835 | D29: -26021.774 | F29: 82 | G29: -43875.843 | H29: -26021.782 | K29: 19 | L29: P0450 | M29: -43875.835 | N29: -26021.774 | O29: 19 | P29: 82 | Q29: -43875.843 | R29: -26021.782
A30: 20 | B30: P0458 | C30: -43875.499 | D30: -26009.609 | F30: 84 | G30: -43875.507 | H30: -26009.625 | K30: 20 | L30: P0458 | M30: -43875.499 | N30: -26009.609 | O30: 20 | P30: 84 | Q30: -43875.507 | R30: -26009.625
A31: 21 | B31: P0442 | C31: -43889.843 | D31: -26009.791 | F31: 120 | G31: -43889.848 | H31: -26009.807 | K31: 21 | L31: P0442 | M31: -43889.843 | N31: -26009.791 | O31: 21 | P31: 120 | Q31: -43889.848 | R31: -26009.807
A32: 22 | B32: P0443 | C32: -43903.214 | D32: -26012.438 | F32: 122 | G32: -43903.224 | H32: -26012.453 | K32: 22 | L32: P0443 | M32: -43903.214 | N32: -26012.438 | O32: 22 | P32: 122 | Q32: -43903.224 | R32: -26012.453
A33: 23 | B33: P0437 | C33: -43912.79 | D33: -26015.496 | F33: 136 | G33: -43912.8 | H33: -26015.506 | K33: 23 | L33: P0437 | M33: -43912.79 | N33: -26015.496 | O33: 23 | P33: 136 | Q33: -43912.8 | R33: -26015.506
A34: 24 | B34: P0434 | C34: -43930.604 | D34: -26019.324 | F34: 168 | G34: -43930.611 | H34: -26019.332 | K34: 24 | L34: P0434 | M34: -43930.604 | N34: -26019.324 | O34: 24 | P34: 168 | Q34: -43930.611 | R34: -26019.332
A35: 25 | B35: P0438 | C35: -43951.105 | D35: -26018.577 | F35: 188 | G35: -43951.109 | H35: -26018.585 | K35: 25 | L35: P0438 | M35: -43951.105 | N35: -26018.577 | O35: 25 | P35: 188 | Q35: -43951.109 | R35: -26018.585
A36: 26 | B36: 0357 | C36: -43935.514 | D36: -25979.844 | F36: 46 | G36: -43935.524 | H36: -25979.873 | K36: 26 | L36: 0357 | M36: -43935.514 | N36: -25979.844 | O36: 26 | P36: 46 | Q36: -43935.524 | R36: -25979.873

Sheet Helmert
G1: 検定 ＆ ヘルマート変換
B2: 件名 | C2: 川崎市筆界特定事件データ | S2: 相関係数 | T2: =(CORREL(W11:W510,X11:X510)) -> -0.05320035465 | AE2: 方向計算した場合の
B3: 係数a | C3: =IF(ISERROR(IF(J4="",N3,P3)),"-",IF(J4="",N3,P3)) -> 0.9999573828 | I3: 線の伸縮率 | J3: =IF(ISERROR(SQRT(N3^2+N4^2)),"-",SQRT(N3^2+N4^2)) -> 0.9999573831 | N3: =(C8*J8+D8*K8-B8*N8)/(C8^2+D8^2-B8*P8) -> 0.9999573828 | P3: =(N3/SQRT(N5))*J4 -> 0 | R3: 二変量標準偏差 | T3: =IF(ISERROR(SQRT((W7^2/2)+(X7^2/2)+ABS(T2)*W7*X7)),"-",SQRT((W7^2/2)+(X7^2/2)+ABS(T2)*W7*X7)) -> 0.003677110406 | AE3: 修正二変量標準偏差
B4: 係数b | C4: =IF(ISERROR(IF(J4="",N4,P4)),"-",IF(J4="",N4,P4)) -> 2.465827514e-05 | I4: 指定伸縮率 | N4: =(D8*J8-C8*K8-B8*Q8)/(C8^2+D8^2-B8*P8) -> 2.465827514e-05 | P4: =(N4/SQRT(N5))*J4 -> 0 | R4: AIC | T4: =IF(ISERROR(IF(T5=0,0,B8*LN((T5*1000)^2)+10)),"-",IF(T5=0,0,B8*LN((T5*1000)^2)+10)) -> 72.50210694 | AE4: 方向数 | AF4: 0
B5: 移動量x | C5: =IF(ISERROR((J8-C3*C8-C4*D8)/B8),"-",(J8-C3*C8-C4*D8)/B8) -> -1.239562487 | I5: 回転角 | J5: =IF(ISERROR(CONCATENATE((IF(K5<0,"-","")),(INT(ABS(K5))),"°",((INT(ABS(K5*60)))-(INT(ABS(K5))*60)),"′",(INT(ROUND((ABS(K5*3600)),0)-(((INT(ABS(K5*60)))-(INT(ABS(K5))*60))*60)-(INT(ABS(K5))*3600))),"""")),"-",CONCATENATE((IF(K5<0,"-","")),(INT(ABS(K5))),"°",((INT(ABS(K5*60)))-(INT(ABS(K5))*60)),"′",(INT(ROUND((ABS(K5*3600)),0)-(((INT(ABS(K5*60)))-(INT(ABS(K5))*60))*60)-(INT(ABS(K5))*3600))),"""")) -> 0°0′5" | K5: =DEGREES((ATAN(C4/C3))) -> 0.001412875308 | N5: =(SQRT(N3^2+N4^2))^2 -> 0.9999147681 | P5: =(J8-P3*C8-P4*D8)/B8 -> -43896.63663 | R5: 検定指数 | T5: =IF(ISERROR(SQRT((W9^2/2)+(X9^2/2)+ABS(T2)*W9*X9)),"-",SQRT((W9^2/2)+(X9^2/2)+ABS(T2)*W9*X9)) -> 0.003677110406 | AE5: (二)標準偏差 | AF5: =T3*T7/(T7-(AF4/2)) -> 0.003677110406
B6: 移動量y | C6: =IF(ISERROR((K8+C4*C8-C3*D8)/B8),"-",(K8+C4*C8-C3*D8)/B8) -> -2.203552466 | G6: 指定数 | P6: =(K8+P4*C8-P3*D8)/B8 -> -26008.01392
S7: 準拠点数 | T7: =B8 -> 24 | V7: STDEVP | W7: =IF(ISERROR(STDEVP(W11:W510)),"-",STDEVP(W11:W510)) -> 0.003996552796 | X7: =IF(ISERROR(STDEVP(X11:X510)),"-",STDEVP(X11:X510)) -> 0.003121306695 | AE7: 二変量σ | AF7: 相関係数
B8: =COUNTA(G11:G510) -> 24 | C8: =SUM(E11:E510) -> -1053519.036 | D8: =SUM(F11:F510) -> -624192.028 | I8: =COUNTA(I11:I510) -> 26 | J8: =SUM(L11:L510) -> -1053519.279 | K8: =SUM(M11:M510) -> -624192.334 | N8: =SUM(N11:N510) -> 6.247995786e+10 | P8: =SUM(P11:P510) -> 6.247993924e+10 | Q8: =SUM(Q11:Q510) -> -7111.915204 | U8: =SUM(U11:U510) -> 0.0003833384221 | V8: =SUM(V11:V510) -> 0.0002338213316 | W8: x標準偏差 | X8: ｙ標準偏差 | Y8: =MAX(Y11:Y510) -> 0.009645793444 | Z8: (max)
B9: 変換される座標値(図面値） | I9: 変換の基となる座標値（実測値） | R9: 変換された座標値 | V9: STDEVP | W9: =IF(ISERROR(STDEVP(W11:W510)),"-",STDEVP(W11:W510)) -> 0.003996552796 | X9: =IF(ISERROR(STDEVP(X11:X510)),"-",STDEVP(X11:X510)) -> 0.003121306695 | Y9: =AVERAGE(Y11:Y510) -> 0.004394056554 | Z9: (average) | AB9: AICチェック | AE9: =SQRT(AE10^2/2+AF10^2/2+ABS(AF9)*AE10*AF10) -> 0.003677110406 | AF9: =CORREL(W11:W510,X11:X510) -> -0.05320035465
A10: 点番 | B10: 点名 | C10: X | D10: Y | E10: 図面準拠点データ | G10: 準拠点 | I10: 点名 | J10: X | K10: Y | L10: 実測準拠点データ | N10: xX+Ｙy | P10: x^2+y^2 | Q10: yX-xY | R10: 点名 | S10: X | T10: Y | U10: 平均二乗誤差データ | W10: Δx | X10: Δy | Y10: ベクトル | Z10: RANK | AB10: 点数 | AC10: Helmert | AD10: Affine | AE10: =IF(ISERROR( STDEVP(W11:W510)),"-", STDEVP(W11:W510)) -> 0.003996552796 | AF10: =IF(ISERROR(STDEVP(X11:X510)),"-",STDEVP(X11:X510)) -> 0.003121306695
A11: 1 | B11: P0453 | C11: -43870.35 | D11: -26024.937 | E11: =IF(G11="○",C11,"") -> -43870.35 | F11: =IF(G11="○",D11,"") -> -26024.937 | G11: ○ | I11: 105 | J11: -43870.36 | K11: -26024.951 | L11: =IF(G11="○",J11,"") -> -43870.36 | M11: =IF(G11="○",K11,"") -> -26024.951 | N11: =IF(G11="","",J11*C11+K11*D11) -> 2601905758 | P11: =IF(G11="","",C11^2+D11^2) -> 2601904955 | Q11: =IF(G11="","",D11*J11-C11*K11) -> -353.9355299 | R11: P0453 | S11: =IF(C11="","",$C$3*C11+$C$4*D11+$C$5) -> -43870.36166 | T11: =IF(D11="","",(-1)*($C$4*C11)+$C$3*D11+$C$6) -> -26024.94968 | U11: =IF(G11="","",IF(B11="","",(J11-S11)^2)) -> 2.763701678e-06 | V11: =IF(G11="","",IF(C11="","",(K11-T11)^2)) -> 1.75251026e-06 | W11: =IF(G11="","",IF(B11="","",S11-J11)) -> -0.001662438473 | X11: =IF(G11="","",IF(C11="","",T11-K11)) -> 0.001323824104 | Y11: =IF(W11="","",SQRT(W11^2+X11^2)) -> 0.002125138098 | Z11: =IF(Y11="","",RANK(Y11,$Y$11:$Y$510,0)) -> 19
A12: 2 | B12: P0451 | C12: -43873.995 | D12: -26021.08 | E12: =IF(G12="○",C12,"") -> -43873.995 | F12: =IF(G12="○",D12,"") -> -26021.08 | G12: ○ | I12: 81 | J12: -43874.011 | K12: -26021.094 | L12: =IF(G12="○",J12,"") -> -43874.011 | M12: =IF(G12="○",K12,"") -> -26021.094 | N12: =IF(G12="","",J12*C12+K12*D12) -> 2602025108 | P12: =IF(G12="","",C12^2+D12^2) -> 2602024042 | Q12: =IF(G12="","",D12*J12-C12*K12) -> -197.8986502 | R12: P0451 | S12: =IF(C12="","",$C$3*C12+$C$4*D12+$C$5) -> -43874.00641 | T12: =IF(D12="","",(-1)*($C$4*C12)+$C$3*D12+$C$6) -> -26021.09275 | U12: =IF(G12="","",IF(B12="","",(J12-S12)^2)) -> 2.104981807e-05 | V12: =IF(G12="","",IF(C12="","",(K12-T12)^2)) -> 1.56082319e-06 | W12: =IF(G12="","",IF(B12="","",S12-J12)) -> 0.004588008072 | X12: =IF(G12="","",IF(C12="","",T12-K12)) -> 0.001249329096 | Y12: =IF(W12="","",SQRT(W12^2+X12^2)) -> 0.004755064801 | Z12: =IF(Y12="","",RANK(Y12,$Y$11:$Y$510,0)) -> 11
A13: 3 | B13: P0750 | C13: -43873.664 | D13: -26009.124 | E13: =IF(G13="○",C13,"") -> -43873.664 | F13: =IF(G13="○",D13,"") -> -26009.124 | G13: ○ | I13: 83 | J13: -43873.668 | K13: -26009.137 | L13: =IF(G13="○",J13,"") -> -43873.668 | M13: =IF(G13="○",K13,"") -> -26009.137 | N13: =IF(G13="","",J13*C13+K13*D13) -> 2601373438 | P13: =IF(G13="","",C13^2+D13^2) -> 2601372924 | Q13: =IF(G13="","",D13*J13-C13*K13) -> -466.3211358 | R13: P0750 | S13: =IF(C13="","",$C$3*C13+$C$4*D13+$C$5) -> -43873.67513 | T13: =IF(D13="","",(-1)*($C$4*C13)+$C$3*D13+$C$6) -> -26009.13727 | U13: =IF(G13="","",IF(B13="","",(J13-S13)^2)) -> 5.085520963e-05 | V13: =IF(G13="","",IF(C13="","",(K13-T13)^2)) -> 7.201905369e-08 | W13: =IF(G13="","",IF(B13="","",S13-J13)) -> -0.00713128387 | X13: =IF(G13="","",IF(C13="","",T13-K13)) -> -0.0002683636594 | Y13: =IF(W13="","",SQRT(W13^2+X13^2)) -> 0.007136331599 | Z13: =IF(Y13="","",RANK(Y13,$Y$11:$Y$510,0)) -> 4
A14: 4 | B14: P0745 | C14: -43884.818 | D14: -25992.594 | E14: =IF(G14="○",C14,"") -> -43884.818 | F14: =IF(G14="○",D14,"") -> -25992.594 | G14: ○ | I14: 89 | J14: -43884.833 | K14: -25992.605 | L14: =IF(G14="○",J14,"") -> -43884.833 | M14: =IF(G14="○",K14,"") -> -25992.605 | N14: =IF(G14="","",J14*C14+K14*D14) -> 2601493138 | P14: =IF(G14="","",C14^2+D14^2) -> 2601492194 | Q14: =IF(G14="","",D14*J14-C14*K14) -> -92.84408808 | R14: P0745 | S14: =IF(C14="","",$C$3*C14+$C$4*D14+$C$5) -> -43884.82825 | T14: =IF(D14="","",(-1)*($C$4*C14)+$C$3*D14+$C$6) -> -25992.6077 | U14: =IF(G14="","",IF(B14="","",(J14-S14)^2)) -> 2.257836129e-05 | V14: =IF(G14="","",IF(C14="","",(K14-T14)^2)) -> 7.278055013e-06 | W14: =IF(G14="","",IF(B14="","",S14-J14)) -> 0.004751669316 | X14: =IF(G14="","",IF(C14="","",T14-K14)) -> -0.002697787058 | Y14: =IF(W14="","",SQRT(W14^2+X14^2)) -> 0.005464102515 | Z14: =IF(Y14="","",RANK(Y14,$Y$11:$Y$510,0)) -> 8
A15: 5 | B15: P0743 | C15: -43893.259 | D15: -25980.694 | E15: =IF(G15="○",C15,"") -> -43893.259 | F15: =IF(G15="○",D15,"") -> -25980.694 | G15: ○ | I15: 70 | J15: -43893.27 | K15: -25980.705 | L15: =IF(G15="○",J15,"") -> -43893.27 | M15: =IF(G15="○",K15,"") -> -25980.705 | N15: =IF(G15="","",J15*C15+K15*D15) -> 2601615415 | P15: =IF(G15="","",C15^2+D15^2) -> 2601614646 | Q15: =IF(G15="","",D15*J15-C15*K15) -> -197.0382152 | R15: P0743 | S15: =IF(C15="","",$C$3*C15+$C$4*D15+$C$5) -> -43893.2686 | T15: =IF(D15="","",(-1)*($C$4*C15)+$C$3*D15+$C$6) -> -25980.708 | U15: =IF(G15="","",IF(B15="","",(J15-S15)^2)) -> 1.973559431e-06 | V15: =IF(G15="","",IF(C15="","",(K15-T15)^2)) -> 8.980755455e-06 | W15: =IF(G15="","",IF(B15="","",S15-J15)) -> 0.001404834307 | X15: =IF(G15="","",IF(C15="","",T15-K15)) -> -0.002996790859 | Y15: =IF(W15="","",SQRT(W15^2+X15^2)) -> 0.003309730334 | Z15: =IF(Y15="","",RANK(Y15,$Y$11:$Y$510,0)) -> 15
A16: 6 | B16: P0814 | C16: -43905.726 | D16: -25964.813 | E16: =IF(G16="○",C16,"") ->  | F16: =IF(G16="○",D16,"") ->  | I16: 4 | J16: -43905.727 | K16: -25964.841 | L16: =IF(G16="○",J16,"") ->  | M16: =IF(G16="○",K16,"") ->  | N16: =IF(G16="","",J16*C16+K16*D16) ->  | P16: =IF(G16="","",C16^2+D16^2) ->  | Q16: =IF(G16="","",D16*J16-C16*K16) ->  | R16: P0814 | S16: =IF(C16="","",$C$3*C16+$C$4*D16+$C$5) -> -43905.73467 | T16: =IF(D16="","",(-1)*($C$4*C16)+$C$3*D16+$C$6) -> -25964.82737 | U16: =IF(G16="","",IF(B16="","",(J16-S16)^2)) ->  | V16: =IF(G16="","",IF(C16="","",(K16-T16)^2)) ->  | W16: =IF(G16="","",IF(B16="","",S16-J16)) ->  | X16: =IF(G16="","",IF(C16="","",T16-K16)) ->  | Y16: =IF(W16="","",SQRT(W16^2+X16^2)) ->  | Z16: =IF(Y16="","",RANK(Y16,$Y$11:$Y$510,0)) -> 
A17: 7 | B17: P0744 | C17: -43895.04 | D17: -25981.353 | E17: =IF(G17="○",C17,"") -> -43895.04 | F17: =IF(G17="○",D17,"") -> -25981.353 | G17: ○ | I17: 69 | J17: -43895.05 | K17: -25981.365 | L17: =IF(G17="○",J17,"") -> -43895.05 | M17: =IF(G17="○",K17,"") -> -25981.365 | N17: =IF(G17="","",J17*C17+K17*D17) -> 2601805991 | P17: =IF(G17="","",C17^2+D17^2) -> 2601805240 | Q17: =IF(G17="","",D17*J17-C17*K17) -> -266.92695 | R17: P0744 | S17: =IF(C17="","",$C$3*C17+$C$4*D17+$C$5) -> -43895.04954 | T17: =IF(D17="","",(-1)*($C$4*C17)+$C$3*D17+$C$6) -> -25981.36692 | U17: =IF(G17="","",IF(B17="","",(J17-S17)^2)) -> 2.157469553e-07 | V17: =IF(G17="","",IF(C17="","",(K17-T17)^2)) -> 3.704815627e-06 | W17: =IF(G17="","",IF(B17="","",S17-J17)) -> 0.000464485689 | X17: =IF(G17="","",IF(C17="","",T17-K17)) -> -0.001924789762 | Y17: =IF(W17="","",SQRT(W17^2+X17^2)) -> 0.001980041056 | Z17: =IF(Y17="","",RANK(Y17,$Y$11:$Y$510,0)) -> 21
A18: 8 | B18: P0746 | C18: -43886.196 | D18: -25993.798 | E18: =IF(G18="○",C18,"") -> -43886.196 | F18: =IF(G18="○",D18,"") -> -25993.798 | G18: ○ | I18: 88 | J18: -43886.207 | K18: -25993.812 | L18: =IF(G18="○",J18,"") -> -43886.207 | M18: =IF(G18="○",K18,"") -> -25993.812 | N18: =IF(G18="","",J18*C18+K18*D18) -> 2601676580 | P18: =IF(G18="","",C18^2+D18^2) -> 2601675734 | Q18: =IF(G18="","",D18*J18-C18*K18) -> -328.4749663 | R18: P0746 | S18: =IF(C18="","",$C$3*C18+$C$4*D18+$C$5) -> -43886.20622 | T18: =IF(D18="","",(-1)*($C$4*C18)+$C$3*D18+$C$6) -> -25993.81161 | U18: =IF(G18="","",IF(B18="","",(J18-S18)^2)) -> 6.095037488e-07 | V18: =IF(G18="","",IF(C18="","",(K18-T18)^2)) -> 1.501586664e-07 | W18: =IF(G18="","",IF(B18="","",S18-J18)) -> 0.0007807072107 | X18: =IF(G18="","",IF(C18="","",T18-K18)) -> 0.000387503118 | Y18: =IF(W18="","",SQRT(W18^2+X18^2)) -> 0.000871586149 | Z18: =IF(Y18="","",RANK(Y18,$Y$11:$Y$510,0)) -> 23
A19: 9 | B19: P0747 | C19: -43878.409 | D19: -26003.379 | E19: =IF(G19="○",C19,"") -> -43878.409 | F19: =IF(G19="○",D19,"") -> -26003.379 | G19: ○ | I19: 86 | J19: -43878.424 | K19: -26003.395 | L19: =IF(G19="○",J19,"") -> -43878.424 | M19: =IF(G19="○",K19,"") -> -26003.395 | N19: =IF(G19="","",J19*C19+K19*D19) -> 2601491570 | P19: =IF(G19="","",C19^2+D19^2) -> 2601490496 | Q19: =IF(G19="","",D19*J19-C19*K19) -> -312.003859 | R19: P0747 | S19: =IF(C19="","",$C$3*C19+$C$4*D19+$C$5) -> -43878.41979 | T19: =IF(D19="","",(-1)*($C$4*C19)+$C$3*D19+$C$6) -> -26003.3924 | U19: =IF(G19="","",IF(B19="","",(J19-S19)^2)) -> 1.774596833e-05 | V19: =IF(G19="","",IF(C19="","",(K19-T19)^2)) -> 6.779796414e-06 | W19: =IF(G19="","",IF(B19="","",S19-J19)) -> 0.004212596388 | X19: =IF(G19="","",IF(C19="","",T19-K19)) -> 0.00260380422 | Y19: =IF(W19="","",SQRT(W19^2+X19^2)) -> 0.004952349417 | Z19: =IF(Y19="","",RANK(Y19,$Y$11:$Y$510,0)) -> 10
A20: 10 | B20: P0749 | C20: -43876.338 | D20: -26007.735 | E20: =IF(G20="○",C20,"") -> -43876.338 | F20: =IF(G20="○",D20,"") -> -26007.735 | G20: ○ | I20: 85 | J20: -43876.349 | K20: -26007.748 | L20: =IF(G20="○",J20,"") -> -43876.349 | M20: =IF(G20="○",K20,"") -> -26007.748 | N20: =IF(G20="","",J20*C20+K20*D20) -> 2601536137 | P20: =IF(G20="","",C20^2+D20^2) -> 2601535316 | Q20: =IF(G20="","",D20*J20-C20*K20) -> -284.3073092 | R20: P0749 | S20: =IF(C20="","",$C$3*C20+$C$4*D20+$C$5) -> -43876.34898 | T20: =IF(D20="","",(-1)*($C$4*C20)+$C$3*D20+$C$6) -> -26007.74826 | U20: =IF(G20="","",IF(B20="","",(J20-S20)^2)) -> 2.864484118e-10 | V20: =IF(G20="","",IF(C20="","",(K20-T20)^2)) -> 6.844642729e-08 | W20: =IF(G20="","",IF(B20="","",S20-J20)) -> 1.692478691e-05 | X20: =IF(G20="","",IF(C20="","",T20-K20)) -> -0.0002616226811 | Y20: =IF(W20="","",SQRT(W20^2+X20^2)) -> 0.0002621695552 | Z20: =IF(Y20="","",RANK(Y20,$Y$11:$Y$510,0)) -> 24
A21: 11 | B21: P0457 | C21: -43890.211 | D21: -26007.954 | E21: =IF(G21="○",C21,"") -> -43890.211 | F21: =IF(G21="○",D21,"") -> -26007.954 | G21: ○ | I21: 121 | J21: -43890.231 | K21: -26007.966 | L21: =IF(G21="○",J21,"") -> -43890.231 | M21: =IF(G21="○",K21,"") -> -26007.966 | N21: =IF(G21="","",J21*C21+K21*D21) -> 2602765483 | P21: =IF(G21="","",C21^2+D21^2) -> 2602764293 | Q21: =IF(G21="","",D21*J21-C21*K21) -> -6.523452044 | R21: P0457 | S21: =IF(C21="","",$C$3*C21+$C$4*D21+$C$5) -> -43890.2214 | T21: =IF(D21="","",(-1)*($C$4*C21)+$C$3*D21+$C$6) -> -26007.96691 | U21: =IF(G21="","",IF(B21="","",(J21-S21)^2)) -> 9.221285753e-05 | V21: =IF(G21="","",IF(C21="","",(K21-T21)^2)) -> 8.284736302e-07 | W21: =IF(G21="","",IF(B21="","",S21-J21)) -> 0.009602752601 | X21: =IF(G21="","",IF(C21="","",T21-K21)) -> -0.0009102052682 | Y21: =IF(W21="","",SQRT(W21^2+X21^2)) -> 0.009645793444 | Z21: =IF(Y21="","",RANK(Y21,$Y$11:$Y$510,0)) -> 1
A22: 12 | B22: P0445 | C22: -43913.137 | D22: -26013.669 | E22: =IF(G22="○",C22,"") -> -43913.137 | F22: =IF(G22="○",D22,"") -> -26013.669 | G22: ○ | I22: 137 | J22: -43913.146 | K22: -26013.678 | L22: =IF(G22="○",J22,"") -> -43913.146 | M22: =IF(G22="○",K22,"") -> -26013.678 | N22: =IF(G22="","",J22*C22+K22*D22) -> 2605075205 | P22: =IF(G22="","",C22^2+D22^2) -> 2605074576 | Q22: =IF(G22="","",D22*J22-C22*K22) -> -161.095212 | R22: P0445 | S22: =IF(C22="","",$C$3*C22+$C$4*D22+$C$5) -> -43913.14656 | T22: =IF(D22="","",(-1)*($C$4*C22)+$C$3*D22+$C$6) -> -26013.6811 | U22: =IF(G22="","",IF(B22="","",(J22-S22)^2)) -> 3.14864893e-07 | V22: =IF(G22="","",IF(C22="","",(K22-T22)^2)) -> 9.618263494e-06 | W22: =IF(G22="","",IF(B22="","",S22-J22)) -> -0.0005611282322 | X22: =IF(G22="","",IF(C22="","",T22-K22)) -> -0.003101332535 | Y22: =IF(W22="","",SQRT(W22^2+X22^2)) -> 0.003151686594 | Z22: =IF(Y22="","",RANK(Y22,$Y$11:$Y$510,0)) -> 16
A23: 13 | B23: P0434-1 | C23: -43930.776 | D23: -26017.442 | E23: =IF(G23="○",C23,"") -> -43930.776 | F23: =IF(G23="○",D23,"") -> -26017.442 | G23: ○ | I23: 195 | J23: -43930.784 | K23: -26017.453 | L23: =IF(G23="○",J23,"") -> -43930.784 | M23: =IF(G23="○",K23,"") -> -26017.453 | N23: =IF(G23="","",J23*C23+K23*D23) -> 2606821006 | P23: =IF(G23="","",C23^2+D23^2) -> 2606820368 | Q23: =IF(G23="","",D23*J23-C23*K23) -> -275.099 | R23: P0434-1 | S23: =IF(C23="","",$C$3*C23+$C$4*D23+$C$5) -> -43930.7849 | T23: =IF(D23="","",(-1)*($C$4*C23)+$C$3*D23+$C$6) -> -26017.45351 | U23: =IF(G23="","",IF(B23="","",(J23-S23)^2)) -> 8.143973473e-07 | V23: =IF(G23="","",IF(C23="","",(K23-T23)^2)) -> 2.556218956e-07 | W23: =IF(G23="","",IF(B23="","",S23-J23)) -> -0.0009024396641 | X23: =IF(G23="","",IF(C23="","",T23-K23)) -> -0.0005055906404 | Y23: =IF(W23="","",SQRT(W23^2+X23^2)) -> 0.001034417345 | Z23: =IF(Y23="","",RANK(Y23,$Y$11:$Y$510,0)) -> 22
A24: 14 | B24: P0439 | C24: -43950.973 | D24: -26016.711 | E24: =IF(G24="○",C24,"") -> -43950.973 | F24: =IF(G24="○",D24,"") -> -26016.711 | G24: ○ | I24: 189 | J24: -43950.979 | K24: -26016.718 | L24: =IF(G24="○",J24,"") -> -43950.979 | M24: =IF(G24="○",K24,"") -> -26016.718 | N24: =IF(G24="","",J24*C24+K24*D24) -> 2608557725 | P24: =IF(G24="","",C24^2+D24^2) -> 2608557279 | Q24: =IF(G24="","",D24*J24-C24*K24) -> -151.5565453 | R24: P0439 | S24: =IF(C24="","",$C$3*C24+$C$4*D24+$C$5) -> -43950.98102 | T24: =IF(D24="","",(-1)*($C$4*C24)+$C$3*D24+$C$6) -> -26016.72204 | U24: =IF(G24="","",IF(B24="","",(J24-S24)^2)) -> 4.095262562e-06 | V24: =IF(G24="","",IF(C24="","",(K24-T24)^2)) -> 1.631126414e-05 | W24: =IF(G24="","",IF(B24="","",S24-J24)) -> -0.002023675508 | X24: =IF(G24="","",IF(C24="","",T24-K24)) -> -0.004038720606 | Y24: =IF(W24="","",SQRT(W24^2+X24^2)) -> 0.004517358376 | Z24: =IF(Y24="","",RANK(Y24,$Y$11:$Y$510,0)) -> 12
A25: 15 | B25: 0779 | C25: -43906.053 | D25: -25979.428 | E25: =IF(G25="○",C25,"") -> -43906.053 | F25: =IF(G25="○",D25,"") -> -25979.428 | G25: ○ | I25: 1 | J25: -43906.07 | K25: -25979.442 | L25: =IF(G25="○",J25,"") -> -43906.07 | M25: =IF(G25="○",K25,"") -> -25979.442 | N25: =IF(G25="","",J25*C25+K25*D25) -> 2602673279 | P25: =IF(G25="","",C25^2+D25^2) -> 2602672169 | Q25: =IF(G25="","",D25*J25-C25*K25) -> -173.034466 | R25: 0779 | S25: =IF(C25="","",$C$3*C25+$C$4*D25+$C$5) -> -43906.06202 | T25: =IF(D25="","",(-1)*($C$4*C25)+$C$3*D25+$C$6) -> -25979.44174 | U25: =IF(G25="","",IF(B25="","",(J25-S25)^2)) -> 6.370108182e-05 | V25: =IF(G25="","",IF(C25="","",(K25-T25)^2)) -> 7.008396976e-08 | W25: =IF(G25="","",IF(B25="","",S25-J25)) -> 0.007981295748 | X25: =IF(G25="","",IF(C25="","",T25-K25)) -> 0.0002647337715 | Y25: =IF(W25="","",SQRT(W25^2+X25^2)) -> 0.007985685055 | Z25: =IF(Y25="","",RANK(Y25,$Y$11:$Y$510,0)) -> 3
A26: 16 | B26: 0356 | C26: -43923.606 | D26: -25980.185 | E26: =IF(G26="○",C26,"") -> -43923.606 | F26: =IF(G26="○",D26,"") -> -25980.185 | G26: ○ | I26: 45 | J26: -43923.617 | K26: -25980.204 | L26: =IF(G26="○",J26,"") -> -43923.617 | M26: =IF(G26="○",K26,"") -> -25980.204 | N26: =IF(G26="","",J26*C26+K26*D26) -> 2604254153 | P26: =IF(G26="","",C26^2+D26^2) -> 2604253177 | Q26: =IF(G26="","",D26*J26-C26*K26) -> -548.766479 | R26: 0356 | S26: =IF(C26="","",$C$3*C26+$C$4*D26+$C$5) -> -43923.61429 | T26: =IF(D26="","",(-1)*($C$4*C26)+$C$3*D26+$C$6) -> -25980.19827 | U26: =IF(G26="","",IF(B26="","",(J26-S26)^2)) -> 7.347832632e-06 | V26: =IF(G26="","",IF(C26="","",(K26-T26)^2)) -> 3.283085642e-05 | W26: =IF(G26="","",IF(B26="","",S26-J26)) -> 0.00271068859 | X26: =IF(G26="","",IF(C26="","",T26-K26)) -> 0.005729821674 | Y26: =IF(W26="","",SQRT(W26^2+X26^2)) -> 0.006338666189 | Z26: =IF(Y26="","",RANK(Y26,$Y$11:$Y$510,0)) -> 5
A27: 17 | B27: P0454 | C27: -43861.993 | D27: -26028.297 | E27: =IF(G27="○",C27,"") -> -43861.993 | F27: =IF(G27="○",D27,"") -> -26028.297 | G27: ○ | I27: 107 | J27: -43862.003 | K27: -26028.311 | L27: =IF(G27="○",J27,"") -> -43862.003 | M27: =IF(G27="○",K27,"") -> -26028.311 | N27: =IF(G27="","",J27*C27+K27*D27) -> 2601347478 | P27: =IF(G27="","",C27^2+D27^2) -> 2601346675 | Q27: =IF(G27="","",D27*J27-C27*K27) -> -353.7849324 | R27: P0454 | S27: =IF(C27="","",$C$3*C27+$C$4*D27+$C$5) -> -43862.0051 | T27: =IF(D27="","",(-1)*($C$4*C27)+$C$3*D27+$C$6) -> -26028.30974 | U27: =IF(G27="","",IF(B27="","",(J27-S27)^2)) -> 4.416058318e-06 | V27: =IF(G27="","",IF(C27="","",(K27-T27)^2)) -> 1.589991345e-06 | W27: =IF(G27="","",IF(B27="","",S27-J27)) -> -0.002101441962 | X27: =IF(G27="","",IF(C27="","",T27-K27)) -> 0.001260948589 | Y27: =IF(W27="","",SQRT(W27^2+X27^2)) -> 0.002450724314 | Z27: =IF(Y27="","",RANK(Y27,$Y$11:$Y$510,0)) -> 18
A28: 18 | B28: P0452 | C28: -43871.328 | D28: -26026.639 | E28: =IF(G28="○",C28,"") -> -43871.328 | F28: =IF(G28="○",D28,"") -> -26026.639 | G28: ○ | I28: 106 | J28: -43871.335 | K28: -26026.66 | L28: =IF(G28="○",J28,"") -> -43871.335 | M28: =IF(G28="○",K28,"") -> -26026.66 | N28: =IF(G28="","",J28*C28+K28*D28) -> 2602080212 | P28: =IF(G28="","",C28^2+D28^2) -> 2602079358 | Q28: =IF(G28="","",D28*J28-C28*K28) -> -739.1114151 | R28: P0452 | S28: =IF(C28="","",$C$3*C28+$C$4*D28+$C$5) -> -43871.33966 | T28: =IF(D28="","",(-1)*($C$4*C28)+$C$3*D28+$C$6) -> -26026.65158 | U28: =IF(G28="","",IF(B28="","",(J28-S28)^2)) -> 2.174102557e-05 | V28: =IF(G28="","",IF(C28="","",(K28-T28)^2)) -> 7.090438774e-05 | W28: =IF(G28="","",IF(B28="","",S28-J28)) -> -0.004662727268 | X28: =IF(G28="","",IF(C28="","",T28-K28)) -> 0.008420474318 | Y28: =IF(W28="","",SQRT(W28^2+X28^2)) -> 0.00962524874 | Z28: =IF(Y28="","",RANK(Y28,$Y$11:$Y$510,0)) -> 2
A29: 19 | B29: P0450 | C29: -43875.835 | D29: -26021.774 | E29: =IF(G29="○",C29,"") -> -43875.835 | F29: =IF(G29="○",D29,"") -> -26021.774 | G29: ○ | I29: 82 | J29: -43875.843 | K29: -26021.782 | L29: =IF(G29="○",J29,"") -> -43875.843 | M29: =IF(G29="○",K29,"") -> -26021.782 | N29: =IF(G29="","",J29*C29+K29*D29) -> 2602222178 | P29: =IF(G29="","",C29^2+D29^2) -> 2602221619 | Q29: =IF(G29="","",D29*J29-C29*K29) -> -142.8324878 | R29: P0450 | S29: =IF(C29="","",$C$3*C29+$C$4*D29+$C$5) -> -43875.84635 | T29: =IF(D29="","",(-1)*($C$4*C29)+$C$3*D29+$C$6) -> -26021.78668 | U29: =IF(G29="","",IF(B29="","",(J29-S29)^2)) -> 1.122711797e-05 | V29: =IF(G29="","",IF(C29="","",(K29-T29)^2)) -> 2.186238899e-05 | W29: =IF(G29="","",IF(B29="","",S29-J29)) -> -0.003350689178 | X29: =IF(G29="","",IF(C29="","",T29-K29)) -> -0.004675723365 | Y29: =IF(W29="","",SQRT(W29^2+X29^2)) -> 0.005752347951 | Z29: =IF(Y29="","",RANK(Y29,$Y$11:$Y$510,0)) -> 7
A30: 20 | B30: P0458 | C30: -43875.499 | D30: -26009.609 | E30: =IF(G30="○",C30,"") -> -43875.499 | F30: =IF(G30="○",D30,"") -> -26009.609 | G30: ○ | I30: 84 | J30: -43875.507 | K30: -26009.625 | L30: =IF(G30="○",J30,"") -> -43875.507 | M30: =IF(G30="○",K30,"") -> -26009.625 | N30: =IF(G30="","",J30*C30+K30*D30) -> 2601559940 | P30: =IF(G30="","",C30^2+D30^2) -> 2601559173 | Q30: =IF(G30="","",D30*J30-C30*K30) -> -493.9311121 | R30: P0458 | S30: =IF(C30="","",$C$3*C30+$C$4*D30+$C$5) -> -43875.51007 | T30: =IF(D30="","",(-1)*($C$4*C30)+$C$3*D30+$C$6) -> -26009.6222 | U30: =IF(G30="","",IF(B30="","",(J30-S30)^2)) -> 9.394474084e-06 | V30: =IF(G30="","",IF(C30="","",(K30-T30)^2)) -> 7.826306142e-06 | W30: =IF(G30="","",IF(B30="","",S30-J30)) -> -0.003065040633 | X30: =IF(G30="","",IF(C30="","",T30-K30)) -> 0.0027975536 | Y30: =IF(W30="","",SQRT(W30^2+X30^2)) -> 0.004149792793 | Z30: =IF(Y30="","",RANK(Y30,$Y$11:$Y$510,0)) -> 13
A31: 21 | B31: P0442 | C31: -43889.843 | D31: -26009.791 | E31: =IF(G31="○",C31,"") -> -43889.843 | F31: =IF(G31="○",D31,"") -> -26009.791 | G31: ○ | I31: 120 | J31: -43889.848 | K31: -26009.807 | L31: =IF(G31="○",J31,"") -> -43889.848 | M31: =IF(G31="○",K31,"") -> -26009.807 | N31: =IF(G31="","",J31*C31+K31*D31) -> 2602828182 | P31: =IF(G31="","",C31^2+D31^2) -> 2602827546 | Q31: =IF(G31="","",D31*J31-C31*K31) -> -572.1885328 | R31: P0442 | S31: =IF(C31="","",$C$3*C31+$C$4*D31+$C$5) -> -43889.85346 | T31: =IF(D31="","",(-1)*($C$4*C31)+$C$3*D31+$C$6) -> -26009.80384 | U31: =IF(G31="","",IF(B31="","",(J31-S31)^2)) -> 2.979225043e-05 | V31: =IF(G31="","",IF(C31="","",(K31-T31)^2)) -> 9.979332945e-06 | W31: =IF(G31="","",IF(B31="","",S31-J31)) -> -0.005458227773 | X31: =IF(G31="","",IF(C31="","",T31-K31)) -> 0.003159008222 | Y31: =IF(W31="","",SQRT(W31^2+X31^2)) -> 0.006306471547 | Z31: =IF(Y31="","",RANK(Y31,$Y$11:$Y$510,0)) -> 6
A32: 22 | B32: P0443 | C32: -43903.214 | D32: -26012.438 | E32: =IF(G32="○",C32,"") -> -43903.214 | F32: =IF(G32="○",D32,"") -> -26012.438 | G32: ○ | I32: 122 | J32: -43903.224 | K32: -26012.453 | L32: =IF(G32="○",J32,"") -> -43903.224 | M32: =IF(G32="○",K32,"") -> -26012.453 | N32: =IF(G32="","",J32*C32+K32*D32) -> 2604139959 | P32: =IF(G32="","",C32^2+D32^2) -> 2604139130 | Q32: =IF(G32="","",D32*J32-C32*K32) -> -398.42383 | R32: P0443 | S32: =IF(C32="","",$C$3*C32+$C$4*D32+$C$5) -> -43903.22395 | T32: =IF(D32="","",(-1)*($C$4*C32)+$C$3*D32+$C$6) -> -26012.4504 | U32: =IF(G32="","",IF(B32="","",(J32-S32)^2)) -> 2.147019267e-09 | V32: =IF(G32="","",IF(C32="","",(K32-T32)^2)) -> 6.767915009e-06 | W32: =IF(G32="","",IF(B32="","",S32-J32)) -> 4.633593926e-05 | X32: =IF(G32="","",IF(C32="","",T32-K32)) -> 0.002601521672 | Y32: =IF(W32="","",SQRT(W32^2+X32^2)) -> 0.002601934286 | Z32: =IF(Y32="","",RANK(Y32,$Y$11:$Y$510,0)) -> 17
A33: 23 | B33: P0437 | C33: -43912.79 | D33: -26015.496 | E33: =IF(G33="○",C33,"") -> -43912.79 | F33: =IF(G33="○",D33,"") -> -26015.496 | G33: ○ | I33: 136 | J33: -43912.8 | K33: -26015.506 | L33: =IF(G33="○",J33,"") -> -43912.8 | M33: =IF(G33="○",K33,"") -> -26015.506 | N33: =IF(G33="","",J33*C33+K33*D33) -> 2605139857 | P33: =IF(G33="","",C33^2+D33^2) -> 2605139158 | Q33: =IF(G33="","",D33*J33-C33*K33) -> -178.97294 | R33: P0437 | S33: =IF(C33="","",$C$3*C33+$C$4*D33+$C$5) -> -43912.79962 | T33: =IF(D33="","",(-1)*($C$4*C33)+$C$3*D33+$C$6) -> -26015.50803 | U33: =IF(G33="","",IF(B33="","",(J33-S33)^2)) -> 1.436659718e-07 | V33: =IF(G33="","",IF(C33="","",(K33-T33)^2)) -> 4.129135302e-06 | W33: =IF(G33="","",IF(B33="","",S33-J33)) -> 0.0003790329429 | X33: =IF(G33="","",IF(C33="","",T33-K33)) -> -0.002032027387 | Y33: =IF(W33="","",SQRT(W33^2+X33^2)) -> 0.002067075536 | Z33: =IF(Y33="","",RANK(Y33,$Y$11:$Y$510,0)) -> 20
A34: 24 | B34: P0434 | C34: -43930.604 | D34: -26019.324 | E34: =IF(G34="○",C34,"") -> -43930.604 | F34: =IF(G34="○",D34,"") -> -26019.324 | G34: ○ | I34: 168 | J34: -43930.611 | K34: -26019.332 | L34: =IF(G34="○",J34,"") -> -43930.611 | M34: =IF(G34="○",K34,"") -> -26019.332 | N34: =IF(G34="","",J34*C34+K34*D34) -> 2606903705 | P34: =IF(G34="","",C34^2+D34^2) -> 2606903189 | Q34: =IF(G34="","",D34*J34-C34*K34) -> -169.3095641 | R34: P0434 | S34: =IF(C34="","",$C$3*C34+$C$4*D34+$C$5) -> -43930.61296 | T34: =IF(D34="","",(-1)*($C$4*C34)+$C$3*D34+$C$6) -> -26019.33543 | U34: =IF(G34="","",IF(B34="","",(J34-S34)^2)) -> 3.82662724e-06 | V34: =IF(G34="","",IF(C34="","",(K34-T34)^2)) -> 1.176233693e-05 | W34: =IF(G34="","",IF(B34="","",S34-J34)) -> -0.001956176689 | X34: =IF(G34="","",IF(C34="","",T34-K34)) -> -0.003429626355 | Y34: =IF(W34="","",SQRT(W34^2+X34^2)) -> 0.003948286232 | Z34: =IF(Y34="","",RANK(Y34,$Y$11:$Y$510,0)) -> 14
A35: 25 | B35: P0438 | C35: -43951.105 | D35: -26018.577 | E35: =IF(G35="○",C35,"") -> -43951.105 | F35: =IF(G35="○",D35,"") -> -26018.577 | G35: ○ | I35: 188 | J35: -43951.109 | K35: -26018.585 | L35: =IF(G35="○",J35,"") -> -43951.109 | M35: =IF(G35="○",K35,"") -> -26018.585 | N35: =IF(G35="","",J35*C35+K35*D35) -> 2608666364 | P35: =IF(G35="","",C35^2+D35^2) -> 2608665980 | Q35: =IF(G35="","",D35*J35-C35*K35) -> -247.5345321 | R35: P0438 | S35: =IF(C35="","",$C$3*C35+$C$4*D35+$C$5) -> -43951.11306 | T35: =IF(D35="","",(-1)*($C$4*C35)+$C$3*D35+$C$6) -> -26018.58796 | U35: =IF(G35="","",IF(B35="","",(J35-S35)^2)) -> 1.651660313e-05 | V35: =IF(G35="","",IF(C35="","",(K35-T35)^2)) -> 8.73759358e-06 | W35: =IF(G35="","",IF(B35="","",S35-J35)) -> -0.004064062392 | X35: =IF(G35="","",IF(C35="","",T35-K35)) -> -0.00295594208 | Y35: =IF(W35="","",SQRT(W35^2+X35^2)) -> 0.005025355381 | Z35: =IF(Y35="","",RANK(Y35,$Y$11:$Y$510,0)) -> 9
A36: 26 | B36: 0357 | C36: -43935.514 | D36: -25979.844 | E36: =IF(G36="○",C36,"") ->  | F36: =IF(G36="○",D36,"") ->  | I36: 46 | J36: -43935.524 | K36: -25979.873 | L36: =IF(G36="○",J36,"") ->  | M36: =IF(G36="○",K36,"") ->  | N36: =IF(G36="","",J36*C36+K36*D36) ->  | P36: =IF(G36="","",C36^2+D36^2) ->  | Q36: =IF(G36="","",D36*J36-C36*K36) ->  | R36: 0357 | S36: =IF(C36="","",$C$3*C36+$C$4*D36+$C$5) -> -43935.52177 | T36: =IF(D36="","",(-1)*($C$4*C36)+$C$3*D36+$C$6) -> -25979.85699 | U36: =IF(G36="","",IF(B36="","",(J36-S36)^2)) ->  | V36: =IF(G36="","",IF(C36="","",(K36-T36)^2)) ->  | W36: =IF(G36="","",IF(B36="","",S36-J36)) ->  | X36: =IF(G36="","",IF(C36="","",T36-K36)) ->  | Y36: =IF(W36="","",SQRT(W36^2+X36^2)) ->  | Z36: =IF(Y36="","",RANK(Y36,$Y$11:$Y$510,0)) -> 

Sheet Affine
G1: 検定 ＆ アフィン変換
B2: 件名 | C2: 川崎市筆界特定事件データ | V2: 相関係数 | W2: =(CORREL(Z11:Z510,AA11:AA510)) -> -0.2882935902 | AJ2: 方向計算した場合の
B3: 係数a | C3: =IF(ISERROR( ((B8*Q8-J8*C8)*(B8*O8-D8^2)-(B8*R8-J8*D8)*(B8*P8-C8*D8))/((B8*N8-C8^2)*(B8*O8-D8^2)-((B8*P8-C8*D8)^2))),"-", ((B8*Q8-J8*C8)*(B8*O8-D8^2)-(B8*R8-J8*D8)*(B8*P8-C8*D8))/((B8*N8-C8^2)*(B8*O8-D8^2)-((B8*P8-C8*D8)^2))) -> 0.9999498367 | D3: 移動量x | I3: =IF(ISERROR( (J8-C3*C8-C4*D8)/B8),"-", (J8-C3*C8-C4*D8)/B8) -> -3.146556118 | J3: 伸縮率ｘ | K3: =IF(ISERROR(SQRT(C3^2+C4^2)),"-",SQRT(C3^2+C4^2)) -> 0.9999498373 | V3: 二変量標準偏差 | W3: =IF(ISERROR(SQRT((Z7^2/2)+(AA7^2/2)+ABS(W2)*Z7*AA7)),"-",SQRT((Z7^2/2)+(AA7^2/2)+ABS(W2)*Z7*AA7)) -> 0.004836177755 | AJ3: 修正二変量標準偏差
B4: 係数b | C4: =IF(ISERROR( ((B8*R8-J8*D8)*(B8*N8-C8^2)-(B8*Q8-J8*C8)*(B8*P8-C8*D8))/((B8*N8-C8^2)*(B8*O8-D8^2)-((B8*P8-C8*D8)^2))),"-", ((B8*R8-J8*D8)*(B8*N8-C8^2)-(B8*Q8-J8*C8)*(B8*P8-C8*D8))/((B8*N8-C8^2)*(B8*O8-D8^2)-((B8*P8-C8*D8)^2))) -> -3.594252514e-05 | D4: 移動量y | I4: =IF(ISERROR( (K8+C5*C8-C6*D8)/B8),"-", (K8+C5*C8-C6*D8)/B8) -> -6.13235129 | J4: 伸縮率ｙ | K4: =IF(ISERROR(SQRT(C5^2+C6^2)),"-",SQRT(C5^2+C6^2)) -> 0.9998348101 | V4: AIC | W4: =IF(ISERROR( IF(W5=0,0,B8*LN((W5*1000)^2)+14)),"-", IF(W5=0,0,B8*LN((W5*1000)^2)+14)) -> 95.95848382 | AJ4: 方向数
B5: 係数c | C5: =IF(ISERROR(((B8*T8-K8*D8)*(B8*P8-C8*D8)-(B8*S8-K8*C8)*(B8*O8-D8^2))/((B8*N8-C8^2)*(B8*O8-D8^2)-((B8*P8-C8*D8)^2))),"-",((B8*T8-K8*D8)*(B8*P8-C8*D8)-(B8*S8-K8*C8)*(B8*O8-D8^2))/((B8*N8-C8^2)*(B8*O8-D8^2)-((B8*P8-C8*D8)^2))) -> 4.151762744e-05 | G5: 伸縮率平均 | I5: =SQRT((K3^2+K4^2)/2) -> 0.9998923254 | J5: 回転角ｘ | K5: =IF(ISERROR(CONCATENATE((IF(U5<0,"-","")),(INT(ABS(U5))),"°",((INT(ABS(U5*60)))-(INT(ABS(U5))*60)),"′",(INT(ROUND((ABS(U5*3600)),0)-(((INT(ABS(U5*60)))-(INT(ABS(U5))*60))*60)-(INT(ABS(U5))*3600))),"""")),"-",CONCATENATE((IF(U5<0,"-","")),(INT(ABS(U5))),"°",((INT(ABS(U5*60)))-(INT(ABS(U5))*60)),"′",(INT(ROUND((ABS(U5*3600)),0)-(((INT(ABS(U5*60)))-(INT(ABS(U5))*60))*60)-(INT(ABS(U5))*3600))),"""")) -> -0°0′7" | U5: =IF(ISERROR( DEGREES((ATAN(C4/C3)))),"-", DEGREES((ATAN(C4/C3)))) -> -0.002059458304 | V5: 検定指数 | W5: =IF(ISERROR(SQRT((Z9^2/2)+(AA9^2/2)+ABS(W2)*Z9*AA7)),"-",SQRT((Z9^2/2)+(AA9^2/2)+ABS(W2)*Z9*AA9)) -> 0.004836177755 | AJ5: (二)標準偏差 | AK5: =W3*W7/(W7-(AK4/2)) -> 0.004836177755
B6: 係数d | C6: =IF(ISERROR( ((B8*T8-K8*D8)*(B8*N8-C8^2)-(B8*S8-K8*C8)*(B8*P8-C8*D8))/((B8*N8-C8^2)*(B8*O8-D8^2)-((B8*P8-C8*D8)^2))),"-", ((B8*T8-K8*D8)*(B8*N8-C8^2)-(B8*S8-K8*C8)*(B8*P8-C8*D8))/((B8*N8-C8^2)*(B8*O8-D8^2)-((B8*P8-C8*D8)^2))) -> 0.9998348092 | G6: 指定数 | J6: 回転角ｙ | K6: =IF(ISERROR(CONCATENATE((IF(U6<0,"-","")),(INT(ABS(U6))),"°",((INT(ABS(U6*60)))-(INT(ABS(U6))*60)),"′",(INT(ROUND((ABS(U6*3600)),0)-(((INT(ABS(U6*60)))-(INT(ABS(U6))*60))*60)-(INT(ABS(U6))*3600))),"""")),"-",CONCATENATE((IF(U6<0,"-","")),(INT(ABS(U6))),"°",((INT(ABS(U6*60)))-(INT(ABS(U6))*60)),"′",(INT(ROUND((ABS(U6*3600)),0)-(((INT(ABS(U6*60)))-(INT(ABS(U6))*60))*60)-(INT(ABS(U6))*3600))),"""")) -> 90°0′9" | U6: =IF(ISERROR(DEGREES((ATAN(C5/C6)))+90),"-",DEGREES((ATAN(C5/C6)))+90) -> 90.00237918
V7: 準拠点数 | W7: =B8 -> 26 | Y7: STDEVP | Z7: =IF(ISERROR( STDEVP(Z11:Z510)),"-", STDEVP(Z11:Z510)) -> 0.004009552915 | AA7: =IF(ISERROR(STDEVP(AA11:AA510)),"-",STDEVP(AA11:AA510)) -> 0.004504185239 | AJ7: 二変量σ | AK7: 相関係数
B8: =COUNTA(G11:G510) -> 26 | C8: =SUM(E11:E510) -> -1141360.276 | D8: =SUM(F11:F510) -> -676136.685 | J8: =SUM(L11:L510) -> -1141360.53 | K8: =SUM(M11:M510) -> -676137.048 | N8: =SUM(N11:N510) -> 5.010398898e+10 | O8: 1.758311623e+10 | P8: 2.968136534e+10 | Q8: 5.010400013e+10 | R8: 2.968137195e+10 | S8: 2.968138128e+10 | T8: 1.758312567e+10 | X8: =SUM(X11:X510) -> 0.0004179893791 | Y8: =SUM(Y11:Y510) -> 0.0005274798013 | AD8: =MAX(AD11:AD510) -> 0.01248418242 | AE8: (max)
B9: 変換される座標値（図面値） | I9: 変換の基となる座標値（実測値） | U9: 変換された座標値 | Y9: STDEVP | Z9: =IF(ISERROR( STDEVP(Z11:Z510)),"-", STDEVP(Z11:Z510)) -> 0.004009552915 | AA9: =IF(ISERROR(STDEVP(AA11:AA510)),"-",STDEVP(AA11:AA510)) -> 0.004504185239 | AD9: =AVERAGE(AD11:AD510) -> 0.005052761238 | AE9: (average) | AG9: AICチェック | AJ9: =SQRT(AJ10^2/2+AK10^2/2+ABS(AK9)*AJ10*AK10) -> 0.004836177755 | AK9: =CORREL(Z11:Z510,AA11:AA510) -> -0.2882935902
A10: 点番 | B10: 点名 | C10: X | D10: Y | E10: 図面準拠点データ | G10: 準拠点 | I10: 点名 | J10: X | K10: Y | L10: 実測準拠点データ | N10: xx | O10: yy | P10: xy | Q10: Xx | R10: Xｙ | S10: Yｘ | T10: Yｙ | U10: 点名 | V10: X | W10: Y | X10: 平均二乗誤差データ | Z10: Δx | AA10: Δy | AD10: ベクトル | AE10: RANK | AG10: 点数 | AH10: Affine | AI10: Helmert | AJ10: =IF(ISERROR( STDEVP(Z11:Z510)),"-", STDEVP(Z11:Z510)) -> 0.004009552915 | AK10: =IF(ISERROR(STDEVP(AA11:AA510)),"-",STDEVP(AA11:AA510)) -> 0.004504185239
A11: 1 | B11: P0453 | C11: -43870.35 | D11: -26024.937 | E11: =IF(G11="○",C11,"") -> -43870.35 | F11: =IF(G11="○",D11,"") -> -26024.937 | G11: ○ | I11: 105 | J11: -43870.36 | K11: -26024.951 | L11: =IF(G11="○",J11,"") -> -43870.36 | M11: =IF(G11="○",K11,"") -> -26024.951 | N11: =IF(G11="","",C11^2) -> 1924607609 | O11: =IF(G11="","",D11^2) -> 677297345.9 | P11: =IF(G11="","",C11*D11) -> 1141723095 | Q11: =IF(G11="","",J11*C11) -> 1924608048 | R11: =IF(G11="","",J11*D11) -> 1141723355 | S11: =IF(G11="","",K11*C11) -> 1141723709 | T11: =IF(G11="","",K11*D11) -> 677297710.2 | U11: P0453 | V11: =IF(C11="","",$C$3*C11+$C$4*D11+$I$3) -> -43870.36047 | W11: =IF(D11="","",(-1)*($C$5*C11)+$C$6*D11+$I$4) -> -26024.94888 | X11: =IF(G11="","",IF(B11="",0,(J11-V11)^2)) -> 2.233376081e-07 | Y11: =IF(G11="","",IF(C11="",0,(K11-W11)^2)) -> 4.50217278e-06 | Z11: =IF(G11="","",IF(B11="","",V11-J11)) -> -0.0004725860854 | AA11: =IF(G11="","",IF(C11="","",W11-K11)) -> 0.002121832411 | AD11: =IF(Z11="","",SQRT(Z11^2+AA11^2)) -> 0.002173823909 | AE11: =IF(AD11="","",RANK(AD11,$AD$11:$AD$510,0)) -> 23
A12: 2 | B12: P0451 | C12: -43873.995 | D12: -26021.08 | E12: =IF(G12="○",C12,"") -> -43873.995 | F12: =IF(G12="○",D12,"") -> -26021.08 | G12: ○ | I12: 81 | J12: -43874.011 | K12: -26021.094 | L12: =IF(G12="○",J12,"") -> -43874.011 | M12: =IF(G12="○",K12,"") -> -26021.094 | N12: =IF(G12="","",C12^2) -> 1924927437 | O12: =IF(G12="","",D12^2) -> 677096604.4 | P12: =IF(G12="","",C12*D12) -> 1141648734 | Q12: =IF(G12="","",J12*C12) -> 1924928139 | R12: =IF(G12="","",J12*D12) -> 1141649150 | S12: =IF(G12="","",K12*C12) -> 1141649348 | T12: =IF(G12="","",K12*D12) -> 677096968.7 | U12: P0451 | V12: =IF(C12="","",$C$3*C12+$C$4*D12+$I$3) -> -43874.00543 | W12: =IF(D12="","",(-1)*($C$5*C12)+$C$6*D12+$I$4) -> -26021.09236 | X12: =IF(G12="","",IF(B12="",0,(J12-V12)^2)) -> 3.10430477e-05 | Y12: =IF(G12="","",IF(C12="",0,(K12-W12)^2)) -> 2.676572007e-06 | Z12: =IF(G12="","",IF(B12="","",V12-J12)) -> 0.005571628819 | AA12: =IF(G12="","",IF(C12="","",W12-K12)) -> 0.001636023229 | AD12: =IF(Z12="","",SQRT(Z12^2+AA12^2)) -> 0.005806859711 | AE12: =IF(AD12="","",RANK(AD12,$AD$11:$AD$510,0)) -> 10
A13: 3 | B13: P0750 | C13: -43873.664 | D13: -26009.124 | E13: =IF(G13="○",C13,"") -> -43873.664 | F13: =IF(G13="○",D13,"") -> -26009.124 | G13: ○ | I13: 83 | J13: -43873.668 | K13: -26009.137 | L13: =IF(G13="○",J13,"") -> -43873.668 | M13: =IF(G13="○",K13,"") -> -26009.137 | N13: =IF(G13="","",C13^2) -> 1924898393 | O13: =IF(G13="","",D13^2) -> 676474531.2 | P13: =IF(G13="","",C13*D13) -> 1141115567 | Q13: =IF(G13="","",J13*C13) -> 1924898568 | R13: =IF(G13="","",J13*D13) -> 1141115671 | S13: =IF(G13="","",K13*C13) -> 1141116138 | T13: =IF(G13="","",K13*D13) -> 676474869.4 | U13: P0750 | V13: =IF(C13="","",$C$3*C13+$C$4*D13+$I$3) -> -43873.67487 | W13: =IF(D13="","",(-1)*($C$5*C13)+$C$6*D13+$I$4) -> -26009.13835 | X13: =IF(G13="","",IF(B13="",0,(J13-V13)^2)) -> 4.726155577e-05 | Y13: =IF(G13="","",IF(C13="",0,(K13-W13)^2)) -> 1.829906484e-06 | Z13: =IF(G13="","",IF(B13="","",V13-J13)) -> -0.00687470405 | AA13: =IF(G13="","",IF(C13="","",W13-K13)) -> -0.001352740361 | AD13: =IF(Z13="","",SQRT(Z13^2+AA13^2)) -> 0.007006529972 | AE13: =IF(AD13="","",RANK(AD13,$AD$11:$AD$510,0)) -> 7
A14: 4 | B14: P0745 | C14: -43884.818 | D14: -25992.594 | E14: =IF(G14="○",C14,"") -> -43884.818 | F14: =IF(G14="○",D14,"") -> -25992.594 | G14: ○ | I14: 89 | J14: -43884.833 | K14: -25992.605 | L14: =IF(G14="○",J14,"") -> -43884.833 | M14: =IF(G14="○",K14,"") -> -25992.605 | N14: =IF(G14="","",C14^2) -> 1925877251 | O14: =IF(G14="","",D14^2) -> 675614942.8 | P14: =IF(G14="","",C14*D14) -> 1140680257 | Q14: =IF(G14="","",J14*C14) -> 1925877909 | R14: =IF(G14="","",J14*D14) -> 1140680647 | S14: =IF(G14="","",K14*C14) -> 1140680740 | T14: =IF(G14="","",K14*D14) -> 675615228.8 | U14: P0745 | V14: =IF(C14="","",$C$3*C14+$C$4*D14+$I$3) -> -43884.82891 | W14: =IF(D14="","",(-1)*($C$5*C14)+$C$6*D14+$I$4) -> -25992.61062 | X14: =IF(G14="","",IF(B14="",0,(J14-V14)^2)) -> 1.673372393e-05 | Y14: =IF(G14="","",IF(C14="",0,(K14-W14)^2)) -> 3.158728582e-05 | Z14: =IF(G14="","",IF(B14="","",V14-J14)) -> 0.004090687464 | AA14: =IF(G14="","",IF(C14="","",W14-K14)) -> -0.005620256739 | AD14: =IF(Z14="","",SQRT(Z14^2+AA14^2)) -> 0.006951331509 | AE14: =IF(AD14="","",RANK(AD14,$AD$11:$AD$510,0)) -> 8
A15: 5 | B15: P0743 | C15: -43893.259 | D15: -25980.694 | E15: =IF(G15="○",C15,"") -> -43893.259 | F15: =IF(G15="○",D15,"") -> -25980.694 | G15: ○ | I15: 70 | J15: -43893.27 | K15: -25980.705 | L15: =IF(G15="○",J15,"") -> -43893.27 | M15: =IF(G15="○",K15,"") -> -25980.705 | N15: =IF(G15="","",C15^2) -> 1926618186 | O15: =IF(G15="","",D15^2) -> 674996460.7 | P15: =IF(G15="","",C15*D15) -> 1140377331 | Q15: =IF(G15="","",J15*C15) -> 1926618668 | R15: =IF(G15="","",J15*D15) -> 1140377617 | S15: =IF(G15="","",K15*C15) -> 1140377814 | T15: =IF(G15="","",K15*D15) -> 674996746.5 | U15: P0743 | V15: =IF(C15="","",$C$3*C15+$C$4*D15+$I$3) -> -43893.26991 | W15: =IF(D15="","",(-1)*($C$5*C15)+$C$6*D15+$I$4) -> -25980.71224 | X15: =IF(G15="","",IF(B15="",0,(J15-V15)^2)) -> 7.464931611e-09 | Y15: =IF(G15="","",IF(C15="",0,(K15-W15)^2)) -> 5.235357477e-05 | Z15: =IF(G15="","",IF(B15="","",V15-J15)) -> 8.639983571e-05 | AA15: =IF(G15="","",IF(C15="","",W15-K15)) -> -0.007235577017 | AD15: =IF(Z15="","",SQRT(Z15^2+AA15^2)) -> 0.007236092848 | AE15: =IF(AD15="","",RANK(AD15,$AD$11:$AD$510,0)) -> 6
A16: 6 | B16: P0814 | C16: -43905.726 | D16: -25964.813 | E16: =IF(G16="○",C16,"") -> -43905.726 | F16: =IF(G16="○",D16,"") -> -25964.813 | G16: ○ | I16: 4 | J16: -43905.727 | K16: -25964.841 | L16: =IF(G16="○",J16,"") -> -43905.727 | M16: =IF(G16="○",K16,"") -> -25964.841 | N16: =IF(G16="","",C16^2) -> 1927712776 | O16: =IF(G16="","",D16^2) -> 674171514.1 | P16: =IF(G16="","",C16*D16) -> 1140003965 | Q16: =IF(G16="","",J16*C16) -> 1927712819 | R16: =IF(G16="","",J16*D16) -> 1140003991 | S16: =IF(G16="","",K16*C16) -> 1140005195 | T16: =IF(G16="","",K16*D16) -> 674172241.1 | U16: P0814 | V16: =IF(C16="","",$C$3*C16+$C$4*D16+$I$3) -> -43905.73686 | W16: =IF(D16="","",(-1)*($C$5*C16)+$C$6*D16+$I$4) -> -25964.83334 | X16: =IF(G16="","",IF(B16="",0,(J16-V16)^2)) -> 9.720022672e-05 | Y16: =IF(G16="","",IF(C16="",0,(K16-W16)^2)) -> 5.865458408e-05 | Z16: =IF(G16="","",IF(B16="","",V16-J16)) -> -0.009859017533 | AA16: =IF(G16="","",IF(C16="","",W16-K16)) -> 0.007658628081 | AD16: =IF(Z16="","",SQRT(Z16^2+AA16^2)) -> 0.01248418242 | AE16: =IF(AD16="","",RANK(AD16,$AD$11:$AD$510,0)) -> 1
A17: 7 | B17: P0744 | C17: -43895.04 | D17: -25981.353 | E17: =IF(G17="○",C17,"") -> -43895.04 | F17: =IF(G17="○",D17,"") -> -25981.353 | G17: ○ | I17: 69 | J17: -43895.05 | K17: -25981.365 | L17: =IF(G17="○",J17,"") -> -43895.05 | M17: =IF(G17="○",K17,"") -> -25981.365 | N17: =IF(G17="","",C17^2) -> 1926774537 | O17: =IF(G17="","",D17^2) -> 675030703.7 | P17: =IF(G17="","",C17*D17) -> 1140452529 | Q17: =IF(G17="","",J17*C17) -> 1926774976 | R17: =IF(G17="","",J17*D17) -> 1140452789 | S17: =IF(G17="","",K17*C17) -> 1140453056 | T17: =IF(G17="","",K17*D17) -> 675031015.5 | U17: P0744 | V17: =IF(C17="","",$C$3*C17+$C$4*D17+$I$3) -> -43895.0508 | W17: =IF(D17="","",(-1)*($C$5*C17)+$C$6*D17+$I$4) -> -25981.37105 | X17: =IF(G17="","",IF(B17="",0,(J17-V17)^2)) -> 6.409174394e-07 | Y17: =IF(G17="","",IF(C17="",0,(K17-W17)^2)) -> 3.663606559e-05 | Z17: =IF(G17="","",IF(B17="","",V17-J17)) -> -0.0008005731943 | AA17: =IF(G17="","",IF(C17="","",W17-K17)) -> -0.00605277338 | AD17: =IF(Z17="","",SQRT(Z17^2+AA17^2)) -> 0.006105487944 | AE17: =IF(AD17="","",RANK(AD17,$AD$11:$AD$510,0)) -> 9
A18: 8 | B18: P0746 | C18: -43886.196 | D18: -25993.798 | E18: =IF(G18="○",C18,"") -> -43886.196 | F18: =IF(G18="○",D18,"") -> -25993.798 | G18: ○ | I18: 88 | J18: -43886.207 | K18: -25993.812 | L18: =IF(G18="○",J18,"") -> -43886.207 | M18: =IF(G18="○",K18,"") -> -25993.812 | N18: =IF(G18="","",C18^2) -> 1925998199 | O18: =IF(G18="","",D18^2) -> 675677534.5 | P18: =IF(G18="","",C18*D18) -> 1140768914 | Q18: =IF(G18="","",J18*C18) -> 1925998682 | R18: =IF(G18="","",J18*D18) -> 1140769200 | S18: =IF(G18="","",K18*C18) -> 1140769528 | T18: =IF(G18="","",K18*D18) -> 675677898.4 | U18: P0746 | V18: =IF(C18="","",$C$3*C18+$C$4*D18+$I$3) -> -43886.2068 | W18: =IF(D18="","",(-1)*($C$5*C18)+$C$6*D18+$I$4) -> -25993.81436 | X18: =IF(G18="","",IF(B18="",0,(J18-V18)^2)) -> 4.124444854e-08 | Y18: =IF(G18="","",IF(C18="",0,(K18-W18)^2)) -> 5.589232251e-06 | Z18: =IF(G18="","",IF(B18="","",V18-J18)) -> 0.0002030872929 | AA18: =IF(G18="","",IF(C18="","",W18-K18)) -> -0.002364155716 | AD18: =IF(Z18="","",SQRT(Z18^2+AA18^2)) -> 0.002372862554 | AE18: =IF(AD18="","",RANK(AD18,$AD$11:$AD$510,0)) -> 22
A19: 9 | B19: P0747 | C19: -43878.409 | D19: -26003.379 | E19: =IF(G19="○",C19,"") -> -43878.409 | F19: =IF(G19="○",D19,"") -> -26003.379 | G19: ○ | I19: 86 | J19: -43878.424 | K19: -26003.395 | L19: =IF(G19="○",J19,"") -> -43878.424 | M19: =IF(G19="○",K19,"") -> -26003.395 | N19: =IF(G19="","",C19^2) -> 1925314776 | O19: =IF(G19="","",D19^2) -> 676175719.4 | P19: =IF(G19="","",C19*D19) -> 1140986899 | Q19: =IF(G19="","",J19*C19) -> 1925315435 | R19: =IF(G19="","",J19*D19) -> 1140987289 | S19: =IF(G19="","",K19*C19) -> 1140987601 | T19: =IF(G19="","",K19*D19) -> 676176135.5 | U19: P0747 | V19: =IF(C19="","",$C$3*C19+$C$4*D19+$I$3) -> -43878.41984 | W19: =IF(D19="","",(-1)*($C$5*C19)+$C$6*D19+$I$4) -> -26003.3941 | X19: =IF(G19="","",IF(B19="",0,(J19-V19)^2)) -> 1.7279244e-05 | Y19: =IF(G19="","",IF(C19="",0,(K19-W19)^2)) -> 8.014539645e-07 | Z19: =IF(G19="","",IF(B19="","",V19-J19)) -> 0.004156831004 | AA19: =IF(G19="","",IF(C19="","",W19-K19)) -> 0.0008952396129 | AD19: =IF(Z19="","",SQRT(Z19^2+AA19^2)) -> 0.004252140398 | AE19: =IF(AD19="","",RANK(AD19,$AD$11:$AD$510,0)) -> 13
A20: 10 | B20: P0749 | C20: -43876.338 | D20: -26007.735 | E20: =IF(G20="○",C20,"") -> -43876.338 | F20: =IF(G20="○",D20,"") -> -26007.735 | G20: ○ | I20: 85 | J20: -43876.349 | K20: -26007.748 | L20: =IF(G20="○",J20,"") -> -43876.349 | M20: =IF(G20="○",K20,"") -> -26007.748 | N20: =IF(G20="","",C20^2) -> 1925133036 | O20: =IF(G20="","",D20^2) -> 676402279.8 | P20: =IF(G20="","",C20*D20) -> 1141124171 | Q20: =IF(G20="","",J20*C20) -> 1925133519 | R20: =IF(G20="","",J20*D20) -> 1141124458 | S20: =IF(G20="","",K20*C20) -> 1141124742 | T20: =IF(G20="","",K20*D20) -> 676402617.9 | U20: P0749 | V20: =IF(C20="","",$C$3*C20+$C$4*D20+$I$3) -> -43876.34879 | W20: =IF(D20="","",(-1)*($C$5*C20)+$C$6*D20+$I$4) -> -26007.74947 | X20: =IF(G20="","",IF(B20="",0,(J20-V20)^2)) -> 4.389378723e-08 | Y20: =IF(G20="","",IF(C20="",0,(K20-W20)^2)) -> 2.164347802e-06 | Z20: =IF(G20="","",IF(B20="","",V20-J20)) -> 0.0002095084419 | AA20: =IF(G20="","",IF(C20="","",W20-K20)) -> -0.001471172254 | AD20: =IF(Z20="","",SQRT(Z20^2+AA20^2)) -> 0.001486015339 | AE20: =IF(AD20="","",RANK(AD20,$AD$11:$AD$510,0)) -> 25
A21: 11 | B21: P0457 | C21: -43890.211 | D21: -26007.954 | E21: =IF(G21="○",C21,"") -> -43890.211 | F21: =IF(G21="○",D21,"") -> -26007.954 | G21: ○ | I21: 121 | J21: -43890.231 | K21: -26007.966 | L21: =IF(G21="○",J21,"") -> -43890.231 | M21: =IF(G21="○",K21,"") -> -26007.966 | N21: =IF(G21="","",C21^2) -> 1926350622 | O21: =IF(G21="","",D21^2) -> 676413671.3 | P21: =IF(G21="","",C21*D21) -> 1141494589 | Q21: =IF(G21="","",J21*C21) -> 1926351499 | R21: =IF(G21="","",J21*D21) -> 1141495109 | S21: =IF(G21="","",K21*C21) -> 1141495115 | T21: =IF(G21="","",K21*D21) -> 676413983.4 | U21: P0457 | V21: =IF(C21="","",$C$3*C21+$C$4*D21+$I$3) -> -43890.22109 | W21: =IF(D21="","",(-1)*($C$5*C21)+$C$6*D21+$I$4) -> -26007.96786 | X21: =IF(G21="","",IF(B21="",0,(J21-V21)^2)) -> 9.827342436e-05 | Y21: =IF(G21="","",IF(C21="",0,(K21-W21)^2)) -> 3.455960641e-06 | Z21: =IF(G21="","",IF(B21="","",V21-J21)) -> 0.009913295333 | AA21: =IF(G21="","",IF(C21="","",W21-K21)) -> -0.00185902142 | AD21: =IF(Z21="","",SQRT(Z21^2+AA21^2)) -> 0.0100860986 | AE21: =IF(AD21="","",RANK(AD21,$AD$11:$AD$510,0)) -> 3
A22: 12 | B22: P0445 | C22: -43913.137 | D22: -26013.669 | E22: =IF(G22="○",C22,"") -> -43913.137 | F22: =IF(G22="○",D22,"") -> -26013.669 | G22: ○ | I22: 137 | J22: -43913.146 | K22: -26013.678 | L22: =IF(G22="○",J22,"") -> -43913.146 | M22: =IF(G22="○",K22,"") -> -26013.678 | N22: =IF(G22="","",C22^2) -> 1928363601 | O22: =IF(G22="","",D22^2) -> 676710974.8 | P22: =IF(G22="","",C22*D22) -> 1142341811 | Q22: =IF(G22="","",J22*C22) -> 1928363996 | R22: =IF(G22="","",J22*D22) -> 1142342045 | S22: =IF(G22="","",K22*C22) -> 1142342206 | T22: =IF(G22="","",K22*D22) -> 676711209 | U22: P0445 | V22: =IF(C22="","",$C$3*C22+$C$4*D22+$I$3) -> -43913.14573 | W22: =IF(D22="","",(-1)*($C$5*C22)+$C$6*D22+$I$4) -> -26013.68096 | X22: =IF(G22="","",IF(B22="",0,(J22-V22)^2)) -> 7.222694285e-08 | Y22: =IF(G22="","",IF(C22="",0,(K22-W22)^2)) -> 8.780097002e-06 | Z22: =IF(G22="","",IF(B22="","",V22-J22)) -> 0.0002687507076 | AA22: =IF(G22="","",IF(C22="","",W22-K22)) -> -0.002963122846 | AD22: =IF(Z22="","",SQRT(Z22^2+AA22^2)) -> 0.002975285523 | AE22: =IF(AD22="","",RANK(AD22,$AD$11:$AD$510,0)) -> 17
A23: 13 | B23: P0434-1 | C23: -43930.776 | D23: -26017.442 | E23: =IF(G23="○",C23,"") -> -43930.776 | F23: =IF(G23="○",D23,"") -> -26017.442 | G23: ○ | I23: 195 | J23: -43930.784 | K23: -26017.453 | L23: =IF(G23="○",J23,"") -> -43930.784 | M23: =IF(G23="○",K23,"") -> -26017.453 | N23: =IF(G23="","",C23^2) -> 1929913080 | O23: =IF(G23="","",D23^2) -> 676907288.2 | P23: =IF(G23="","",C23*D23) -> 1142966417 | Q23: =IF(G23="","",J23*C23) -> 1929913431 | R23: =IF(G23="","",J23*D23) -> 1142966625 | S23: =IF(G23="","",K23*C23) -> 1142966900 | T23: =IF(G23="","",K23*D23) -> 676907574.4 | U23: P0434-1 | V23: =IF(C23="","",$C$3*C23+$C$4*D23+$I$3) -> -43930.78371 | W23: =IF(D23="","",(-1)*($C$5*C23)+$C$6*D23+$I$4) -> -26017.45261 | X23: =IF(G23="","",IF(B23="",0,(J23-V23)^2)) -> 8.363219873e-08 | Y23: =IF(G23="","",IF(C23="",0,(K23-W23)^2)) -> 1.540338713e-07 | Z23: =IF(G23="","",IF(B23="","",V23-J23)) -> 0.0002891923214 | AA23: =IF(G23="","",IF(C23="","",W23-K23)) -> 0.0003924714911 | AD23: =IF(Z23="","",SQRT(Z23^2+AA23^2)) -> 0.0004875100717 | AE23: =IF(AD23="","",RANK(AD23,$AD$11:$AD$510,0)) -> 26
A24: 14 | B24: P0439 | C24: -43950.973 | D24: -26016.711 | E24: =IF(G24="○",C24,"") -> -43950.973 | F24: =IF(G24="○",D24,"") -> -26016.711 | G24: ○ | I24: 189 | J24: -43950.979 | K24: -26016.718 | L24: =IF(G24="○",J24,"") -> -43950.979 | M24: =IF(G24="○",K24,"") -> -26016.718 | N24: =IF(G24="","",C24^2) -> 1931688028 | O24: =IF(G24="","",D24^2) -> 676869251.3 | P24: =IF(G24="","",C24*D24) -> 1143459763 | Q24: =IF(G24="","",J24*C24) -> 1931688291 | R24: =IF(G24="","",J24*D24) -> 1143459919 | S24: =IF(G24="","",K24*C24) -> 1143460070 | T24: =IF(G24="","",K24*D24) -> 676869433.4 | U24: P0439 | V24: =IF(C24="","",$C$3*C24+$C$4*D24+$I$3) -> -43950.97972 | W24: =IF(D24="","",(-1)*($C$5*C24)+$C$6*D24+$I$4) -> -26016.72089 | X24: =IF(G24="","",IF(B24="",0,(J24-V24)^2)) -> 5.240796637e-07 | Y24: =IF(G24="","",IF(C24="",0,(K24-W24)^2)) -> 8.350663544e-06 | Z24: =IF(G24="","",IF(B24="","",V24-J24)) -> -0.0007239334664 | AA24: =IF(G24="","",IF(C24="","",W24-K24)) -> -0.002889751468 | AD24: =IF(Z24="","",SQRT(Z24^2+AA24^2)) -> 0.002979050723 | AE24: =IF(AD24="","",RANK(AD24,$AD$11:$AD$510,0)) -> 16
A25: 15 | B25: 0779 | C25: -43906.053 | D25: -25979.428 | E25: =IF(G25="○",C25,"") -> -43906.053 | F25: =IF(G25="○",D25,"") -> -25979.428 | G25: ○ | I25: 1 | J25: -43906.07 | K25: -25979.442 | L25: =IF(G25="○",J25,"") -> -43906.07 | M25: =IF(G25="○",K25,"") -> -25979.442 | N25: =IF(G25="","",C25^2) -> 1927741490 | O25: =IF(G25="","",D25^2) -> 674930679.2 | P25: =IF(G25="","",C25*D25) -> 1140654143 | Q25: =IF(G25="","",J25*C25) -> 1927742236 | R25: =IF(G25="","",J25*D25) -> 1140654584 | S25: =IF(G25="","",K25*C25) -> 1140654757 | T25: =IF(G25="","",K25*D25) -> 674931042.9 | U25: 0779 | V25: =IF(C25="","",$C$3*C25+$C$4*D25+$I$3) -> -43906.06332 | W25: =IF(D25="","",(-1)*($C$5*C25)+$C$6*D25+$I$4) -> -25979.44591 | X25: =IF(G25="","",IF(B25="",0,(J25-V25)^2)) -> 4.46582906e-05 | Y25: =IF(G25="","",IF(C25="",0,(K25-W25)^2)) -> 1.531573314e-05 | Z25: =IF(G25="","",IF(B25="","",V25-J25)) -> 0.006682685882 | AA25: =IF(G25="","",IF(C25="","",W25-K25)) -> -0.003913532055 | AD25: =IF(Z25="","",SQRT(Z25^2+AA25^2)) -> 0.007744289751 | AE25: =IF(AD25="","",RANK(AD25,$AD$11:$AD$510,0)) -> 5
A26: 16 | B26: 0356 | C26: -43923.606 | D26: -25980.185 | E26: =IF(G26="○",C26,"") -> -43923.606 | F26: =IF(G26="○",D26,"") -> -25980.185 | G26: ○ | I26: 45 | J26: -43923.617 | K26: -25980.204 | L26: =IF(G26="○",J26,"") -> -43923.617 | M26: =IF(G26="○",K26,"") -> -25980.204 | N26: =IF(G26="","",C26^2) -> 1929283164 | O26: =IF(G26="","",D26^2) -> 674970012.6 | P26: =IF(G26="","",C26*D26) -> 1141143410 | Q26: =IF(G26="","",J26*C26) -> 1929283647 | R26: =IF(G26="","",J26*D26) -> 1141143696 | S26: =IF(G26="","",K26*C26) -> 1141144244 | T26: =IF(G26="","",K26*D26) -> 674970506.3 | U26: 0356 | V26: =IF(C26="","",$C$3*C26+$C$4*D26+$I$3) -> -43923.61541 | W26: =IF(D26="","",(-1)*($C$5*C26)+$C$6*D26+$I$4) -> -25980.20206 | X26: =IF(G26="","",IF(B26="",0,(J26-V26)^2)) -> 2.529406514e-06 | Y26: =IF(G26="","",IF(C26="",0,(K26-W26)^2)) -> 3.764672117e-06 | Z26: =IF(G26="","",IF(B26="","",V26-J26)) -> 0.0015904108 | AA26: =IF(G26="","",IF(C26="","",W26-K26)) -> 0.001940276299 | AD26: =IF(Z26="","",SQRT(Z26^2+AA26^2)) -> 0.002508800237 | AE26: =IF(AD26="","",RANK(AD26,$AD$11:$AD$510,0)) -> 19
A27: 17 | B27: P0454 | C27: -43861.993 | D27: -26028.297 | E27: =IF(G27="○",C27,"") -> -43861.993 | F27: =IF(G27="○",D27,"") -> -26028.297 | G27: ○ | I27: 107 | J27: -43862.003 | K27: -26028.311 | L27: =IF(G27="○",J27,"") -> -43862.003 | M27: =IF(G27="○",K27,"") -> -26028.311 | N27: =IF(G27="","",C27^2) -> 1923874430 | O27: =IF(G27="","",D27^2) -> 677472244.7 | P27: =IF(G27="","",C27*D27) -> 1141652981 | Q27: =IF(G27="","",J27*C27) -> 1923874869 | R27: =IF(G27="","",J27*D27) -> 1141653241 | S27: =IF(G27="","",K27*C27) -> 1141653595 | T27: =IF(G27="","",K27*D27) -> 677472609.1 | U27: P0454 | V27: =IF(C27="","",$C$3*C27+$C$4*D27+$I$3) -> -43862.00377 | W27: =IF(D27="","",(-1)*($C$5*C27)+$C$6*D27+$I$4) -> -26028.30867 | X27: =IF(G27="","",IF(B27="",0,(J27-V27)^2)) -> 5.944932939e-07 | Y27: =IF(G27="","",IF(C27="",0,(K27-W27)^2)) -> 5.428483877e-06 | Z27: =IF(G27="","",IF(B27="","",V27-J27)) -> -0.0007710339123 | AA27: =IF(G27="","",IF(C27="","",W27-K27)) -> 0.002329910702 | AD27: =IF(Z27="","",SQRT(Z27^2+AA27^2)) -> 0.002454175456 | AE27: =IF(AD27="","",RANK(AD27,$AD$11:$AD$510,0)) -> 20
A28: 18 | B28: P0452 | C28: -43871.328 | D28: -26026.639 | E28: =IF(G28="○",C28,"") -> -43871.328 | F28: =IF(G28="○",D28,"") -> -26026.639 | G28: ○ | I28: 106 | J28: -43871.335 | K28: -26026.66 | L28: =IF(G28="○",J28,"") -> -43871.335 | M28: =IF(G28="○",K28,"") -> -26026.66 | N28: =IF(G28="","",C28^2) -> 1924693420 | O28: =IF(G28="","",D28^2) -> 677385937.6 | P28: =IF(G28="","",C28*D28) -> 1141823216 | Q28: =IF(G28="","",J28*C28) -> 1924693728 | R28: =IF(G28="","",J28*D28) -> 1141823398 | S28: =IF(G28="","",K28*C28) -> 1141824138 | T28: =IF(G28="","",K28*D28) -> 677386484.2 | U28: P0452 | V28: =IF(C28="","",$C$3*C28+$C$4*D28+$I$3) -> -43871.33836 | W28: =IF(D28="","",(-1)*($C$5*C28)+$C$6*D28+$I$4) -> -26026.65056 | X28: =IF(G28="","",IF(B28="",0,(J28-V28)^2)) -> 1.130541234e-05 | Y28: =IF(G28="","",IF(C28="",0,(K28-W28)^2)) -> 8.918141853e-05 | Z28: =IF(G28="","",IF(B28="","",V28-J28)) -> -0.003362352203 | AA28: =IF(G28="","",IF(C28="","",W28-K28)) -> 0.0094435914 | AD28: =IF(Z28="","",SQRT(Z28^2+AA28^2)) -> 0.01002431199 | AE28: =IF(AD28="","",RANK(AD28,$AD$11:$AD$510,0)) -> 4
A29: 19 | B29: P0450 | C29: -43875.835 | D29: -26021.774 | E29: =IF(G29="○",C29,"") -> -43875.835 | F29: =IF(G29="○",D29,"") -> -26021.774 | G29: ○ | I29: 82 | J29: -43875.843 | K29: -26021.782 | L29: =IF(G29="○",J29,"") -> -43875.843 | M29: =IF(G29="○",K29,"") -> -26021.782 | N29: =IF(G29="","",C29^2) -> 1925088897 | O29: =IF(G29="","",D29^2) -> 677132722.1 | P29: =IF(G29="","",C29*D29) -> 1141727062 | Q29: =IF(G29="","",J29*C29) -> 1925089248 | R29: =IF(G29="","",J29*D29) -> 1141727271 | S29: =IF(G29="","",K29*C29) -> 1141727413 | T29: =IF(G29="","",K29*D29) -> 677132930.3 | U29: P0450 | V29: =IF(C29="","",$C$3*C29+$C$4*D29+$I$3) -> -43875.84531 | W29: =IF(D29="","",(-1)*($C$5*C29)+$C$6*D29+$I$4) -> -26021.78617 | X29: =IF(G29="","",IF(B29="",0,(J29-V29)^2)) -> 5.341306086e-06 | Y29: =IF(G29="","",IF(C29="",0,(K29-W29)^2)) -> 1.741344424e-05 | Z29: =IF(G29="","",IF(B29="","",V29-J29)) -> -0.002311126584 | AA29: =IF(G29="","",IF(C29="","",W29-K29)) -> -0.004172941917 | AD29: =IF(Z29="","",SQRT(Z29^2+AA29^2)) -> 0.004770193951 | AE29: =IF(AD29="","",RANK(AD29,$AD$11:$AD$510,0)) -> 12
A30: 20 | B30: P0458 | C30: -43875.499 | D30: -26009.609 | E30: =IF(G30="○",C30,"") -> -43875.499 | F30: =IF(G30="○",D30,"") -> -26009.609 | G30: ○ | I30: 84 | J30: -43875.507 | K30: -26009.625 | L30: =IF(G30="○",J30,"") -> -43875.507 | M30: =IF(G30="○",K30,"") -> -26009.625 | N30: =IF(G30="","",C30^2) -> 1925059412 | O30: =IF(G30="","",D30^2) -> 676499760.3 | P30: =IF(G30="","",C30*D30) -> 1141184574 | Q30: =IF(G30="","",J30*C30) -> 1925059764 | R30: =IF(G30="","",J30*D30) -> 1141184782 | S30: =IF(G30="","",K30*C30) -> 1141185276 | T30: =IF(G30="","",K30*D30) -> 676500176.5 | U30: P0458 | V30: =IF(C30="","",$C$3*C30+$C$4*D30+$I$3) -> -43875.50977 | W30: =IF(D30="","",(-1)*($C$5*C30)+$C$6*D30+$I$4) -> -26009.6232 | X30: =IF(G30="","",IF(B30="",0,(J30-V30)^2)) -> 7.646454247e-06 | Y30: =IF(G30="","",IF(C30="",0,(K30-W30)^2)) -> 3.252835972e-06 | Z30: =IF(G30="","",IF(B30="","",V30-J30)) -> -0.002765222278 | AA30: =IF(G30="","",IF(C30="","",W30-K30)) -> 0.001803562023 | AD30: =IF(Z30="","",SQRT(Z30^2+AA30^2)) -> 0.003301407309 | AE30: =IF(AD30="","",RANK(AD30,$AD$11:$AD$510,0)) -> 14
A31: 21 | B31: P0442 | C31: -43889.843 | D31: -26009.791 | E31: =IF(G31="○",C31,"") -> -43889.843 | F31: =IF(G31="○",D31,"") -> -26009.791 | G31: ○ | I31: 120 | J31: -43889.848 | K31: -26009.807 | L31: =IF(G31="○",J31,"") -> -43889.848 | M31: =IF(G31="○",K31,"") -> -26009.807 | N31: =IF(G31="","",C31^2) -> 1926318319 | O31: =IF(G31="","",D31^2) -> 676509227.9 | P31: =IF(G31="","",C31*D31) -> 1141565643 | Q31: =IF(G31="","",J31*C31) -> 1926318538 | R31: =IF(G31="","",J31*D31) -> 1141565774 | S31: =IF(G31="","",K31*C31) -> 1141566346 | T31: =IF(G31="","",K31*D31) -> 676509644 | U31: P0442 | V31: =IF(C31="","",$C$3*C31+$C$4*D31+$I$3) -> -43889.85304 | W31: =IF(D31="","",(-1)*($C$5*C31)+$C$6*D31+$I$4) -> -26009.80457 | X31: =IF(G31="","",IF(B31="",0,(J31-V31)^2)) -> 2.539291529e-05 | Y31: =IF(G31="","",IF(C31="",0,(K31-W31)^2)) -> 5.900796912e-06 | Z31: =IF(G31="","",IF(B31="","",V31-J31)) -> -0.005039138348 | AA31: =IF(G31="","",IF(C31="","",W31-K31)) -> 0.002429155596 | AD31: =IF(Z31="","",SQRT(Z31^2+AA31^2)) -> 0.005594078316 | AE31: =IF(AD31="","",RANK(AD31,$AD$11:$AD$510,0)) -> 11
A32: 22 | B32: P0443 | C32: -43903.214 | D32: -26012.438 | E32: =IF(G32="○",C32,"") -> -43903.214 | F32: =IF(G32="○",D32,"") -> -26012.438 | G32: ○ | I32: 122 | J32: -43903.224 | K32: -26012.453 | L32: =IF(G32="○",J32,"") -> -43903.224 | M32: =IF(G32="○",K32,"") -> -26012.453 | N32: =IF(G32="","",C32^2) -> 1927492200 | O32: =IF(G32="","",D32^2) -> 676646930.7 | P32: =IF(G32="","",C32*D32) -> 1142029632 | Q32: =IF(G32="","",J32*C32) -> 1927492639 | R32: =IF(G32="","",J32*D32) -> 1142029892 | S32: =IF(G32="","",K32*C32) -> 1142030291 | T32: =IF(G32="","",K32*D32) -> 676647320.9 | U32: P0443 | V32: =IF(C32="","",$C$3*C32+$C$4*D32+$I$3) -> -43903.22327 | W32: =IF(D32="","",(-1)*($C$5*C32)+$C$6*D32+$I$4) -> -26012.45058 | X32: =IF(G32="","",IF(B32="",0,(J32-V32)^2)) -> 5.281437935e-07 | Y32: =IF(G32="","",IF(C32="",0,(K32-W32)^2)) -> 5.863894033e-06 | Z32: =IF(G32="","",IF(B32="","",V32-J32)) -> 0.0007267350229 | AA32: =IF(G32="","",IF(C32="","",W32-K32)) -> 0.002421547859 | AD32: =IF(Z32="","",SQRT(Z32^2+AA32^2)) -> 0.002528247976 | AE32: =IF(AD32="","",RANK(AD32,$AD$11:$AD$510,0)) -> 18
A33: 23 | B33: P0437 | C33: -43912.79 | D33: -26015.496 | E33: =IF(G33="○",C33,"") -> -43912.79 | F33: =IF(G33="○",D33,"") -> -26015.496 | G33: ○ | I33: 136 | J33: -43912.8 | K33: -26015.506 | L33: =IF(G33="○",J33,"") -> -43912.8 | M33: =IF(G33="○",K33,"") -> -26015.506 | N33: =IF(G33="","",C33^2) -> 1928333126 | O33: =IF(G33="","",D33^2) -> 676806032.1 | P33: =IF(G33="","",C33*D33) -> 1142413013 | Q33: =IF(G33="","",J33*C33) -> 1928333565 | R33: =IF(G33="","",J33*D33) -> 1142413273 | S33: =IF(G33="","",K33*C33) -> 1142413452 | T33: =IF(G33="","",K33*D33) -> 676806292.3 | U33: P0437 | V33: =IF(C33="","",$C$3*C33+$C$4*D33+$I$3) -> -43912.79868 | W33: =IF(D33="","",(-1)*($C$5*C33)+$C$6*D33+$I$4) -> -26015.50768 | X33: =IF(G33="","",IF(B33="",0,(J33-V33)^2)) -> 1.734518079e-06 | Y33: =IF(G33="","",IF(C33="",0,(K33-W33)^2)) -> 2.80805717e-06 | Z33: =IF(G33="","",IF(B33="","",V33-J33)) -> 0.00131701104 | AA33: =IF(G33="","",IF(C33="","",W33-K33)) -> -0.001675725864 | AD33: =IF(Z33="","",SQRT(Z33^2+AA33^2)) -> 0.002131331802 | AE33: =IF(AD33="","",RANK(AD33,$AD$11:$AD$510,0)) -> 24
A34: 24 | B34: P0434 | C34: -43930.604 | D34: -26019.324 | E34: =IF(G34="○",C34,"") -> -43930.604 | F34: =IF(G34="○",D34,"") -> -26019.324 | G34: ○ | I34: 168 | J34: -43930.611 | K34: -26019.332 | L34: =IF(G34="○",J34,"") -> -43930.611 | M34: =IF(G34="○",K34,"") -> -26019.332 | N34: =IF(G34="","",C34^2) -> 1929897968 | O34: =IF(G34="","",D34^2) -> 677005221.4 | P34: =IF(G34="","",C34*D34) -> 1143044619 | Q34: =IF(G34="","",J34*C34) -> 1929898275 | R34: =IF(G34="","",J34*D34) -> 1143044801 | S34: =IF(G34="","",K34*C34) -> 1143044970 | T34: =IF(G34="","",K34*D34) -> 677005429.6 | U34: P0434 | V34: =IF(C34="","",$C$3*C34+$C$4*D34+$I$3) -> -43930.61165 | W34: =IF(D34="","",(-1)*($C$5*C34)+$C$6*D34+$I$4) -> -26019.3343 | X34: =IF(G34="","",IF(B34="",0,(J34-V34)^2)) -> 4.248327225e-07 | Y34: =IF(G34="","",IF(C34="",0,(K34-W34)^2)) -> 5.307404359e-06 | Z34: =IF(G34="","",IF(B34="","",V34-J34)) -> -0.0006517919319 | AA34: =IF(G34="","",IF(C34="","",W34-K34)) -> -0.002303780449 | AD34: =IF(Z34="","",SQRT(Z34^2+AA34^2)) -> 0.002394209072 | AE34: =IF(AD34="","",RANK(AD34,$AD$11:$AD$510,0)) -> 21
A35: 25 | B35: P0438 | C35: -43951.105 | D35: -26018.577 | E35: =IF(G35="○",C35,"") -> -43951.105 | F35: =IF(G35="○",D35,"") -> -26018.577 | G35: ○ | I35: 188 | J35: -43951.109 | K35: -26018.585 | L35: =IF(G35="○",J35,"") -> -43951.109 | M35: =IF(G35="○",K35,"") -> -26018.585 | N35: =IF(G35="","",C35^2) -> 1931699631 | O35: =IF(G35="","",D35^2) -> 676966349.1 | P35: =IF(G35="","",C35*D35) -> 1143545210 | Q35: =IF(G35="","",J35*C35) -> 1931699807 | R35: =IF(G35="","",J35*D35) -> 1143545314 | S35: =IF(G35="","",K35*C35) -> 1143545561 | T35: =IF(G35="","",K35*D35) -> 676966557.3 | U35: P0438 | V35: =IF(C35="","",$C$3*C35+$C$4*D35+$I$3) -> -43951.11165 | W35: =IF(D35="","",(-1)*($C$5*C35)+$C$6*D35+$I$4) -> -26018.58658 | X35: =IF(G35="","",IF(B35="",0,(J35-V35)^2)) -> 7.023788832e-06 | Y35: =IF(G35="","",IF(C35="",0,(K35-W35)^2)) -> 2.483855118e-06 | Z35: =IF(G35="","",IF(B35="","",V35-J35)) -> -0.002650243165 | AA35: =IF(G35="","",IF(C35="","",W35-K35)) -> -0.001576025101 | AD35: =IF(Z35="","",SQRT(Z35^2+AA35^2)) -> 0.003083446765 | AE35: =IF(AD35="","",RANK(AD35,$AD$11:$AD$510,0)) -> 15
A36: 26 | B36: 0357 | C36: -43935.514 | D36: -25979.844 | E36: =IF(G36="○",C36,"") -> -43935.514 | F36: =IF(G36="○",D36,"") -> -25979.844 | G36: ○ | I36: 46 | J36: -43935.524 | K36: -25979.873 | L36: =IF(G36="○",J36,"") -> -43935.524 | M36: =IF(G36="○",K36,"") -> -25979.873 | N36: =IF(G36="","",C36^2) -> 1930329390 | O36: =IF(G36="","",D36^2) -> 674952294.3 | P36: =IF(G36="","",C36*D36) -> 1141437800 | Q36: =IF(G36="","",J36*C36) -> 1930329830 | R36: =IF(G36="","",J36*D36) -> 1141438060 | S36: =IF(G36="","",K36*C36) -> 1141439074 | T36: =IF(G36="","",K36*D36) -> 674953047.7 | U36: 0357 | V36: =IF(C36="","",$C$3*C36+$C$4*D36+$I$3) -> -43935.52282 | W36: =IF(D36="","",(-1)*($C$5*C36)+$C$6*D36+$I$4) -> -25979.86062 | X36: =IF(G36="","",IF(B36="",0,(J36-V36)^2)) -> 1.381797859e-06 | Y36: =IF(G36="","",IF(C36="",0,(K36-W36)^2)) -> 0.0001532232552 | Z36: =IF(G36="","",IF(B36="","",V36-J36)) -> 0.001175498983 | AA36: =IF(G36="","",IF(C36="","",W36-K36)) -> 0.01237833814 | AD36: =IF(Z36="","",SQRT(Z36^2+AA36^2)) -> 0.01243402803 | AE36: =IF(AD36="","",RANK(AD36,$AD$11:$AD$510,0)) -> 2

Sheet Muhen
F1: 与点が同一の座標解析 | M1: 除外点はベクトル図に含まれます
B4: 件名 | C4: 川崎市筆界特定事件データ | N4: 相関係数 | O4: =(CORREL(Q11:Q510,R11:R510)) -> -0.1266166329
N5: 二変量標準偏差 | O5: =SQRT(Q8^2/2+R8^2/2+ABS(O4)*Q8*R8) -> 0.005102862059 | Q5: =IF(ISERROR(STDEVP(Q11:Q510)),"-",STDEVP(Q11:Q510)) -> 0.004218163037 | R5: =IF(ISERROR(STDEVP(R11:R510)),"-",STDEVP(R11:R510)) -> 0.005345600414
N6: 検定指数 | O6: =IF(ISERROR(SQRT(Q9^2/2+R9^2/2)),"-",SQRT(Q9^2/2+R9^2/2+ABS(O4)*Q9*R9)) -> 0.005102862059 | Q6: ⊿xavg | R6: ⊿yavg
A7: 個数 | B7: =COUNT(S11:S510) -> 26 | N7: 法平均二乗誤差 | O7: =SQRT(P9/(S9-1)) -> 0.01871363139 | Q7: =IF(ISERROR(SUM(Q11:Q510)/(SUM(S11:S510))),"-",SUM(Q11:Q510)/(SUM(S11:S510))) -> 0.009769230768 | R7: =IF(ISERROR(SUM(R11:R510)/(SUM(S11:S510))),"-",SUM(R11:R510)/(SUM(S11:S510))) -> 0.01396153846
O8: STDEVP | Q8: =IF(ISERROR(STDEVP(Q11:Q510)),"-",STDEVP(Q11:Q510)) -> 0.004218163037 | R8: =IF(ISERROR(STDEVP(R11:R510)),"-",STDEVP(R11:R510)) -> 0.005345600414
B9: 図面値 | E9: 実測値 | L9: 除外点 | M9: RANK | O9: STDEVP | P9: =SUM(P11:P510) -> 0.008755 | Q9: =IF(ISERROR(STDEVP(Q11:Q510)),"-",STDEVP(Q11:Q510)) -> 0.004218163037 | R9: =IF(ISERROR(STDEVP(R11:R510)),"-",STDEVP(R11:R510)) -> 0.005345600414 | S9: =COUNT(S11:S510) -> 26
A10: 点番 | B10: 点名 | C10: X | D10: Y | E10: 点名 | F10: X | G10: Y | H10: Δx-平均 | I10: Δy-平均 | J10: ベクトル | N10: 位置誤差 | O10: 実測点名 | P10: 二乗 | Q10: Δx | R10: Δy | S10: 個数 | U10: 保存データ | V10: x | W10: y
A11: 1 | B11: P0453 | C11: -43870.35 | D11: -26024.937 | E11: 105 | F11: -43870.36 | G11: -26024.951 | H11: =IF(AND(F11<>"",L11<>"○"),(C11-F11)-$Q$7,"") -> 0.0002307692342 | I11: =IF(AND(F11<>"",L11<>"○"),(D11-G11)-$R$7,"") -> 3.846153749e-05 | J11: =IF(AND(F11<>"",L11<>"○"),SQRT(H11^2+I11^2),"") -> 0.0002339524082 | M11: =IF(E11="","",IF(AND(L11<>"○",B11<>""),RANK(N11,$N$11:$N$510,0),"")) -> 13 | N11: =IF(AND(F11<>"",L11<>"○"),SQRT(Q11^2+R11^2),"") -> 0.01720465053 | O11: =IF(OR(E11="",L11="○"),"",U11) -> 105 | P11: =IF(AND(F11<>"",L11<>"○"),Q11^2+R11^2,"") -> 0.000296 | Q11: =IF(AND(F11<>"",L11<>"○"),C11-F11,"") -> 0.01 | R11: =IF(AND(F11<>"",L11<>"○"),D11-G11,"") -> 0.014 | S11: =IF(AND(F11<>"",L11<>"○"),1,"") -> 1 | U11: 105 | V11: -43870.36 | W11: -26024.951
A12: 2 | B12: P0451 | C12: -43873.995 | D12: -26021.08 | E12: 81 | F12: -43874.011 | G12: -26021.094 | H12: =IF(AND(F12<>"",L12<>"○"),(C12-F12)-$Q$7,"") -> 0.006230769228 | I12: =IF(AND(F12<>"",L12<>"○"),(D12-G12)-$R$7,"") -> 3.846153749e-05 | J12: =IF(AND(F12<>"",L12<>"○"),SQRT(H12^2+I12^2),"") -> 0.006230887935 | M12: =IF(E12="","",IF(AND(L12<>"○",B12<>""),RANK(N12,$N$11:$N$510,0),"")) -> 8 | N12: =IF(AND(F12<>"",L12<>"○"),SQRT(Q12^2+R12^2),"") -> 0.02126029162 | O12: =IF(OR(E12="",L12="○"),"",U12) -> 81 | P12: =IF(AND(F12<>"",L12<>"○"),Q12^2+R12^2,"") -> 0.0004519999998 | Q12: =IF(AND(F12<>"",L12<>"○"),C12-F12,"") -> 0.016 | R12: =IF(AND(F12<>"",L12<>"○"),D12-G12,"") -> 0.014 | S12: =IF(AND(F12<>"",L12<>"○"),1,"") -> 1 | U12: 81 | V12: -43874.011 | W12: -26021.094
A13: 3 | B13: P0750 | C13: -43873.664 | D13: -26009.124 | E13: 83 | F13: -43873.668 | G13: -26009.137 | H13: =IF(AND(F13<>"",L13<>"○"),(C13-F13)-$Q$7,"") -> -0.005769230767 | I13: =IF(AND(F13<>"",L13<>"○"),(D13-G13)-$R$7,"") -> -0.0009615384627 | J13: =IF(AND(F13<>"",L13<>"○"),SQRT(H13^2+I13^2),"") -> 0.005848810123 | M13: =IF(E13="","",IF(AND(L13<>"○",B13<>""),RANK(N13,$N$11:$N$510,0),"")) -> 21 | N13: =IF(AND(F13<>"",L13<>"○"),SQRT(Q13^2+R13^2),"") -> 0.01360147051 | O13: =IF(OR(E13="",L13="○"),"",U13) -> 83 | P13: =IF(AND(F13<>"",L13<>"○"),Q13^2+R13^2,"") -> 0.000185 | Q13: =IF(AND(F13<>"",L13<>"○"),C13-F13,"") -> 0.004000000001 | R13: =IF(AND(F13<>"",L13<>"○"),D13-G13,"") -> 0.013 | S13: =IF(AND(F13<>"",L13<>"○"),1,"") -> 1 | U13: 83 | V13: -43873.668 | W13: -26009.137
A14: 4 | B14: P0745 | C14: -43884.818 | D14: -25992.594 | E14: 89 | F14: -43884.833 | G14: -25992.605 | H14: =IF(AND(F14<>"",L14<>"○"),(C14-F14)-$Q$7,"") -> 0.005230769232 | I14: =IF(AND(F14<>"",L14<>"○"),(D14-G14)-$R$7,"") -> -0.002961538463 | J14: =IF(AND(F14<>"",L14<>"○"),SQRT(H14^2+I14^2),"") -> 0.006010961389 | M14: =IF(E14="","",IF(AND(L14<>"○",B14<>""),RANK(N14,$N$11:$N$510,0),"")) -> 9 | N14: =IF(AND(F14<>"",L14<>"○"),SQRT(Q14^2+R14^2),"") -> 0.01860107524 | O14: =IF(OR(E14="",L14="○"),"",U14) -> 89 | P14: =IF(AND(F14<>"",L14<>"○"),Q14^2+R14^2,"") -> 0.000346 | Q14: =IF(AND(F14<>"",L14<>"○"),C14-F14,"") -> 0.015 | R14: =IF(AND(F14<>"",L14<>"○"),D14-G14,"") -> 0.011 | S14: =IF(AND(F14<>"",L14<>"○"),1,"") -> 1 | U14: 89 | V14: -43884.833 | W14: -25992.605
A15: 5 | B15: P0743 | C15: -43893.259 | D15: -25980.694 | E15: 70 | F15: -43893.27 | G15: -25980.705 | H15: =IF(AND(F15<>"",L15<>"○"),(C15-F15)-$Q$7,"") -> 0.001230769231 | I15: =IF(AND(F15<>"",L15<>"○"),(D15-G15)-$R$7,"") -> -0.002961538459 | J15: =IF(AND(F15<>"",L15<>"○"),SQRT(H15^2+I15^2),"") -> 0.003207101954 | M15: =IF(E15="","",IF(AND(L15<>"○",B15<>""),RANK(N15,$N$11:$N$510,0),"")) -> 18 | N15: =IF(AND(F15<>"",L15<>"○"),SQRT(Q15^2+R15^2),"") -> 0.01555634919 | O15: =IF(OR(E15="",L15="○"),"",U15) -> 70 | P15: =IF(AND(F15<>"",L15<>"○"),Q15^2+R15^2,"") -> 0.000242 | Q15: =IF(AND(F15<>"",L15<>"○"),C15-F15,"") -> 0.011 | R15: =IF(AND(F15<>"",L15<>"○"),D15-G15,"") -> 0.011 | S15: =IF(AND(F15<>"",L15<>"○"),1,"") -> 1 | U15: 70 | V15: -43893.27 | W15: -25980.705
A16: 6 | B16: P0814 | C16: -43905.726 | D16: -25964.813 | E16: 4 | F16: -43905.727 | G16: -25964.841 | H16: =IF(AND(F16<>"",L16<>"○"),(C16-F16)-$Q$7,"") -> -0.008769230771 | I16: =IF(AND(F16<>"",L16<>"○"),(D16-G16)-$R$7,"") -> 0.01403846154 | J16: =IF(AND(F16<>"",L16<>"○"),SQRT(H16^2+I16^2),"") -> 0.01655227509 | M16: =IF(E16="","",IF(AND(L16<>"○",B16<>""),RANK(N16,$N$11:$N$510,0),"")) -> 2 | N16: =IF(AND(F16<>"",L16<>"○"),SQRT(Q16^2+R16^2),"") -> 0.02801785145 | O16: =IF(OR(E16="",L16="○"),"",U16) -> 4 | P16: =IF(AND(F16<>"",L16<>"○"),Q16^2+R16^2,"") -> 0.0007850000001 | Q16: =IF(AND(F16<>"",L16<>"○"),C16-F16,"") -> 0.0009999999966 | R16: =IF(AND(F16<>"",L16<>"○"),D16-G16,"") -> 0.028 | S16: =IF(AND(F16<>"",L16<>"○"),1,"") -> 1 | U16: 4 | V16: -43905.727 | W16: -25964.841
A17: 7 | B17: P0744 | C17: -43895.04 | D17: -25981.353 | E17: 69 | F17: -43895.05 | G17: -25981.365 | H17: =IF(AND(F17<>"",L17<>"○"),(C17-F17)-$Q$7,"") -> 0.0002307692342 | I17: =IF(AND(F17<>"",L17<>"○"),(D17-G17)-$R$7,"") -> -0.001961538459 | J17: =IF(AND(F17<>"",L17<>"○"),SQRT(H17^2+I17^2),"") -> 0.001975066471 | M17: =IF(E17="","",IF(AND(L17<>"○",B17<>""),RANK(N17,$N$11:$N$510,0),"")) -> 17 | N17: =IF(AND(F17<>"",L17<>"○"),SQRT(Q17^2+R17^2),"") -> 0.01562049935 | O17: =IF(OR(E17="",L17="○"),"",U17) -> 69 | P17: =IF(AND(F17<>"",L17<>"○"),Q17^2+R17^2,"") -> 0.0002440000001 | Q17: =IF(AND(F17<>"",L17<>"○"),C17-F17,"") -> 0.01 | R17: =IF(AND(F17<>"",L17<>"○"),D17-G17,"") -> 0.012 | S17: =IF(AND(F17<>"",L17<>"○"),1,"") -> 1 | U17: 69 | V17: -43895.05 | W17: -25981.365
A18: 8 | B18: P0746 | C18: -43886.196 | D18: -25993.798 | E18: 88 | F18: -43886.207 | G18: -25993.812 | H18: =IF(AND(F18<>"",L18<>"○"),(C18-F18)-$Q$7,"") -> 0.001230769231 | I18: =IF(AND(F18<>"",L18<>"○"),(D18-G18)-$R$7,"") -> 3.846154113e-05 | J18: =IF(AND(F18<>"",L18<>"○"),SQRT(H18^2+I18^2),"") -> 0.001231370046 | M18: =IF(E18="","",IF(AND(L18<>"○",B18<>""),RANK(N18,$N$11:$N$510,0),"")) -> 12 | N18: =IF(AND(F18<>"",L18<>"○"),SQRT(Q18^2+R18^2),"") -> 0.01780449382 | O18: =IF(OR(E18="",L18="○"),"",U18) -> 88 | P18: =IF(AND(F18<>"",L18<>"○"),Q18^2+R18^2,"") -> 0.000317 | Q18: =IF(AND(F18<>"",L18<>"○"),C18-F18,"") -> 0.011 | R18: =IF(AND(F18<>"",L18<>"○"),D18-G18,"") -> 0.014 | S18: =IF(AND(F18<>"",L18<>"○"),1,"") -> 1 | U18: 88 | V18: -43886.207 | W18: -25993.812
A19: 9 | B19: P0747 | C19: -43878.409 | D19: -26003.379 | E19: 86 | F19: -43878.424 | G19: -26003.395 | H19: =IF(AND(F19<>"",L19<>"○"),(C19-F19)-$Q$7,"") -> 0.005230769232 | I19: =IF(AND(F19<>"",L19<>"○"),(D19-G19)-$R$7,"") -> 0.002038461538 | J19: =IF(AND(F19<>"",L19<>"○"),SQRT(H19^2+I19^2),"") -> 0.005613935535 | M19: =IF(E19="","",IF(AND(L19<>"○",B19<>""),RANK(N19,$N$11:$N$510,0),"")) -> 7 | N19: =IF(AND(F19<>"",L19<>"○"),SQRT(Q19^2+R19^2),"") -> 0.0219317122 | O19: =IF(OR(E19="",L19="○"),"",U19) -> 86 | P19: =IF(AND(F19<>"",L19<>"○"),Q19^2+R19^2,"") -> 0.000481 | Q19: =IF(AND(F19<>"",L19<>"○"),C19-F19,"") -> 0.015 | R19: =IF(AND(F19<>"",L19<>"○"),D19-G19,"") -> 0.016 | S19: =IF(AND(F19<>"",L19<>"○"),1,"") -> 1 | U19: 86 | V19: -43878.424 | W19: -26003.395
A20: 10 | B20: P0749 | C20: -43876.338 | D20: -26007.735 | E20: 85 | F20: -43876.349 | G20: -26007.748 | H20: =IF(AND(F20<>"",L20<>"○"),(C20-F20)-$Q$7,"") -> 0.001230769231 | I20: =IF(AND(F20<>"",L20<>"○"),(D20-G20)-$R$7,"") -> -0.0009615384627 | J20: =IF(AND(F20<>"",L20<>"○"),SQRT(H20^2+I20^2),"") -> 0.001561841578 | M20: =IF(E20="","",IF(AND(L20<>"○",B20<>""),RANK(N20,$N$11:$N$510,0),"")) -> 15 | N20: =IF(AND(F20<>"",L20<>"○"),SQRT(Q20^2+R20^2),"") -> 0.01702938636 | O20: =IF(OR(E20="",L20="○"),"",U20) -> 85 | P20: =IF(AND(F20<>"",L20<>"○"),Q20^2+R20^2,"") -> 0.0002899999999 | Q20: =IF(AND(F20<>"",L20<>"○"),C20-F20,"") -> 0.011 | R20: =IF(AND(F20<>"",L20<>"○"),D20-G20,"") -> 0.013 | S20: =IF(AND(F20<>"",L20<>"○"),1,"") -> 1 | U20: 85 | V20: -43876.349 | W20: -26007.748
A21: 11 | B21: P0457 | C21: -43890.211 | D21: -26007.954 | E21: 121 | F21: -43890.231 | G21: -26007.966 | H21: =IF(AND(F21<>"",L21<>"○"),(C21-F21)-$Q$7,"") -> 0.01023076923 | I21: =IF(AND(F21<>"",L21<>"○"),(D21-G21)-$R$7,"") -> -0.001961538463 | J21: =IF(AND(F21<>"",L21<>"○"),SQRT(H21^2+I21^2),"") -> 0.01041711439 | M21: =IF(E21="","",IF(AND(L21<>"○",B21<>""),RANK(N21,$N$11:$N$510,0),"")) -> 3 | N21: =IF(AND(F21<>"",L21<>"○"),SQRT(Q21^2+R21^2),"") -> 0.02332380758 | O21: =IF(OR(E21="",L21="○"),"",U21) -> 121 | P21: =IF(AND(F21<>"",L21<>"○"),Q21^2+R21^2,"") -> 0.0005439999998 | Q21: =IF(AND(F21<>"",L21<>"○"),C21-F21,"") -> 0.02 | R21: =IF(AND(F21<>"",L21<>"○"),D21-G21,"") -> 0.012 | S21: =IF(AND(F21<>"",L21<>"○"),1,"") -> 1 | U21: 121 | V21: -43890.231 | W21: -26007.966
A22: 12 | B22: P0445 | C22: -43913.137 | D22: -26013.669 | E22: 137 | F22: -43913.146 | G22: -26013.678 | H22: =IF(AND(F22<>"",L22<>"○"),(C22-F22)-$Q$7,"") -> -0.0007692307697 | I22: =IF(AND(F22<>"",L22<>"○"),(D22-G22)-$R$7,"") -> -0.004961538464 | J22: =IF(AND(F22<>"",L22<>"○"),SQRT(H22^2+I22^2),"") -> 0.005020814665 | M22: =IF(E22="","",IF(AND(L22<>"○",B22<>""),RANK(N22,$N$11:$N$510,0),"")) -> 22 | N22: =IF(AND(F22<>"",L22<>"○"),SQRT(Q22^2+R22^2),"") -> 0.01272792206 | O22: =IF(OR(E22="",L22="○"),"",U22) -> 137 | P22: =IF(AND(F22<>"",L22<>"○"),Q22^2+R22^2,"") -> 0.0001619999999 | Q22: =IF(AND(F22<>"",L22<>"○"),C22-F22,"") -> 0.008999999998 | R22: =IF(AND(F22<>"",L22<>"○"),D22-G22,"") -> 0.008999999998 | S22: =IF(AND(F22<>"",L22<>"○"),1,"") -> 1 | U22: 137 | V22: -43913.146 | W22: -26013.678
A23: 13 | B23: P0434-1 | C23: -43930.776 | D23: -26017.442 | E23: 195 | F23: -43930.784 | G23: -26017.453 | H23: =IF(AND(F23<>"",L23<>"○"),(C23-F23)-$Q$7,"") -> -0.001769230766 | I23: =IF(AND(F23<>"",L23<>"○"),(D23-G23)-$R$7,"") -> -0.002961538459 | J23: =IF(AND(F23<>"",L23<>"○"),SQRT(H23^2+I23^2),"") -> 0.003449766304 | M23: =IF(E23="","",IF(AND(L23<>"○",B23<>""),RANK(N23,$N$11:$N$510,0),"")) -> 20 | N23: =IF(AND(F23<>"",L23<>"○"),SQRT(Q23^2+R23^2),"") -> 0.01360147051 | O23: =IF(OR(E23="",L23="○"),"",U23) -> 195 | P23: =IF(AND(F23<>"",L23<>"○"),Q23^2+R23^2,"") -> 0.0001850000001 | Q23: =IF(AND(F23<>"",L23<>"○"),C23-F23,"") -> 0.008000000002 | R23: =IF(AND(F23<>"",L23<>"○"),D23-G23,"") -> 0.011 | S23: =IF(AND(F23<>"",L23<>"○"),1,"") -> 1 | U23: 195 | V23: -43930.784 | W23: -26017.453
A24: 14 | B24: P0439 | C24: -43950.973 | D24: -26016.711 | E24: 189 | F24: -43950.979 | G24: -26016.718 | H24: =IF(AND(F24<>"",L24<>"○"),(C24-F24)-$Q$7,"") -> -0.003769230767 | I24: =IF(AND(F24<>"",L24<>"○"),(D24-G24)-$R$7,"") -> -0.00696153846 | J24: =IF(AND(F24<>"",L24<>"○"),SQRT(H24^2+I24^2),"") -> 0.007916446065 | M24: =IF(E24="","",IF(AND(L24<>"○",B24<>""),RANK(N24,$N$11:$N$510,0),"")) -> 25 | N24: =IF(AND(F24<>"",L24<>"○"),SQRT(Q24^2+R24^2),"") -> 0.009219544459 | O24: =IF(OR(E24="",L24="○"),"",U24) -> 189 | P24: =IF(AND(F24<>"",L24<>"○"),Q24^2+R24^2,"") -> 8.500000003e-05 | Q24: =IF(AND(F24<>"",L24<>"○"),C24-F24,"") -> 0.006000000001 | R24: =IF(AND(F24<>"",L24<>"○"),D24-G24,"") -> 0.007000000001 | S24: =IF(AND(F24<>"",L24<>"○"),1,"") -> 1 | U24: 189 | V24: -43950.979 | W24: -26016.718
A25: 15 | B25: 0779 | C25: -43906.053 | D25: -25979.428 | E25: 1 | F25: -43906.07 | G25: -25979.442 | H25: =IF(AND(F25<>"",L25<>"○"),(C25-F25)-$Q$7,"") -> 0.007230769232 | I25: =IF(AND(F25<>"",L25<>"○"),(D25-G25)-$R$7,"") -> 3.846153749e-05 | J25: =IF(AND(F25<>"",L25<>"○"),SQRT(H25^2+I25^2),"") -> 0.007230871523 | M25: =IF(E25="","",IF(AND(L25<>"○",B25<>""),RANK(N25,$N$11:$N$510,0),"")) -> 5 | N25: =IF(AND(F25<>"",L25<>"○"),SQRT(Q25^2+R25^2),"") -> 0.02202271554 | O25: =IF(OR(E25="",L25="○"),"",U25) -> 1 | P25: =IF(AND(F25<>"",L25<>"○"),Q25^2+R25^2,"") -> 0.000485 | Q25: =IF(AND(F25<>"",L25<>"○"),C25-F25,"") -> 0.017 | R25: =IF(AND(F25<>"",L25<>"○"),D25-G25,"") -> 0.014 | S25: =IF(AND(F25<>"",L25<>"○"),1,"") -> 1 | U25: 1 | V25: -43906.07 | W25: -25979.442
A26: 16 | B26: 0356 | C26: -43923.606 | D26: -25980.185 | E26: 45 | F26: -43923.617 | G26: -25980.204 | H26: =IF(AND(F26<>"",L26<>"○"),(C26-F26)-$Q$7,"") -> 0.001230769231 | I26: =IF(AND(F26<>"",L26<>"○"),(D26-G26)-$R$7,"") -> 0.005038461539 | J26: =IF(AND(F26<>"",L26<>"○"),SQRT(H26^2+I26^2),"") -> 0.005186606557 | M26: =IF(E26="","",IF(AND(L26<>"○",B26<>""),RANK(N26,$N$11:$N$510,0),"")) -> 6 | N26: =IF(AND(F26<>"",L26<>"○"),SQRT(Q26^2+R26^2),"") -> 0.0219544984 | O26: =IF(OR(E26="",L26="○"),"",U26) -> 45 | P26: =IF(AND(F26<>"",L26<>"○"),Q26^2+R26^2,"") -> 0.000482 | Q26: =IF(AND(F26<>"",L26<>"○"),C26-F26,"") -> 0.011 | R26: =IF(AND(F26<>"",L26<>"○"),D26-G26,"") -> 0.019 | S26: =IF(AND(F26<>"",L26<>"○"),1,"") -> 1 | U26: 45 | V26: -43923.617 | W26: -25980.204
A27: 17 | B27: P0454 | C27: -43861.993 | D27: -26028.297 | E27: 107 | F27: -43862.003 | G27: -26028.311 | H27: =IF(AND(F27<>"",L27<>"○"),(C27-F27)-$Q$7,"") -> 0.0002307692269 | I27: =IF(AND(F27<>"",L27<>"○"),(D27-G27)-$R$7,"") -> 3.846154113e-05 | J27: =IF(AND(F27<>"",L27<>"○"),SQRT(H27^2+I27^2),"") -> 0.0002339524016 | M27: =IF(E27="","",IF(AND(L27<>"○",B27<>""),RANK(N27,$N$11:$N$510,0),"")) -> 14 | N27: =IF(AND(F27<>"",L27<>"○"),SQRT(Q27^2+R27^2),"") -> 0.01720465053 | O27: =IF(OR(E27="",L27="○"),"",U27) -> 107 | P27: =IF(AND(F27<>"",L27<>"○"),Q27^2+R27^2,"") -> 0.000296 | Q27: =IF(AND(F27<>"",L27<>"○"),C27-F27,"") -> 0.009999999995 | R27: =IF(AND(F27<>"",L27<>"○"),D27-G27,"") -> 0.014 | S27: =IF(AND(F27<>"",L27<>"○"),1,"") -> 1 | U27: 107 | V27: -43862.003 | W27: -26028.311
A28: 18 | B28: P0452 | C28: -43871.328 | D28: -26026.639 | E28: 106 | F28: -43871.335 | G28: -26026.66 | H28: =IF(AND(F28<>"",L28<>"○"),(C28-F28)-$Q$7,"") -> -0.00276923077 | I28: =IF(AND(F28<>"",L28<>"○"),(D28-G28)-$R$7,"") -> 0.007038461539 | J28: =IF(AND(F28<>"",L28<>"○"),SQRT(H28^2+I28^2),"") -> 0.007563635362 | M28: =IF(E28="","",IF(AND(L28<>"○",B28<>""),RANK(N28,$N$11:$N$510,0),"")) -> 4 | N28: =IF(AND(F28<>"",L28<>"○"),SQRT(Q28^2+R28^2),"") -> 0.02213594362 | O28: =IF(OR(E28="",L28="○"),"",U28) -> 106 | P28: =IF(AND(F28<>"",L28<>"○"),Q28^2+R28^2,"") -> 0.00049 | Q28: =IF(AND(F28<>"",L28<>"○"),C28-F28,"") -> 0.006999999998 | R28: =IF(AND(F28<>"",L28<>"○"),D28-G28,"") -> 0.021 | S28: =IF(AND(F28<>"",L28<>"○"),1,"") -> 1 | U28: 106 | V28: -43871.335 | W28: -26026.66
A29: 19 | B29: P0450 | C29: -43875.835 | D29: -26021.774 | E29: 82 | F29: -43875.843 | G29: -26021.782 | H29: =IF(AND(F29<>"",L29<>"○"),(C29-F29)-$Q$7,"") -> -0.001769230766 | I29: =IF(AND(F29<>"",L29<>"○"),(D29-G29)-$R$7,"") -> -0.005961538464 | J29: =IF(AND(F29<>"",L29<>"○"),SQRT(H29^2+I29^2),"") -> 0.006218530241 | M29: =IF(E29="","",IF(AND(L29<>"○",B29<>""),RANK(N29,$N$11:$N$510,0),"")) -> 23 | N29: =IF(AND(F29<>"",L29<>"○"),SQRT(Q29^2+R29^2),"") -> 0.0113137085 | O29: =IF(OR(E29="",L29="○"),"",U29) -> 82 | P29: =IF(AND(F29<>"",L29<>"○"),Q29^2+R29^2,"") -> 0.000128 | Q29: =IF(AND(F29<>"",L29<>"○"),C29-F29,"") -> 0.008000000002 | R29: =IF(AND(F29<>"",L29<>"○"),D29-G29,"") -> 0.007999999998 | S29: =IF(AND(F29<>"",L29<>"○"),1,"") -> 1 | U29: 82 | V29: -43875.843 | W29: -26021.782
A30: 20 | B30: P0458 | C30: -43875.499 | D30: -26009.609 | E30: 84 | F30: -43875.507 | G30: -26009.625 | H30: =IF(AND(F30<>"",L30<>"○"),(C30-F30)-$Q$7,"") -> -0.001769230774 | I30: =IF(AND(F30<>"",L30<>"○"),(D30-G30)-$R$7,"") -> 0.002038461538 | J30: =IF(AND(F30<>"",L30<>"○"),SQRT(H30^2+I30^2),"") -> 0.002699167088 | M30: =IF(E30="","",IF(AND(L30<>"○",B30<>""),RANK(N30,$N$11:$N$510,0),"")) -> 11 | N30: =IF(AND(F30<>"",L30<>"○"),SQRT(Q30^2+R30^2),"") -> 0.01788854382 | O30: =IF(OR(E30="",L30="○"),"",U30) -> 84 | P30: =IF(AND(F30<>"",L30<>"○"),Q30^2+R30^2,"") -> 0.0003199999999 | Q30: =IF(AND(F30<>"",L30<>"○"),C30-F30,"") -> 0.007999999994 | R30: =IF(AND(F30<>"",L30<>"○"),D30-G30,"") -> 0.016 | S30: =IF(AND(F30<>"",L30<>"○"),1,"") -> 1 | U30: 84 | V30: -43875.507 | W30: -26009.625
A31: 21 | B31: P0442 | C31: -43889.843 | D31: -26009.791 | E31: 120 | F31: -43889.848 | G31: -26009.807 | H31: =IF(AND(F31<>"",L31<>"○"),(C31-F31)-$Q$7,"") -> -0.00476923077 | I31: =IF(AND(F31<>"",L31<>"○"),(D31-G31)-$R$7,"") -> 0.002038461538 | J31: =IF(AND(F31<>"",L31<>"○"),SQRT(H31^2+I31^2),"") -> 0.005186606558 | M31: =IF(E31="","",IF(AND(L31<>"○",B31<>""),RANK(N31,$N$11:$N$510,0),"")) -> 16 | N31: =IF(AND(F31<>"",L31<>"○"),SQRT(Q31^2+R31^2),"") -> 0.01676305461 | O31: =IF(OR(E31="",L31="○"),"",U31) -> 120 | P31: =IF(AND(F31<>"",L31<>"○"),Q31^2+R31^2,"") -> 0.000281 | Q31: =IF(AND(F31<>"",L31<>"○"),C31-F31,"") -> 0.004999999997 | R31: =IF(AND(F31<>"",L31<>"○"),D31-G31,"") -> 0.016 | S31: =IF(AND(F31<>"",L31<>"○"),1,"") -> 1 | U31: 120 | V31: -43889.848 | W31: -26009.807
A32: 22 | B32: P0443 | C32: -43903.214 | D32: -26012.438 | E32: 122 | F32: -43903.224 | G32: -26012.453 | H32: =IF(AND(F32<>"",L32<>"○"),(C32-F32)-$Q$7,"") -> 0.0002307692342 | I32: =IF(AND(F32<>"",L32<>"○"),(D32-G32)-$R$7,"") -> 0.001038461541 | J32: =IF(AND(F32<>"",L32<>"○"),SQRT(H32^2+I32^2),"") -> 0.001063793595 | M32: =IF(E32="","",IF(AND(L32<>"○",B32<>""),RANK(N32,$N$11:$N$510,0),"")) -> 10 | N32: =IF(AND(F32<>"",L32<>"○"),SQRT(Q32^2+R32^2),"") -> 0.01802775638 | O32: =IF(OR(E32="",L32="○"),"",U32) -> 122 | P32: =IF(AND(F32<>"",L32<>"○"),Q32^2+R32^2,"") -> 0.0003250000001 | Q32: =IF(AND(F32<>"",L32<>"○"),C32-F32,"") -> 0.01 | R32: =IF(AND(F32<>"",L32<>"○"),D32-G32,"") -> 0.015 | S32: =IF(AND(F32<>"",L32<>"○"),1,"") -> 1 | U32: 122 | V32: -43903.224 | W32: -26012.453
A33: 23 | B33: P0437 | C33: -43912.79 | D33: -26015.496 | E33: 136 | F33: -43912.8 | G33: -26015.506 | H33: =IF(AND(F33<>"",L33<>"○"),(C33-F33)-$Q$7,"") -> 0.0002307692342 | I33: =IF(AND(F33<>"",L33<>"○"),(D33-G33)-$R$7,"") -> -0.00396153846 | J33: =IF(AND(F33<>"",L33<>"○"),SQRT(H33^2+I33^2),"") -> 0.003968254201 | M33: =IF(E33="","",IF(AND(L33<>"○",B33<>""),RANK(N33,$N$11:$N$510,0),"")) -> 19 | N33: =IF(AND(F33<>"",L33<>"○"),SQRT(Q33^2+R33^2),"") -> 0.01414213563 | O33: =IF(OR(E33="",L33="○"),"",U33) -> 136 | P33: =IF(AND(F33<>"",L33<>"○"),Q33^2+R33^2,"") -> 0.0002000000001 | Q33: =IF(AND(F33<>"",L33<>"○"),C33-F33,"") -> 0.01 | R33: =IF(AND(F33<>"",L33<>"○"),D33-G33,"") -> 0.01 | S33: =IF(AND(F33<>"",L33<>"○"),1,"") -> 1 | U33: 136 | V33: -43912.8 | W33: -26015.506
A34: 24 | B34: P0434 | C34: -43930.604 | D34: -26019.324 | E34: 168 | F34: -43930.611 | G34: -26019.332 | H34: =IF(AND(F34<>"",L34<>"○"),(C34-F34)-$Q$7,"") -> -0.00276923077 | I34: =IF(AND(F34<>"",L34<>"○"),(D34-G34)-$R$7,"") -> -0.005961538464 | J34: =IF(AND(F34<>"",L34<>"○"),SQRT(H34^2+I34^2),"") -> 0.006573323354 | M34: =IF(E34="","",IF(AND(L34<>"○",B34<>""),RANK(N34,$N$11:$N$510,0),"")) -> 24 | N34: =IF(AND(F34<>"",L34<>"○"),SQRT(Q34^2+R34^2),"") -> 0.01063014581 | O34: =IF(OR(E34="",L34="○"),"",U34) -> 168 | P34: =IF(AND(F34<>"",L34<>"○"),Q34^2+R34^2,"") -> 0.0001129999999 | Q34: =IF(AND(F34<>"",L34<>"○"),C34-F34,"") -> 0.006999999998 | R34: =IF(AND(F34<>"",L34<>"○"),D34-G34,"") -> 0.007999999998 | S34: =IF(AND(F34<>"",L34<>"○"),1,"") -> 1 | U34: 168 | V34: -43930.611 | W34: -26019.332
A35: 25 | B35: P0438 | C35: -43951.105 | D35: -26018.577 | E35: 188 | F35: -43951.109 | G35: -26018.585 | H35: =IF(AND(F35<>"",L35<>"○"),(C35-F35)-$Q$7,"") -> -0.005769230774 | I35: =IF(AND(F35<>"",L35<>"○"),(D35-G35)-$R$7,"") -> -0.005961538464 | J35: =IF(AND(F35<>"",L35<>"○"),SQRT(H35^2+I35^2),"") -> 0.008296021009 | M35: =IF(E35="","",IF(AND(L35<>"○",B35<>""),RANK(N35,$N$11:$N$510,0),"")) -> 26 | N35: =IF(AND(F35<>"",L35<>"○"),SQRT(Q35^2+R35^2),"") -> 0.008944271905 | O35: =IF(OR(E35="",L35="○"),"",U35) -> 188 | P35: =IF(AND(F35<>"",L35<>"○"),Q35^2+R35^2,"") -> 7.999999992e-05 | Q35: =IF(AND(F35<>"",L35<>"○"),C35-F35,"") -> 0.003999999994 | R35: =IF(AND(F35<>"",L35<>"○"),D35-G35,"") -> 0.007999999998 | S35: =IF(AND(F35<>"",L35<>"○"),1,"") -> 1 | U35: 188 | V35: -43951.109 | W35: -26018.585
A36: 26 | B36: 0357 | C36: -43935.514 | D36: -25979.844 | E36: 46 | F36: -43935.524 | G36: -25979.873 | H36: =IF(AND(F36<>"",L36<>"○"),(C36-F36)-$Q$7,"") -> 0.0002307692269 | I36: =IF(AND(F36<>"",L36<>"○"),(D36-G36)-$R$7,"") -> 0.01503846154 | J36: =IF(AND(F36<>"",L36<>"○"),SQRT(H36^2+I36^2),"") -> 0.01504023204 | M36: =IF(E36="","",IF(AND(L36<>"○",B36<>""),RANK(N36,$N$11:$N$510,0),"")) -> 1 | N36: =IF(AND(F36<>"",L36<>"○"),SQRT(Q36^2+R36^2),"") -> 0.0306757233 | O36: =IF(OR(E36="",L36="○"),"",U36) -> 46 | P36: =IF(AND(F36<>"",L36<>"○"),Q36^2+R36^2,"") -> 0.0009409999998 | Q36: =IF(AND(F36<>"",L36<>"○"),C36-F36,"") -> 0.009999999995 | R36: =IF(AND(F36<>"",L36<>"○"),D36-G36,"") -> 0.029 | S36: =IF(AND(F36<>"",L36<>"○"),1,"") -> 1 | U36: 46 | V36: -43935.524 | W36: -25979.873
N511: =IF(AND(C511<>"",F511<>""),SQRT(Q511^2+R511^2),"") -> 

Sheet little
I1: 少数準拠点選択 | K1: ヘルマート
D2: 件名 | F2: 川崎市筆界特定事件データ
G3: データ数 | H3: 4
H4: 0.0003581431872 | I4: Rank 小順 | L4: データ数 | M4: 4
F5: № | G5: 点名 | H5: 標準偏差 | K5: 点名 | L5: 標準偏差 | M5: Rank | N5: 判定
F6: 1 | G6: 105 | H6: 0.0002199463486 | I6: =IF(H6="","",RANK(H6,$H$6:$H$16,1)) -> 1 | K6: 105 | L6: 0.0002199463486 | M6: 1 | N6: ＯＫ
F7: 2 | G7: 168 | H7: 0.0003456947616 | I7: 3 | K7: 107 | L7: 0.0002588693988 | M7: 2
F8: 3 | G8: 107 | H8: 0.0002588693988 | I8: 2 | K8: 168 | L8: 0.0003456947616 | M8: 3
F9: 4 | G9: 189 | H9: 0.0003769082642 | I9: 4 | K9: 189 | L9: 0.0003769082642 | M9: 4 | O9: 準拠点３点で伸縮１のヘルマートデータ用
E13: 8
E14: 9
E15: 10
E16: 11 | V16: 結果スペース
B17: 結果スペース
B18: 控１(hel:6点，aff:7点） | G18: 控２(hel:5点，aff:6点） | L18: 控３(hel:4点，aff:5点） | Q18: 控４(hel：3点） | V18: 準拠点選択結果
H19: データ数 | I19: 5 | M19: データ数 | N19: 4
G20: 点名 | H20: 標準偏差 | I20: Rank | J20: 判定 | L20: 点名 | M20: 標準偏差 | N20: Rank | O20: 判定 | V20: 点名
G21: 137 | H21: 0.0003581431872 | I21: 1 | J21: ＯＫ | L21: 105 | M21: 0.0002199463486 | N21: 1 | O21: ＯＫ | V21: 137
G22: 189 | H22: 0.000770786035 | I22: 2 | L22: 107 | M22: 0.0002588693988 | N22: 2 | V22: 189
G23: 105 | H23: 0.0009278613631 | I23: 3 | L23: 168 | M23: 0.0003456947616 | N23: 3 | V23: 105
G24: 168 | H24: 0.0009581878167 | I24: 4 | L24: 189 | M24: 0.0003769082642 | N24: 4 | V24: 168
G25: 107 | H25: 0.0009628753338 | I25: 5 | V25: 107

Sheet Vector
F1: ヘルマート | G1: ベクトル図データ | J1: =NOW() -> 2025-03-09T05:28:12.770
B2: 件名 | C2: 川崎市筆界特定事件データ | I2: 線縮尺 | J2: =IF(I5="",1,ROUNDUP((AVERAGE(K5:K505)*100),0)) -> 1
A3: 実測値 | E3: 変換値 | I3: 移動量 | K3: 変動量
A4: 点番 | B4: 点名 | C4: X | D4: Y | E4: 点番 | F4: 点名 | G4: X | H4: Y | I4: dX | J4: dY | L4: 準拠点 | M4: =MAX(M5:M505) -> 0 | N4: =MAX(N5:N505) -> 0 | O4: =MAX(O5:O505) -> 0 | P4: =MAX(P5:P505) -> 0

Sheet Vectorzu

Sheet Hoko
I1: ヘルマート | J1: 方向データによる座標計算
B3: 点名 | C3: X | D3: Y | G3: ①－②方向角 | H3: =IF(ISERROR(IF(DEGREES(ATAN2((C5-C4),(D5-D4)))<0,360+DEGREES(ATAN2((C5-C4),(D5-D4))),DEGREES(ATAN2((C5-C4),(D5-D4))))),"-",IF(DEGREES(ATAN2((C5-C4),(D5-D4)))<0,360+DEGREES(ATAN2((C5-C4),(D5-D4))),DEGREES(ATAN2((C5-C4),(D5-D4))))) -> 14.83647807 | J3: 移動距離 | K3: 5 | L3: 定数 | M3: a | N3: b
A4: 基点① | B4: z11 | C4: -43984.89379 | D4: -26011.74493 | G4: ①－③方向角 | H4: =IF(ISERROR(IF(DEGREES(ATAN2((C6-C4),(D6-D4)))<0,360+DEGREES(ATAN2((C6-C4),(D6-D4))),DEGREES(ATAN2((C6-C4),(D6-D4))))),"-",IF(DEGREES(ATAN2((C6-C4),(D6-D4)))<0,360+DEGREES(ATAN2((C6-C4),(D6-D4))),DEGREES(ATAN2((C6-C4),(D6-D4))))) -> 348.4075065 | J4: Δx | K4: =IF(ISERROR(COS(H5*PI()/180)*K3),"-",COS(H5*PI()/180)*K3) -> -1.404992841 | L4: ①-② | M4: =(C5-C4)/(D5-D4) -> 3.775114641 | N4: =C4-(M4*D4) -> 54212.42532
A5: 基点② | B5: z81 | C5: -43948.87637 | D5: -26002.20418 | G5: ③方向角 | H5: =180-C7+H3 -> 106.3198114 | J5: Δy | K5: =IF(ISERROR(SIN(H5*PI()/180)*K3),"-",SIN(H5*PI()/180)*K3) -> 4.798540936 | L5: ③－③-2 | M5: =(G6-C6)/(H6-D6) -> -0.2927958434 | N5: =C6-(M5*D6) -> -51598.9165
A6: 実測③ | B6: h0236A | C6: -43982.651 | D6: -26012.205 | F6: 実測③-2 | G6: =C6+K4 -> -43984.05599 | H6: =D6+K5 -> -26007.40646 | P6: X | Q6: Y
A7: 取付角 | B7: 88.31 | C7: =INT(B7)+(((B7*100-(INT(B7)*100))-((B7*100)-(INT(B7*100))))/60)+((((B7*100)-(INT(B7*100)))*100)/3600) -> 88.51666667 | D7: (ラジアン) | J7: helmert | K7: affine | N7: データ数 | P7: =M4*Q7+N4 -> -43982.93744 | Q7: =(N5-N4)/(M4-M5) -> -26011.2267
F8: 不動点判断 | I8: =COUNTA(I11:I510) -> 0 | J8: =Helmert!B8-I8 -> 24 | K8: =Affine!B8-I8 -> 26 | N8: =COUNTA(N11:N510) -> 0 | W8: 20
A9: 方向データ計算エリア | N9: 方向と街区線の計算結果 | V9: 方向データ ↓ → | X9: 実測値 | Z9: ①②図面変換値点名 | AA9: 方向計算データの作成 | AF9: 仮想実測点の作成（③実測点名のみ使用）
A10: 点番① | B10: 街区点名① | C10: X | D10: Y | E10: 点番② | F10: 街区点名② | G10: X | H10: Y | I10: 点番③ | J10: 実測点名③ | K10: X | L10: Y | M10: 図取付角 | N10: 点番④ | O10: 計算点名④ | P10: X | Q10: Y | S10: 収斂回数 | T10: 標準偏差 | V10: 点番入力用 | W10: ③実測点名 | X10: x | Y10: y | AA10: 点番① | AB10: 点番② | AC10: 点番③ | AD10: 図面取付角 | AF10: 点番① | AG10: 点番② | AH10: 点番③ | AI10: 図面取付角
AA11: 88 | AB11: 10 | AC11: 10 | AD11: 93.41 | AE11: 11
AA12: 11 | AB12: 81 | AC12: 11 | AD12: 88.31 | AE12: 12
AE13: 13
AE14: 14
AE15: 15
AE16: 16
AE17: 17
AE18: 18
AE19: 19
AE20: 20
AE21: 21
AE22: 22
AE23: 23
AE24: 24
AE25: 25
AE26: 26
AE27: 27
AE28: 28
AE29: 29
AE30: 30
AE31: 31
AF32: 仮想実測点の作成は最小限にする。
AF33: 仮想実測点は街区内の不動点以下に抑えること。

Sheet Haiten
B1: 点名 | C1: x | D1: ｙ | H1: ヘルマート | I1: 準拠点配点解析(点数式） | U1: 平均計算
A5: 求点 | B5: av | C5: -43898.47704 | D5: -26005.2641 | U5: B22-14 | V5: 66.18714129 | W5: 142.6272045
B6: 作図補正値 | C6: =MIN($O$11:$O$56) -> 0 | D6: =MIN($P$11:$P$56) -> 0 | U6: B22-11 | V6: 96.43289612 | W6: 159.6230179
B7: 復元中心 | C7: =C5-C6 -> -43898.47704 | D7: =D5-D6 -> -26005.2641 | I7: 開始位置 | J7: 0 | K7: 図回転角 | L7: 167.2534 | U7: 平均値 | V7: =IF(V6="","",AVERAGE(V5:V6)) -> 81.31001871 | W7: =IF(W6="","",AVERAGE(W5:W6)) -> 151.1251112
G8: 範囲 | H8: =J7+330&"°"&"～"&J7+30&"°" -> 330°～30° | I8: =J7+30&"°"&"～"&J7+90&"°" -> 30°～90° | J8: =J7+90&"°"&"～"&J7+150&"°" -> 90°～150° | K8: =J7+150&"°"&"～"&J7+210&"°" -> 150°～210° | L8: =J7+210&"°"&"～"&J7+270&"°" -> 210°～270° | M8: =J7+270&"°"&"～"&J7+330&"°" -> 270°～330° | T8: バランス指数 | U8: =IF(U9="",0,ROUND(17^2/((((U9^2)-(17^2))/3)+17^2),4)) -> 0 | V8: =IF(U9="",0,ROUND(1/U8,3)) -> 0
G9: 重量％ | H9: =IF(ISERROR(SUM(H11:H510)/SUM($H$11:$M$510)*100),"-",SUM(H11:H510)/SUM($H$11:$M$510)*100) -> - | I9: - | J9: - | K9: - | L9: - | M9: - | T9: 標準偏差 | U9: =IF(U11="","",STDEVP(U11:U16)) -> 
B10: 点名 | C10: x | D10: y | E10: Δx | F10: Δy | G10: 方向角 | H10: 1 | I10: 2 | J10: 3 | K10: 4 | L10: 5 | M10: 6 | N10: 点名 | O10: ｘ | P10: ｙ | Q10: ラベル用 | R10: ｙ | S10: ｘ | U10: 重量

Sheet huryou
M1: 二変量良率計算 | AC1: =R7 -> 99.43556431 | AN1: ％
K2: 作図限界値(10) | R2: =ROUND((R5+R6)/R3,4) -> 9.2184 | AE2: 正しい判定ではありません | AT2: 一変量良率計算
K3: 二変量標準偏差 | R3: 0.005102862059 | AL3: 公差控 | AQ3: 標準偏差 σ | AX3: 0.00207
K4: 相関係数(-1～1) | R4: -0.1266166329 | W4: Excelは縦軸がy、横軸がxです。 | AQ4: 公差の中心値 | AX4: 50
K5: 位置の公差1/2 | R5: 0.03 | W5: 縦軸Xavg | AA5: 横軸Yavg | AF5: 不良率判定値 | AL5: 0.03 | AQ5: 公差の幅（片側） | AX5: 0.008
K6: 公差からの距離 | R6: =SQRT(W6^2+AA6^2) -> 0.01704002424 | W6: 0.009769230768 | AA6: 0.01396153846 | AF6: 0.034 | AJ6: ％ | AQ6: 分布の平均値 | AX6: 50.0035 | BC6: （-側） | BH6: （＋）側
K7: 良 率 ％ | R7: =(R9/R10)*100 -> 99.43556431 | W7: 縮尺 | AQ7: 良 率 ％ | AX7: =(BC7+BH7) -> 98.5144153 | BC7: =((1-((1-NORMSDIST(ABS((AX5+(AX6-AX4))/AX3)))*2))/2)*100 -> 49.99999862 | BH7: =((1-((1-NORMSDIST(ABS((AX5-(AX6-AX4))/AX3)))*2))/2)*100 -> 48.51441669
K8: 不良率 ％ | R8: =100-R7 -> 0.5644356904 | W8: 20 | AQ8: 不良率 ％ | AX8: =(100-AX7) -> 1.485584698 | BC8: =50-BC7 -> 1.383650897e-06 | BH8: =50-BH7 -> 1.485583314
K9: 選択 密度 | R9: 251936.4843
K10: 全体 密度 | R10: 253366.5757
A11: 0 | B11: 0 | C11: 0 | D11: 0 | E11: 0 | F11: 0
A12: 0 | B12: 0 | C12: 0 | D12: 0 | E12: 0 | F12: 0
A13: 0 | B13: 0 | C13: 0 | D13: 0 | E13: 0 | F13: 0
A14: 0 | B14: 0 | C14: 0 | D14: 0 | E14: 0 | F14: 0
A15: 0 | B15: 0 | C15: 0 | D15: 0 | E15: 0 | F15: 0
A16: 0 | B16: 0 | C16: 0 | D16: 0 | E16: 0 | F16: 0
A17: 0 | B17: 0 | C17: 0 | D17: 0 | E17: 0 | F17: 0
A18: 0 | B18: 0 | C18: 0 | D18: 0 | E18: 0 | F18: 0
A19: 0 | B19: 0 | C19: 0 | D19: 0 | E19: 0 | F19: 0
A20: 0 | B20: 0 | C20: 0 | D20: 0 | E20: 0 | F20: 0
A21: 0 | B21: 0 | C21: 0 | D21: 0 | E21: 0 | F21: 0
A22: 0 | B22: 0 | C22: 0 | D22: 0 | E22: 0 | F22: 0
A23: 0 | B23: 0 | C23: 0 | D23: 0 | E23: 0 | F23: 0
A24: 0 | B24: 0 | C24: 0 | D24: 0 | E24: 0 | F24: 0
A25: 0 | B25: 0 | C25: 0 | D25: 0 | E25: 0 | F25: 0
A26: 0 | B26: 0 | C26: 0 | D26: 0 | E26: 0 | F26: 0
A27: 0 | B27: 0 | C27: 0 | D27: 0 | E27: 0 | F27: 0
A28: 0 | B28: 0 | C28: 0 | D28: 0 | E28: 0 | F28: 0
A29: 0 | B29: 0 | C29: 0 | D29: 0 | E29: 0 | F29: 0
A30: 0 | B30: 0 | C30: 0 | D30: 0 | E30: 0 | F30: 0
A31: 0 | B31: 0 | C31: 0 | D31: 0 | E31: 0 | F31: 0
A32: 0 | B32: 0 | C32: 0 | D32: 0 | E32: 0 | F32: 0
A33: 0 | B33: 0 | C33: 0 | D33: 0 | E33: 0 | F33: 0
A34: 0 | B34: 0 | C34: 0 | D34: 0 | E34: 0 | F34: 0
A35: 0 | B35: 0 | C35: 0 | D35: 0 | E35: 0 | F35: 0
A36: 0 | B36: 0 | C36: 0 | D36: 0 | E36: 0 | F36: 0
A37: 0 | B37: 0 | C37: 0 | D37: 0 | E37: 0 | F37: 0
A38: 0 | B38: 0 | C38: 0 | D38: 0 | E38: 0 | F38: 0
A39: 0 | B39: 0 | C39: 0 | D39: 0 | E39: 0 | F39: 0
A40: 0 | B40: 0 | C40: 0 | D40: 0 | E40: 0 | F40: 0
A41: 0 | B41: 0 | C41: 0 | D41: 0 | E41: 0 | F41: 0
A42: 0 | B42: 0 | C42: 0 | D42: 0 | E42: 0 | F42: 0
A43: 0 | B43: 0 | C43: 0 | D43: 0 | E43: 0 | F43: 0
A44: 0 | B44: 0 | C44: 0 | D44: 0 | E44: 0 | F44: 0
A45: 0 | B45: 0 | C45: 0 | D45: 0 | E45: 0 | F45: 0
A46: 0 | B46: 0 | C46: 0 | D46: 0 | E46: 0 | F46: 0
A47: 0 | B47: 0 | C47: 0 | D47: 0 | E47: 0 | F47: 0
A48: 0 | B48: 0 | C48: 0 | D48: 0 | E48: 0 | F48: 0
A49: 0 | B49: 0 | C49: 0 | D49: 0 | E49: 0 | F49: 0
A50: 0 | B50: 0 | C50: 0 | D50: 0 | E50: 0 | F50: 0
A51: 0 | B51: 0 | C51: 0 | D51: 0 | E51: 0 | F51: 0
A52: 108 | B52: 114 | C52: 0 | D52: 0 | E52: 0 | F52: 0
A53: 100 | B53: 122 | C53: 0 | D53: 0 | E53: 0 | F53: 0
A54: 95 | B54: 127 | C54: 0 | D54: 0 | E54: 0 | F54: 0
A55: 92 | B55: 130 | C55: 0 | D55: 0 | E55: 0 | F55: 0
A56: 89 | B56: 133 | C56: 0 | D56: 0 | E56: 0 | F56: 0
A57: 87 | B57: 135 | C57: 0 | D57: 0 | E57: 0 | F57: 0
A58: 85 | B58: 137 | C58: 0 | D58: 0 | E58: 0 | F58: 0
A59: 83 | B59: 139 | C59: 0 | D59: 0 | E59: 0 | F59: 0
A60: 81 | B60: 141 | C60: 0 | D60: 0 | E60: 0 | F60: 0
A61: 80 | B61: 142 | C61: 0 | D61: 0 | E61: 0 | F61: 0
A62: 78 | B62: 144 | C62: 0 | D62: 0 | E62: 0 | F62: 0
A63: 77 | B63: 145 | C63: 0 | D63: 0 | E63: 0 | F63: 0
A64: 75 | B64: 147 | C64: 0 | D64: 0 | E64: 0 | F64: 0
A65: 74 | B65: 148 | C65: 0 | D65: 0 | E65: 0 | F65: 0
A66: 73 | B66: 149 | C66: 0 | D66: 0 | E66: 0 | F66: 0
A67: 72 | B67: 150 | C67: 0 | D67: 0 | E67: 0 | F67: 0
A68: 70 | B68: 152 | C68: 0 | D68: 0 | E68: 0 | F68: 0
A69: 69 | B69: 153 | C69: 0 | D69: 0 | E69: 0 | F69: 0
A70: 68 | B70: 154 | C70: 0 | D70: 0 | E70: 0 | F70: 0
A71: 68 | B71: 154 | C71: 108 | D71: 114 | E71: 81 | F71: 87 | CD71: 8.696953291e-05 | CE71: 0.0001099374104 | CF71: 0.0001375881159 | CG71: 0.0001704799853 | CH71: 0.0002091331746
A72: 67 | B72: 155 | C72: 100 | D72: 122 | E72: 73 | F72: 95 | BV72: 1.318240429e-05 | BW72: 1.807450615e-05 | BX72: 2.453552233e-05 | BY72: 3.297472871e-05 | BZ72: 4.387571529e-05 | CA72: 5.779952154e-05 | CB72: 7.538437391e-05 | CC72: 9.734092666e-05 | CD72: 0.0001244419121 | CE72: 0.0001575052121 | CF72: 0.0001973695902 | CG72: 0.0002448626832 | CH72: 0.000300761349 | CI72: 0.0003657450855 | CJ72: 0.0004403439457 | CK72: 0.0005248831306 | CL72: 0.0006194271768 | CM72: 0.0007237272941 | CN72: 0.0008371758709 | CO72: 0.0009587723674 | CP72: 0.001087104692
A73: 66 | B73: 156 | C73: 95 | D73: 127 | E73: 68 | F73: 100 | BQ73: 3.262867403e-06 | BR73: 4.709077645e-06 | BS73: 6.7286716e-06 | BT73: 9.518748869e-06 | BU73: 1.33317592e-05 | BV73: 1.848638985e-05 | BW73: 2.537895932e-05 | BX73: 3.449471545e-05 | BY73: 4.641820894e-05 | BZ73: 6.184167536e-05 | CA73: 8.157013279e-05 | CB73: 0.0001065217143 | CC73: 0.0001377216383 | CD73: 0.0001762882102 | CE73: 0.0002234093845 | CF73: 0.0002803087216 | CG73: 0.0003482000783 | CH73: 0.0004282310694 | CI73: 0.0005214162209 | CJ73: 0.0006285617611 | CK73: 0.0007501850956 | CL73: 0.0008864330932 | CM73: 0.001037004273 | CN73: 0.001201080694 | CO73: 0.001377275688 | CP73: 0.001563603493 | CQ73: 0.001757476139 | CR73: 0.001955731804 | CS73: 0.002154697036 | CT73: 0.002350283142 | CU73: 0.002538114509
A74: 65 | B74: 157 | C74: 92 | D74: 130 | E74: 65 | F74: 103 | BN74: 1.404908052e-06 | BO74: 2.092006604e-06 | BP74: 3.084148322e-06 | BQ74: 4.501575266e-06 | BR74: 6.505052875e-06 | BS74: 9.306667569e-06 | BT74: 1.318240429e-05 | BU74: 1.848638985e-05 | BV74: 2.566649959e-05 | BW74: 3.528078458e-05 | BX74: 4.801388862e-05 | BY74: 6.469229854e-05 | BZ74: 8.629692854e-05 | CA74: 0.0001139712077 | CB74: 0.0001490225592 | CC74: 0.0001929149743 | CD74: 0.000247250351 | CE74: 0.0003137364292 | CF74: 0.0003941395687 | CG74: 0.0004902213029 | CH74: 0.0006036585802 | CI74: 0.0007359488502 | CJ74: 0.0008883026128 | CK74: 0.001061527631 | CL74: 0.001255910588 | CM74: 0.001471103388 | CN74: 0.001706022384 | CO74: 0.001958769393 | CP74: 0.002226583307 | CQ74: 0.002505830225 | CR74: 0.00279203844 | CS74: 0.003079982141 | CT74: 0.003363814656 | CU74: 0.003637248504 | CV74: 0.003893775825 | CW74: 0.00412691924 | CX74: 0.004330500082
A75: 64 | B75: 158 | C75: 89 | D75: 133 | E75: 62 | F75: 106 | BK75: 5.432097986e-07 | BL75: 8.345675003e-07 | BM75: 1.269440637e-06 | BN75: 1.911702817e-06 | BO75: 2.850266174e-06 | BP75: 4.207339064e-06 | BQ75: 6.148747538e-06 | BR75: 8.896575442e-06 | BS75: 1.274430408e-05 | BT75: 1.807450615e-05 | BU75: 2.537895932e-05 | BV75: 3.528078458e-05 | BW75: 4.855787967e-05 | BX75: 6.616651331e-05 | BY75: 8.926348538e-05 | BZ75: 0.000119224768 | CA75: 0.0001576580631 | CB75: 0.0002064062971 | CC75: 0.0002675387872 | CD75: 0.0003433267325 | CE75: 0.0004361998801 | CF75: 0.0005486817543 | CG75: 0.0006833017775 | CH75: 0.0008424839531 | CI75: 0.001028413526 | CJ75: 0.001242885088 | CK75: 0.001487137859 | CL75: 0.001761686141 | CM75: 0.00206615501 | CN75: 0.002399132969 | CO75: 0.002758054173 | CP75: 0.003139122912 | CQ75: 0.00353729194 | CR75: 0.003946304052 | CS75: 0.004358802963 | CT75: 0.004766515249 | CU75: 0.005160500105 | CV75: 0.005531458403 | CW75: 0.005870087374 | CX75: 0.006167462757 | CY75: 0.006415426899 | CZ75: 0.006606959446 | DA75: 0.006736507174
A76: 63 | B76: 159 | C76: 87 | D76: 135 | E76: 60 | F76: 108 | BI76: 2.989724038e-07 | BJ76: 4.692029727e-07 | BK76: 7.290334611e-07 | BL76: 1.121479203e-06 | BM76: 1.70801642e-06 | BN76: 2.575430971e-06 | BO76: 3.844721105e-06 | BP76: 5.682465721e-06 | BQ76: 8.3150691e-06 | BR76: 1.204625233e-05 | BS76: 1.727806503e-05 | BT76: 2.453552233e-05 | BU76: 3.449471545e-05 | BV76: 4.801388862e-05 | BW76: 6.616651331e-05 | BX76: 9.027482894e-05 | BY76: 0.0001219416743 | BZ76: 0.0001630777416 | CA76: 0.0002159206994 | CB76: 0.0002830420254 | CC76: 0.0003673369566 | CD76: 0.0004719928056 | CE76: 0.0006004311146 | CF76: 0.0007562198192 | CG76: 0.0009429528474 | CH76: 0.001164096417 | CI76: 0.001422803693 | CJ76: 0.001721702342 | CK76: 0.002062662685 | CL76: 0.002446557396 | CM76: 0.002873026692 | CN76: 0.003340265347 | CO76: 0.003844849373 | CP76: 0.004381620381 | CQ76: 0.004943644362 | CR76: 0.005522258708 | CS76: 0.006107216724 | CT76: 0.006686932975 | CU76: 0.007248825809 | CV76: 0.007779745899 | CW76: 0.008266472326 | CX76: 0.008696251178 | CY76: 0.009057346644 | CZ76: 0.009339571663 | DA76: 0.009534764776 | DB76: 0.009637182053 | DC76: 0.009643777861
A77: 63 | B77: 159 | C77: 85 | D77: 137 | E77: 58 | F77: 110 | BG77: 1.557328856e-07 | BH77: 2.496581576e-07 | BI77: 3.962490618e-07 | BJ77: 6.226554415e-07 | BK77: 9.686890351e-07 | BL77: 1.492031647e-06 | BM77: 2.275248001e-06 | BN77: 3.435077209e-06 | BO77: 5.134537378e-06 | BP77: 7.598418186e-06 | BQ77: 1.113274134e-05 | BR77: 1.614871988e-05 | BS77: 2.319162279e-05 | BT77: 3.297472871e-05 | BU77: 4.641820894e-05 | BV77: 6.469229854e-05 | BW77: 8.926348538e-05 | BX77: 0.0001219416743 | BY77: 0.0001649253909 | BZ77: 0.0002208411225 | CA77: 0.0002927719227 | CB77: 0.0003842695387 | CC77: 0.0004993436693 | CD77: 0.0006424216858 | CE77: 0.0008182723803 | CF77: 0.001031888202 | CG77: 0.001288322101 | CH77: 0.001592477564 | CI77: 0.001948853722 | CJ77: 0.002361251345 | CK77: 0.00283244998 | CL77: 0.003363871017 | CM77: 0.003955245782 | CN77: 0.004604311231 | CO77: 0.005306558103 | CP77: 0.006055056925 | CQ77: 0.006840385729 | CR77: 0.007650679504 | CS77: 0.00847181535 | CT77: 0.009287739133 | CU77: 0.01008092982 | CV77: 0.01083298718 | CW77: 0.01152531813 | CX77: 0.01213988772 | CY77: 0.01265999323 | CZ77: 0.01307101556 | DA77: 0.01336110095 | DB77: 0.01352172858 | DC77: 0.01354812635 | DD77: 0.01343950637 | DE77: 0.01319910403
A78: 62 | B78: 160 | C78: 83 | D78: 139 | E78: 56 | F78: 112 | BE78: 7.677419619e-08 | BF78: 1.257235071e-07 | BG78: 2.038331198e-07 | BH78: 3.271825035e-07 | BI78: 5.199510337e-07 | BJ78: 8.180726544e-07 | BK78: 1.274319594e-06 | BL78: 1.965268536e-06 | BM78: 3.000699436e-06 | BN78: 4.536074171e-06 | BO78: 6.78882874e-06 | BP78: 1.005927345e-05 | BQ78: 1.475691005e-05 | BR78: 2.143291796e-05 | BS78: 3.081940344e-05 | BT78: 4.387571529e-05 | BU78: 6.184167536e-05 | BV78: 8.629692854e-05 | BW78: 0.000119224768 | BX78: 0.0001630777416 | BY78: 0.0002208411225 | BZ78: 0.0002960889901 | CA78: 0.0003930263125 | CB78: 0.0005165091861 | CC78: 0.0006720344371 | CD78: 0.0008656893241 | CE78: 0.001104052309 | CF78: 0.001394036979 | CG78: 0.001742673364 | CH78: 0.002156824199 | CI78: 0.002642838087 | CJ78: 0.003206146933 | CK78: 0.003850821087 | CL78: 0.004579101987 | CM78: 0.005390938116 | CN78: 0.006283555159 | CO78: 0.00725109462 | CP78: 0.008284356279 | CQ78: 0.00937067809 | CR78: 0.01049398224 | CS78: 0.011635008 | CT78: 0.01277174099 | CU78: 0.01388003541 | CV78: 0.01493441106 | CW78: 0.01590899271 | CX78: 0.01677854589 | CY78: 0.01751955264 | CZ78: 0.01811126395 | DA78: 0.01853666334 | DB78: 0.01878327947 | DC78: 0.01884379337 | DD78: 0.01871639929 | DE78: 0.01840489419 | DF78: 0.01791848979 | DG78: 0.01727136003
A79: 61 | B79: 161 | C79: 81 | D79: 141 | E79: 54 | F79: 114 | BC79: 3.582085479e-08 | BD79: 5.992015568e-08 | BE79: 9.923548031e-08 | BF79: 1.627114346e-07 | BG79: 2.641351674e-07 | BH79: 4.24513432e-07 | BI79: 6.754818747e-07 | BJ79: 1.064125913e-06 | BK79: 1.659699232e-06 | BL79: 2.562847841e-06 | BM79: 3.918080069e-06 | BN79: 5.930357115e-06 | BO79: 8.886800718e-06 | BP79: 1.318460404e-05 | BQ79: 1.936626172e-05 | BR79: 2.816317132e-05 | BS79: 4.054846074e-05 | BT79: 5.779952154e-05 | BU79: 8.157013279e-05 | BV79: 0.0001139712077 | BW79: 0.0001576580631 | BX79: 0.0002159206994 | BY79: 0.0002927719227 | BZ79: 0.0003930263125 | CA79: 0.0005223611673 | CB79: 0.0006873488271 | CC79: 0.000895448397 | CD79: 0.001154944157 | CE79: 0.001474818116 | CF79: 0.001864545546 | CG79: 0.002333805101 | CH79: 0.002892099484 | CI79: 0.003548288522 | CJ79: 0.004310043765 | CK79: 0.005183242034 | CL79: 0.006171324072 | CM79: 0.007274652828 | CN79: 0.00848991313 | CO79: 0.009809599486 | CP79: 0.01122164074 | CQ79: 0.01270920839 | CR79: 0.01425074916 | CS79: 0.015820272 | CT79: 0.01738790471 | CU79: 0.01892071797 | CV79: 0.0203837943 | CW79: 0.02174149976 | CX79: 0.02295889729 | CY79: 0.02400322558 | CZ79: 0.02484535709 | DA79: 0.02546114527 | DB79: 0.02583257398 | DC79: 0.02594863301 | DD79: 0.02580586025 | DE79: 0.02540851325 | DF79: 0.02476835828 | DG79: 0.02390409158 | DH79: 0.02284043243 | DI79: 0.02160694941
A80: 61 | B80: 161 | C80: 80 | D80: 142 | E80: 53 | F80: 115 | BB80: 2.702807395e-08 | BC80: 4.572407413e-08 | BD80: 7.658289808e-08 | BE80: 1.269918147e-07 | BF80: 2.084859133e-07 | BG80: 3.388712767e-07 | BH80: 5.453180293e-07 | BI80: 8.688043953e-07 | BJ80: 1.370412203e-06 | BK80: 2.140116821e-06 | BL80: 3.308878336e-06 | BM80: 5.065020091e-06 | BN80: 7.676064249e-06 | BO80: 1.15173638e-05 | BP80: 1.710899991e-05 | BQ80: 2.5162467e-05 | BR80: 3.663859978e-05 | BS80: 5.281795381e-05 | BT80: 7.538437391e-05 | BU80: 0.0001065217143 | BV80: 0.0001490225592 | BW80: 0.0002064062971 | BX80: 0.0002830420254 | BY80: 0.0003842695387 | BZ80: 0.0005165091861 | CA80: 0.0006873488271 | CB80: 0.0009055937096 | CC80: 0.001181263143 | CD80: 0.001525516696 | CE80: 0.001950492713 | CF80: 0.002469043571 | CG80: 0.003094355673 | CH80: 0.003839447765 | CI80: 0.004716549004 | CJ80: 0.005736367858 | CK80: 0.00690727412 | CL80: 0.008234428154 | CM80: 0.009718903118 | CN80: 0.01135685593 | CO80: 0.01313881008 | CP80: 0.01504911666 | CQ80: 0.01706565799 | CR80: 0.01915985076 | CS80: 0.02129699168 | CT80: 0.02343696955 | CU80: 0.02553534356 | CV80: 0.02754476111 | CW80: 0.02941666064 | CX80: 0.03110317941 | CY80: 0.0325591648 | CZ80: 0.03374417242 | DA80: 0.03462432873 | DB80: 0.03517393837 | DC80: 0.0353767302 | DD80: 0.03522665741 | DE80: 0.03472819706 | DF80: 0.03389612823 | DG80: 0.03275480406 | DH80: 0.03133696791 | DI80: 0.02968219371 | DJ80: 0.02783505427
A81: 60 | B81: 162 | C81: 78 | D81: 144 | E81: 51 | F81: 117 | AZ81: 1.153833074e-08 | BA81: 1.993923923e-08 | BB81: 3.411388959e-08 | BC81: 5.778444553e-08 | BD81: 9.690534149e-08 | BE81: 1.608946256e-07 | BF81: 2.644797427e-07 | BG81: 4.304278317e-07 | BH81: 6.935301276e-07 | BI81: 1.106336839e-06 | BJ81: 1.747295952e-06 | BK81: 2.732137946e-06 | BL81: 4.229566236e-06 | BM81: 6.482553253e-06 | BN81: 9.836790246e-06 | BO81: 1.477807219e-05 | BP81: 2.198058324e-05 | BQ81: 3.236813638e-05 | BR81: 4.719035384e-05 | BS81: 6.811548095e-05 | BT81: 9.734092666e-05 | BU81: 0.0001377216383 | BV81: 0.0001929149743 | BW81: 0.0002675387872 | BX81: 0.0003673369566 | BY81: 0.0004993436693 | BZ81: 0.0006720344371 | CA81: 0.000895448397 | CB81: 0.001181263143 | CC81: 0.0015428006 | CD81: 0.001994940742 | CE81: 0.002553919803 | CF81: 0.003236991557 | CG81: 0.004061934658 | CH81: 0.005046396312 | CI81: 0.006207072682 | CJ81: 0.007558739226 | CK81: 0.00911315904 | CL81: 0.01087791326 | CM81: 0.01285521335 | CN81: 0.015040769 | CO81: 0.0174227959 | CP81: 0.01998125268 | CQ81: 0.02268739487 | CR81: 0.02550372419 | CS81: 0.02838439432 | CT81: 0.03127610878 | CU81: 0.03411951536 | CV81: 0.03685106535 | CW81: 0.03940526902 | CX81: 0.04171724318 | CY81: 0.04372541706 | CZ81: 0.04537424118 | DA81: 0.04661673418 | DB81: 0.04741670484 | DC81: 0.04775050294 | DD81: 0.04760818069 | DE81: 0.04699398524 | DF81: 0.04592614809 | DG81: 0.04443598615 | DH81: 0.04256637619 | DI81: 0.04036970633 | DJ81: 0.03790544125 | DK81: 0.03523745857 | DL81: 0.03243132221
A82: 60 | B82: 162 | C82: 77 | D82: 145 | E82: 50 | F82: 118 | AY82: 8.229206634e-09 | AZ82: 1.438190454e-08 | BA82: 2.488467031e-08 | BB82: 4.26289304e-08 | BC82: 7.229929055e-08 | BD82: 1.214005602e-07 | BE82: 2.018200925e-07 | BF82: 3.321736406e-07 | BG82: 5.412812543e-07 | BH82: 8.732485287e-07 | BI82: 1.39479311e-06 | BJ82: 2.205661078e-06 | BK82: 3.453224559e-06 | BL82: 5.352638547e-06 | BM82: 8.214252885e-06 | BN82: 1.248030721e-05 | BO82: 1.877325321e-05 | BP82: 2.795830607e-05 | BQ82: 4.122296516e-05 | BR82: 6.01761855e-05 | BS82: 8.696953291e-05 | BT82: 0.0001244419121 | BU82: 0.0001762882102 | BV82: 0.000247250351 | BW82: 0.0003433267325 | BX82: 0.0004719928056 | BY82: 0.0006424216858 | BZ82: 0.0008656893241 | CA82: 0.001154944157 | CB82: 0.001525516696 | CC82: 0.001994940742 | CD82: 0.002582855379 | CE82: 0.003310756454 | CF82: 0.004201568365 | CG82: 0.005279012492 | CH82: 0.006566757823 | CI82: 0.008087352367 | CJ82: 0.009860950678 | CK82: 0.01190387239 | CL82: 0.0142270479 | CM82: 0.0168344286 | CN82: 0.01972145812 | CO82: 0.02287371567 | CP82: 0.02626585063 | CQ82: 0.02986092641 | CR82: 0.0336102807 | CS82: 0.03745398713 | CT82: 0.04132197109 | CU82: 0.04513579095 | CV82: 0.0488110489 | CW82: 0.05226034572 | CX82: 0.05539664609 | CY82: 0.0581368799 | CZ82: 0.06040557518 | DA82: 0.0621383022 | DB82: 0.06328471038 | DC82: 0.0638109582 | DD82: 0.06370137263 | DE82: 0.06295922453 | DF82: 0.06160656649 | DG82: 0.05968314428 | DH82: 0.05724445699 | DI82: 0.05435909783 | DJ82: 0.05110555345 | DK82: 0.04756866975 | DL82: 0.04383600547 | DM82: 0.0399942902
A83: 59 | B83: 163 | C83: 75 | D83: 147 | E83: 48 | F83: 120 | AW83: 3.21434931e-09 | AX83: 5.738353303e-09 | AY83: 1.014234903e-08 | AZ83: 1.7747896e-08 | BA83: 3.0747673e-08 | BB83: 5.273933962e-08 | BC83: 8.956001884e-08 | BD83: 1.50574254e-07 | BE83: 2.506365014e-07 | BF83: 4.130427219e-07 | BG83: 6.739112147e-07 | BH83: 1.08859779e-06 | BI83: 1.740961906e-06 | BJ83: 2.756564402e-06 | BK83: 4.321197079e-06 | BL83: 6.706517456e-06 | BM83: 1.030497874e-05 | BN83: 1.56766837e-05 | BO83: 2.36112156e-05 | BP83: 3.520785388e-05 | BQ83: 5.197779053e-05 | BR83: 7.597192506e-05 | BS83: 0.0001099374104 | BT83: 0.0001575052121 | BU83: 0.0002234093845 | BV83: 0.0003137364292 | BW83: 0.0004361998801 | BX83: 0.0006004311146 | BY83: 0.0008182723803 | BZ83: 0.001104052309 | CA83: 0.001474818116 | CB83: 0.001950492713 | CC83: 0.002553919803 | CD83: 0.003310756454 | CE83: 0.004249171582 | CF83: 0.005399311173 | CG83: 0.006792497727 | CH83: 0.008460142949 | CI83: 0.01043236938 | CJ83: 0.01273635823 | CK83: 0.01539446607 | CL83: 0.01842218126 | CM83: 0.02182601887 | CN83: 0.0256014791 | CO83: 0.02973121399 | CP83: 0.03418355952 | CQ83: 0.03891159023 | CR83: 0.04385284067 | CS83: 0.04892981093 | CT83: 0.0540513318 | CU83: 0.05911481245 | CV83: 0.06400933099 | CW83: 0.06861946304 | CX83: 0.07282967932 | CY83: 0.07652908754 | CZ83: 0.07961625182 | DA83: 0.08200379965 | DB83: 0.08362252538 | DC83: 0.08442472163 | DD83: 0.08438651481 | DE83: 0.08350904543 | DF83: 0.08181841147 | DG83: 0.07936437898 | DH83: 0.07621794875 | DI83: 0.07246794496 | DJ83: 0.06821685455 | DK83: 0.06357618886 | DL83: 0.05866165954 | DM83: 0.05358845734 | DN83: 0.04846689752 | DO83: 0.04339865207
A84: 58 | B84: 164 | C84: 74 | D84: 148 | E84: 47 | F84: 121 | AV84: 2.166925026e-09 | AW84: 3.912289032e-09 | AX84: 6.993185271e-09 | AY84: 1.23758829e-08 | AZ84: 2.168375061e-08 | BA84: 3.761401309e-08 | BB84: 6.459843462e-08 | BC84: 1.098376853e-07 | BD84: 1.849003806e-07 | BE84: 3.081635677e-07 | BF84: 5.084893214e-07 | BG84: 8.306908667e-07 | BH84: 1.343550792e-06 | BI84: 2.151422956e-06 | BJ84: 3.410786714e-06 | BK84: 5.353531741e-06 | BL84: 8.319232398e-06 | BM84: 1.279921063e-05 | BN84: 1.949576006e-05 | BO84: 2.940046581e-05 | BP84: 4.389603632e-05 | BQ84: 6.488636676e-05 | BR84: 9.495955322e-05 | BS84: 0.0001375881159 | BT84: 0.0001973695902 | BU84: 0.0002803087216 | BV84: 0.0003941395687 | BW84: 0.0005486817543 | BX84: 0.0007562198192 | BY84: 0.001031888202 | BZ84: 0.001394036979 | CA84: 0.001864545546 | CB84: 0.002469043571 | CC84: 0.003236991557 | CD84: 0.004201568365 | CE84: 0.005399311173 | CF84: 0.006869455834 | CG84: 0.008652933558 | CH84: 0.01079099416 | CI84: 0.01332344708 | CJ84: 0.01628653887 | CK84: 0.01971051874 | CL84: 0.02361698009 | CM84: 0.02801610316 | CN84: 0.03290395841 | CO84: 0.03826005785 | CP84: 0.04404535882 | CQ84: 0.05020092708 | CR84: 0.05664745171 | CS84: 0.06328577071 | CT84: 0.06999851459 | CU84: 0.07665290704 | CV84: 0.08310468182 | CW84: 0.08920298909 | CX84: 0.09479607999 | CY84: 0.0997374833 | CZ84: 0.1038923302 | DA84: 0.1071434494 | DB84: 0.1093968498 | DC84: 0.1105862328 | DD84: 0.1106762323 | DE84: 0.1096641619 | DF84: 0.1075801478 | DG84: 0.1044856394 | DH84: 0.1004703992 | DI84: 0.09564817908 | DJ84: 0.09015137189 | DK84: 0.08412499063 | DL84: 0.07772035449 | DM84: 0.07108886362 | DN84: 0.06437621315 | DO84: 0.05771734374 | DP84: 0.05123235275
A85: 58 | B85: 164 | C85: 73 | D85: 149 | E85: 46 | F85: 122 | AU85: 1.428265784e-09 | AV85: 2.607887861e-09 | AW85: 4.714393711e-09 | AX85: 8.437617618e-09 | AY85: 1.495102219e-08 | AZ85: 2.622883418e-08 | BA85: 4.555584893e-08 | BB85: 7.833689541e-08 | BC85: 1.333661527e-07 | BD85: 2.247925661e-07 | BE85: 3.751244074e-07 | BF85: 6.197631566e-07 | BG85: 1.013755545e-06 | BH85: 1.641715073e-06 | BI85: 2.632203023e-06 | BJ85: 4.178284779e-06 | BK85: 6.566496925e-06 | BL85: 1.021707329e-05 | BM85: 1.573897073e-05 | BN85: 2.400397698e-05 | BO85: 3.624491877e-05 | BP85: 5.418363226e-05 | BQ85: 8.019479002e-05 | BR85: 0.0001175117379 | BS85: 0.0001704799853 | BT85: 0.0002448626832 | BU85: 0.0003482000783 | BV85: 0.0004902213029 | BW85: 0.0006833017775 | BX85: 0.0009429528474 | BY85: 0.001288322101 | BZ85: 0.001742673364 | CA85: 0.002333805101 | CB85: 0.003094355673 | CC85: 0.004061934658 | CD85: 0.005279012492 | CE85: 0.006792497727 | CF85: 0.008652933558 | CG85: 0.01091325471 | CH85: 0.01362706316 | CI85: 0.0168464075 | CJ85: 0.02061908504 | CK85: 0.02498552808 | CL85: 0.02997538233 | CM85: 0.03560393378 | CN85: 0.04186858593 | CO85: 0.04874562657 | CP85: 0.0561875475 | CQ85: 0.06412118657 | CR85: 0.07244694555 | CS85: 0.0810392969 | CT85: 0.08974872843 | CU85: 0.09840518884 | CV85: 0.1068229948 | CW85: 0.1148070491 | CX85: 0.12216011 | CY85: 0.1286907496 | CZ85: 0.134221566 | DA85: 0.1385971588 | DB85: 0.141691373 | DC85: 0.1434133383 | DD85: 0.1437119018 | DE85: 0.1425781527 | DF85: 0.1400458634 | DG85: 0.1361898189 | DH85: 0.1311221479 | DI85: 0.1249869074 | DJ85: 0.1179532862 | DK85: 0.1102078735 | DL85: 0.1019464849 | DM85: 0.09336604103 | DN85: 0.08465696356 | DO85: 0.07599648154 | DP85: 0.06754315447 | DQ85: 0.05943280785
A86: 57 | B86: 165 | C86: 72 | D86: 150 | E86: 45 | F86: 123 | AT86: 9.204252227e-10 | AU86: 1.69965676e-09 | AV86: 3.107355884e-09 | AW86: 5.624420993e-09 | AX86: 1.007909876e-08 | AY86: 1.788226951e-08 | AZ86: 3.141091781e-08 | BA86: 5.462553106e-08 | BB86: 9.405194322e-08 | BC86: 1.603234054e-07 | BD86: 2.705721797e-07 | BE86: 4.520915675e-07 | BF86: 7.478710605e-07 | BG86: 1.22485338e-06 | BH86: 1.986088226e-06 | BI86: 3.188379616e-06 | BJ86: 5.067556112e-06 | BK86: 7.974145647e-06 | BL86: 1.242300947e-05 | BM86: 1.916136855e-05 | BN86: 2.926060404e-05 | BO86: 4.423816514e-05 | BP86: 6.621676793e-05 | BQ86: 9.812866882e-05 | BR86: 0.0001439729459 | BS86: 0.0002091331746 | BT86: 0.000300761349 | BU86: 0.0004282310694 | BV86: 0.0006036585802 | BW86: 0.0008424839531 | BX86: 0.001164096417 | BY86: 0.001592477564 | BZ86: 0.002156824199 | CA86: 0.002892099484 | CB86: 0.003839447765 | CC86: 0.005046396312 | CD86: 0.006566757823 | CE86: 0.008460142949 | CF86: 0.01079099416 | CG86: 0.01362706316 | CH86: 0.01703727509 | CI86: 0.02108895487 | CJ86: 0.02584443454 | CK86: 0.03135711268 | CL86: 0.03766709731 | CM86: 0.04479662513 | CN86: 0.0527455098 | CO86: 0.06148692116 | CP86: 0.07096383137 | CQ86: 0.08108647451 | CR86: 0.09173114975 | CS86: 0.1027406504 | CT86: 0.113926522 | CU86: 0.1250732466 | CV86: 0.1359443187 | CW86: 0.1462900394 | CX86: 0.1558567107 | CY86: 0.1643967816 | CZ86: 0.1716793938 | DA86: 0.1775007065 | DB86: 0.18169336 | DC86: 0.1841344639 | DD86: 0.1847515805 | DE86: 0.1835262954 | DF86: 0.1804951303 | DG86: 0.1757477345 | DH86: 0.1694224808 | DI86: 0.1616997667 | DJ86: 0.1527934739 | DK86: 0.14294115 | DL86: 0.1323935398 | DM86: 0.1214041049 | DN86: 0.1102191363 | DO86: 0.09906897991 | DP86: 0.08816078204 | DQ86: 0.07767302728 | DR86: 0.06775199458
A87: 57 | B87: 165 | C87: 70 | D87: 152 | E87: 43 | F87: 125 | AR87: 3.074495271e-10 | AS87: 5.799390097e-10 | AT87: 1.083048415e-09 | AU87: 2.002490547e-09 | AV87: 3.665642723e-09 | AW87: 6.643345625e-09 | AX87: 1.19201197e-08 | AY87: 2.117539114e-08 | AZ87: 3.724254238e-08 | BA87: 6.484914512e-08 | BB87: 1.117959949e-07 | BC87: 1.908118272e-07 | BD87: 3.224344154e-07 | BE87: 5.394293171e-07 | BF87: 8.934798376e-07 | BG87: 1.465183511e-06 | BH87: 2.37879131e-06 | BI87: 3.823646368e-06 | BJ87: 6.084937907e-06 | BK87: 9.58719669e-06 | BL87: 1.495492293e-05 | BM87: 2.309584073e-05 | BN87: 3.531347272e-05 | BO87: 5.345694495e-05 | BP87: 8.011704042e-05 | BQ87: 0.0001188783354 | BR87: 0.0001746375332 | BS87: 0.0002539975433 | BT87: 0.0003657450855 | BU87: 0.0005214162209 | BV87: 0.0007359488502 | BW87: 0.001028413526 | BX87: 0.001422803693 | BY87: 0.001948853722 | BZ87: 0.002642838087 | CA87: 0.003548288522 | CB87: 0.004716549004 | CC87: 0.006207072682 | CD87: 0.008087352367 | CE87: 0.01043236938 | CF87: 0.01332344708 | CG87: 0.0168464075 | CH87: 0.02108895487 | CI87: 0.02613724858 | CJ87: 0.0320716818 | CK87: 0.03896194739 | CL87: 0.04686154813 | CM87: 0.055801987 | CN87: 0.06578694972 | CO87: 0.07678685712 | CP87: 0.08873421047 | CQ87: 0.1015201713 | CR87: 0.1149928001 | CS87: 0.1289573238 | CT87: 0.1431787049 | CU87: 0.1573866541 | CV87: 0.1712830671 | CW87: 0.1845516849 | CX87: 0.1968695974 | CY87: 0.2079200385 | CZ87: 0.2174057848 | DA87: 0.2250623762 | DB87: 0.2306703418 | DC87: 0.2340656444 | DD87: 0.2351476503 | DE87: 0.2338840837 | DF87: 0.2303126266 | DG87: 0.2245390513 | DH87: 0.2167320175 | DI87: 0.2071148885 | DJ87: 0.1959551222 | DK87: 0.1835519388 | DL87: 0.1702230576 | DM87: 0.156291318 | DN87: 0.142071961 | DO87: 0.1278612517 | DP87: 0.1139269796 | DQ87: 0.1005012054 | DR87: 0.0877754395 | DS87: 0.07589825834 | DT87: 0.06497520564
A88: 57 | B88: 165 | C88: 69 | D88: 153 | E88: 42 | F88: 126 | AQ88: 1.872790248e-10 | AR88: 3.572649953e-10 | AS88: 6.747592527e-10 | AT88: 1.261723773e-09 | AU88: 2.335806049e-09 | AV88: 4.281207984e-09 | AW88: 7.768781907e-09 | AX88: 1.395714492e-08 | AY88: 2.482545982e-08 | AZ88: 4.371747495e-08 | BA88: 7.622016659e-08 | BB88: 1.315654249e-07 | BC88: 2.248385142e-07 | BD88: 3.804141792e-07 | BE88: 6.372351749e-07 | BF88: 1.05681712e-06 | BG88: 1.73522979e-06 | BH88: 2.820792921e-06 | BI88: 4.539860104e-06 | BJ88: 7.233871514e-06 | BK88: 1.141185294e-05 | BL88: 1.78237301e-05 | BM88: 2.756119748e-05 | BN88: 4.219438139e-05 | BO88: 6.395407478e-05 | BP88: 9.597074626e-05 | BQ88: 0.000142582616 | BR88: 0.0002097255492 | BS88: 0.0003054169652 | BT88: 0.0004403439457 | BU88: 0.0006285617611 | BV88: 0.0008883026128 | BW88: 0.001242885088 | BX88: 0.001721702342 | BY88: 0.002361251345 | BZ88: 0.003206146933 | CA88: 0.004310043765 | CB88: 0.005736367858 | CC88: 0.007558739226 | CD88: 0.009860950678 | CE88: 0.01273635823 | CF88: 0.01628653887 | CG88: 0.02061908504 | CH88: 0.02584443454 | CI88: 0.0320716818 | CJ88: 0.03940338113 | CK88: 0.04792943392 | CL88: 0.05772024492 | CM88: 0.06881943231 | CN88: 0.08123647338 | CO88: 0.09493975194 | CP88: 0.1098505356 | CQ88: 0.1258384384 | CR88: 0.1427189089 | CS88: 0.1602532214 | CT88: 0.1781513326 | CU88: 0.1960778054 | CV88: 0.2136608023 | CW88: 0.2305039262 | CX88: 0.2462004571 | CY88: 0.260349314 | CZ88: 0.2725718963 | DA88: 0.2825288286 | DB88: 0.2899355822 | DC88: 0.2945759729 | DD88: 0.2963126411 | DE88: 0.2950938057 | DF88: 0.2909558291 | DG88: 0.284021415 | DH88: 0.274493564 | DI88: 0.2626457035 | DJ88: 0.248808659 | DK88: 0.2333553357 | DL88: 0.2166840956 | DM88: 0.1992018608 | DN88: 0.1813079308 | DO88: 0.1633793889 | DP88: 0.1457588013 | DQ88: 0.1287447014 | DR88: 0.1125851201 | DS88: 0.09747420055 | DT88: 0.08355172555 | DU88: 0.07090522188
A89: 56 | B89: 166 | C89: 68 | D89: 154 | E89: 41 | F89: 127 | AP89: 1.115369543e-10 | AQ89: 2.151854696e-10 | AR89: 4.11021139e-10 | AS89: 7.772709378e-10 | AT89: 1.455250497e-09 | AU89: 2.69749183e-09 | AV89: 4.950391826e-09 | AW89: 8.994480136e-09 | AX89: 1.617966832e-08 | AY89: 2.881510568e-08 | AZ89: 5.080750568e-08 | BA89: 8.869366214e-08 | BB89: 1.532901874e-07 | BC89: 2.622969124e-07 | BD89: 4.443539619e-07 | BE89: 7.452843304e-07 | BF89: 1.237576286e-06 | BG89: 2.034599919e-06 | BH89: 3.311640018e-06 | BI89: 5.336595384e-06 | BJ89: 8.5141733e-06 | BK89: 1.344862086e-05 | BL89: 2.103149137e-05 | BM89: 3.25626278e-05 | BN89: 4.991440233e-05 | BO89: 7.575117272e-05 | BP89: 0.0001138177251 | BQ89: 0.0001693119053 | BR89: 0.000249357335 | BS89: 0.0003635916105 | BT89: 0.0005248831306 | BU89: 0.0007501850956 | BV89: 0.001061527631 | BW89: 0.001487137859 | BX89: 0.002062662685 | BY89: 0.00283244998 | BZ89: 0.003850821087 | CA89: 0.005183242034 | CB89: 0.00690727412 | CC89: 0.00911315904 | CD89: 0.01190387239 | CE89: 0.01539446607 | CF89: 0.01971051874 | CG89: 0.02498552808 | CH89: 0.03135711268 | CI89: 0.03896194739 | CJ89: 0.04792943392 | CK89: 0.05837420771 | CL89: 0.07038769663 | CM89: 0.08402907122 | CN89: 0.09931604764 | CO89: 0.1162161136 | CP89: 0.1346388283 | CQ89: 0.1544298871 | CR89: 0.1753676327 | CS89: 0.1971626198 | CT89: 0.2194607081 | CU89: 0.2418499641 | CV89: 0.2638714075 | CW89: 0.2850333618 | CX89: 0.304828881 | CY89: 0.3227554495 | CZ89: 0.3383359223 | DA89: 0.3511395053 | DB89: 0.3608014966 | DC89: 0.3670405297 | DD89: 0.3696721818 | DE89: 0.3686180299 | DF89: 0.3639095324 | DG89: 0.3556864698 | DH89: 0.3441900518 | DI89: 0.329751164 | DJ89: 0.3127745559 | DK89: 0.2937200207 | DL89: 0.273081789 | DM89: 0.2513674178 | DN89: 0.2290774201 | DO89: 0.2066867508 | DP89: 0.1846290555 | DQ89: 0.1632843317 | DR89: 0.1429703675 | DS89: 0.1239380358 | DT89: 0.1063702646 | DU89: 0.09038428472 | DV89: 0.07603659606
A90: 56 | B90: 166 | C90: 68 | D90: 154 | E90: 41 | F90: 127 | AP90: 1.267213382e-10 | AQ90: 2.447900722e-10 | AR90: 4.681606481e-10 | AS90: 8.864475949e-10 | AT90: 1.661759926e-09 | AU90: 3.084185936e-09 | AV90: 5.667217471e-09 | AW90: 1.030994289e-08 | AX90: 1.856947801e-08 | AY90: 3.311312643e-08 | AZ90: 5.845985503e-08 | BA90: 1.021815146e-07 | BB90: 1.768251328e-07 | BC90: 3.029512196e-07 | BD90: 5.138761629e-07 | BE90: 8.629811214e-07 | BF90: 1.434832393e-06 | BG90: 2.361881508e-06 | BH90: 3.849214331e-06 | BI90: 6.210736976e-06 | BJ90: 9.921360626e-06 | BK90: 1.569120837e-05 | BL90: 2.456962898e-05 | BM90: 3.808885018e-05 | BN90: 5.845937684e-05 | BO90: 8.883161462e-05 | BP90: 0.0001336404673 | BQ90: 0.0001990515072 | BR90: 0.0002935283209 | BS90: 0.000428540237 | BT90: 0.0006194271768 | BU90: 0.0008864330932 | BV90: 0.001255910588 | BW90: 0.001761686141 | BX90: 0.002446557396 | BY90: 0.003363871017 | BZ90: 0.004579101987 | CA90: 0.006171324072 | CB90: 0.008234428154 | CC90: 0.01087791326 | CD90: 0.0142270479 | CE90: 0.01842218126 | CF90: 0.02361698009 | CG90: 0.02997538233 | CH90: 0.03766709731 | CI90: 0.04686154813 | CJ90: 0.05772024492 | CK90: 0.07038769663 | CL90: 0.08498110955 | CM90: 0.101579272 | CN90: 0.1202111771 | CO90: 0.1408450729 | CP90: 0.1633787328 | CQ90: 0.187631799 | CR90: 0.2133410446 | CS90: 0.2401593211 | CT90: 0.2676588035 | CU90: 0.2953389131 | CV90: 0.3226390035 | CW90: 0.3489555566 | CX90: 0.373663282 | CY90: 0.3961391678 | CZ90: 0.4157882393 | DA90: 0.4320695616 | DB90: 0.4445209141 | DC90: 0.4527805684 | DD90: 0.4566047417 | DE90: 0.4558795482 | DF90: 0.4506266335 | DG90: 0.4410021012 | DH90: 0.4272888068 | DI90: 0.4098825496 | DJ90: 0.3892731029 | DK90: 0.3660213513 | DL90: 0.3407340209 | DM90: 0.314037587 | DN90: 0.2865529081 | DO90: 0.2588719911 | DP90: 0.2315380456 | DQ90: 0.2050296722 | DR90: 0.1797496803 | DS90: 0.1560186771 | DT90: 0.1340732419 | DU90: 0.1140682256 | DV90: 0.09608250471
A91: 55 | B91: 167 | C91: 67 | D91: 155 | E91: 40 | F91: 128 | AO91: 7.296269899e-11 | AP91: 1.425403348e-10 | AQ91: 2.756967927e-10 | AR91: 5.279377389e-10 | AS91: 1.000900157e-09 | AT91: 1.878693195e-09 | AU91: 3.491226473e-09 | AV91: 6.423285666e-09 | AW91: 1.170020597e-08 | AX91: 2.110021267e-08 | AY91: 3.767360788e-08 | AZ91: 6.659546395e-08 | BA91: 1.165491579e-07 | BB91: 2.019438752e-07 | BC91: 3.464250491e-07 | BD91: 5.883624444e-07 | BE91: 9.893219738e-07 | BF91: 1.646976574e-06 | BG91: 2.71452749e-06 | BH91: 4.429534833e-06 | BI91: 7.156143712e-06 | BJ91: 1.144608696e-05 | BK91: 1.812558716e-05 | BL91: 2.841738962e-05 | BM91: 4.410962188e-05 | BN91: 6.778592756e-05 | BO91: 0.0001031342243 | BP91: 0.0001553542452 | BQ91: 0.0002316863774 | BR91: 0.0003420857063 | BS91: 0.0005000649462 | BT91: 0.0007237272941 | BU91: 0.001037004273 | BV91: 0.001471103388 | BW91: 0.00206615501 | BX91: 0.002873026692 | BY91: 0.003955245782 | BZ91: 0.005390938116 | CA91: 0.007274652828 | CB91: 0.009718903118 | CC91: 0.01285521335 | CD91: 0.0168344286 | CE91: 0.02182601887 | CF91: 0.02801610316 | CG91: 0.03560393378 | CH91: 0.04479662513 | CI91: 0.055801987 | CJ91: 0.06881943231 | CK91: 0.08402907122 | CL91: 0.101579272 | CM91: 0.121573154 | CN91: 0.1440546649 | CO91: 0.1689950659 | CP91: 0.1962807813 | CQ91: 0.2257036522 | CR91: 0.2569546317 | CS91: 0.2896218806 | CT91: 0.3231940399 | CU91: 0.3570691852 | CV91: 0.390569618 | CW91: 0.4229622392 | CX91: 0.4534838148 | CY91: 0.4813700229 | CZ91: 0.5058867987 | DA91: 0.5263622161 | DB91: 0.5422169906 | DC91: 0.5529916746 | DD91: 0.5583687687 | DE91: 0.5581882624 | DF91: 0.5524555439 | DG91: 0.5413411329 | DH91: 0.525172255 | DI91: 0.5044168386 | DJ91: 0.4796610268 | DK91: 0.4515817112 | DL91: 0.4209158815 | DM91: 0.388428721 | DN91: 0.3548823599 | DO91: 0.3210070314 | DP91: 0.2874760927 | DQ91: 0.2548859969 | DR91: 0.2237418759 | DS91: 0.1944489617 | DT91: 0.167309668 | DU91: 0.1425258046 | DV91: 0.120205135 | DW91: 0.1003713105
A92: 55 | B92: 167 | C92: 66 | D92: 156 | E92: 39 | F92: 129 | AN92: 4.107393991e-11 | AO92: 8.115141209e-11 | AP92: 1.587387128e-10 | AQ92: 3.074161522e-10 | AR92: 5.894236612e-10 | AS92: 1.118885135e-09 | AT92: 2.102812248e-09 | AU92: 3.912663931e-09 | AV92: 7.207782132e-09 | AW92: 1.31458239e-08 | AX92: 2.373728393e-08 | AY92: 4.243569254e-08 | AZ92: 7.510841875e-08 | BA92: 1.316142759e-07 | BB92: 2.283360238e-07 | BC92: 3.921957872e-07 | BD92: 6.669426178e-07 | BE92: 1.122874115e-06 | BF92: 1.871676236e-06 | BG92: 3.088783278e-06 | BH92: 5.046626963e-06 | BI92: 8.16341782e-06 | BJ92: 1.307374174e-05 | BK92: 2.072930939e-05 | BL92: 3.254069471e-05 | BM92: 5.057383212e-05 | BN92: 7.781833957e-05 | BO92: 0.0001185482405 | BP92: 0.0001787990966 | BQ92: 0.0002669885169 | BR92: 0.0003947088835 | BS92: 0.0005777211595 | BT92: 0.0008371758709 | BU92: 0.001201080694 | BV92: 0.001706022384 | BW92: 0.002399132969 | BX92: 0.003340265347 | BY92: 0.004604311231 | BZ92: 0.006283555159 | CA92: 0.00848991313 | CB92: 0.01135685593 | CC92: 0.015040769 | CD92: 0.01972145812 | CE92: 0.0256014791 | CF92: 0.03290395841 | CG92: 0.04186858593 | CH92: 0.0527455098 | CI92: 0.06578694972 | CJ92: 0.08123647338 | CK92: 0.09931604764 | CL92: 0.1202111771 | CM92: 0.1440546649 | CN92: 0.1709097578 | CO92: 0.200753648 | CP92: 0.2334624766 | CQ92: 0.2687990849 | CR92: 0.3064047817 | CS92: 0.3457963036 | CT92: 0.3863689428 | CU92: 0.4274065052 | CV92: 0.4680983404 | CW92: 0.5075632038 | CX92: 0.5448791802 | CY92: 0.5791183855 | CZ92: 0.6093847014 | DA92: 0.6348524449 | DB92: 0.6548036642 | DC92: 0.6686617194 | DD92: 0.6760189586 | DE92: 0.6766566367 | DF92: 0.6705557193 | DG92: 0.6578978263 | DH92: 0.6390562508 | DI92: 0.6145776719 | DJ92: 0.5851558133 | DK92: 0.5515988158 | DL92: 0.514792465 | DM92: 0.4756616007 | DN92: 0.435132037 | DO92: 0.3940951423 | DP92: 0.3533769018 | DQ92: 0.3137128376 | DR92: 0.2757296557 | DS92: 0.2399339596 | DT92: 0.2067078734 | DU92: 0.1763109851 | DV92: 0.148887686 | DW92: 0.1244787572 | DX92: 0.1030359458
A93: 55 | B93: 167 | C93: 65 | D93: 157 | E93: 38 | F93: 130 | AM93: 2.260716835e-11 | AN93: 4.517193765e-11 | AO93: 8.936106312e-11 | AP93: 1.750189157e-10 | AQ93: 3.393741085e-10 | AR93: 6.515225901e-10 | AS93: 1.2383326e-09 | AT93: 2.330248241e-09 | AU93: 4.341343269e-09 | AV93: 8.00761381e-09 | AW93: 1.462309051e-08 | AX93: 2.643822362e-08 | AY93: 4.732410729e-08 | AZ93: 8.386671727e-08 | BA93: 1.471478474e-07 | BB93: 2.55608468e-07 | BC93: 4.395958833e-07 | BD93: 7.484952545e-07 | BE93: 1.261773904e-06 | BF93: 2.105867712e-06 | BG93: 3.479667012e-06 | BH93: 5.692477744e-06 | BI93: 9.219811708e-06 | BJ93: 1.478426769e-05 | BK93: 2.347116455e-05 | BL93: 3.689151702e-05 | BM93: 5.740840032e-05 | BN93: 8.844665887e-05 | BO93: 0.0001349101028 | BP93: 0.0002037344964 | BQ93: 0.0003046082924 | BR93: 0.0004508955291 | BS93: 0.0006607956743 | BT93: 0.0009587723674 | BU93: 0.001377275688 | BV93: 0.001958769393 | BW93: 0.002758054173 | BX93: 0.003844849373 | BY93: 0.005306558103 | BZ93: 0.00725109462 | CA93: 0.009809599486 | CB93: 0.01313881008 | CC93: 0.0174227959 | CD93: 0.02287371567 | CE93: 0.02973121399 | CF93: 0.03826005785 | CG93: 0.04874562657 | CH93: 0.06148692116 | CI93: 0.07678685712 | CJ93: 0.09493975194 | CK93: 0.1162161136 | CL93: 0.1408450729 | CM93: 0.1689950659 | CN93: 0.200753648 | CO93: 0.2361075758 | CP93: 0.2749245061 | CQ93: 0.3169378009 | CR93: 0.3617359584 | CS93: 0.4087581067 | CT93: 0.4572967671 | CU93: 0.5065087339 | CV93: 0.555434435 | CW93: 0.6030255573 | CX93: 0.6481800971 | CY93: 0.6897833698 | CZ93: 0.7267529493 | DA93: 0.758085066 | DB93: 0.7828997149 | DC93: 0.8004816554 | DD93: 0.8103146442 | DE93: 0.8121066127 | DF93: 0.8058040784 | DG93: 0.7915947963 | DH93: 0.7698984678 | DI93: 0.7413461478 | DJ93: 0.7067497609 | DK93: 0.6670637806 | DL93: 0.6233415921 | DM93: 0.5766893173 | DN93: 0.5282199044 | DO93: 0.4790101028 | DP93: 0.4300625636 | DQ93: 0.382274792 | DR93: 0.3364160732 | DS93: 0.2931128572 | DT93: 0.2528424883 | DU93: 0.2159346305 | DV93: 0.1825793241 | DW93: 0.1528403232 | DX93: 0.1266722122 | DY93: 0.1039397859
A94: 54 | B94: 168 | C94: 64 | D94: 158 | E94: 37 | F94: 131 | AL94: 1.216578972e-11 | AM94: 2.458417797e-11 | AN94: 4.91844854e-11 | AO94: 9.74221316e-11 | AP94: 1.910487405e-10 | AQ94: 3.709264346e-10 | AR94: 7.129982214e-10 | AS94: 1.356894753e-09 | AT94: 2.556589111e-09 | AU94: 4.769059731e-09 | AV94: 8.807682364e-09 | AW94: 1.610451245e-08 | AX94: 2.915349146e-08 | AY94: 5.225052056e-08 | AZ94: 9.271451365e-08 | BA94: 1.628777955e-07 | BB94: 2.832912077e-07 | BC94: 4.878219796e-07 | BD94: 8.316616736e-07 | BE94: 1.403747729e-06 | BF94: 2.345786597e-06 | BG94: 3.881012037e-06 | BH94: 6.357092549e-06 | BI94: 1.030929895e-05 | BJ94: 1.655224052e-05 | BK94: 2.631125103e-05 | BL94: 4.140790547e-05 | BM94: 6.451817638e-05 | BN94: 9.952632289e-05 | BO94: 0.0001520025555 | BP94: 0.0002298374927 | BQ94: 0.0003440708784 | BR94: 0.0005099551856 | BS94: 0.000748295552 | BT94: 0.001087104692 | BU94: 0.001563603493 | BV94: 0.002226583307 | BW94: 0.003139122912 | BX94: 0.004381620381 | BY94: 0.006055056925 | BZ94: 0.008284356279 | CA94: 0.01122164074 | CB94: 0.01504911666 | CC94: 0.01998125268 | CD94: 0.02626585063 | CE94: 0.03418355952 | CF94: 0.04404535882 | CG94: 0.0561875475 | CH94: 0.07096383137 | CI94: 0.08873421047 | CJ94: 0.1098505356 | CK94: 0.1346388283 | CL94: 0.1633787328 | CM94: 0.1962807813 | CN94: 0.2334624766 | CO94: 0.2749245061 | CP94: 0.3205286645 | CQ94: 0.3699792347 | CR94: 0.42280964 | CS94: 0.478376092 | CT94: 0.5358597138 | CU94: 0.5942782067 | CV94: 0.6525075719 | CW94: 0.7093137236 | CX94: 0.7633930898 | CY94: 0.8134205528 | CZ94: 0.8581023945 | DA94: 0.8962313705 | DB94: 0.9267406733 | DC94: 0.9487534362 | DD94: 0.961624578 | DE94: 0.9649722026 | DF94: 0.9586964218 | DG94: 0.9429843062 | DH94: 0.9183006225 | DI94: 0.8853649961 | DJ94: 0.8451170659 | DK94: 0.7986719851 | DL94: 0.7472692053 | DM94: 0.6922178198 | DN94: 0.6348418082 | DO94: 0.5764283338 | DP94: 0.5181818237 | DQ94: 0.4611859686 | DR94: 0.4063750642 | DS94: 0.3545153725 | DT94: 0.3061964475 | DU94: 0.2618317322 | DV94: 0.2216672151 | DW94: 0.1857965761 | DX94: 0.1541810515 | DY94: 0.1266722122 | DZ94: 0.1030359458
A95: 54 | B95: 168 | C95: 63 | D95: 159 | E95: 36 | F95: 132 | AK95: 6.401013971e-12 | AL95: 1.30814834e-11 | AM95: 2.646806966e-11 | AN95: 5.302059521e-11 | AO95: 1.051535608e-10 | AP95: 2.064716478e-10 | AQ95: 4.013783277e-10 | AR95: 7.725106398e-10 | AS95: 1.472014457e-09 | AT95: 2.777005476e-09 | AU95: 5.18678746e-09 | AV95: 9.591294439e-09 | AW95: 1.755953657e-08 | AX95: 3.182774951e-08 | AY95: 5.711574792e-08 | AZ95: 1.014758879e-07 | BA95: 1.784953502e-07 | BB95: 3.108479514e-07 | BC95: 5.359523345e-07 | BD95: 9.148741984e-07 | BE95: 1.546157201e-06 | BF95: 2.587038968e-06 | BG95: 4.285577455e-06 | BH95: 7.02866399e-06 | BI95: 1.141282796e-05 | BJ95: 1.834724306e-05 | BK95: 2.9201517e-05 | BL95: 4.601475006e-05 | BM95: 7.178699542e-05 | BN95: 0.0001108795721 | BO95: 0.0001695564678 | BP95: 0.0002567049455 | BQ95: 0.0003847788264 | BR95: 0.0005710118891 | BS95: 0.0008389502179 | BT95: 0.001220349666 | BU95: 0.001757476139 | BV95: 0.002505830225 | BW95: 0.00353729194 | BX95: 0.004943644362 | BY95: 0.006840385729 | BZ95: 0.00937067809 | CA95: 0.01270920839 | CB95: 0.01706565799 | CC95: 0.02268739487 | CD95: 0.02986092641 | CE95: 0.03891159023 | CF95: 0.05020092708 | CG95: 0.06412118657 | CH95: 0.08108647451 | CI95: 0.1015201713 | CJ95: 0.1258384384 | CK95: 0.1544298871 | CL95: 0.187631799 | CM95: 0.2257036522 | CN95: 0.2687990849 | CO95: 0.3169378009 | CP95: 0.3699792347 | CQ95: 0.4276000176 | CR95: 0.4892773757 | CS95: 0.5542805119 | CT95: 0.6216717601 | CU95: 0.6903188383 | CV95: 0.758918895 | CW95: 0.8260342626 | CX95: 0.8901389655 | CY95: 0.9496741542 | CZ95: 1.003109815 | DA95: 1.04900944 | DB95: 1.086093884 | DC95: 1.113300477 | DD95: 1.129833577 | DE95: 1.13520322 | DF95: 1.12924924 | DG95: 1.112149202 | DH95: 1.084409609 | DI95: 1.04684098 | DJ95: 1.000518512 | DK95: 0.9467309973 | DL95: 0.8869213722 | DM95: 0.8226227178 | DN95: 0.7553936554 | DO95: 0.6867568847 | DP95: 0.6181441537 | DQ95: 0.5508502686 | DR95: 0.4859979308 | DS95: 0.4245143055 | DT95: 0.3671193662 | DU95: 0.3143252829 | DV95: 0.2664455003 | DW95: 0.2236116987 | DX95: 0.1857965761 | DY95: 0.1528403232 | DZ95: 0.1244787572 | EA95: 0.1003713105
A96: 54 | B96: 168 | C96: 63 | D96: 159 | E96: 36 | F96: 132 | AK96: 6.805697319e-12 | AL96: 1.392613941e-11 | AM96: 2.821278129e-11 | AN96: 5.658718904e-11 | AO96: 1.123692274e-10 | AP96: 2.209193334e-10 | AQ96: 4.300085674e-10 | AR96: 8.28662237e-10 | AS96: 1.58101155e-09 | AT96: 2.98641111e-09 | AU96: 5.584974541e-09 | AV96: 1.034069808e-08 | AW96: 1.895551435e-08 | AX96: 3.440157641e-08 | AY96: 6.181276486e-08 | AZ96: 1.099600809e-07 | BA96: 1.936640398e-07 | BB96: 3.376913827e-07 | BC96: 5.829724412e-07 | BD96: 9.963986411e-07 | BE96: 1.686068767e-06 | BF96: 2.824714085e-06 | BG96: 4.685228353e-06 | BH96: 7.693856558e-06 | BI96: 1.250876584e-05 | BJ96: 2.013454851e-05 | BK96: 3.208679825e-05 | BL96: 5.062533695e-05 | BM96: 7.907997532e-05 | BN96: 0.0001222987952 | BO96: 0.0001872556314 | BP96: 0.0002838602959 | BQ96: 0.000426021454 | BR96: 0.0006330169579 | BS96: 0.000931228532 | BT96: 0.001356295305 | BU96: 0.001955731804 | BV96: 0.00279203844 | BW96: 0.003946304052 | BX96: 0.005522258708 | BY96: 0.007650679504 | BZ96: 0.01049398224 | CA96: 0.01425074916 | CB96: 0.01915985076 | CC96: 0.02550372419 | CD96: 0.0336102807 | CE96: 0.04385284067 | CF96: 0.05664745171 | CG96: 0.07244694555 | CH96: 0.09173114975 | CI96: 0.1149928001 | CJ96: 0.1427189089 | CK96: 0.1753676327 | CL96: 0.2133410446 | CM96: 0.2569546317 | CN96: 0.3064047817 | CO96: 0.3617359584 | CP96: 0.42280964 | CQ96: 0.4892773757 | CR96: 0.5605604373 | CS96: 0.6358384803 | CT96: 0.7140493476 | CU96: 0.7939016439 | CV96: 0.8739009891 | CW96: 0.9523899759 | CX96: 1.027600852 | CY96: 1.097718923 | CZ96: 1.160953704 | DA96: 1.215614039 | DB96: 1.260182858 | DC96: 1.293386977 | DD96: 1.314257472 | DE96: 1.322176644 | DF96: 1.316908384 | DG96: 1.298609869 | DH96: 1.267823773 | DI96: 1.225451529 | DJ96: 1.172709492 | DK96: 1.111070963 | DL96: 1.04219794 | DM96: 0.9678669897 | DN96: 0.8898938407 | DO96: 0.810061103 | DP96: 0.7300530375 | DQ96: 0.6514005197 | DR96: 0.5754384062 | DS96: 0.5032764899 | DT96: 0.4357842171 | DU96: 0.3735884203 | DV96: 0.3170825709 | DW96: 0.2664455003 | DX96: 0.2216672151 | DY96: 0.1825793241 | DZ96: 0.148887686 | EA96: 0.120205135
A97: 54 | B97: 168 | C97: 62 | D97: 160 | E97: 35 | F97: 133 | AJ97: 3.461804977e-12 | AK97: 7.1639664e-12 | AL97: 1.467781933e-11 | AM97: 2.977327374e-11 | AN97: 5.979277344e-11 | AO97: 1.188852188e-10 | AP97: 2.340259838e-10 | AQ97: 4.560971442e-10 | AR97: 8.800506774e-10 | AS97: 1.681183292e-09 | AT97: 3.179651366e-09 | AU97: 5.953892629e-09 | AV97: 1.103772444e-08 | AW97: 2.025886695e-08 | AX97: 3.681355954e-08 | AY97: 6.623042268e-08 | AZ97: 1.179680218e-07 | BA97: 2.080310313e-07 | BB97: 3.632026448e-07 | BC97: 6.278081336e-07 | BD97: 1.074389929e-06 | BE97: 1.820346129e-06 | BF97: 3.05353622e-06 | BG97: 5.071182406e-06 | BH97: 8.338202604e-06 | BI97: 1.357352697e-05 | BJ97: 2.187610665e-05 | BK97: 3.49063476e-05 | BL97: 5.514369219e-05 | BM97: 8.624706575e-05 | BN97: 0.0001335518386 | BO97: 0.0002047446059 | BP97: 0.0003107650154 | BQ97: 0.0004669913433 | BR97: 0.000694772457 | BS97: 0.001023371721 | BT97: 0.001492386409 | BU97: 0.002154697036 | BV97: 0.003079982141 | BW97: 0.004358802963 | BX97: 0.006107216724 | BY97: 0.00847181535 | BZ97: 0.011635008 | CA97: 0.015820272 | CB97: 0.02129699168 | CC97: 0.02838439432 | CD97: 0.03745398713 | CE97: 0.04892981093 | CF97: 0.06328577071 | CG97: 0.0810392969 | CH97: 0.1027406504 | CI97: 0.1289573238 | CJ97: 0.1602532214 | CK97: 0.1971626198 | CL97: 0.2401593211 | CM97: 0.2896218806 | CN97: 0.3457963036 | CO97: 0.4087581067 | CP97: 0.478376092 | CQ97: 0.5542805119 | CR97: 0.6358384803 | CS97: 0.7221394329 | CT97: 0.8119931564 | CU97: 0.9039423474 | CV97: 0.9962908717 | CW97: 1.087147885 | CX97: 1.174486838 | CY97: 1.256217209 | CZ97: 1.330265653 | DA97: 1.394662336 | DB97: 1.447627492 | DC97: 1.487652948 | DD97: 1.513573403 | DE97: 1.524622774 | DF97: 1.520471813 | DG97: 1.501244395 | DH97: 1.467511388 | DI97: 1.420262486 | DJ97: 1.360857989 | DK97: 1.290963768 | DL97: 1.212473779 | DM97: 1.127425133 | DN97: 1.037911022 | DO97: 0.9459966343 | DP97: 0.8536426663 | DQ97: 0.7626401951 | DR97: 0.6745595946 | DS97: 0.5907150173 | DT97: 0.512144785 | DU97: 0.4396069532 | DV97: 0.3735884203 | DW97: 0.3143252829 | DX97: 0.2618317322 | DY97: 0.2159346305 | DZ97: 0.1763109851 | EA97: 0.1425258046 | EB97: 0.1140682256
A98: 53 | B98: 169 | C98: 61 | D98: 161 | E98: 34 | F98: 134 | AI98: 1.721658052e-12 | AJ98: 3.603219127e-12 | AK98: 7.466060513e-12 | AL98: 1.531614228e-11 | AM98: 3.110744442e-11 | AN98: 6.255129867e-11 | AO98: 1.245275326e-10 | AP98: 2.454434745e-10 | AQ98: 4.789549352e-10 | AR98: 9.253262238e-10 | AS98: 1.769913913e-09 | AT98: 3.351710278e-09 | AU98: 6.284024278e-09 | AV98: 1.166450444e-08 | AW98: 2.143639673e-08 | AX98: 3.900266968e-08 | AY98: 7.025770169e-08 | AZ98: 1.252998635e-07 | BA98: 2.212403374e-07 | BB98: 3.867542382e-07 | BC98: 6.693648553e-07 | BD98: 1.146958716e-06 | BE98: 1.945762016e-06 | BF98: 3.268050141e-06 | BG98: 5.434314347e-06 | BH98: 8.946596631e-06 | BI98: 1.458236662e-05 | BJ98: 2.353180407e-05 | BK98: 3.759581378e-05 | BL98: 5.94676547e-05 | BM98: 9.312776652e-05 | BN98: 0.0001443891697 | BO98: 0.0002216394715 | BP98: 0.0003368345624 | BQ98: 0.0005068077472 | BR98: 0.0007549651374 | BS98: 0.001113442014 | BT98: 0.001625793443 | BU98: 0.002350283142 | BV98: 0.003363814656 | BW98: 0.004766515249 | BX98: 0.006686932975 | BY98: 0.009287739133 | BZ98: 0.01277174099 | CA98: 0.01738790471 | CB98: 0.02343696955 | CC98: 0.03127610878 | CD98: 0.04132197109 | CE98: 0.0540513318 | CF98: 0.06999851459 | CG98: 0.08974872843 | CH98: 0.113926522 | CI98: 0.1431787049 | CJ98: 0.1781513326 | CK98: 0.2194607081 | CL98: 0.2676588035 | CM98: 0.3231940399 | CN98: 0.3863689428 | CO98: 0.4572967671 | CP98: 0.5358597138 | CQ98: 0.6216717601 | CR98: 0.7140493476 | CS98: 0.8119931564 | CT98: 0.9141838954 | CU98: 1.018994451 | CV98: 1.124519852 | CW98: 1.228625401 | CX98: 1.329012017 | CY98: 1.423296499 | CZ98: 1.509103094 | DA98: 1.584161642 | DB98: 1.646406728 | DC98: 1.694071851 | DD98: 1.725772624 | DE98: 1.740573551 | DF98: 1.738033885 | DG98: 1.718229433 | DH98: 1.681748791 | DI98: 1.62966429 | DJ98: 1.563479638 | DK98: 1.485057827 | DL98: 1.396534136 | DM98: 1.300219878 | DN98: 1.198502937 | DO98: 1.093750989 | DP98: 0.9882228012 | DQ98: 0.883992004 | DR98: 0.7828865977 | DS98: 0.6864460896 | DT98: 0.5958968195 | DU98: 0.512144785 | DV98: 0.4357842171 | DW98: 0.3671193662 | DX98: 0.3061964475 | DY98: 0.2528424883 | DZ98: 0.2067078734 | EA98: 0.167309668 | EB98: 0.1340732419 | EC98: 0.1063702646
A99: 53 | B99: 169 | C99: 61 | D99: 161 | E99: 34 | F99: 134 | AI99: 1.771911964e-12 | AJ99: 3.713092819e-12 | AK99: 7.703472316e-12 | AL99: 1.582319943e-11 | AM99: 3.217800631e-11 | AN99: 6.47859779e-11 | AO99: 1.291397554e-10 | AP99: 2.548566417e-10 | AQ99: 4.979537502e-10 | AR99: 9.63250214e-10 | AS99: 1.844787197e-09 | AT99: 3.497924997e-09 | AU99: 6.566466989e-09 | AV99: 1.220422182e-08 | AW99: 2.245667611e-08 | AX99: 4.091079444e-08 | AY99: 7.378828322e-08 | AZ99: 1.317631456e-07 | BA99: 2.329472337e-07 | BB99: 4.077352094e-07 | BC99: 7.06571197e-07 | BD99: 1.212245829e-06 | BE99: 2.059124104e-06 | BF99: 3.462831837e-06 | BG99: 5.765504775e-06 | BH99: 9.503866469e-06 | BI99: 1.551030616e-05 | BJ99: 2.506094656e-05 | BK99: 4.0089591e-05 | BL99: 6.349255968e-05 | BM99: 9.955683954e-05 | BN99: 0.0001545526379 | BO99: 0.0002375411189 | BP99: 0.0003614583226 | BQ99: 0.0005445461791 | BR99: 0.0008122098583 | BS99: 0.001199385663 | BT99: 0.001753502966 | BU99: 0.002538114509 | BV99: 0.003637248504 | BW99: 0.005160500105 | BX99: 0.007248825809 | BY99: 0.01008092982 | BZ99: 0.01388003541 | CA99: 0.01892071797 | CB99: 0.02553534356 | CC99: 0.03411951536 | CD99: 0.04513579095 | CE99: 0.05911481245 | CF99: 0.07665290704 | CG99: 0.09840518884 | CH99: 0.1250732466 | CI99: 0.1573866541 | CJ99: 0.1960778054 | CK99: 0.2418499641 | CL99: 0.2953389131 | CM99: 0.3570691852 | CN99: 0.4274065052 | CO99: 0.5065087339 | CP99: 0.5942782067 | CQ99: 0.6903188383 | CR99: 0.7939016439 | CS99: 0.9039423474 | CT99: 1.018994451 | CU99: 1.137260514 | CV99: 1.256623443 | CW99: 1.374698344 | CX99: 1.488904068 | CY99: 1.59655204 | CZ99: 1.694948459 | DA99: 1.781504687 | DB99: 1.853849598 | DC99: 1.909937167 | DD99: 1.948142489 | DE99: 1.967339954 | DF99: 1.966958335 | DG99: 1.947009024 | DH99: 1.908085465 | DI99: 1.851333831 | DJ99: 1.778396958 | DK99: 1.691335371 | DL99: 1.592530692 | DM99: 1.484577746 | DN99: 1.370172151 | DO99: 1.252000151 | DP99: 1.132636836 | DQ99: 1.014457921 | DR99: 0.8995689325 | DS99: 0.7897541454 | DT99: 0.6864460896 | DU99: 0.5907150173 | DV99: 0.5032764899 | DW99: 0.4245143055 | DX99: 0.3545153725 | DY99: 0.2931128572 | DZ99: 0.2399339596 | EA99: 0.1944489617 | EB99: 0.1560186771 | EC99: 0.1239380358
A100: 53 | B100: 169 | C100: 60 | D100: 162 | E100: 33 | F100: 135 | AH100: 8.519378999e-13 | AI100: 1.805487301e-12 | AJ100: 3.788244422e-12 | AK100: 7.869345295e-12 | AL100: 1.618438744e-11 | AM100: 3.295421618e-11 | AN100: 6.64328312e-11 | AO100: 1.325902506e-10 | AP100: 2.619976989e-10 | AQ100: 5.125549328e-10 | AR100: 9.92751183e-10 | AS100: 1.903695416e-09 | AT100: 3.614194913e-09 | AU100: 6.793330308e-09 | AV100: 1.264185917e-08 | AW100: 2.329143356e-08 | AX100: 4.248528603e-08 | AY100: 7.67251822e-08 | AZ100: 1.371811267e-07 | BA100: 2.428330854e-07 | BB100: 4.255772516e-07 | BC100: 7.384243481e-07 | BD100: 1.268500568e-06 | BE100: 2.157408469e-06 | BF100: 3.632713497e-06 | BG100: 6.056015402e-06 | BH100: 9.995392429e-06 | BI100: 1.633314372e-05 | BJ100: 2.64238912e-05 | BK100: 4.232342608e-05 | BL100: 6.711535875e-05 | BM100: 0.0001053707498 | BN100: 0.0001637854356 | BO100: 0.0002520504894 | BP100: 0.0003840226721 | BQ100: 0.0005792729387 | BR100: 0.0008651007149 | BS100: 0.001279107827 | BT100: 0.001872426148 | BU100: 0.00271368412 | BV100: 0.003893775825 | BW100: 0.005531458403 | BX100: 0.007779745899 | BY100: 0.01083298718 | BZ100: 0.01493441106 | CA100: 0.0203837943 | CB100: 0.02754476111 | CC100: 0.03685106535 | CD100: 0.0488110489 | CE100: 0.06400933099 | CF100: 0.08310468182 | CG100: 0.1068229948 | CH100: 0.1359443187 | CI100: 0.1712830671 | CJ100: 0.2136608023 | CK100: 0.2638714075 | CL100: 0.3226390035 | CM100: 0.390569618 | CN100: 0.4680983404 | CO100: 0.555434435 | CP100: 0.6525075719 | CQ100: 0.758918895 | CR100: 0.8739009891 | CS100: 0.9962908717 | CT100: 1.124519852 | CU100: 1.256623443 | CV100: 1.390273495 | CW100: 1.522833368 | CX100: 1.651435365 | CY100: 1.773077962 | CZ100: 1.884738658 | DA100: 1.983496783 | DB100: 2.066659445 | DC100: 2.131883113 | DD100: 2.177283176 | DE100: 2.20152438 | DF100: 2.203886055 | DG100: 2.184297707 | DH100: 2.143342511 | DI100: 2.082228474 | DJ100: 2.002729244 | DK100: 1.907098625 | DL100: 1.797964538 | DM100: 1.678209386 | DN100: 1.550844395 | DO100: 1.418885528 | DP100: 1.285237973 | DQ100: 1.152595165 | DR100: 1.023356832 | DS100: 0.8995689325 | DT100: 0.7828865977 | DU100: 0.6745595946 | DV100: 0.5754384062 | DW100: 0.4859979308 | DX100: 0.4063750642 | DY100: 0.3364160732 | DZ100: 0.2757296557 | EA100: 0.2237418759 | EB100: 0.1797496803 | EC100: 0.1429703675 | ED100: 0.1125851201
A101: 53 | B101: 169 | C101: 60 | D101: 162 | E101: 33 | F101: 135 | AH101: 8.583559121e-13 | AI101: 1.821393536e-12 | AJ101: 3.826460498e-12 | AK101: 7.958802594e-12 | AL101: 1.638910684e-11 | AM101: 3.341334042e-11 | AN101: 6.744372664e-11 | AO101: 1.347783945e-10 | AP101: 2.666588815e-10 | AQ101: 5.223347056e-10 | AR101: 1.012975094e-09 | AS101: 1.944937758e-09 | AT101: 3.697172403e-09 | AU101: 6.958101392e-09 | AV101: 1.296489066e-08 | AW101: 2.391685217e-08 | AX101: 4.36813684e-08 | AY101: 7.89851607e-08 | AZ101: 1.414007888e-07 | BA101: 2.506197046e-07 | BB101: 4.397801776e-07 | BC101: 7.640348034e-07 | BD101: 1.31415832e-06 | BE101: 2.237892863e-06 | BF101: 3.773009933e-06 | BG101: 6.297869554e-06 | BH101: 1.040773986e-05 | BI101: 1.702849443e-05 | BJ101: 2.758373867e-05 | BK101: 4.423714218e-05 | BL101: 7.023895655e-05 | BM101: 0.0001104144961 | BN101: 0.0001718427419 | BO101: 0.0002647849809 | BP101: 0.0004039359964 | BQ101: 0.0006100828559 | BR101: 0.0009122673682 | BS101: 0.001350555746 | BT101: 0.001979520232 | BU101: 0.002872529054 | BV101: 0.00412691924 | BW101: 0.005870087374 | BX101: 0.008266472326 | BY101: 0.01152531813 | BZ101: 0.01590899271 | CA101: 0.02174149976 | CB101: 0.02941666064 | CC101: 0.03940526902 | CD101: 0.05226034572 | CE101: 0.06861946304 | CF101: 0.08920298909 | CG101: 0.1148070491 | CH101: 0.1462900394 | CI101: 0.1845516849 | CJ101: 0.2305039262 | CK101: 0.2850333618 | CL101: 0.3489555566 | CM101: 0.4229622392 | CN101: 0.5075632038 | CO101: 0.6030255573 | CP101: 0.7093137236 | CQ101: 0.8260342626 | CR101: 0.9523899759 | CS101: 1.087147885 | CT101: 1.228625401 | CU101: 1.374698344 | CV101: 1.522833368 | CW101: 1.67014591 | CX101: 1.813483046 | CY101: 1.949528732 | CZ101: 2.074927066 | DA101: 2.186417459 | DB101: 2.280974303 | DC101: 2.355942864 | DD101: 2.40916292 | DE101: 2.439072119 | DF101: 2.444782164 | DG101: 2.426122639 | DH101: 2.383649455 | DI101: 2.318617342 | DJ101: 2.23291827 | DK101: 2.128990041 | DL101: 2.009701181 | DM101: 1.87821974 | DN101: 1.737874332 | DO101: 1.592015868 | DP101: 1.443887879 | DQ101: 1.29651219 | DR101: 1.152595165 | DS101: 1.014457921 | DT101: 0.883992004 | DU101: 0.7626401951 | DV101: 0.6514005197 | DW101: 0.5508502686 | DX101: 0.4611859686 | DY101: 0.382274792 | DZ101: 0.3137128376 | EA101: 0.2548859969 | EB101: 0.2050296722 | EC101: 0.1632843317 | ED101: 0.1287447014
A102: 53 | B102: 169 | C102: 59 | D102: 163 | E102: 32 | F102: 136 | AG102: 3.989832831e-13 | AH102: 8.562171485e-13 | AI102: 1.819157071e-12 | AJ102: 3.82660409e-12 | AK102: 7.969185184e-12 | AL102: 1.643127869e-11 | AM102: 3.354176096e-11 | AN102: 6.778871674e-11 | AO102: 1.356394503e-10 | AP102: 2.68702486e-10 | AQ102: 5.270045965e-10 | AR102: 1.023326397e-09 | AS102: 1.967301875e-09 | AT102: 3.744422879e-09 | AU102: 7.055955441e-09 | AV102: 1.316387725e-08 | AW102: 2.431469767e-08 | AX102: 4.446425077e-08 | AY102: 8.050264297e-08 | AZ102: 1.443000077e-07 | BA102: 2.56082337e-07 | BB102: 4.499351786e-07 | BC102: 7.826675555e-07 | BD102: 1.347912706e-06 | BE102: 2.298281696e-06 | BF102: 3.879732694e-06 | BG102: 6.484214995e-06 | BH102: 1.072926725e-05 | BI102: 1.757679853e-05 | BJ102: 2.850798633e-05 | BK102: 4.577732006e-05 | BL102: 7.277651277e-05 | BM102: 0.0001145484387 | BN102: 0.0001785024421 | BO102: 0.0002753950977 | BP102: 0.0004206542715 | BQ102: 0.0006361381721 | BR102: 0.0009524335059 | BS102: 0.001411805693 | BT102: 0.002071916494 | BU102: 0.003010416751 | BV102: 0.004330500082 | BW102: 0.006167462757 | BX102: 0.008696251178 | BY102: 0.01213988772 | BZ102: 0.01677854589 | CA102: 0.02295889729 | CB102: 0.03110317941 | CC102: 0.04171724318 | CD102: 0.05539664609 | CE102: 0.07282967932 | CF102: 0.09479607999 | CG102: 0.12216011 | CH102: 0.1558567107 | CI102: 0.1968695974 | CJ102: 0.2462004571 | CK102: 0.304828881 | CL102: 0.373663282 | CM102: 0.4534838148 | CN102: 0.5448791802 | CO102: 0.6481800971 | CP102: 0.7633930898 | CQ102: 0.8901389655 | CR102: 1.027600852 | CS102: 1.174486838 | CT102: 1.329012017 | CU102: 1.488904068 | CV102: 1.651435365 | CW102: 1.813483046 | CX102: 1.971616636 | CY102: 2.122210718 | CZ102: 2.261578091 | DA102: 2.386116963 | DB102: 2.492464166 | DC102: 2.577645406 | DD102: 2.639213225 | DE102: 2.675363757 | DF102: 2.685024514 | DG102: 2.667907243 | DH102: 2.62452221 | DI102: 2.556152932 | DJ102: 2.464793103 | DK102: 2.353050034 | DL102: 2.224021128 | DM102: 2.081151569 | DN102: 1.928082301 | DO102: 1.768497623 | DP102: 1.605981166 | DQ102: 1.443887879 | DR102: 1.285237973 | DS102: 1.132636836 | DT102: 0.9882228012 | DU102: 0.8536426663 | DV102: 0.7300530375 | DW102: 0.6181441537 | DX102: 0.5181818237 | DY102: 0.4300625636 | DZ102: 0.3533769018 | EA102: 0.2874760927 | EB102: 0.2315380456 | EC102: 0.1846290555 | ED102: 0.1457588013 | EE102: 0.1139269796
A103: 52 | B103: 170 | C103: 58 | D103: 164 | E103: 31 | F103: 137 | AF103: 1.813244333e-13 | AG103: 3.935304886e-13 | AH103: 8.455854391e-13 | AI103: 1.798844663e-12 | AJ103: 3.788670911e-12 | AK103: 7.900183159e-12 | AL103: 1.630964439e-11 | AM103: 3.333564626e-11 | AN103: 6.745751228e-11 | AO103: 1.351477496e-10 | AP103: 2.680676277e-10 | AQ103: 5.264255732e-10 | AR103: 1.023497159e-09 | AS103: 1.970123084e-09 | AT103: 3.754543435e-09 | AU103: 7.083990356e-09 | AV103: 1.323292481e-08 | AW103: 2.447320137e-08 | AX103: 4.481080828e-08 | AY103: 8.123287551e-08 | AZ103: 1.457934225e-07 | BA103: 2.590604351e-07 | BB103: 4.557443627e-07 | BC103: 7.937771176e-07 | BD103: 1.368777634e-06 | BE103: 2.336814725e-06 | BF103: 3.949778268e-06 | BG103: 6.609646098e-06 | BH103: 1.095067153e-05 | BI103: 1.796223414e-05 | BJ103: 2.917003898e-05 | BK103: 4.689977085e-05 | BL103: 7.465544478e-05 | BM103: 0.0001176547076 | BN103: 0.0001835752743 | BO103: 0.0002835803393 | BP103: 0.0004337056752 | BQ103: 0.0006567062469 | BR103: 0.0009844739869 | BS103: 0.001461148639 | BT103: 0.002147047269 | BU103: 0.003123531348 | BV103: 0.004498908778 | BW103: 0.006415426899 | BX103: 0.009057346644 | BY103: 0.01265999323 | BZ103: 0.01751955264 | CA103: 0.02400322558 | CB103: 0.0325591648 | CC103: 0.04372541706 | CD103: 0.0581368799 | CE103: 0.07652908754 | CF103: 0.0997374833 | CG103: 0.1286907496 | CH103: 0.1643967816 | CI103: 0.2079200385 | CJ103: 0.260349314 | CK103: 0.3227554495 | CL103: 0.3961391678 | CM103: 0.4813700229 | CN103: 0.5791183855 | CO103: 0.6897833698 | CP103: 0.8134205528 | CQ103: 0.9496741542 | CR103: 1.097718923 | CS103: 1.256217209 | CT103: 1.423296499 | CU103: 1.59655204 | CV103: 1.773077962 | CW103: 1.949528732 | CX103: 2.122210718 | CY103: 2.287201473 | CZ103: 2.440492042 | DA103: 2.578145507 | DB103: 2.69646327 | DC103: 2.792149373 | DD103: 2.862462742 | DE103: 2.905347552 | DF103: 2.919533058 | DG103: 2.904596148 | DH103: 2.860982309 | DI103: 2.78998355 | DJ103: 2.69367483 | DK103: 2.574813331 | DL103: 2.436707415 | DM103: 2.283063947 | DN103: 2.117823789 | DO103: 1.944995602 | DP103: 1.768497623 | DQ103: 1.592015868 | DR103: 1.418885528 | DS103: 1.252000151 | DT103: 1.093750989 | DU103: 0.9459966343 | DV103: 0.810061103 | DW103: 0.6867568847 | DX103: 0.5764283338 | DY103: 0.4790101028 | DZ103: 0.3940951423 | EA103: 0.3210070314 | EB103: 0.2588719911 | EC103: 0.2066867508 | ED103: 0.1633793889 | EE103: 0.1278612517 | EF103: 0.09906897991
A104: 52 | B104: 170 | C104: 58 | D104: 164 | E104: 31 | F104: 137 | AF104: 1.768427175e-13 | AG104: 3.842900368e-13 | AH104: 8.267765024e-13 | AI104: 1.761060112e-12 | AJ104: 3.713789559e-12 | AK104: 7.753851096e-12 | AL104: 1.602782816e-11 | AM104: 3.280114118e-11 | AN104: 6.6459992e-11 | AO104: 1.333179635e-10 | AP104: 2.647732539e-10 | AQ104: 5.206149191e-10 | AR104: 1.013482284e-09 | AS104: 1.953317174e-09 | AT104: 3.72723204e-09 | AU104: 7.041369718e-09 | AV104: 1.31699741e-08 | AW104: 2.43876385e-08 | AX104: 4.471071672e-08 | AY104: 8.115411947e-08 | AZ104: 1.45836611e-07 | BA104: 2.594654953e-07 | BB104: 4.570352692e-07 | BC104: 7.970340488e-07 | BD104: 1.376135152e-06 | BE104: 2.352352265e-06 | BF104: 3.981077961e-06 | BG104: 6.670464268e-06 | BH104: 1.106543514e-05 | BI104: 1.817347538e-05 | BJ104: 2.955047949e-05 | BK104: 4.757164097e-05 | BL104: 7.582087431e-05 | BM104: 0.0001196427809 | BN104: 0.000186913756 | BO104: 0.0002891033245 | BP104: 0.0004427126811 | BQ104: 0.0006711937342 | BR104: 0.001007467117 | BS104: 0.00149716933 | BT104: 0.002202764248 | BU104: 0.003208648703 | BV104: 0.004627360964 | BW104: 0.006606959446 | BX104: 0.009339571663 | BY104: 0.01307101556 | BZ104: 0.01811126395 | CA104: 0.02484535709 | CB104: 0.03374417242 | CC104: 0.04537424118 | CD104: 0.06040557518 | CE104: 0.07961625182 | CF104: 0.1038923302 | CG104: 0.134221566 | CH104: 0.1716793938 | CI104: 0.2174057848 | CJ104: 0.2725718963 | CK104: 0.3383359223 | CL104: 0.4157882393 | CM104: 0.5058867987 | CN104: 0.6093847014 | CO104: 0.7267529493 | CP104: 0.8581023945 | CQ104: 1.003109815 | CR104: 1.160953704 | CS104: 1.330265653 | CT104: 1.509103094 | CU104: 1.694948459 | CV104: 1.884738658 | CW104: 2.074927066 | CX104: 2.261578091 | CY104: 2.440492042 | CZ104: 2.607355557 | DA104: 2.757910553 | DB104: 2.88813274 | DC104: 2.994409405 | DD104: 3.073705552 | DE104: 3.123707788 | DF104: 3.14293641 | DG104: 3.130818153 | DH104: 3.087714573 | DI104: 3.014904132 | DJ104: 2.914519206 | DK104: 2.789442357 | DL104: 2.643168904 | DM104: 2.479644927 | DN104: 2.303091178 | DO104: 2.117823789 | DP104: 1.928082301 | DQ104: 1.737874332 | DR104: 1.550844395 | DS104: 1.370172151 | DT104: 1.198502937 | DU104: 1.037911022 | DV104: 0.8898938407 | DW104: 0.7553936554 | DX104: 0.6348418082 | DY104: 0.5282199044 | DZ104: 0.435132037 | EA104: 0.3548823599 | EB104: 0.2865529081 | EC104: 0.2290774201 | ED104: 0.1813079308 | EE104: 0.142071961 | EF104: 0.1102191363
A105: 52 | B105: 170 | C105: 57 | D105: 165 | E105: 30 | F105: 138 | AE105: 7.769808368e-14 | AF105: 1.707556515e-13 | AG105: 3.715325946e-13 | AH105: 8.003423712e-13 | AI105: 1.706914446e-12 | AJ105: 3.604165735e-12 | AK105: 7.534506437e-12 | AL105: 1.559415757e-11 | AM105: 3.195406271e-11 | AN105: 6.48257132e-11 | AO105: 1.302043755e-10 | AP105: 2.589172046e-10 | AQ105: 5.097453765e-10 | AR105: 9.935797607e-10 | AS105: 1.917384589e-09 | AT105: 3.663302513e-09 | AU105: 6.929364238e-09 | AV105: 1.297690281e-08 | AW105: 2.40605621e-08 | AX105: 4.416696337e-08 | AY105: 8.026872568e-08 | AZ105: 1.444282838e-07 | BA105: 2.572854273e-07 | BB105: 4.537693742e-07 | BC105: 7.923411822e-07 | BD105: 1.369765843e-06 | BE105: 2.34443119e-06 | BF105: 3.972699394e-06 | BG105: 6.664859104e-06 | BH105: 1.107014468e-05 | BI105: 1.820424517e-05 | BJ105: 2.963801476e-05 | BK105: 4.777300934e-05 | BL105: 7.623828954e-05 | BM105: 0.0001204538661 | BN105: 0.0001884193055 | BO105: 0.0002918012238 | BP105: 0.0004474101932 | BQ105: 0.0006791750052 | BR105: 0.001020738676 | BS105: 0.001518813684 | BT105: 0.002237440461 | BU105: 0.003263288937 | BV105: 0.004712123073 | BW105: 0.006736507174 | BX105: 0.009534764776 | BY105: 0.01336110095 | BZ105: 0.01853666334 | CA105: 0.02546114527 | CB105: 0.03462432873 | CC105: 0.04661673418 | CD105: 0.0621383022 | CE105: 0.08200379965 | CF105: 0.1071434494 | CG105: 0.1385971588 | CH105: 0.1775007065 | CI105: 0.2250623762 | CJ105: 0.2825288286 | CK105: 0.3511395053 | CL105: 0.4320695616 | CM105: 0.5263622161 | CN105: 0.6348524449 | CO105: 0.758085066 | CP105: 0.8962313705 | CQ105: 1.04900944 | CR105: 1.215614039 | CS105: 1.394662336 | CT105: 1.584161642 | CU105: 1.781504687 | CV105: 1.983496783 | CW105: 2.186417459 | CX105: 2.386116963 | CY105: 2.578145507 | CZ105: 2.757910553 | DA105: 2.920854905 | DB105: 3.062646315 | DC105: 3.17936774 | DD105: 3.267696672 | DE105: 3.325062121 | DF105: 3.349768902 | DG105: 3.341080846 | DH105: 3.299257236 | DI105: 3.225539958 | DJ105: 3.122092241 | DK105: 2.991893215 | DL105: 2.838595454 | DM105: 2.666355006 | DN105: 2.479644927 | DO105: 2.283063947 | DP105: 2.081151569 | DQ105: 1.87821974 | DR105: 1.678209386 | DS105: 1.484577746 | DT105: 1.300219878 | DU105: 1.127425133 | DV105: 0.9678669897 | DW105: 0.8226227178 | DX105: 0.6922178198 | DY105: 0.5766893173 | DZ105: 0.4756616007 | EA105: 0.388428721 | EB105: 0.314037587 | EC105: 0.2513674178 | ED105: 0.1992018608 | EE105: 0.156291318 | EF105: 0.1214041049 | EG105: 0.09336604103
A106: 52 | B106: 170 | C106: 57 | D106: 165 | E106: 30 | F106: 138 | AE106: 7.418316871e-14 | AF106: 1.632375425e-13 | AG106: 3.556245802e-13 | AH106: 7.670444807e-13 | AI106: 1.637971657e-12 | AJ106: 3.462974322e-12 | AK106: 7.248517889e-12 | AL106: 1.502125484e-11 | AM106: 3.081912243e-11 | AN106: 6.260245683e-11 | AO106: 1.258982061e-10 | AP106: 2.506713856e-10 | AQ106: 4.941366157e-10 | AR106: 9.643759395e-10 | AS106: 1.863385672e-09 | AT106: 3.564644235e-09 | AU106: 6.751288823e-09 | AV106: 1.265943253e-08 | AW106: 2.350167652e-08 | AX106: 4.319569893e-08 | AY106: 7.860301809e-08 | AZ106: 1.416103491e-07 | BA106: 2.525851535e-07 | BB106: 4.46044e-07 | BC106: 7.798384402e-07 | BD106: 1.349859698e-06 | BE106: 2.313287858e-06 | BF106: 3.924892633e-06 | BG106: 6.59299792e-06 | BH106: 1.096465955e-05 | BI106: 1.80536251e-05 | BJ106: 2.943003259e-05 | BK106: 4.749786858e-05 | BL106: 7.589524289e-05 | BM106: 0.0001200637888 | BN106: 0.0001880470774 | BO106: 0.000291593734 | BP106: 0.0004476585067 | BQ106: 0.0006804129193 | BR106: 0.001023894749 | BS106: 0.00152544002 | BT106: 0.002250049181 | BU106: 0.003285836437 | BV106: 0.004750692567 | BW106: 0.006800251381 | BX106: 0.009637182053 | BY106: 0.01352172858 | BZ106: 0.01878327947 | CA106: 0.02583257398 | CB106: 0.03517393837 | CC106: 0.04741670484 | CD106: 0.06328471038 | CE106: 0.08362252538 | CF106: 0.1093968498 | CG106: 0.141691373 | CH106: 0.18169336 | CI106: 0.2306703418 | CJ106: 0.2899355822 | CK106: 0.3608014966 | CL106: 0.4445209141 | CM106: 0.5422169906 | CN106: 0.6548036642 | CO106: 0.7828997149 | CP106: 0.9267406733 | CQ106: 1.086093884 | CR106: 1.260182858 | CS106: 1.447627492 | CT106: 1.646406728 | CU106: 1.853849598 | CV106: 2.066659445 | CW106: 2.280974303 | CX106: 2.492464166 | CY106: 2.69646327 | CZ106: 2.88813274 | DA106: 3.062646315 | DB106: 3.215389558 | DC106: 3.342161281 | DD106: 3.439364982 | DE106: 3.504178188 | DF106: 3.534688557 | DG106: 3.52998761 | DH106: 3.490215665 | DI106: 3.416554878 | DJ106: 3.311170877 | DK106: 3.177107001 | DL106: 3.018138356 | DM106: 2.838595454 | DN106: 2.643168904 | DO106: 2.436707415 | DP106: 2.224021128 | DQ106: 2.009701181 | DR106: 1.797964538 | DS106: 1.592530692 | DT106: 1.396534136 | DU106: 1.212473779 | DV106: 1.04219794 | DW106: 0.8869213722 | DX106: 0.7472692053 | DY106: 0.6233415921 | DZ106: 0.514792465 | EA106: 0.4209158815 | EB106: 0.3407340209 | EC106: 0.273081789 | ED106: 0.2166840956 | EE106: 0.1702230576 | EF106: 0.1323935398 | EG106: 0.1019464849
A107: 52 | B107: 170 | C107: 57 | D107: 165 | E107: 30 | F107: 138 | AE107: 7.012251885e-14 | AF107: 1.544977165e-13 | AG107: 3.370106899e-13 | AH107: 7.278172492e-13 | AI107: 1.556173683e-12 | AJ107: 3.294206685e-12 | AK107: 6.90399832e-12 | AL107: 1.432542664e-11 | AM107: 2.942872917e-11 | AN107: 5.985390729e-11 | AO107: 1.205231739e-10 | AP107: 2.402733861e-10 | AQ107: 4.742396187e-10 | AR107: 9.267168333e-10 | AS107: 1.792888684e-09 | AT107: 3.4341294e-09 | AU107: 6.512339607e-09 | AV107: 1.222684706e-08 | AW107: 2.272735915e-08 | AX107: 4.182544065e-08 | AY107: 7.62059937e-08 | AZ107: 1.374658403e-07 | BA107: 2.455033975e-07 | BB107: 4.340874976e-07 | BC107: 7.598959042e-07 | BD107: 1.317006702e-06 | BE107: 2.2598464e-06 | BF107: 3.839077797e-06 | BG107: 6.457017446e-06 | BH107: 1.075211899e-05 | BI107: 1.772610098e-05 | BJ107: 2.893273114e-05 | BK107: 4.675442269e-05 | BL107: 7.480196756e-05 | BM107: 0.0001184841888 | BN107: 0.0001858081813 | BO107: 0.0002884870487 | BP107: 0.0004434502093 | BQ107: 0.0006748705282 | BR107: 0.001016841158 | BS107: 0.001516850662 | BT107: 0.002240214427 | BU107: 0.003275619207 | BV107: 0.004741920663 | BW107: 0.006796294869 | BX107: 0.009643777861 | BY107: 0.01354812635 | BZ107: 0.01884379337 | CA107: 0.02594863301 | CB107: 0.0353767302 | CC107: 0.04775050294 | CD107: 0.0638109582 | CE107: 0.08442472163 | CF107: 0.1105862328 | CG107: 0.1434133383 | CH107: 0.1841344639 | CI107: 0.2340656444 | CJ107: 0.2945759729 | CK107: 0.3670405297 | CL107: 0.4527805684 | CM107: 0.5529916746 | CN107: 0.6686617194 | CO107: 0.8004816554 | CP107: 0.9487534362 | CQ107: 1.113300477 | CR107: 1.293386977 | CS107: 1.487652948 | CT107: 1.694071851 | CU107: 1.909937167 | CV107: 2.131883113 | CW107: 2.355942864 | CX107: 2.577645406 | CY107: 2.792149373 | CZ107: 2.994409405 | DA107: 3.17936774 | DB107: 3.342161281 | DC107: 3.478332535 | DD107: 3.584031761 | DE107: 3.656197569 | DF107: 3.692704168 | DG107: 3.692465386 | DH107: 3.65548835 | DI107: 3.582873136 | DJ107: 3.476758399 | DK107: 3.340216749 | DL107: 3.177107001 | DM107: 2.991893215 | DN107: 2.789442357 | DO107: 2.574813331 | DP107: 2.353050034 | DQ107: 2.128990041 | DR107: 1.907098625 | DS107: 1.691335371 | DT107: 1.485057827 | DU107: 1.290963768 | DV107: 1.111070963 | DW107: 0.9467309973 | DX107: 0.7986719851 | DY107: 0.6670637806 | DZ107: 0.5515988158 | EA107: 0.4515817112 | EB107: 0.3660213513 | EC107: 0.2937200207 | ED107: 0.2333553357 | EE107: 0.1835519388 | EF107: 0.14294115 | EG107: 0.1102078735
A108: 52 | B108: 170 | C108: 56 | D108: 166 | E108: 29 | F108: 139 | AD108: 2.945162757e-14 | AE108: 6.562460324e-14 | AF108: 1.447708541e-13 | AG108: 3.161932815e-13 | AH108: 6.837245816e-13 | AI108: 1.463749655e-12 | AJ108: 3.102483442e-12 | AK108: 6.510422811e-12 | AL108: 1.352589374e-11 | AM108: 2.782145273e-11 | AN108: 5.665662377e-11 | AO108: 1.142295941e-10 | AP108: 2.280151119e-10 | AQ108: 4.506150414e-10 | AR108: 8.816674192e-10 | AS108: 1.707894169e-09 | AT108: 3.275474134e-09 | AU108: 6.219342124e-09 | AV108: 1.169154153e-08 | AW108: 2.17598632e-08 | AX108: 4.009568154e-08 | AY108: 7.314692848e-08 | AZ108: 1.321148524e-07 | BA108: 2.362458829e-07 | BB108: 4.182480344e-07 | BC108: 7.330956184e-07 | BD108: 1.272167786e-06 | BE108: 2.185673162e-06 | BF108: 3.717774979e-06 | BG108: 6.260918292e-06 | BH108: 1.043878679e-05 | BI108: 1.723134085e-05 | BJ108: 2.816081209e-05 | BK108: 4.556468071e-05 | BL108: 7.299087049e-05 | BM108: 0.0001157619436 | BN108: 0.0001817691315 | BO108: 0.0002825735511 | BP108: 0.000434910549 | BQ108: 0.0006627129078 | BR108: 0.000999788121 | BS108: 0.001493301737 | BT108: 0.002208229583 | BU108: 0.003232942139 | BV108: 0.004686069178 | BW108: 0.00672475574 | BX108: 0.009554355317 | BY108: 0.01343950637 | BZ108: 0.01871639929 | CA108: 0.02580586025 | CB108: 0.03522665741 | CC108: 0.04760818069 | CD108: 0.06370137263 | CE108: 0.08438651481 | CF108: 0.1106762323 | CG108: 0.1437119018 | CH108: 0.1847515805 | CI108: 0.2351476503 | CJ108: 0.2963126411 | CK108: 0.3696721818 | CL108: 0.4566047417 | CM108: 0.5583687687 | CN108: 0.6760189586 | CO108: 0.8103146442 | CP108: 0.961624578 | CQ108: 1.129833577 | CR108: 1.314257472 | CS108: 1.513573403 | CT108: 1.725772624 | CU108: 1.948142489 | CV108: 2.177283176 | CW108: 2.40916292 | CX108: 2.639213225 | CY108: 2.862462742 | CZ108: 3.073705552 | DA108: 3.267696672 | DB108: 3.439364982 | DC108: 3.584031761 | DD108: 3.697621807 | DE108: 3.776853891 | DF108: 3.819398159 | DG108: 3.823989927 | DH108: 3.790492137 | DI108: 3.719902146 | DJ108: 3.614302403 | DK108: 3.476758399 | DL108: 3.311170877 | DM108: 3.122092241 | DN108: 2.914519206 | DO108: 2.69367483 | DP108: 2.464793103 | DQ108: 2.23291827 | DR108: 2.002729244 | DS108: 1.778396958 | DT108: 1.563479638 | DU108: 1.360857989 | DV108: 1.172709492 | DW108: 1.000518512 | DX108: 0.8451170659 | DY108: 0.7067497609 | DZ108: 0.5851558133 | EA108: 0.4796610268 | EB108: 0.3892731029 | EC108: 0.3127745559 | ED108: 0.248808659 | EE108: 0.1959551222 | EF108: 0.1527934739 | EG108: 0.1179532862 | EH108: 0.09015137189
A109: 52 | B109: 170 | C109: 56 | D109: 166 | E109: 29 | F109: 139 | AD109: 2.725371116e-14 | AE109: 6.080410899e-14 | AF109: 1.343065718e-13 | AG109: 2.937099464e-13 | AH109: 6.359121156e-13 | AI109: 1.363115323e-12 | AJ109: 2.892844941e-12 | AK109: 6.078196926e-12 | AL109: 1.264391107e-11 | AM109: 2.604025027e-11 | AN109: 5.309650441e-11 | AO109: 1.071874063e-10 | AP109: 2.142291915e-10 | AQ109: 4.239070027e-10 | AR109: 8.304616618e-10 | AS109: 1.610740729e-09 | AT109: 3.093062873e-09 | AU109: 5.880427646e-09 | AV109: 1.10684327e-08 | AW109: 2.062625591e-08 | AX109: 3.805500032e-08 | AY109: 6.951205269e-08 | AZ109: 1.257087628e-07 | BA109: 2.250754079e-07 | BB109: 3.98976756e-07 | BC109: 7.002033739e-07 | BD109: 1.216628143e-06 | BE109: 2.092900458e-06 | BF109: 3.564481316e-06 | BG109: 6.010369439e-06 | BH109: 1.003374472e-05 | BI109: 1.658372101e-05 | BJ109: 2.713675873e-05 | BK109: 4.396337437e-05 | BL109: 7.05149366e-05 | BM109: 0.0001119768576 | BN109: 0.000176048564 | BO109: 0.0002740272506 | BP109: 0.0004222912422 | BQ109: 0.0006442989914 | BR109: 0.0009732398506 | BS109: 0.001455490484 | BT109: 0.002155042864 | BU109: 0.003159071897 | BV109: 0.004584797543 | BW109: 0.006587761542 | BX109: 0.009371576044 | BY109: 0.01319910403 | BZ109: 0.01840489419 | CA109: 0.02540851325 | CB109: 0.03472819706 | CC109: 0.04699398524 | CD109: 0.06295922453 | CE109: 0.08350904543 | CF109: 0.1096641619 | CG109: 0.1425781527 | CH109: 0.1835262954 | CI109: 0.2338840837 | CJ109: 0.2950938057 | CK109: 0.3686180299 | CL109: 0.4558795482 | CM109: 0.5581882624 | CN109: 0.6766566367 | CO109: 0.8121066127 | CP109: 0.9649722026 | CQ109: 1.13520322 | CR109: 1.322176644 | CS109: 1.524622774 | CT109: 1.740573551 | CU109: 1.967339954 | CV109: 2.20152438 | CW109: 2.439072119 | CX109: 2.675363757 | CY109: 2.905347552 | CZ109: 3.123707788 | DA109: 3.325062121 | DB109: 3.504178188 | DC109: 3.656197569 | DD109: 3.776853891 | DE109: 3.862671438 | DF109: 3.911131404 | DG109: 3.920794693 | DH109: 3.89137291 | DI109: 3.823742656 | DJ109: 3.719902146 | DK109: 3.582873136 | DL109: 3.416554878 | DM109: 3.225539958 | DN109: 3.014904132 | DO109: 2.78998355 | DP109: 2.556152932 | DQ109: 2.318617342 | DR109: 2.082228474 | DS109: 1.851333831 | DT109: 1.62966429 | DU109: 1.420262486 | DV109: 1.225451529 | DW109: 1.04684098 | DX109: 0.8853649961 | DY109: 0.7413461478 | DZ109: 0.6145776719 | EA109: 0.5044168386 | EB109: 0.4098825496 | EC109: 0.329751164 | ED109: 0.2626457035 | EE109: 0.2071148885 | EF109: 0.1616997667 | EG109: 0.1249869074 | EH109: 0.09564817908
A110: 52 | B110: 170 | C110: 55 | D110: 167 | E110: 28 | F110: 140 | AC110: 1.106621082e-14 | AD110: 2.496887948e-14 | AE110: 5.577713745e-14 | AF110: 1.233588881e-13 | AG110: 2.701106608e-13 | AH110: 5.855581901e-13 | AI110: 1.25676897e-12 | AJ110: 2.670532663e-12 | AK110: 5.61820257e-12 | AL110: 1.170183444e-11 | AM110: 2.413056883e-11 | AN110: 4.926497028e-11 | AO110: 9.957858387e-11 | AP110: 1.992740382e-10 | AQ110: 3.948140077e-10 | AR110: 7.744465313e-10 | AS110: 1.503998421e-09 | AT110: 2.891747554e-09 | AU110: 5.504659102e-09 | AV110: 1.037426974e-08 | AW110: 1.935716259e-08 | AX110: 3.575879826e-08 | AY110: 6.540051793e-08 | AZ110: 1.184231245e-07 | BA110: 2.122994643e-07 | BB110: 3.768064569e-07 | BC110: 6.621323845e-07 | BD110: 1.151936071e-06 | BE110: 1.984124782e-06 | BF110: 3.383503579e-06 | BG110: 5.712436089e-06 | BH110: 9.548455387e-06 | BI110: 1.580163215e-05 | BJ110: 2.588974823e-05 | BK110: 4.199627412e-05 | BL110: 6.744515415e-05 | BM110: 0.0001072377755 | BN110: 0.0001688114487 | BO110: 0.0002630952773 | BP110: 0.0004059581483 | BQ110: 0.0006201639663 | BR110: 0.0009379697871 | BS110: 0.001404520963 | BT110: 0.002082210619 | BU110: 0.00305617447 | BV110: 0.004441080907 | BW110: 0.006389344161 | BX110: 0.009100828575 | BY110: 0.01283401792 | BZ110: 0.01791848979 | CA110: 0.02476835828 | CB110: 0.03389612823 | CC110: 0.04592614809 | CD110: 0.06160656649 | CE110: 0.08181841147 | CF110: 0.1075801478 | CG110: 0.1400458634 | CH110: 0.1804951303 | CI110: 0.2303126266 | CJ110: 0.2909558291 | CK110: 0.3639095324 | CL110: 0.4506266335 | CM110: 0.5524555439 | CN110: 0.6705557193 | CO110: 0.8058040784 | CP110: 0.9586964218 | CQ110: 1.12924924 | CR110: 1.316908384 | CS110: 1.520471813 | CT110: 1.738033885 | CU110: 1.966958335 | CV110: 2.203886055 | CW110: 2.444782164 | CX110: 2.685024514 | CY110: 2.919533058 | CZ110: 3.14293641 | DA110: 3.349768902 | DB110: 3.534688557 | DC110: 3.692704168 | DD110: 3.819398159 | DE110: 3.911131404 | DF110: 3.965216782 | DG110: 3.980049917 | DH110: 3.955188237 | DI110: 3.89137291 | DJ110: 3.790492137 | DK110: 3.65548835 | DL110: 3.490215665 | DM110: 3.299257236 | DN110: 3.087714573 | DO110: 2.860982309 | DP110: 2.62452221 | DQ110: 2.383649455 | DR110: 2.143342511 | DS110: 1.908085465 | DT110: 1.681748791 | DU110: 1.467511388 | DV110: 1.267823773 | DW110: 1.084409609 | DX110: 0.9183006225 | DY110: 0.7698984678 | DZ110: 0.6390562508 | EA110: 0.525172255 | EB110: 0.4272888068 | EC110: 0.3441900518 | ED110: 0.274493564 | EE110: 0.2167320175 | EF110: 0.1694224808 | EG110: 0.1311221479 | EH110: 0.1004703992 | EI110: 0.07621794875
A111: 52 | B111: 170 | C111: 55 | D111: 167 | E111: 28 | F111: 140 | AC111: 1.002488755e-14 | AD111: 2.264798207e-14 | AE111: 5.06566622e-14 | AF111: 1.121761895e-13 | AG111: 2.459358565e-13 | AH111: 5.338264339e-13 | AI111: 1.147190004e-12 | AJ111: 2.440774671e-12 | AK111: 5.141348901e-12 | AL111: 1.072219055e-11 | AM111: 2.213844029e-11 | AN111: 4.52551048e-11 | AO111: 9.158939383e-11 | AP111: 1.835184995e-10 | AQ111: 3.640588306e-10 | AR111: 7.150235485e-10 | AS111: 1.390356512e-09 | AT111: 2.676634437e-09 | AU111: 5.101630518e-09 | AV111: 9.626889745e-09 | AW111: 1.798539785e-08 | AX111: 3.326680983e-08 | AY111: 6.091991898e-08 | AZ111: 1.104496983e-07 | BA111: 1.982562128e-07 | BB111: 3.523271679e-07 | BC111: 6.199012543e-07 | BD111: 1.079831401e-06 | BE111: 1.862286286e-06 | BF111: 3.179757446e-06 | BG111: 5.375249111e-06 | BH111: 8.996223868e-06 | BI111: 1.490661269e-05 | BJ111: 2.445427187e-05 | BK111: 3.971801722e-05 | BL111: 6.386713559e-05 | BM111: 0.0001016773861 | BN111: 0.0001602611896 | BO111: 0.0002500860151 | BP111: 0.0003863736549 | BQ111: 0.0005909934409 | BR111: 0.0008949831749 | BS111: 0.001341850512 | BT111: 0.001991821686 | BU111: 0.002927209676 | BV111: 0.004259064947 | BW111: 0.006135242717 | BX111: 0.008749964473 | BY111: 0.01235486163 | BZ111: 0.01727136003 | CA111: 0.02390409158 | CB111: 0.03275480406 | CC111: 0.04443598615 | CD111: 0.05968314428 | CE111: 0.07936437898 | CF111: 0.1044856394 | CG111: 0.1361898189 | CH111: 0.1757477345 | CI111: 0.2245390513 | CJ111: 0.284021415 | CK111: 0.3556864698 | CL111: 0.4410021012 | CM111: 0.5413411329 | CN111: 0.6578978263 | CO111: 0.7915947963 | CP111: 0.9429843062 | CQ111: 1.112149202 | CR111: 1.298609869 | CS111: 1.501244395 | CT111: 1.718229433 | CU111: 1.947009024 | CV111: 2.184297707 | CW111: 2.426122639 | CX111: 2.667907243 | CY111: 2.904596148 | CZ111: 3.130818153 | DA111: 3.341080846 | DB111: 3.52998761 | DC111: 3.692465386 | DD111: 3.823989927 | DE111: 3.920794693 | DF111: 3.980049917 | DG111: 4 | DH111: 3.980049917 | DI111: 3.920794693 | DJ111: 3.823989927 | DK111: 3.692465386 | DL111: 3.52998761 | DM111: 3.341080846 | DN111: 3.130818153 | DO111: 2.904596148 | DP111: 2.667907243 | DQ111: 2.426122639 | DR111: 2.184297707 | DS111: 1.947009024 | DT111: 1.718229433 | DU111: 1.501244395 | DV111: 1.298609869 | DW111: 1.112149202 | DX111: 0.9429843062 | DY111: 0.7915947963 | DZ111: 0.6578978263 | EA111: 0.5413411329 | EB111: 0.4410021012 | EC111: 0.3556864698 | ED111: 0.284021415 | EE111: 0.2245390513 | EF111: 0.1757477345 | EG111: 0.1361898189 | EH111: 0.1044856394 | EI111: 0.07936437898
A112: 52 | B112: 170 | C112: 55 | D112: 167 | E112: 28 | F112: 140 | AC112: 8.991189173e-15 | AD112: 2.033841136e-14 | AE112: 4.554848895e-14 | AF112: 1.009922333e-13 | AG112: 2.216966004e-13 | AH112: 4.81822577e-13 | AI112: 1.036745869e-12 | AJ112: 2.208587128e-12 | AK112: 4.658153704e-12 | AL112: 9.726803625e-12 | AM112: 2.010867877e-11 | AN112: 4.11579732e-11 | AO112: 8.340296281e-11 | AP112: 1.673270031e-10 | AQ112: 3.323591518e-10 | AR112: 6.535913656e-10 | AS112: 1.272512408e-09 | AT112: 2.452871519e-09 | AU112: 4.681064555e-09 | AV112: 8.844463936e-09 | AW112: 1.654456891e-08 | AX112: 3.064054255e-08 | AY112: 5.618165153e-08 | AZ112: 1.01988125e-07 | BA112: 1.83299706e-07 | BB112: 3.261602149e-07 | BC112: 5.745889316e-07 | BD112: 1.002168118e-06 | BE112: 1.730537298e-06 | BF112: 2.958546509e-06 | BG112: 5.007637615e-06 | BH112: 8.391593545e-06 | BI112: 1.392236587e-05 | BJ112: 2.286855377e-05 | BK112: 3.718959193e-05 | BL112: 5.987715829e-05 | BM112: 9.544605969e-05 | BN112: 0.0001506301409 | BO112: 0.0002353546677 | BP112: 0.0003640749551 | BQ112: 0.0005575911196 | BR112: 0.0008454695044 | BS112: 0.001269220569 | BT112: 0.00188639793 | BU112: 0.002775789801 | BV112: 0.004043867297 | BW112: 0.005832627893 | BX112: 0.008328920189 | BY112: 0.01177525134 | BZ112: 0.01648195508 | CA112: 0.02284043243 | CB112: 0.03133696791 | CC112: 0.04256637619 | CD112: 0.05724445699 | CE112: 0.07621794875 | CF112: 0.1004703992 | CG112: 0.1311221479 | CH112: 0.1694224808 | CI112: 0.2167320175 | CJ112: 0.274493564 | CK112: 0.3441900518 | CL112: 0.4272888068 | CM112: 0.525172255 | CN112: 0.6390562508 | CO112: 0.7698984678 | CP112: 0.9183006225 | CQ112: 1.084409609 | CR112: 1.267823773 | CS112: 1.467511388 | CT112: 1.681748791 | CU112: 1.908085465 | CV112: 2.143342511 | CW112: 2.383649455 | CX112: 2.62452221 | CY112: 2.860982309 | CZ112: 3.087714573 | DA112: 3.299257236 | DB112: 3.490215665 | DC112: 3.65548835 | DD112: 3.790492137 | DE112: 3.89137291 | DF112: 3.955188237 | DG112: 3.980049917 | DH112: 3.965216782 | DI112: 3.911131404 | DJ112: 3.819398159 | DK112: 3.692704168 | DL112: 3.534688557 | DM112: 3.349768902 | DN112: 3.14293641 | DO112: 2.919533058 | DP112: 2.685024514 | DQ112: 2.444782164 | DR112: 2.203886055 | DS112: 1.966958335 | DT112: 1.738033885 | DU112: 1.520471813 | DV112: 1.316908384 | DW112: 1.12924924 | DX112: 0.9586964218 | DY112: 0.8058040784 | DZ112: 0.6705557193 | EA112: 0.5524555439 | EB112: 0.4506266335 | EC112: 0.3639095324 | ED112: 0.2909558291 | EE112: 0.2303126266 | EF112: 0.1804951303 | EG112: 0.1400458634 | EH112: 0.1075801478 | EI112: 0.08181841147
A113: 52 | B113: 170 | C113: 54 | D113: 168 | E113: 27 | F113: 141 | AB113: 3.489949078e-15 | AC113: 7.983839835e-15 | AD113: 1.808263003e-14 | AE113: 4.054790617e-14 | AF113: 9.001861444e-14 | AG113: 1.978578431e-13 | AH113: 4.305576123e-13 | AI113: 9.27611937e-13 | AJ113: 1.978601986e-12 | AK113: 4.178376861e-12 | AL113: 8.736024234e-12 | AM113: 1.808327586e-11 | AN113: 3.705931949e-11 | AO113: 7.519255256e-11 | AP113: 1.510460147e-10 | AQ113: 3.004005817e-10 | AR113: 5.914926096e-10 | AS113: 1.153068031e-09 | AT113: 2.225448738e-09 | AU113: 4.252431376e-09 | AV113: 8.044778445e-09 | AW113: 1.506773305e-08 | AX113: 2.794079776e-08 | AY113: 5.129638278e-08 | AZ113: 9.323773962e-08 | BA113: 1.677852527e-07 | BB113: 2.989323329e-07 | BC113: 5.272894133e-07 | BD113: 9.208359528e-07 | BE113: 1.59210805e-06 | BF113: 2.725334814e-06 | BG113: 4.618747761e-06 | BH113: 7.749714109e-06 | BI113: 1.287372337e-05 | BJ113: 2.117286944e-05 | BK113: 3.447563875e-05 | BL113: 5.557788021e-05 | BM113: 8.870512058e-05 | BN113: 0.0001401691559 | BO113: 0.0002192871991 | BP113: 0.0003396496397 | BQ113: 0.0005208421118 | BR113: 0.0007907479582 | BS113: 0.001188576454 | BT113: 0.001768777564 | BU113: 0.00260601178 | BV113: 0.003801338843 | BW113: 0.00548976618 | BX113: 0.007849250088 | BY113: 0.01111116357 | BZ113: 0.0155721282 | CA113: 0.02160694941 | CB113: 0.02968219371 | CC113: 0.04036970633 | CD113: 0.05435909783 | CE113: 0.07246794496 | CF113: 0.09564817908 | CG113: 0.1249869074 | CH113: 0.1616997667 | CI113: 0.2071148885 | CJ113: 0.2626457035 | CK113: 0.329751164 | CL113: 0.4098825496 | CM113: 0.5044168386 | CN113: 0.6145776719 | CO113: 0.7413461478 | CP113: 0.8853649961 | CQ113: 1.04684098 | CR113: 1.225451529 | CS113: 1.420262486 | CT113: 1.62966429 | CU113: 1.851333831 | CV113: 2.082228474 | CW113: 2.318617342 | CX113: 2.556152932 | CY113: 2.78998355 | CZ113: 3.014904132 | DA113: 3.225539958 | DB113: 3.416554878 | DC113: 3.582873136 | DD113: 3.719902146 | DE113: 3.823742656 | DF113: 3.89137291 | DG113: 3.920794693 | DH113: 3.911131404 | DI113: 3.862671438 | DJ113: 3.776853891 | DK113: 3.656197569 | DL113: 3.504178188 | DM113: 3.325062121 | DN113: 3.123707788 | DO113: 2.905347552 | DP113: 2.675363757 | DQ113: 2.439072119 | DR113: 2.20152438 | DS113: 1.967339954 | DT113: 1.740573551 | DU113: 1.524622774 | DV113: 1.322176644 | DW113: 1.13520322 | DX113: 0.9649722026 | DY113: 0.8121066127 | DZ113: 0.6766566367 | EA113: 0.5581882624 | EB113: 0.4558795482 | EC113: 0.3686180299 | ED113: 0.2950938057 | EE113: 0.2338840837 | EF113: 0.1835262954 | EG113: 0.1425781527 | EH113: 0.1096641619 | EI113: 0.08350904543 | EJ113: 0.06295922453
A114: 52 | B114: 170 | C114: 54 | D114: 168 | E114: 27 | F114: 141 | AB114: 3.064227015e-15 | AC114: 7.01881106e-15 | AD114: 1.59170735e-14 | AE114: 3.573715261e-14 | AF114: 7.943899241e-14 | AG114: 1.748254128e-13 | AH114: 3.8091884e-13 | AI114: 8.217077799e-13 | AJ114: 1.754928391e-12 | AK114: 3.710722316e-12 | AL114: 7.768095702e-12 | AM114: 1.610006888e-11 | AN114: 3.303679859e-11 | AO114: 6.711587129e-11 | AP114: 1.349924765e-10 | AQ114: 2.688134235e-10 | AR114: 5.299676913e-10 | AS114: 1.034439015e-09 | AT114: 1.999021406e-09 | AU114: 3.824609088e-09 | AV114: 7.244588395e-09 | AW114: 1.358618219e-08 | AX114: 2.522540849e-08 | AY114: 4.636988688e-08 | AZ114: 8.438998706e-08 | BA114: 1.520557541e-07 | BB114: 2.712513158e-07 | BC114: 4.790688168e-07 | BD114: 8.376855185e-07 | BE114: 1.450177516e-06 | BF114: 2.485526412e-06 | BG114: 4.217670544e-06 | BH114: 7.085719855e-06 | BI114: 1.178561794e-05 | BJ114: 1.940786641e-05 | BK114: 3.16417347e-05 | BL114: 5.107399516e-05 | BM114: 8.161997026e-05 | BN114: 0.0001291368203 | BO114: 0.0002022836588 | BP114: 0.0003137101476 | BQ114: 0.0004816742047 | BR114: 0.0007322093429 | BS114: 0.001101981233 | BT114: 0.001641988783 | BU114: 0.002422273782 | BV114: 0.003537800398 | BW114: 0.005115645948 | BX114: 0.00732360121 | BY114: 0.01038020549 | BZ114: 0.01456613296 | CA114: 0.02023669767 | CB114: 0.02783505427 | CC114: 0.03790544125 | CD114: 0.05110555345 | CE114: 0.06821685455 | CF114: 0.09015137189 | CG114: 0.1179532862 | CH114: 0.1527934739 | CI114: 0.1959551222 | CJ114: 0.248808659 | CK114: 0.3127745559 | CL114: 0.3892731029 | CM114: 0.4796610268 | CN114: 0.5851558133 | CO114: 0.7067497609 | CP114: 0.8451170659 | CQ114: 1.000518512 | CR114: 1.172709492 | CS114: 1.360857989 | CT114: 1.563479638 | CU114: 1.778396958 | CV114: 2.002729244 | CW114: 2.23291827 | CX114: 2.464793103 | CY114: 2.69367483 | CZ114: 2.914519206 | DA114: 3.122092241 | DB114: 3.311170877 | DC114: 3.476758399 | DD114: 3.614302403 | DE114: 3.719902146 | DF114: 3.790492137 | DG114: 3.823989927 | DH114: 3.819398159 | DI114: 3.776853891 | DJ114: 3.697621807 | DK114: 3.584031761 | DL114: 3.439364982 | DM114: 3.267696672 | DN114: 3.073705552 | DO114: 2.862462742 | DP114: 2.639213225 | DQ114: 2.40916292 | DR114: 2.177283176 | DS114: 1.948142489 | DT114: 1.725772624 | DU114: 1.513573403 | DV114: 1.314257472 | DW114: 1.129833577 | DX114: 0.961624578 | DY114: 0.8103146442 | DZ114: 0.6760189586 | EA114: 0.5583687687 | EB114: 0.4566047417 | EC114: 0.3696721818 | ED114: 0.2963126411 | EE114: 0.2351476503 | EF114: 0.1847515805 | EG114: 0.1437119018 | EH114: 0.1106762323 | EI114: 0.08438651481 | EJ114: 0.06370137263
A115: 52 | B115: 170 | C115: 54 | D115: 168 | E115: 27 | F115: 141 | AB115: 2.66366644e-15 | AC115: 6.109031195e-15 | AD115: 1.387145131e-14 | AE115: 3.118376263e-14 | AF115: 6.9405228e-14 | AG115: 1.529371207e-13 | AH115: 3.336496621e-13 | AI115: 7.206518805e-13 | AJ115: 1.541052429e-12 | AK115: 3.262618989e-12 | AL115: 6.83868122e-12 | AM115: 1.419173246e-11 | AN115: 2.915785193e-11 | AO115: 5.931065117e-11 | AP115: 1.194447081e-10 | AQ115: 2.381541696e-10 | AR115: 4.701176116e-10 | AS115: 9.18780793e-10 | AT115: 1.777764991e-09 | AU115: 3.405601642e-09 | AV115: 6.459076062e-09 | AW115: 1.212841381e-08 | AX115: 2.254730651e-08 | AY115: 4.149945436e-08 | AZ115: 7.562182594e-08 | BA115: 1.364297199e-07 | BB115: 2.436844803e-07 | BC115: 4.309271026e-07 | BD115: 7.544610141e-07 | BE115: 1.307756393e-06 | BF115: 2.244264066e-06 | BG115: 3.813099298e-06 | BH115: 6.414153211e-06 | BI115: 1.068212361e-05 | BJ115: 1.761298332e-05 | BK115: 2.875181754e-05 | BL115: 4.646808111e-05 | BM115: 7.435346789e-05 | BN115: 0.0001177890108 | BO115: 0.0001847418869 | BP115: 0.0002868686113 | BQ115: 0.0004410194487 | BR115: 0.0006712580519 | BS115: 0.00101152898 | BT115: 0.001509121499 | BU115: 0.00222908761 | BV115: 0.003259771247 | BW115: 0.004719588855 | BX115: 0.006765162987 | BY115: 0.009600844077 | BZ115: 0.01348955503 | CA115: 0.01876475451 | CB115: 0.02584313552 | CC115: 0.03523745857 | CD115: 0.04756866975 | CE115: 0.06357618886 | CF115: 0.08412499063 | CG115: 0.1102078735 | CH115: 0.14294115 | CI115: 0.1835519388 | CJ115: 0.2333553357 | CK115: 0.2937200207 | CL115: 0.3660213513 | CM115: 0.4515817112 | CN115: 0.5515988158 | CO115: 0.6670637806 | CP115: 0.7986719851 | CQ115: 0.9467309973 | CR115: 1.111070963 | CS115: 1.290963768 | CT115: 1.485057827 | CU115: 1.691335371 | CV115: 1.907098625 | CW115: 2.128990041 | CX115: 2.353050034 | CY115: 2.574813331 | CZ115: 2.789442357 | DA115: 2.991893215 | DB115: 3.177107001 | DC115: 3.340216749 | DD115: 3.476758399 | DE115: 3.582873136 | DF115: 3.65548835 | DG115: 3.692465386 | DH115: 3.692704168 | DI115: 3.656197569 | DJ115: 3.584031761 | DK115: 3.478332535 | DL115: 3.342161281 | DM115: 3.17936774 | DN115: 2.994409405 | DO115: 2.792149373 | DP115: 2.577645406 | DQ115: 2.355942864 | DR115: 2.131883113 | DS115: 1.909937167 | DT115: 1.694071851 | DU115: 1.487652948 | DV115: 1.293386977 | DW115: 1.113300477 | DX115: 0.9487534362 | DY115: 0.8004816554 | DZ115: 0.6686617194 | EA115: 0.5529916746 | EB115: 0.4527805684 | EC115: 0.3670405297 | ED115: 0.2945759729 | EE115: 0.2340656444 | EF115: 0.1841344639 | EG115: 0.1434133383 | EH115: 0.1105862328 | EI115: 0.08442472163 | EJ115: 0.0638109582
A116: 52 | B116: 170 | C116: 54 | D116: 168 | E116: 27 | F116: 141 | AB116: 2.292428485e-15 | AC116: 5.264270403e-15 | AD116: 1.196844248e-14 | AE116: 2.693978592e-14 | AF116: 6.003544009e-14 | AG116: 1.324580362e-13 | AH116: 2.893383369e-13 | AI116: 6.257353705e-13 | AJ116: 1.339776895e-12 | AK116: 2.840084869e-12 | AL116: 5.96056197e-12 | AM116: 1.23851181e-11 | AN116: 2.547828269e-11 | AO116: 5.189161736e-11 | AP116: 1.046360453e-10 | AQ116: 2.088923244e-10 | AR116: 4.12877012e-10 | AS116: 8.079341749e-10 | AT116: 1.565266569e-09 | AU116: 3.002324953e-09 | AV116: 5.701434469e-09 | AW116: 1.071932981e-08 | AX116: 1.99529992e-08 | AY116: 3.677102972e-08 | AZ116: 6.709041122e-08 | BA116: 1.211915028e-07 | BB116: 2.167409354e-07 | BC116: 3.837662433e-07 | BD116: 6.727437219e-07 | BE116: 1.167587916e-06 | BF116: 2.00625709e-06 | BG116: 3.413034142e-06 | BH116: 5.748462945e-06 | BI116: 9.585613079e-06 | BJ116: 1.582505065e-05 | BK116: 2.58658871e-05 | BL116: 4.185686542e-05 | BM116: 6.705992773e-05 | BN116: 0.0001063693525 | BO116: 0.0001670425093 | BP116: 0.0002597135151 | BQ116: 0.0003997782386 | BR116: 0.0006092573897 | BS116: 0.0009192624404 | BT116: 0.001373204701 | BU116: 0.002030897955 | BV116: 0.002973705652 | BW116: 0.004310869832 | BX116: 0.006187125077 | BY116: 0.008791640828 | BZ116: 0.0123682437 | CA116: 0.01722674344 | CB116: 0.02375501958 | CC116: 0.03243132221 | CD116: 0.04383600547 | CE116: 0.05866165954 | CF116: 0.07772035449 | CG116: 0.1019464849 | CH116: 0.1323935398 | CI116: 0.1702230576 | CJ116: 0.2166840956 | CK116: 0.273081789 | CL116: 0.3407340209 | CM116: 0.4209158815 | CN116: 0.514792465 | CO116: 0.6233415921 | CP116: 0.7472692053 | CQ116: 0.8869213722 | CR116: 1.04219794 | CS116: 1.212473779 | CT116: 1.396534136 | CU116: 1.592530692 | CV116: 1.797964538 | CW116: 2.009701181 | CX116: 2.224021128 | CY116: 2.436707415 | CZ116: 2.643168904 | DA116: 2.838595454 | DB116: 3.018138356 | DC116: 3.177107001 | DD116: 3.311170877 | DE116: 3.416554878 | DF116: 3.490215665 | DG116: 3.52998761 | DH116: 3.534688557 | DI116: 3.504178188 | DJ116: 3.439364982 | DK116: 3.342161281 | DL116: 3.215389558 | DM116: 3.062646315 | DN116: 2.88813274 | DO116: 2.69646327 | DP116: 2.492464166 | DQ116: 2.280974303 | DR116: 2.066659445 | DS116: 1.853849598 | DT116: 1.646406728 | DU116: 1.447627492 | DV116: 1.260182858 | DW116: 1.086093884 | DX116: 0.9267406733 | DY116: 0.7828997149 | DZ116: 0.6548036642 | EA116: 0.5422169906 | EB116: 0.4445209141 | EC116: 0.3608014966 | ED116: 0.2899355822 | EE116: 0.2306703418 | EF116: 0.18169336 | EG116: 0.141691373 | EH116: 0.1093968498 | EI116: 0.08362252538 | EJ116: 0.06328471038
A117: 52 | B117: 170 | C117: 53 | D117: 169 | E117: 26 | F117: 142 | AA117: 8.410727876e-16 | AB117: 1.953299364e-15 | AC117: 4.491186506e-15 | AD117: 1.022375486e-14 | AE117: 2.304182213e-14 | AF117: 5.141386669e-14 | AG117: 1.135797137e-13 | AH117: 2.484152925e-13 | AI117: 5.37914115e-13 | AJ117: 1.153199933e-12 | AK117: 2.447672632e-12 | AL117: 5.143504338e-12 | AM117: 1.070094037e-11 | AN117: 2.204153484e-11 | AO117: 4.494886988e-11 | AP117: 9.075128355e-11 | AQ117: 1.81402735e-10 | AR117: 3.589979265e-10 | AS117: 7.033914824e-10 | AT117: 1.364455339e-09 | AU117: 2.620466427e-09 | AV117: 4.982587456e-09 | AW117: 9.379686344e-09 | AX117: 1.748150249e-08 | AY117: 3.225716921e-08 | AZ117: 5.892923502e-08 | BA117: 1.065840969e-07 | BB117: 1.908583087e-07 | BC117: 3.383660547e-07 | BD117: 5.939085252e-07 | BE117: 1.032070551e-06 | BF117: 1.775645514e-06 | BG117: 3.024546081e-06 | BH117: 5.100599197e-06 | BI117: 8.516070456e-06 | BJ117: 1.407713737e-05 | BK117: 2.303809192e-05 | BL117: 3.732808582e-05 | BM117: 5.988002711e-05 | BN117: 9.510104997e-05 | BO117: 0.0001495359763 | BP117: 0.000232789359 | BQ117: 0.0003587877558 | BR117: 0.0005474811337 | BS117: 0.0008270994983 | BT117: 0.001237096027 | BU117: 0.001831918388 | BV117: 0.002685751871 | BW117: 0.003898366866 | BX117: 0.005602173856 | BY117: 0.007970535731 | BZ117: 0.01122730443 | CA117: 0.0156574322 | CB117: 0.02161835458 | CC117: 0.02955165358 | CD117: 0.0399942902 | CE117: 0.05358845734 | CF117: 0.07108886362 | CG117: 0.09336604103 | CH117: 0.1214041049 | CI117: 0.156291318 | CJ117: 0.1992018608 | CK117: 0.2513674178 | CL117: 0.314037587 | CM117: 0.388428721 | CN117: 0.4756616007 | CO117: 0.5766893173 | CP117: 0.6922178198 | CQ117: 0.8226227178 | CR117: 0.9678669897 | CS117: 1.127425133 | CT117: 1.300219878 | CU117: 1.484577746 | CV117: 1.678209386 | CW117: 1.87821974 | CX117: 2.081151569 | CY117: 2.283063947 | CZ117: 2.479644927 | DA117: 2.666355006 | DB117: 2.838595454 | DC117: 2.991893215 | DD117: 3.122092241 | DE117: 3.225539958 | DF117: 3.299257236 | DG117: 3.341080846 | DH117: 3.349768902 | DI117: 3.325062121 | DJ117: 3.267696672 | DK117: 3.17936774 | DL117: 3.062646315 | DM117: 2.920854905 | DN117: 2.757910553 | DO117: 2.578145507 | DP117: 2.386116963 | DQ117: 2.186417459 | DR117: 1.983496783 | DS117: 1.781504687 | DT117: 1.584161642 | DU117: 1.394662336 | DV117: 1.215614039 | DW117: 1.04900944 | DX117: 0.8962313705 | DY117: 0.758085066 | DZ117: 0.6348524449 | EA117: 0.5263622161 | EB117: 0.4320695616 | EC117: 0.3511395053 | ED117: 0.2825288286 | EE117: 0.2250623762 | EF117: 0.1775007065 | EG117: 0.1385971588 | EH117: 0.1071434494 | EI117: 0.08200379965 | EJ117: 0.0621383022 | EK117: 0.04661673418
A118: 52 | B118: 170 | C118: 53 | D118: 169 | E118: 26 | F118: 142 | AA118: 7.086205788e-16 | AB118: 1.647778668e-15 | AC118: 3.793508373e-15 | AD118: 8.646498553e-15 | AE118: 1.95117649e-14 | AF118: 4.359231076e-14 | AG118: 9.642292074e-14 | AH118: 2.111580921e-13 | AI118: 4.578173333e-13 | AJ118: 9.827290371e-13 | AK118: 2.088490004e-12 | AL118: 4.394283461e-12 | AM118: 9.15378676e-12 | AN118: 1.88786341e-11 | AO118: 3.854760519e-11 | AP118: 7.792580376e-11 | AQ118: 1.559632347e-10 | AR118: 3.090439404e-10 | AS118: 6.06282854e-10 | AT118: 1.177571796e-09 | AU118: 2.264417797e-09 | AV118: 4.311047211e-09 | AW118: 8.125798589e-09 | AX118: 1.516374188e-08 | AY118: 2.801584771e-08 | AZ118: 5.124579184e-08 | BA118: 9.280464278e-08 | BB118: 1.663942267e-07 | BC118: 2.953682837e-07 | BD118: 5.19094611e-07 | BE118: 9.032047986e-07 | BF118: 1.555904753e-06 | BG118: 2.653608403e-06 | BH118: 4.480719067e-06 | BI118: 7.490583541e-06 | BJ118: 1.239768632e-05 | BK118: 2.031527432e-05 | BL118: 3.295807162e-05 | BM118: 5.293683239e-05 | BN118: 8.418043454e-05 | BO118: 0.0001325322073 | BP118: 0.0002065802288 | BQ118: 0.0003187961972 | BR118: 0.0004870735716 | BS118: 0.0007367719005 | BT118: 0.001103388867 | BU118: 0.001635992079 | BV118: 0.002401545674 | BW118: 0.003490258231 | BX118: 0.005022053378 | BY118: 0.007154217577 | BZ118: 0.01009020567 | CA118: 0.01408947948 | CB118: 0.01947811537 | CC118: 0.02665974396 | CD118: 0.03612618235 | CE118: 0.04846689752 | CF118: 0.06437621315 | CG118: 0.08465696356 | CH118: 0.1102191363 | CI118: 0.142071961 | CJ118: 0.1813079308 | CK118: 0.2290774201 | CL118: 0.2865529081 | CM118: 0.3548823599 | CN118: 0.435132037 | CO118: 0.5282199044 | CP118: 0.6348418082 | CQ118: 0.7553936554 | CR118: 0.8898938407 | CS118: 1.037911022 | CT118: 1.198502937 | CU118: 1.370172151 | CV118: 1.550844395 | CW118: 1.737874332 | CX118: 1.928082301 | CY118: 2.117823789 | CZ118: 2.303091178 | DA118: 2.479644927 | DB118: 2.643168904 | DC118: 2.789442357 | DD118: 2.914519206 | DE118: 3.014904132 | DF118: 3.087714573 | DG118: 3.130818153 | DH118: 3.14293641 | DI118: 3.123707788 | DJ118: 3.073705552 | DK118: 2.994409405 | DL118: 2.88813274 | DM118: 2.757910553 | DN118: 2.607355557 | DO118: 2.440492042 | DP118: 2.261578091 | DQ118: 2.074927066 | DR118: 1.884738658 | DS118: 1.694948459 | DT118: 1.509103094 | DU118: 1.330265653 | DV118: 1.160953704 | DW118: 1.003109815 | DX118: 0.8581023945 | DY118: 0.7267529493 | DZ118: 0.6093847014 | EA118: 0.5058867987 | EB118: 0.4157882393 | EC118: 0.3383359223 | ED118: 0.2725718963 | EE118: 0.2174057848 | EF118: 0.1716793938 | EG118: 0.134221566 | EH118: 0.1038923302 | EI118: 0.07961625182 | EJ118: 0.06040557518 | EK118: 0.04537424118
A119: 52 | B119: 170 | C119: 53 | D119: 169 | E119: 26 | F119: 142 | AA119: 5.910864368e-16 | AB119: 1.376214086e-15 | AC119: 3.172327813e-15 | AD119: 7.239810085e-15 | AE119: 1.635811829e-14 | AF119: 3.659287817e-14 | AG119: 8.104325031e-14 | AH119: 1.777027654e-13 | AI119: 3.857701123e-13 | AJ119: 8.291250255e-13 | AK119: 1.76428412e-12 | AL119: 3.716841843e-12 | AM119: 7.752409292e-12 | AN119: 1.600871085e-11 | AO119: 3.272902611e-11 | AP119: 6.624709821e-11 | AQ119: 1.327570803e-10 | AR119: 2.633938195e-10 | AS119: 5.17381056e-10 | AT119: 1.00617268e-09 | AU119: 1.937276339e-09 | AV119: 3.692901148e-09 | AW119: 6.969487543e-09 | AX119: 1.302240101e-08 | AY119: 2.409008536e-08 | AZ119: 4.412072782e-08 | BA119: 8.000259098e-08 | BB119: 1.436225032e-07 | BC119: 2.552689468e-07 | BD119: 4.491904727e-07 | BE119: 7.825644975e-07 | BF119: 1.34979185e-06 | BG119: 2.30499781e-06 | BH119: 3.897007913e-06 | BI119: 6.523026057e-06 | BJ119: 1.080995769e-05 | BK119: 1.773601022e-05 | BL119: 2.881011035e-05 | BM119: 4.633305837e-05 | BN119: 7.377242676e-05 | BO119: 0.0001162931748 | BP119: 0.0001814978308 | BQ119: 0.0002804437114 | BR119: 0.000429019496 | BS119: 0.0006497786028 | BT119: 0.0009743406876 | BU119: 0.001446482976 | BV119: 0.002126047042 | BW119: 0.003093780288 | BX119: 0.004457210259 | BY119: 0.006357609224 | BZ119: 0.008978041199 | CA119: 0.01255238968 | CB119: 0.01737513898 | CC119: 0.02381152533 | CD119: 0.0323074887 | CE119: 0.04339865207 | CF119: 0.05771734374 | CG119: 0.07599648154 | CH119: 0.09906897991 | CI119: 0.1278612517 | CJ119: 0.1633793889 | CK119: 0.2066867508 | CL119: 0.2588719911 | CM119: 0.3210070314 | CN119: 0.3940951423 | CO119: 0.4790101028 | CP119: 0.5764283338 | CQ119: 0.6867568847 | CR119: 0.810061103 | CS119: 0.9459966343 | CT119: 1.093750989 | CU119: 1.252000151 | CV119: 1.418885528 | CW119: 1.592015868 | CX119: 1.768497623 | CY119: 1.944995602 | CZ119: 2.117823789 | DA119: 2.283063947 | DB119: 2.436707415 | DC119: 2.574813331 | DD119: 2.69367483 | DE119: 2.78998355 | DF119: 2.860982309 | DG119: 2.904596148 | DH119: 2.919533058 | DI119: 2.905347552 | DJ119: 2.862462742 | DK119: 2.792149373 | DL119: 2.69646327 | DM119: 2.578145507 | DN119: 2.440492042 | DO119: 2.287201473 | DP119: 2.122210718 | DQ119: 1.949528732 | DR119: 1.773077962 | DS119: 1.59655204 | DT119: 1.423296499 | DU119: 1.256217209 | DV119: 1.097718923 | DW119: 0.9496741542 | DX119: 0.8134205528 | DY119: 0.6897833698 | DZ119: 0.5791183855 | EA119: 0.4813700229 | EB119: 0.3961391678 | EC119: 0.3227554495 | ED119: 0.260349314 | EE119: 0.2079200385 | EF119: 0.1643967816 | EG119: 0.1286907496 | EH119: 0.0997374833 | EI119: 0.07652908754 | EJ119: 0.0581368799 | EK119: 0.04372541706
A120: 53 | B120: 169 | C120: 53 | D120: 169 | E120: 26 | F120: 142 | AA120: 4.881409959e-16 | AB120: 1.137968333e-15 | AC120: 2.626468072e-15 | AD120: 6.001656426e-15 | AE120: 1.357773066e-14 | AF120: 3.041167242e-14 | AG120: 6.743889934e-14 | AH120: 1.480599841e-13 | AI120: 3.218266308e-13 | AJ120: 6.925694237e-13 | AK120: 1.475576413e-12 | AL120: 3.11255583e-12 | AM120: 6.500243877e-12 | AN120: 1.343999809e-11 | AO120: 2.751223156e-11 | AP120: 5.57582949e-11 | AQ120: 1.118794199e-10 | AR120: 2.222531796e-10 | AS120: 4.371221509e-10 | AT120: 8.511668515e-10 | AU120: 1.640905777e-09 | AV120: 3.131912654e-09 | AW120: 5.918241651e-09 | AX120: 1.107217145e-08 | AY120: 2.050831432e-08 | AZ120: 3.760834162e-08 | BA120: 6.828030565e-08 | BB120: 1.227336882e-07 | BC120: 2.184183735e-07 | BD120: 3.848323809e-07 | BE120: 6.712914283e-07 | BF120: 1.15933154e-06 | BG120: 1.982262912e-06 | BH120: 3.355613362e-06 | BI120: 5.623926419e-06 | BJ120: 9.33177803e-06 | BK120: 1.533014367e-05 | BL120: 2.493360674e-05 | BM120: 4.014958318e-05 | BN120: 6.400796673e-05 | BO120: 0.0001010285402 | BP120: 0.0001578742057 | BQ120: 0.0002442504288 | BR120: 0.0003741248419 | BS120: 0.0005673549038 | BT120: 0.0008518245152 | BU120: 0.001266200591 | BV120: 0.001863425112 | BW120: 0.002715053747 | BX120: 0.003916534656 | BY120: 0.005593486207 | BZ120: 0.007908975394 | CA120: 0.01107171588 | CB120: 0.01534499304 | CC120: 0.02105598265 | CD120: 0.02860496283 | CE120: 0.03847373209 | CF120: 0.05123235275 | CG120: 0.06754315447 | CH120: 0.08816078204 | CI120: 0.1139269796 | CJ120: 0.1457588013 | CK120: 0.1846290555 | CL120: 0.2315380456 | CM120: 0.2874760927 | CN120: 0.3533769018 | CO120: 0.4300625636 | CP120: 0.5181818237 | CQ120: 0.6181441537 | CR120: 0.7300530375 | CS120: 0.8536426663 | CT120: 0.9882228012 | CU120: 1.132636836 | CV120: 1.285237973 | CW120: 1.443887879 | CX120: 1.605981166 | CY120: 1.768497623 | CZ120: 1.928082301 | DA120: 2.081151569 | DB120: 2.224021128 | DC120: 2.353050034 | DD120: 2.464793103 | DE120: 2.556152932 | DF120: 2.62452221 | DG120: 2.667907243 | DH120: 2.685024514 | DI120: 2.675363757 | DJ120: 2.639213225 | DK120: 2.577645406 | DL120: 2.492464166 | DM120: 2.386116963 | DN120: 2.261578091 | DO120: 2.122210718 | DP120: 1.971616636 | DQ120: 1.813483046 | DR120: 1.651435365 | DS120: 1.488904068 | DT120: 1.329012017 | DU120: 1.174486838 | DV120: 1.027600852 | DW120: 0.8901389655 | DX120: 0.7633930898 | DY120: 0.6481800971 | DZ120: 0.5448791802 | EA120: 0.4534838148 | EB120: 0.373663282 | EC120: 0.304828881 | ED120: 0.2462004571 | EE120: 0.1968695974 | EF120: 0.1558567107 | EG120: 0.12216011 | EH120: 0.09479607999 | EI120: 0.07282967932 | EJ120: 0.05539664609 | EK120: 0.04171724318
A121: 53 | B121: 169 | C121: 53 | D121: 169 | E121: 26 | F121: 142 | AA121: 3.99113692e-16 | AB121: 9.316041399e-16 | AC121: 2.152896977e-15 | AD121: 4.925747449e-15 | AE121: 1.115778759e-14 | AF121: 2.502309894e-14 | AG121: 5.555986118e-14 | AH121: 1.221344739e-13 | AI121: 2.658106853e-13 | AJ121: 5.72748103e-13 | AK121: 1.221833248e-12 | AL121: 2.580579682e-12 | AM121: 5.396095951e-12 | AN121: 1.117118152e-11 | AO121: 2.289684313e-11 | AP121: 4.646320504e-11 | AQ121: 9.334687313e-11 | AR121: 1.856724383e-10 | AS121: 3.656387046e-10 | AT121: 7.12875908e-10 | AU121: 1.37604542e-09 | AV121: 2.62971483e-09 | AW121: 4.975555755e-09 | AX121: 9.320336538e-09 | AY121: 1.728536865e-08 | AZ121: 3.173823368e-08 | BA121: 5.76957623e-08 | BB121: 1.038393912e-07 | BC121: 1.850279794e-07 | BD121: 3.26414719e-07 | BE121: 5.701106019e-07 | BF121: 9.858380027e-07 | BG121: 1.687753624e-06 | BH121: 2.860682095e-06 | BI121: 4.800508043e-06 | BJ121: 7.975572379e-06 | BK121: 1.31187838e-05 | BL121: 2.136398893e-05 | BM121: 3.444515702e-05 | BN121: 5.498333124e-05 | BO121: 8.68942389e-05 | BP121: 0.0001359590038 | BQ121: 0.0002106114698 | BR121: 0.0003230078816 | BS121: 0.0004904573815 | BT121: 0.0007373038235 | BU121: 0.001097359056 | BV121: 0.001616992752 | BW121: 0.002358981037 | BX121: 0.003407201994 | BY121: 0.004872236579 | BZ121: 0.00689788437 | CA121: 0.00966853129 | CB121: 0.01341720821 | CC121: 0.01843405449 | CD121: 0.02507475103 | CE121: 0.03376831943 | CF121: 0.045023507 | CG121: 0.05943280785 | CH121: 0.07767302728 | CI121: 0.1005012054 | CJ121: 0.1287447014 | CK121: 0.1632843317 | CL121: 0.2050296722 | CM121: 0.2548859969 | CN121: 0.3137128376 | CO121: 0.382274792 | CP121: 0.4611859686 | CQ121: 0.5508502686 | CR121: 0.6514005197 | CS121: 0.7626401951 | CT121: 0.883992004 | CU121: 1.014457921 | CV121: 1.152595165 | CW121: 1.29651219 | CX121: 1.443887879 | CY121: 1.592015868 | CZ121: 1.737874332 | DA121: 1.87821974 | DB121: 2.009701181 | DC121: 2.128990041 | DD121: 2.23291827 | DE121: 2.318617342 | DF121: 2.383649455 | DG121: 2.426122639 | DH121: 2.444782164 | DI121: 2.439072119 | DJ121: 2.40916292 | DK121: 2.355942864 | DL121: 2.280974303 | DM121: 2.186417459 | DN121: 2.074927066 | DO121: 1.949528732 | DP121: 1.813483046 | DQ121: 1.67014591 | DR121: 1.522833368 | DS121: 1.374698344 | DT121: 1.228625401 | DU121: 1.087147885 | DV121: 0.9523899759 | DW121: 0.8260342626 | DX121: 0.7093137236 | DY121: 0.6030255573 | DZ121: 0.5075632038 | EA121: 0.4229622392 | EB121: 0.3489555566 | EC121: 0.2850333618 | ED121: 0.2305039262 | EE121: 0.1845516849 | EF121: 0.1462900394 | EG121: 0.1148070491 | EH121: 0.08920298909 | EI121: 0.06861946304 | EJ121: 0.05226034572 | EK121: 0.03940526902
A122: 53 | B122: 169 | C122: 52 | D122: 170 | E122: 25 | F122: 143 | Z122: 1.368602753e-16 | AA122: 3.230762446e-16 | AB122: 7.550743163e-16 | AC122: 1.747154959e-15 | AD122: 4.002489557e-15 | AE122: 9.077913599e-15 | AF122: 2.038444716e-14 | AG122: 4.5317807e-14 | AH122: 9.974609182e-14 | AI122: 2.173601608e-13 | AJ122: 4.689440826e-13 | AK122: 1.001657457e-12 | AL122: 2.118236525e-12 | AM122: 4.434929611e-12 | AN122: 9.192974711e-12 | AO122: 1.886611402e-11 | AP122: 3.83323901e-11 | AQ122: 7.710923577e-11 | AR122: 1.535691405e-10 | AS122: 3.028018775e-10 | AT122: 5.911126165e-10 | AU122: 1.142454596e-09 | AV122: 2.186073325e-09 | AW122: 4.141403589e-09 | AX122: 7.767610524e-09 | AY122: 1.442395579e-08 | AZ122: 2.651785423e-08 | BA122: 4.826690263e-08 | BB122: 8.697962621e-08 | BC122: 1.551824838e-07 | BD122: 2.741100228e-07 | BE122: 4.79362645e-07 | BF122: 8.299664084e-07 | BG122: 1.422701855e-06 | BH122: 2.414484021e-06 | BI122: 4.056876888e-06 | BJ122: 6.748641786e-06 | BK122: 1.111470601e-05 | BL122: 1.812327324e-05 | BM122: 2.925717248e-05 | BN122: 4.676114328e-05 | BO122: 7.399373414e-05 | BP122: 0.0001159209213 | BQ122: 0.0001797983734 | BR122: 0.0002761002169 | BS122: 0.0004197636162 | BT122: 0.0006318294903 | BU122: 0.0009415687748 | BV122: 0.001389188751 | BW122: 0.002029212474 | BX122: 0.002934613046 | BY122: 0.004201759781 | BZ122: 0.005956191475 | CA122: 0.008359169602 | CB122: 0.01161487869 | CC122: 0.01597803156 | CD122: 0.02176150495 | CE122: 0.02934348105 | CF122: 0.03917341157 | CG122: 0.05177596627 | CH122: 0.06775199458 | CI122: 0.0877754395 | CJ122: 0.1125851201 | CK122: 0.1429703675 | CL122: 0.1797496803 | CM122: 0.2237418759 | CN122: 0.2757296557 | CO122: 0.3364160732 | CP122: 0.4063750642 | CQ122: 0.4859979308 | CR122: 0.5754384062 | CS122: 0.6745595946 | CT122: 0.7828865977 | CU122: 0.8995689325 | CV122: 1.023356832 | CW122: 1.152595165 | CX122: 1.285237973 | CY122: 1.418885528 | CZ122: 1.550844395 | DA122: 1.678209386 | DB122: 1.797964538 | DC122: 1.907098625 | DD122: 2.002729244 | DE122: 2.082228474 | DF122: 2.143342511 | DG122: 2.184297707 | DH122: 2.203886055 | DI122: 2.20152438 | DJ122: 2.177283176 | DK122: 2.131883113 | DL122: 2.066659445 | DM122: 1.983496783 | DN122: 1.884738658 | DO122: 1.773077962 | DP122: 1.651435365 | DQ122: 1.522833368 | DR122: 1.390273495 | DS122: 1.256623443 | DT122: 1.124519852 | DU122: 0.9962908717 | DV122: 0.8739009891 | DW122: 0.758918895 | DX122: 0.6525075719 | DY122: 0.555434435 | DZ122: 0.4680983404 | EA122: 0.390569618 | EB122: 0.3226390035 | EC122: 0.2638714075 | ED122: 0.2136608023 | EE122: 0.1712830671 | EF122: 0.1359443187 | EG122: 0.1068229948 | EH122: 0.08310468182 | EI122: 0.06400933099 | EJ122: 0.0488110489 | EK122: 0.03685106535 | EL122: 0.02754476111
A123: 53 | B123: 169 | C123: 52 | D123: 170 | E123: 25 | F123: 143 | Z123: 1.095451047e-16 | AA123: 2.589229107e-16 | AB123: 6.059057047e-16 | AC123: 1.403772265e-15 | AD123: 3.219921834e-15 | AE123: 7.312250411e-15 | AF123: 1.644045517e-14 | AG123: 3.659600465e-14 | AH123: 8.065115035e-14 | AI123: 1.759723823e-13 | AJ123: 3.8013295e-13 | AK123: 8.129869484e-13 | AL123: 1.721427301e-12 | AM123: 3.608700621e-12 | AN123: 7.489797526e-12 | AO123: 1.539027414e-11 | AP123: 3.130975645e-11 | AQ123: 6.306233947e-11 | AR123: 1.257527589e-10 | AS123: 2.482687291e-10 | AT123: 4.852701472e-10 | AU123: 9.390791207e-10 | AV123: 1.7991934e-09 | AW123: 3.412797886e-09 | AX123: 6.409148643e-09 | AY123: 1.191645766e-08 | AZ123: 2.193567786e-08 | BA123: 3.997716568e-08 | BB123: 7.213233578e-08 | BC123: 1.288561189e-07 | BD123: 2.278962362e-07 | BE123: 3.9904908e-07 | BF123: 6.917872131e-07 | BG123: 1.187341922e-06 | BH123: 2.017604922e-06 | BI123: 3.394325686e-06 | BJ123: 5.653637354e-06 | BK123: 9.323080628e-06 | BL123: 1.522116829e-05 | BM123: 2.460331292e-05 | BN123: 3.937279523e-05 | BO123: 6.238152123e-05 | BP123: 9.785268107e-05 | BQ123: 0.0001519660422 | BR123: 0.0002336562656 | BS123: 0.0003556848483 | BT123: 0.0005360562379 | BU123: 0.000799857089 | BV123: 0.001181602762 | BW123: 0.001728174736 | BX123: 0.002502423799 | BY123: 0.003587493531 | BZ123: 0.005091883359 | CA123: 0.007155217206 | CB123: 0.009954610052 | CC123: 0.01371142959 | CD123: 0.01869813446 | CE123: 0.02524473839 | CF123: 0.03374430794 | CG123: 0.04465676222 | CH123: 0.05851012062 | CI123: 0.07589825834 | CJ123: 0.09747420055 | CK123: 0.1239380358 | CL123: 0.1560186771 | CM123: 0.1944489617 | CN123: 0.2399339596 | CO123: 0.2931128572 | CP123: 0.3545153725 | CQ123: 0.4245143055 | CR123: 0.5032764899 | CS123: 0.5907150173 | CT123: 0.6864460896 | CU123: 0.7897541454 | CV123: 0.8995689325 | CW123: 1.014457921 | CX123: 1.132636836 | CY123: 1.252000151 | CZ123: 1.370172151 | DA123: 1.484577746 | DB123: 1.592530692 | DC123: 1.691335371 | DD123: 1.778396958 | DE123: 1.851333831 | DF123: 1.908085465 | DG123: 1.947009024 | DH123: 1.966958335 | DI123: 1.967339954 | DJ123: 1.948142489 | DK123: 1.909937167 | DL123: 1.853849598 | DM123: 1.781504687 | DN123: 1.694948459 | DO123: 1.59655204 | DP123: 1.488904068 | DQ123: 1.374698344 | DR123: 1.256623443 | DS123: 1.137260514 | DT123: 1.018994451 | DU123: 0.9039423474 | DV123: 0.7939016439 | DW123: 0.6903188383 | DX123: 0.5942782067 | DY123: 0.5065087339 | DZ123: 0.4274065052 | EA123: 0.3570691852 | EB123: 0.2953389131 | EC123: 0.2418499641 | ED123: 0.1960778054 | EE123: 0.1573866541 | EF123: 0.1250732466 | EG123: 0.09840518884 | EH123: 0.07665290704 | EI123: 0.05911481245 | EJ123: 0.04513579095 | EK123: 0.03411951536 | EL123: 0.02553534356
A124: 53 | B124: 169 | C124: 52 | D124: 170 | E124: 25 | F124: 143 | Z124: 8.680916827e-17 | AA124: 2.054437767e-16 | AB124: 4.813682482e-16 | AC124: 1.116654821e-15 | AD124: 2.564587409e-15 | AE124: 5.831403878e-15 | AF124: 1.312761381e-14 | AG124: 2.925873315e-14 | AH124: 6.456279142e-14 | AI124: 1.410477412e-13 | AJ124: 3.050752859e-13 | AK124: 6.532884403e-13 | AL124: 1.385032536e-12 | AM124: 2.907180738e-12 | AN124: 6.041449432e-12 | AO124: 1.242989077e-11 | AP124: 2.531923237e-11 | AQ124: 5.106117594e-11 | AR124: 1.019502148e-10 | AS124: 2.015313126e-10 | AT124: 3.944155027e-10 | AU124: 7.642271725e-10 | AV124: 1.466047457e-09 | AW124: 2.78439367e-09 | AX124: 5.235646326e-09 | AY124: 9.746911459e-09 | AZ124: 1.796473418e-08 | BA124: 3.278171157e-08 | BB124: 5.922424182e-08 | BC124: 1.05931336e-07 | BD124: 1.875886011e-07 | BE124: 3.288860818e-07 | BF124: 5.708757569e-07 | BG124: 9.81058175e-07 | BH124: 1.669186935e-06 | BI124: 2.811721151e-06 | BJ124: 4.689176438e-06 | BK124: 7.742441907e-06 | BL124: 1.265658068e-05 | BM124: 2.0483864e-05 | BN124: 3.282195386e-05 | BO124: 5.206837605e-05 | BP124: 8.177879181e-05 | BQ124: 0.000127164065 | BR124: 0.0001957695624 | BS124: 0.0002983891264 | BT124: 0.0004502750374 | BU124: 0.0006727129748 | BV124: 0.0009950359974 | BW124: 0.001457151931 | BX124: 0.002112651852 | BY124: 0.003032550828 | BZ124: 0.004309682713 | CA124: 0.006063725906 | CB124: 0.008446774136 | CC124: 0.01164928462 | CD124: 0.0159061358 | CE124: 0.0215024116 | CF124: 0.0287784044 | CG124: 0.03813320485 | CH124: 0.05002613571 | CI124: 0.06497520564 | CJ124: 0.08355172555 | CK124: 0.1063702646 | CL124: 0.1340732419 | CM124: 0.167309668 | CN124: 0.2067078734 | CO124: 0.2528424883 | CP124: 0.3061964475 | CQ124: 0.3671193662 | CR124: 0.4357842171 | CS124: 0.512144785 | CT124: 0.5958968195 | CU124: 0.6864460896 | CV124: 0.7828865977 | CW124: 0.883992004 | CX124: 0.9882228012 | CY124: 1.093750989 | CZ124: 1.198502937 | DA124: 1.300219878 | DB124: 1.396534136 | DC124: 1.485057827 | DD124: 1.563479638 | DE124: 1.62966429 | DF124: 1.681748791 | DG124: 1.718229433 | DH124: 1.738033885 | DI124: 1.740573551 | DJ124: 1.725772624 | DK124: 1.694071851 | DL124: 1.646406728 | DM124: 1.584161642 | DN124: 1.509103094 | DO124: 1.423296499 | DP124: 1.329012017 | DQ124: 1.228625401 | DR124: 1.124519852 | DS124: 1.018994451 | DT124: 0.9141838954 | DU124: 0.8119931564 | DV124: 0.7140493476 | DW124: 0.6216717601 | DX124: 0.5358597138 | DY124: 0.4572967671 | DZ124: 0.3863689428 | EA124: 0.3231940399 | EB124: 0.2676588035 | EC124: 0.2194607081 | ED124: 0.1781513326 | EE124: 0.1431787049 | EF124: 0.113926522 | EG124: 0.08974872843 | EH124: 0.06999851459 | EI124: 0.0540513318 | EJ124: 0.04132197109 | EK124: 0.03127610878 | EL124: 0.02343696955
A125: 54 | B125: 168 | C125: 52 | D125: 170 | E125: 25 | F125: 143 | Z125: 6.810755204e-17 | AA125: 1.613884887e-16 | AB125: 3.786229143e-16 | AC125: 8.794239485e-16 | AD125: 2.022305382e-15 | AE125: 4.604179452e-15 | AF125: 1.037802714e-14 | AG125: 2.315977933e-14 | AH125: 5.116948986e-14 | AI125: 1.119295641e-13 | AJ125: 2.42401662e-13 | AK125: 5.19736753e-13 | AL125: 1.10328654e-12 | AM125: 2.318730453e-12 | AN125: 4.824688369e-12 | AO125: 9.939060256e-12 | AP125: 2.027115223e-11 | AQ125: 4.093253124e-11 | AR125: 8.183061666e-11 | AS125: 1.619645994e-10 | AT125: 3.173813722e-10 | AU125: 6.157434787e-10 | AV125: 1.182701816e-09 | AW125: 2.249094801e-09 | AX125: 4.234452979e-09 | AY125: 7.893033079e-09 | AZ125: 1.456624419e-08 | BA125: 2.661388678e-08 | BB125: 4.814221618e-08 | BC125: 8.621858831e-08 | BD125: 1.528737053e-07 | BE125: 2.683624396e-07 | BF125: 4.66409863e-07 | BG125: 8.025475539e-07 | BH125: 1.367196319e-06 | BI125: 2.305940199e-06 | BJ125: 3.850545464e-06 | BK125: 6.365807858e-06 | BL125: 1.041937938e-05 | BM125: 1.688446221e-05 | BN125: 2.708879386e-05 | BO125: 4.30278018e-05 | BP125: 6.766525235e-05 | BQ125: 0.0001053511565 | BR125: 0.0001623939943 | BS125: 0.0002478321679 | BT125: 0.0003744574219 | BU125: 0.0005601499031 | BV125: 0.0008295893013 | BW125: 0.001216407461 | BX125: 0.001765842898 | BY125: 0.002537944414 | BZ125: 0.003611346867 | CA125: 0.005087604671 | CB125: 0.00709601567 | CC125: 0.009798798556 | CD125: 0.01339640129 | CE125: 0.01813261842 | CF125: 0.02429908676 | CG125: 0.03223861947 | CH125: 0.04234673934 | CI125: 0.05507069665 | CJ125: 0.07090522188 | CK125: 0.09038428472 | CL125: 0.1140682256 | CM125: 0.1425258046 | CN125: 0.1763109851 | CO125: 0.2159346305 | CP125: 0.2618317322 | CQ125: 0.3143252829 | CR125: 0.3735884203 | CS125: 0.4396069532 | CT125: 0.512144785 | CU125: 0.5907150173 | CV125: 0.6745595946 | CW125: 0.7626401951 | CX125: 0.8536426663 | CY125: 0.9459966343 | CZ125: 1.037911022 | DA125: 1.127425133 | DB125: 1.212473779 | DC125: 1.290963768 | DD125: 1.360857989 | DE125: 1.420262486 | DF125: 1.467511388 | DG125: 1.501244395 | DH125: 1.520471813 | DI125: 1.524622774 | DJ125: 1.513573403 | DK125: 1.487652948 | DL125: 1.447627492 | DM125: 1.394662336 | DN125: 1.330265653 | DO125: 1.256217209 | DP125: 1.174486838 | DQ125: 1.087147885 | DR125: 0.9962908717 | DS125: 0.9039423474 | DT125: 0.8119931564 | DU125: 0.7221394329 | DV125: 0.6358384803 | DW125: 0.5542805119 | DX125: 0.478376092 | DY125: 0.4087581067 | DZ125: 0.3457963036 | EA125: 0.2896218806 | EB125: 0.2401593211 | EC125: 0.1971626198 | ED125: 0.1602532214 | EE125: 0.1289573238 | EF125: 0.1027406504 | EG125: 0.0810392969 | EH125: 0.06328577071 | EI125: 0.04892981093 | EJ125: 0.03745398713 | EK125: 0.02838439432 | EL125: 0.02129699168
A126: 54 | B126: 168 | C126: 52 | D126: 170 | E126: 25 | F126: 143 | Z126: 5.290320724e-17 | AA126: 1.255189145e-16 | AB126: 2.948447525e-16 | AC126: 6.857008475e-16 | AD126: 1.578821474e-15 | AE126: 3.59905446e-15 | AF126: 8.122708487e-15 | AG126: 1.814973847e-14 | AH126: 4.015105217e-14 | AI126: 8.793880201e-14 | AJ126: 1.906870563e-13 | AK126: 4.093727584e-13 | AL126: 8.70109117e-13 | AM126: 1.830988238e-12 | AN126: 3.814647784e-12 | AO126: 7.868290578e-12 | AP126: 1.6068058e-11 | AQ126: 3.248653908e-11 | AR126: 6.502802406e-11 | AS126: 1.288708592e-10 | AT126: 2.528517393e-10 | AU126: 4.91172702e-10 | AV126: 9.446252576e-10 | AW126: 1.798630446e-09 | AX126: 3.39063767e-09 | AY126: 6.328166248e-09 | AZ126: 1.169314762e-08 | BA126: 2.139153946e-08 | BB126: 3.874446809e-08 | BC126: 6.947593833e-08 | BD126: 1.233434791e-07 | BE126: 2.167978758e-07 | BF126: 3.772688135e-07 | BG126: 6.499857642e-07 | BH126: 1.108699467e-06 | BI126: 1.872323499e-06 | BJ126: 3.130437175e-06 | BK126: 5.181865684e-06 | BL126: 8.492281202e-06 | BM126: 1.377906143e-05 | BN126: 2.213461443e-05 | BO126: 3.520313503e-05 | BP126: 5.543036991e-05 | BQ126: 8.641144495e-05 | BR126: 0.0001333680536 | BS126: 0.0002037930711 | BT126: 0.0003083074861 | BU126: 0.0004617807039 | BV126: 0.0006847697199 | BW126: 0.001005333998 | BX126: 0.001461279347 | BY126: 0.002102873646 | BZ126: 0.002996057648 | CA126: 0.004226143192 | CB126: 0.005901947003 | CC126: 0.008160249888 | CD126: 0.01117039848 | CE126: 0.01513878179 | CF126: 0.02031282128 | CG126: 0.02698401819 | CH126: 0.03548951379 | CI126: 0.04621154976 | CJ126: 0.05957417987 | CK126: 0.07603659606 | CL126: 0.09608250471 | CM126: 0.120205135 | CN126: 0.148887686 | CO126: 0.1825793241 | CP126: 0.2216672151 | CQ126: 0.2664455003 | CR126: 0.3170825709 | CS126: 0.3735884203 | CT126: 0.4357842171 | CU126: 0.5032764899 | CV126: 0.5754384062 | CW126: 0.6514005197 | CX126: 0.7300530375 | CY126: 0.810061103 | CZ126: 0.8898938407 | DA126: 0.9678669897 | DB126: 1.04219794 | DC126: 1.111070963 | DD126: 1.172709492 | DE126: 1.225451529 | DF126: 1.267823773 | DG126: 1.298609869 | DH126: 1.316908384 | DI126: 1.322176644 | DJ126: 1.314257472 | DK126: 1.293386977 | DL126: 1.260182858 | DM126: 1.215614039 | DN126: 1.160953704 | DO126: 1.097718923 | DP126: 1.027600852 | DQ126: 0.9523899759 | DR126: 0.8739009891 | DS126: 0.7939016439 | DT126: 0.7140493476 | DU126: 0.6358384803 | DV126: 0.5605604373 | DW126: 0.4892773757 | DX126: 0.42280964 | DY126: 0.3617359584 | DZ126: 0.3064047817 | EA126: 0.2569546317 | EB126: 0.2133410446 | EC126: 0.1753676327 | ED126: 0.1427189089 | EE126: 0.1149928001 | EF126: 0.09173114975 | EG126: 0.07244694555 | EH126: 0.05664745171 | EI126: 0.04385284067 | EJ126: 0.0336102807 | EK126: 0.02550372419 | EL126: 0.01915985076
A127: 54 | B127: 168 | C127: 52 | D127: 170 | E127: 25 | F127: 143 | Z127: 4.068420068e-17 | AA127: 9.665022066e-17 | AB127: 2.273196439e-16 | AC127: 5.293319878e-16 | AD127: 1.220327412e-15 | AE127: 2.785362022e-15 | AF127: 6.294249986e-15 | AG127: 1.40819689e-14 | AH127: 3.119175629e-14 | AI127: 6.840271384e-14 | AJ127: 1.485128017e-13 | AK127: 3.192357386e-13 | AL127: 6.793853441e-13 | AM127: 1.431455653e-12 | AN127: 2.986047263e-12 | AO127: 6.166979602e-12 | AP127: 1.26097188e-11 | AQ127: 2.552673951e-11 | AR127: 5.116139134e-11 | AS127: 1.015187828e-10 | AT127: 1.994378173e-10 | AU127: 3.879052683e-10 | AV127: 7.46966111e-10 | AW127: 1.424076025e-09 | AX127: 2.68795817e-09 | AY127: 5.02306609e-09 | AZ127: 9.293350862e-09 | BA127: 1.702287188e-08 | BB127: 3.087097759e-08 | BC127: 5.542746157e-08 | BD127: 9.852731589e-08 | BE127: 1.733985132e-07 | BF127: 3.021281155e-07 | BG127: 5.211874741e-07 | BH127: 8.901308492e-07 | BI127: 1.505118836e-06 | BJ127: 2.519676492e-06 | BK127: 4.176147531e-06 | BL127: 6.852734979e-06 | BM127: 1.113292018e-05 | BN127: 1.790652483e-05 | BO127: 2.851481633e-05 | BP127: 4.495592137e-05 | BQ127: 7.017142283e-05 | BR127: 0.0001084403017 | BS127: 0.0001659121561 | BT127: 0.0002513175125 | BU127: 0.0003768984512 | BV127: 0.0005596068325 | BW127: 0.0008226189675 | BX127: 0.001197213168 | BY127: 0.001725048485 | BZ127: 0.002460867225 | CA127: 0.003475618607 | CB127: 0.004859964536 | CC127: 0.006728079925 | CD127: 0.009221599125 | CE127: 0.01251348828 | CF127: 0.01681154388 | CG127: 0.02236113589 | CH127: 0.02944673707 | CI127: 0.0383917184 | CJ127: 0.04955585568 | CK127: 0.06332999631 | CL127: 0.08012739083 | CM127: 0.1003713105 | CN127: 0.1244787572 | CO127: 0.1528403232 | CP127: 0.1857965761 | CQ127: 0.2236116987 | CR127: 0.2664455003 | CS127: 0.3143252829 | CT127: 0.3671193662 | CU127: 0.4245143055 | CV127: 0.4859979308 | CW127: 0.5508502686 | CX127: 0.6181441537 | CY127: 0.6867568847 | CZ127: 0.7553936554 | DA127: 0.8226227178 | DB127: 0.8869213722 | DC127: 0.9467309973 | DD127: 1.000518512 | DE127: 1.04684098 | DF127: 1.084409609 | DG127: 1.112149202 | DH127: 1.12924924 | DI127: 1.13520322 | DJ127: 1.129833577 | DK127: 1.113300477 | DL127: 1.086093884 | DM127: 1.04900944 | DN127: 1.003109815 | DO127: 0.9496741542 | DP127: 0.8901389655 | DQ127: 0.8260342626 | DR127: 0.758918895 | DS127: 0.6903188383 | DT127: 0.6216717601 | DU127: 0.5542805119 | DV127: 0.4892773757 | DW127: 0.4276000176 | DX127: 0.3699792347 | DY127: 0.3169378009 | DZ127: 0.2687990849 | EA127: 0.2257036522 | EB127: 0.187631799 | EC127: 0.1544298871 | ED127: 0.1258384384 | EE127: 0.1015201713 | EF127: 0.08108647451 | EG127: 0.06412118657 | EH127: 0.05020092708 | EI127: 0.03891159023 | EJ127: 0.02986092641 | EK127: 0.02268739487 | EL127: 0.01706565799
A128: 54 | B128: 168 | C128: 52 | D128: 170 | E128: 25 | F128: 143 | Z128: 3.097609226e-17 | AA128: 7.368067234e-17 | AB128: 1.735152245e-16 | AC128: 4.045560011e-16 | AD128: 9.338492287e-16 | AE128: 2.134184376e-15 | AF128: 4.828854983e-15 | AG128: 1.081716478e-14 | AH128: 2.399052669e-14 | AI128: 5.267725976e-14 | AJ128: 1.145153284e-13 | AK128: 2.464683318e-13 | AL128: 5.251890755e-13 | AM128: 1.107968203e-12 | AN128: 2.314173763e-12 | AO128: 4.785437946e-12 | AP128: 9.79725626e-12 | AQ128: 1.985840217e-11 | AR128: 3.985118049e-11 | AS128: 7.917628766e-11 | AT128: 1.557421388e-10 | AU128: 3.033012424e-10 | AV128: 5.847891404e-10 | AW128: 1.116301387e-09 | AX128: 2.10969991e-09 | AY128: 3.947452927e-09 | AZ128: 7.312574276e-09 | BA128: 1.341160259e-08 | BB128: 2.435275598e-08 | BC128: 4.377968306e-08 | BD128: 7.792093668e-08 | BE128: 1.373070293e-07 | BF128: 2.395457294e-07 | BG128: 4.137529941e-07 | BH128: 7.075398767e-07 | BI128: 1.197892232e-06 | BJ128: 2.007897926e-06 | BK128: 3.33213485e-06 | BL128: 5.47470297e-06 | BM128: 8.905444664e-06 | BN128: 1.434193377e-05 | BO128: 2.286740433e-05 | BP128: 3.609799532e-05 | BQ128: 5.641652771e-05 | BR128: 8.72944588e-05 | BS128: 0.0001337285254 | BT128: 0.0002028236014 | BU128: 0.0003045579772 | BV128: 0.0004527709181 | BW128: 0.0006664140177 | BX128: 0.0009711063157 | BY128: 0.001401026948 | BZ128: 0.002001166638 | CA128: 0.002829939001 | CB128: 0.003962122968 | CC128: 0.005492067686 | CD128: 0.007537040813 | CE128: 0.01024054118 | CF128: 0.01377532978 | CG128: 0.01834586342 | CH128: 0.02418974904 | CI128: 0.03157778218 | CJ128: 0.04081209997 | CK128: 0.0522219776 | CL128: 0.06615683828 | CM128: 0.0829761393 | CN128: 0.1030359458 | CO128: 0.1266722122 | CP128: 0.1541810515 | CQ128: 0.1857965761 | CR128: 0.2216672151 | CS128: 0.2618317322 | CT128: 0.3061964475 | CU128: 0.3545153725 | CV128: 0.4063750642 | CW128: 0.4611859686 | CX128: 0.5181818237 | CY128: 0.5764283338 | CZ128: 0.6348418082 | DA128: 0.6922178198 | DB128: 0.7472692053 | DC128: 0.7986719851 | DD128: 0.8451170659 | DE128: 0.8853649961 | DF128: 0.9183006225 | DG128: 0.9429843062 | DH128: 0.9586964218 | DI128: 0.9649722026 | DJ128: 0.961624578 | DK128: 0.9487534362 | DL128: 0.9267406733 | DM128: 0.8962313705 | DN128: 0.8581023945 | DO128: 0.8134205528 | DP128: 0.7633930898 | DQ128: 0.7093137236 | DR128: 0.6525075719 | DS128: 0.5942782067 | DT128: 0.5358597138 | DU128: 0.478376092 | DV128: 0.42280964 | DW128: 0.3699792347 | DX128: 0.3205286645 | DY128: 0.2749245061 | DZ128: 0.2334624766 | EA128: 0.1962807813 | EB128: 0.1633787328 | EC128: 0.1346388283 | ED128: 0.1098505356 | EE128: 0.08873421047 | EF128: 0.07096383137 | EG128: 0.0561875475 | EH128: 0.04404535882 | EI128: 0.03418355952 | EJ128: 0.02626585063 | EK128: 0.01998125268 | EL128: 0.01504911666
A129: 55 | B129: 167 | C129: 52 | D129: 170 | E129: 25 | F129: 143 | Z129: 2.334987315e-17 | AA129: 5.561108464e-17 | AB129: 1.311279468e-16 | AC129: 3.06116128e-16 | AD129: 7.075126627e-16 | AE129: 1.618971777e-15 | AF129: 3.667764088e-15 | AG129: 8.226603483e-15 | AH129: 1.826824349e-14 | AI129: 4.016336324e-14 | AJ129: 8.742193395e-14 | AK129: 1.883943186e-13 | AL129: 4.019501997e-13 | AM129: 8.490509476e-13 | AN129: 1.775629323e-12 | AO129: 3.676443712e-12 | AP129: 7.536341833e-12 | AQ129: 1.529502925e-11 | AR129: 3.073244338e-11 | AS129: 6.113654945e-11 | AT129: 1.204097936e-10 | AU129: 2.347900865e-10 | AV129: 4.532676817e-10 | AW129: 8.663368921e-10 | AX129: 1.639365979e-09 | AY129: 3.071298888e-09 | AZ129: 5.696725617e-09 | BA129: 1.046129808e-08 | BB129: 1.901966691e-08 | BC129: 3.423554865e-08 | BD129: 6.101108276e-08 | BE129: 1.076458343e-07 | BF129: 1.880367684e-07 | BG129: 3.25196142e-07 | BH129: 5.568074606e-07 | BI129: 9.438908192e-07 | BJ129: 1.584147198e-06 | BK129: 2.632245307e-06 | BL129: 4.330262677e-06 | BM129: 7.052761192e-06 | BN129: 1.137263684e-05 | BO129: 1.815600185e-05 | BP129: 2.869698831e-05 | BQ129: 4.490652802e-05 | BR129: 6.957283352e-05 | BS129: 0.0001067153663 | BT129: 0.0001620583015 | BU129: 0.0002436535039 | BV129: 0.0003626862531 | BW129: 0.0005344986142 | BX129: 0.0007798644572 | BY129: 0.001126545473 | BZ129: 0.001611147794 | CA129: 0.002281282613 | CB129: 0.003198010279 | CC129: 0.004438514828 | CD129: 0.006098914572 | CE129: 0.008297064771 | CF129: 0.01117515269 | CG129: 0.01490182663 | CH129: 0.01967354406 | CI129: 0.02571477645 | CJ129: 0.03327667762 | CK129: 0.04263381739 | CL129: 0.05407861211 | CM129: 0.06791315534 | CN129: 0.08443827175 | CO129: 0.1039397859 | CP129: 0.1266722122 | CQ129: 0.1528403232 | CR129: 0.1825793241 | CS129: 0.2159346305 | CT129: 0.2528424883 | CU129: 0.2931128572 | CV129: 0.3364160732 | CW129: 0.382274792 | CX129: 0.4300625636 | CY129: 0.4790101028 | CZ129: 0.5282199044 | DA129: 0.5766893173 | DB129: 0.6233415921 | DC129: 0.6670637806 | DD129: 0.7067497609 | DE129: 0.7413461478 | DF129: 0.7698984678 | DG129: 0.7915947963 | DH129: 0.8058040784 | DI129: 0.8121066127 | DJ129: 0.8103146442 | DK129: 0.8004816554 | DL129: 0.7828997149 | DM129: 0.758085066 | DN129: 0.7267529493 | DO129: 0.6897833698 | DP129: 0.6481800971 | DQ129: 0.6030255573 | DR129: 0.555434435 | DS129: 0.5065087339 | DT129: 0.4572967671 | DU129: 0.4087581067 | DV129: 0.3617359584 | DW129: 0.3169378009 | DX129: 0.2749245061 | DY129: 0.2361075758 | DZ129: 0.200753648 | EA129: 0.1689950659 | EB129: 0.1408450729 | EC129: 0.1162161136 | ED129: 0.09493975194 | EE129: 0.07678685712 | EF129: 0.06148692116 | EG129: 0.04874562657 | EH129: 0.03826005785 | EI129: 0.02973121399 | EJ129: 0.02287371567 | EK129: 0.0174227959 | EL129: 0.01313881008
A130: 55 | B130: 167 | C130: 52 | D130: 170 | E130: 25 | F130: 143 | Z130: 1.742607092e-17 | AA130: 4.155527936e-17 | AB130: 9.810925788e-17 | AC130: 2.293246979e-16 | AD130: 5.306995567e-16 | AE130: 1.215916284e-15 | AF130: 2.758136019e-15 | AG130: 6.194193099e-15 | AH130: 1.377243894e-14 | AI130: 3.031754467e-14 | AJ130: 6.607455575e-14 | AK130: 1.425711106e-13 | AL130: 3.045691203e-13 | AM130: 6.441652018e-13 | AN130: 1.348856369e-12 | AO130: 2.796347942e-12 | AP130: 5.739496103e-12 | AQ130: 1.16630833e-11 | AR130: 2.346443194e-11 | AS130: 4.673731586e-11 | AT130: 9.216680753e-11 | AU130: 1.799460747e-10 | AV130: 3.478301831e-10 | AW130: 6.656550153e-10 | AX130: 1.261212327e-09 | AY130: 2.365833954e-09 | AZ130: 4.393770504e-09 | BA130: 8.078812577e-09 | BB130: 1.47066837e-08 | BC130: 2.650568462e-08 | BD130: 4.72955582e-08 | BE130: 8.355236361e-08 | BF130: 1.461349785e-07 | BG130: 2.530501942e-07 | BH130: 4.338266477e-07 | BI130: 7.363475231e-07 | BJ130: 1.237389683e-06 | BK130: 2.058672231e-06 | BL130: 3.39097804e-06 | BM130: 5.529932158e-06 | BN130: 8.928359824e-06 | BO130: 1.427186145e-05 | BP130: 2.258637906e-05 | BQ130: 3.538911151e-05 | BR130: 5.489714528e-05 | BS130: 8.431151987e-05 | BT130: 0.0001281979648 | BU130: 0.0001929889299 | BV130: 0.0002876343311 | BW130: 0.0004244300245 | BX130: 0.0006200525982 | BY130: 0.0008968256477 | BZ130: 0.001284235182 | CA130: 0.001820699034 | CB130: 0.002555576086 | CC130: 0.003551374929 | CD130: 0.004886088046 | CE130: 0.006655537088 | CF130: 0.008975568844 | CG130: 0.0119838927 | CH130: 0.01584130285 | CI130: 0.02073198743 | CJ130: 0.02686259918 | CK130: 0.03445975476 | CL130: 0.04376565051 | CM130: 0.05503153778 | CN130: 0.0685088953 | CO130: 0.08443827175 | CP130: 0.1030359458 | CQ130: 0.1244787572 | CR130: 0.148887686 | CS130: 0.1763109851 | CT130: 0.2067078734 | CU130: 0.2399339596 | CV130: 0.2757296557 | CW130: 0.3137128376 | CX130: 0.3533769018 | CY130: 0.3940951423 | CZ130: 0.435132037 | DA130: 0.4756616007 | DB130: 0.514792465 | DC130: 0.5515988158 | DD130: 0.5851558133 | DE130: 0.6145776719 | DF130: 0.6390562508 | DG130: 0.6578978263 | DH130: 0.6705557193 | DI130: 0.6766566367 | DJ130: 0.6760189586 | DK130: 0.6686617194 | DL130: 0.6548036642 | DM130: 0.6348524449 | DN130: 0.6093847014 | DO130: 0.5791183855 | DP130: 0.5448791802 | DQ130: 0.5075632038 | DR130: 0.4680983404 | DS130: 0.4274065052 | DT130: 0.3863689428 | DU130: 0.3457963036 | DV130: 0.3064047817 | DW130: 0.2687990849 | DX130: 0.2334624766 | DY130: 0.200753648 | DZ130: 0.1709097578 | EA130: 0.1440546649 | EB130: 0.1202111771 | EC130: 0.09931604764 | ED130: 0.08123647338 | EE130: 0.06578694972 | EF130: 0.0527455098 | EG130: 0.04186858593 | EH130: 0.03290395841 | EI130: 0.0256014791 | EJ130: 0.01972145812 | EK130: 0.015040769 | EL130: 0.01135685593
A131: 55 | B131: 167 | C131: 52 | D131: 170 | E131: 25 | F131: 143 | Z131: 1.287571882e-17 | AA131: 3.074313146e-17 | AB131: 7.267445365e-17 | AC131: 1.700875416e-16 | AD131: 3.941125711e-16 | AE131: 9.041180231e-16 | AF131: 2.053463657e-15 | AG131: 4.61749007e-15 | AH131: 1.027973631e-14 | AI131: 2.265765889e-14 | AJ131: 4.944303814e-14 | AK131: 1.068199374e-13 | AL131: 2.284843952e-13 | AM131: 4.838578872e-13 | AN131: 1.01446288e-12 | AO131: 2.105772991e-12 | AP131: 4.327568958e-12 | AQ131: 8.80508389e-12 | AR131: 1.773699544e-11 | AS131: 3.537395881e-11 | AT131: 6.984644916e-11 | AU131: 1.365406778e-10 | AV131: 2.642632862e-10 | AW131: 5.06370811e-10 | AX131: 9.606331089e-10 | AY131: 1.804278165e-09 | AZ131: 3.355107896e-09 | BA131: 6.176842733e-09 | BB131: 1.125858088e-08 | BC131: 2.031691742e-08 | BD131: 3.629852969e-08 | BE131: 6.42062503e-08 | BF131: 1.124404659e-07 | BG131: 1.949507994e-07 | BH131: 3.346450917e-07 | BI131: 5.687232118e-07 | BJ131: 9.569175141e-07 | BK131: 1.59406163e-06 | BL131: 2.629013208e-06 | BM131: 4.292768644e-06 | BN131: 6.939676939e-06 | BO131: 1.110703342e-05 | BP131: 1.760005234e-05 | BQ131: 2.761130258e-05 | BR131: 4.288613281e-05 | BS131: 6.594834973e-05 | BT131: 0.0001004033108 | BU131: 0.0001513384182 | BV131: 0.0002258433993 | BW131: 0.0003336742315 | BX131: 0.0004880844717 | BY131: 0.0007068452895 | BZ131: 0.001013469774 | CA131: 0.001438647145 | CB131: 0.002021877461 | CC131: 0.002813276568 | CD131: 0.003875494119 | CE131: 0.005285654728 | CF131: 0.00713719486 | CG131: 0.009541427897 | CH131: 0.01262863021 | CI131: 0.01654840632 | CJ131: 0.02146906644 | CK131: 0.02757574151 | CL131: 0.03506697421 | CM131: 0.04414956651 | CN131: 0.05503153778 | CO131: 0.06791315534 | CP131: 0.0829761393 | CQ131: 0.1003713105 | CR131: 0.120205135 | CS131: 0.1425258046 | CT131: 0.167309668 | CU131: 0.1944489617 | CV131: 0.2237418759 | CW131: 0.2548859969 | CX131: 0.2874760927 | CY131: 0.3210070314 | CZ131: 0.3548823599 | DA131: 0.388428721 | DB131: 0.4209158815 | DC131: 0.4515817112 | DD131: 0.4796610268 | DE131: 0.5044168386 | DF131: 0.525172255 | DG131: 0.5413411329 | DH131: 0.5524555439 | DI131: 0.5581882624 | DJ131: 0.5583687687 | DK131: 0.5529916746 | DL131: 0.5422169906 | DM131: 0.5263622161 | DN131: 0.5058867987 | DO131: 0.4813700229 | DP131: 0.4534838148 | DQ131: 0.4229622392 | DR131: 0.390569618 | DS131: 0.3570691852 | DT131: 0.3231940399 | DU131: 0.2896218806 | DV131: 0.2569546317 | DW131: 0.2257036522 | DX131: 0.1962807813 | DY131: 0.1689950659 | DZ131: 0.1440546649 | EA131: 0.121573154 | EB131: 0.101579272 | EC131: 0.08402907122 | ED131: 0.06881943231 | EE131: 0.055801987 | EF131: 0.04479662513 | EG131: 0.03560393378 | EH131: 0.02801610316 | EI131: 0.02182601887 | EJ131: 0.0168344286 | EK131: 0.01285521335 | EL131: 0.009718903118
A132: 56 | B132: 166 | C132: 52 | D132: 170 | E132: 25 | F132: 143 | Z132: 9.418907805e-18 | AA132: 2.251785681e-17 | AB132: 5.329796356e-17 | AC132: 1.248967775e-16 | AD132: 2.897669877e-16 | AE132: 6.655851657e-16 | AF132: 1.51361498e-15 | AG132: 3.4078797e-15 | AH132: 7.596440648e-15 | AI132: 1.676459622e-14 | AJ132: 3.662967806e-14 | AK132: 7.923738978e-14 | AL132: 1.697009505e-13 | AM132: 3.598284055e-13 | AN132: 7.553768466e-13 | AO132: 1.569961306e-12 | AP132: 3.230511443e-12 | AQ132: 6.581284632e-12 | AR132: 1.327416217e-11 | AS132: 2.650700254e-11 | AT132: 5.240481298e-11 | AU132: 1.02574353e-10 | AV132: 1.987757736e-10 | AW132: 3.813688117e-10 | AX132: 7.244091879e-10 | AY132: 1.362322036e-09 | AZ132: 2.536487161e-09 | BA132: 4.675656633e-09 | BB132: 8.533154471e-09 | BC132: 1.541819946e-08 | BD132: 2.758130224e-08 | BE132: 4.884869095e-08 | BF132: 8.565409836e-08 | BG132: 1.486963886e-07 | BH132: 2.555699271e-07 | BI132: 4.348867066e-07 | BJ132: 7.3265509e-07 | BK132: 1.222024927e-06 | BL132: 2.017983514e-06 | BM132: 3.299227154e-06 | BN132: 5.340278142e-06 | BO132: 8.558006102e-06 | BP132: 1.357807995e-05 | BQ132: 2.132854288e-05 | BR132: 3.316966355e-05 | BS132: 5.107142804e-05 | BT132: 7.78523976e-05 | BU132: 0.000117495988 | BV132: 0.0001755622501 | BW132: 0.000259714558 | BX132: 0.0003803807281 | BY132: 0.0005515663612 | BZ132: 0.0007918339043 | CA132: 0.001125453276 | CB132: 0.001583718178 | CC132: 0.002206405791 | CD132: 0.003043336193 | CE132: 0.004155961621 | CF132: 0.005618885482 | CG132: 0.007521178374 | CH132: 0.00996732574 | CI132: 0.01307761265 | CJ132: 0.01698772973 | CK132: 0.02184737542 | CL132: 0.02781763825 | CM132: 0.03506697421 | CN132: 0.04376565051 | CO132: 0.05407861211 | CP132: 0.06615683828 | CQ132: 0.08012739083 | CR132: 0.09608250471 | CS132: 0.1140682256 | CT132: 0.1340732419 | CU132: 0.1560186771 | CV132: 0.1797496803 | CW132: 0.2050296722 | CX132: 0.2315380456 | CY132: 0.2588719911 | CZ132: 0.2865529081 | DA132: 0.314037587 | DB132: 0.3407340209 | DC132: 0.3660213513 | DD132: 0.3892731029 | DE132: 0.4098825496 | DF132: 0.4272888068 | DG132: 0.4410021012 | DH132: 0.4506266335 | DI132: 0.4558795482 | DJ132: 0.4566047417 | DK132: 0.4527805684 | DL132: 0.4445209141 | DM132: 0.4320695616 | DN132: 0.4157882393 | DO132: 0.3961391678 | DP132: 0.373663282 | DQ132: 0.3489555566 | DR132: 0.3226390035 | DS132: 0.2953389131 | DT132: 0.2676588035 | DU132: 0.2401593211 | DV132: 0.2133410446 | DW132: 0.187631799 | DX132: 0.1633787328 | DY132: 0.1408450729 | DZ132: 0.1202111771 | EA132: 0.101579272 | EB132: 0.08498110955 | EC132: 0.07038769663 | ED132: 0.05772024492 | EE132: 0.04686154813 | EF132: 0.03766709731 | EG132: 0.02997538233 | EH132: 0.02361698009 | EI132: 0.01842218126 | EJ132: 0.0142270479 | EK132: 0.01087791326 | EL132: 0.008234428154
A133: 56 | B133: 166 | C133: 52 | D133: 170 | E133: 25 | F133: 143 | Z133: 6.821606488e-18 | AA133: 1.632913048e-17 | AB133: 3.869871201e-17 | AC133: 9.080024441e-17 | AD133: 2.109281674e-16 | AE133: 4.851088486e-16 | AF133: 1.104589393e-15 | AG133: 2.490116098e-15 | AH133: 5.557703562e-15 | AI133: 1.228084405e-14 | AJ133: 2.686693405e-14 | AK133: 5.819223766e-14 | AL133: 1.247869186e-13 | AM133: 2.649293776e-13 | AN133: 5.568628334e-13 | AO133: 1.158839798e-12 | AP133: 2.387567319e-12 | AQ133: 4.870178789e-12 | AR133: 9.835382157e-12 | AS133: 1.96650307e-11 | AT133: 3.892737094e-11 | AU133: 7.629087105e-11 | AV133: 1.480291102e-10 | AW133: 2.843667005e-10 | AX133: 5.408382568e-10 | AY133: 1.018387652e-09 | AZ133: 1.898523166e-09 | BA133: 3.50409387e-09 | BB133: 6.403134406e-09 | BC133: 1.158421367e-08 | BD133: 2.074901841e-08 | BE133: 3.679472892e-08 | BF133: 6.459973175e-08 | BG133: 1.122878785e-07 | BH133: 1.932378042e-07 | BI133: 3.292367958e-07 | BJ133: 5.553690764e-07 | BK133: 9.274960674e-07 | BL133: 1.53355556e-06 | BM133: 2.510406253e-06 | BN133: 4.068605262e-06 | BO133: 6.528360975e-06 | BP133: 1.037098052e-05 | BQ133: 1.631144863e-05 | BR133: 2.53993324e-05 | BS133: 3.915697429e-05 | BT133: 5.976583692e-05 | BU133: 9.031376345e-05 | BV133: 0.0001351176023 | BW133: 0.0002001368107 | BX133: 0.0002934938971 | BY133: 0.0004261163815 | BZ133: 0.0006125117734 | CA133: 0.0008716812546 | CB133: 0.001228168707 | CC133: 0.001713228947 | CD133: 0.002366082235 | CE133: 0.003235201396 | CF133: 0.004379553772 | CG133: 0.005869693981 | CH133: 0.007788576891 | CI133: 0.01023193609 | CJ133: 0.01330805482 | CK133: 0.01713674754 | CL133: 0.02184737542 | CM133: 0.02757574151 | CN133: 0.03445975476 | CO133: 0.04263381739 | CP133: 0.0522219776 | CQ133: 0.06332999631 | CR133: 0.07603659606 | CS133: 0.09038428472 | CT133: 0.1063702646 | CU133: 0.1239380358 | CV133: 0.1429703675 | CW133: 0.1632843317 | CX133: 0.1846290555 | CY133: 0.2066867508 | CZ133: 0.2290774201 | DA133: 0.2513674178 | DB133: 0.273081789 | DC133: 0.2937200207 | DD133: 0.3127745559 | DE133: 0.329751164 | DF133: 0.3441900518 | DG133: 0.3556864698 | DH133: 0.3639095324 | DI133: 0.3686180299 | DJ133: 0.3696721818 | DK133: 0.3670405297 | DL133: 0.3608014966 | DM133: 0.3511395053 | DN133: 0.3383359223 | DO133: 0.3227554495 | DP133: 0.304828881 | DQ133: 0.2850333618 | DR133: 0.2638714075 | DS133: 0.2418499641 | DT133: 0.2194607081 | DU133: 0.1971626198 | DV133: 0.1753676327 | DW133: 0.1544298871 | DX133: 0.1346388283 | DY133: 0.1162161136 | DZ133: 0.09931604764 | EA133: 0.08402907122 | EB133: 0.07038769663 | EC133: 0.05837420771 | ED133: 0.04792943392 | EE133: 0.03896194739 | EF133: 0.03135711268 | EG133: 0.02498552808 | EH133: 0.01971051874 | EI133: 0.01539446607 | EJ133: 0.01190387239 | EK133: 0.00911315904 | EL133: 0.00690727412
A134: 57 | B134: 165 | C134: 52 | D134: 170 | E134: 25 | F134: 143 | Z134: 4.891362339e-18 | AA134: 1.17234685e-17 | AB134: 2.781886848e-17 | AC134: 6.53551562e-17 | AD134: 1.520118022e-16 | AE134: 3.50051396e-16 | AF134: 7.980743911e-16 | AG134: 1.801407604e-15 | AH134: 4.025665292e-15 | AI134: 8.906773126e-15 | AJ134: 1.95101304e-14 | AK134: 4.231136237e-14 | AL134: 9.08470651e-14 | AM134: 1.931175972e-13 | AN134: 4.064338319e-13 | AO134: 8.468664145e-13 | AP134: 1.747016564e-12 | AQ134: 3.56809321e-12 | AR134: 7.214934861e-12 | AS134: 1.444394058e-11 | AT134: 2.86283308e-11 | AU134: 5.617763032e-11 | AV134: 1.091409827e-10 | AW134: 2.099275123e-10 | AX134: 3.997678954e-10 | AY134: 7.537086917e-10 | AZ134: 1.40687719e-09 | BA134: 2.599955462e-09 | BB134: 4.756994877e-09 | BC134: 8.617008358e-09 | BD134: 1.545387517e-08 | BE134: 2.743944611e-08 | BF134: 4.823589449e-08 | BG134: 8.395032614e-08 | BH134: 1.446543486e-07 | BI134: 2.467730084e-07 | BJ134: 4.167934374e-07 | BK134: 6.969492323e-07 | BL134: 1.153821085e-06 | BM134: 1.891179943e-06 | BN134: 3.068910978e-06 | BO134: 4.930520665e-06 | BP134: 7.842568689e-06 | BQ134: 1.235039746e-05 | BR134: 1.92557568e-05 | BS134: 2.972331921e-05 | BT134: 4.542459606e-05 | BU134: 6.872929637e-05 | BV134: 0.0001029555532 | BW134: 0.000152691447 | BX134: 0.0002242005635 | BY134: 0.0003259235516 | BZ134: 0.0004690853221 | CA134: 0.0006684131704 | CB134: 0.000942964208 | CC134: 0.00131705064 | CD134: 0.001821238381 | CE134: 0.002493378266 | CF134: 0.003379610106 | CG134: 0.004535258918 | CH134: 0.006025521315 | CI134: 0.007925820333 | CJ134: 0.0103216915 | CK134: 0.01330805482 | CL134: 0.01698772973 | CM134: 0.02146906644 | CN134: 0.02686259918 | CO134: 0.03327667762 | CP134: 0.04081209997 | CQ134: 0.04955585568 | CR134: 0.05957417987 | CS134: 0.07090522188 | CT134: 0.08355172555 | CU134: 0.09747420055 | CV134: 0.1125851201 | CW134: 0.1287447014 | CX134: 0.1457588013 | CY134: 0.1633793889 | CZ134: 0.1813079308 | DA134: 0.1992018608 | DB134: 0.2166840956 | DC134: 0.2333553357 | DD134: 0.248808659 | DE134: 0.2626457035 | DF134: 0.274493564 | DG134: 0.284021415 | DH134: 0.2909558291 | DI134: 0.2950938057 | DJ134: 0.2963126411 | DK134: 0.2945759729 | DL134: 0.2899355822 | DM134: 0.2825288286 | DN134: 0.2725718963 | DO134: 0.260349314 | DP134: 0.2462004571 | DQ134: 0.2305039262 | DR134: 0.2136608023 | DS134: 0.1960778054 | DT134: 0.1781513326 | DU134: 0.1602532214 | DV134: 0.1427189089 | DW134: 0.1258384384 | DX134: 0.1098505356 | DY134: 0.09493975194 | DZ134: 0.08123647338 | EA134: 0.06881943231 | EB134: 0.05772024492 | EC134: 0.04792943392 | ED134: 0.03940338113 | EE134: 0.0320716818 | EF134: 0.02584443454 | EG134: 0.02061908504 | EH134: 0.01628653887 | EI134: 0.01273635823 | EJ134: 0.009860950678 | EK134: 0.007558739226 | EL134: 0.005736367858
A135: 57 | B135: 165 | C135: 52 | D135: 170 | E135: 25 | F135: 143 | Z135: 3.472402521e-18 | AA135: 8.333093164e-18 | AB135: 1.979882728e-17 | AC135: 4.657252148e-17 | AD135: 1.084618709e-16 | AE135: 2.500814546e-16 | AF135: 5.708775139e-16 | AG135: 1.290213086e-15 | AH135: 2.886934983e-15 | AI135: 6.395428075e-15 | AJ135: 1.402682214e-14 | AK135: 3.045832499e-14 | AL135: 6.548016992e-14 | AM135: 1.393704282e-13 | AN135: 2.936895718e-13 | AO135: 6.127219984e-13 | AP135: 1.265597112e-12 | AQ135: 2.588120736e-12 | AR135: 5.239992253e-12 | AS135: 1.05034945e-11 | AT135: 2.084462255e-11 | AU135: 4.095541334e-11 | AV135: 7.966831771e-11 | AW135: 1.534323847e-10 | AX135: 2.925536215e-10 | AY135: 5.522693958e-10 | AZ135: 1.032175464e-09 | BA135: 1.909911046e-09 | BB135: 3.498886097e-09 | BC135: 6.346050505e-09 | BD135: 1.139552396e-08 | BE135: 2.025919239e-08 | BF135: 3.565882377e-08 | BG135: 6.213967161e-08 | BH135: 1.072081864e-07 | BI135: 1.83123466e-07 | BJ135: 3.096828146e-07 | BK135: 5.18498216e-07 | BL135: 8.594774419e-07 | BM135: 1.410518393e-06 | BN135: 2.291817758e-06 | BO135: 3.686705628e-06 | BP135: 5.871565348e-06 | BQ135: 9.258196427e-06 | BR135: 1.445293129e-05 | BS135: 2.233791018e-05 | BT135: 3.418111283e-05 | BU135: 5.178296463e-05 | BV135: 7.766845721e-05 | BW135: 0.0001153345702 | BX135: 0.0001695631125 | BY135: 0.0002468086141 | BZ135: 0.0003556692359 | CA135: 0.0005074454301 | CB135: 0.0007167858853 | CC135: 0.001002412789 | CD135: 0.001387908413 | CE135: 0.00190253245 | CF135: 0.002582024701 | CG135: 0.003469331245 | CH135: 0.004615175256 | CI135: 0.006078377699 | CJ135: 0.007925820333 | CK135: 0.01023193609 | CL135: 0.01307761265 | CM135: 0.01654840632 | CN135: 0.02073198743 | CO135: 0.02571477645 | CP135: 0.03157778218 | CQ135: 0.0383917184 | CR135: 0.04621154976 | CS135: 0.05507069665 | CT135: 0.06497520564 | CU135: 0.07589825834 | CV135: 0.0877754395 | CW135: 0.1005012054 | CX135: 0.1139269796 | CY135: 0.1278612517 | CZ135: 0.142071961 | DA135: 0.156291318 | DB135: 0.1702230576 | DC135: 0.1835519388 | DD135: 0.1959551222 | DE135: 0.2071148885 | DF135: 0.2167320175 | DG135: 0.2245390513 | DH135: 0.2303126266 | DI135: 0.2338840837 | DJ135: 0.2351476503 | DK135: 0.2340656444 | DL135: 0.2306703418 | DM135: 0.2250623762 | DN135: 0.2174057848 | DO135: 0.2079200385 | DP135: 0.1968695974 | DQ135: 0.1845516849 | DR135: 0.1712830671 | DS135: 0.1573866541 | DT135: 0.1431787049 | DU135: 0.1289573238 | DV135: 0.1149928001 | DW135: 0.1015201713 | DX135: 0.08873421047 | DY135: 0.07678685712 | DZ135: 0.06578694972 | EA135: 0.055801987 | EB135: 0.04686154813 | EC135: 0.03896194739 | ED135: 0.0320716818 | EE135: 0.02613724858 | EF135: 0.02108895487 | EG135: 0.0168464075 | EH135: 0.01332344708 | EI135: 0.01043236938 | EJ135: 0.008087352367 | EK135: 0.006207072682 | EL135: 0.004716549004
A136: 57 | B136: 165 | C136: 52 | D136: 170 | E136: 25 | F136: 143 | Z136: 2.440547955e-18 | AA136: 5.864262592e-18 | AB136: 1.395071696e-17 | AC136: 3.285766531e-17 | AD136: 7.661855031e-17 | AE136: 1.768838631e-16 | AF136: 4.042961019e-16 | AG136: 9.148880364e-16 | AH136: 2.049714618e-15 | AI136: 4.546486472e-15 | AJ136: 9.984250375e-15 | AK136: 2.170761341e-14 | AL136: 4.672676867e-14 | AM136: 9.958099804e-14 | AN136: 2.101088063e-13 | AO136: 4.389035478e-13 | AP136: 9.077180732e-13 | AQ136: 1.858617102e-12 | AR136: 3.767783418e-12 | AS136: 7.562040295e-12 | AT136: 1.502619772e-11 | AU136: 2.956080565e-11 | AV136: 5.757586726e-11 | AW136: 1.110252516e-10 | AX136: 2.119630199e-10 | AY136: 4.006410877e-10 | AZ136: 7.49735248e-10 | BA136: 1.389048556e-09 | BB136: 2.547909398e-09 | BC136: 4.62708619e-09 | BD136: 8.31932811e-09 | BE136: 1.480900814e-08 | BF136: 2.609881242e-08 | BG136: 4.553785555e-08 | BH136: 7.866498417e-08 | BI136: 1.345387534e-07 | BJ136: 2.278087463e-07 | BK136: 3.819006908e-07 | BL136: 6.33851539e-07 | BM136: 1.041553804e-06 | BN136: 1.694466257e-06 | BO136: 2.729236656e-06 | BP136: 4.35217672e-06 | BQ136: 6.871141664e-06 | BR136: 1.074010034e-05 | BS136: 1.662052853e-05 | BT136: 2.546468902e-05 | BU136: 3.862682203e-05 | BV136: 5.800916786e-05 | BW136: 8.625044565e-05 | BX136: 0.0001269647363 | BY136: 0.0001850384311 | BZ136: 0.0002669917336 | CA136: 0.0003814088343 | CB136: 0.0005394370059 | CC136: 0.0007553492101 | CD136: 0.001047157187 | CE136: 0.001437252363 | CF136: 0.001953040459 | CG136: 0.002627522866 | CH136: 0.003499764514 | CI136: 0.004615175256 | CJ136: 0.006025521315 | CK136: 0.007788576891 | CL136: 0.00996732574 | CM136: 0.01262863021 | CN136: 0.01584130285 | CO136: 0.01967354406 | CP136: 0.02418974904 | CQ136: 0.02944673707 | CR136: 0.03548951379 | CS136: 0.04234673934 | CT136: 0.05002613571 | CU136: 0.05851012062 | CV136: 0.06775199458 | CW136: 0.07767302728 | CX136: 0.08816078204 | CY136: 0.09906897991 | CZ136: 0.1102191363 | DA136: 0.1214041049 | DB136: 0.1323935398 | DC136: 0.14294115 | DD136: 0.1527934739 | DE136: 0.1616997667 | DF136: 0.1694224808 | DG136: 0.1757477345 | DH136: 0.1804951303 | DI136: 0.1835262954 | DJ136: 0.1847515805 | DK136: 0.1841344639 | DL136: 0.18169336 | DM136: 0.1775007065 | DN136: 0.1716793938 | DO136: 0.1643967816 | DP136: 0.1558567107 | DQ136: 0.1462900394 | DR136: 0.1359443187 | DS136: 0.1250732466 | DT136: 0.113926522 | DU136: 0.1027406504 | DV136: 0.09173114975 | DW136: 0.08108647451 | DX136: 0.07096383137 | DY136: 0.06148692116 | DZ136: 0.0527455098 | EA136: 0.04479662513 | EB136: 0.03766709731 | EC136: 0.03135711268 | ED136: 0.02584443454 | EE136: 0.02108895487 | EF136: 0.01703727509 | EG136: 0.01362706316 | EH136: 0.01079099416 | EI136: 0.008460142949 | EJ136: 0.006566757823 | EK136: 0.005046396312 | EL136: 0.003839447765
A137: 58 | B137: 164 | C137: 52 | D137: 170 | E137: 25 | F137: 143 | Z137: 1.698250235e-18 | AA137: 4.085805004e-18 | AB137: 9.732191448e-18 | AC137: 2.29509521e-17 | AD137: 5.358556628e-17 | AE137: 1.238659671e-16 | AF137: 2.834739963e-16 | AG137: 6.422905167e-16 | AH137: 1.440810446e-15 | AI137: 3.199920897e-15 | AJ137: 7.036046349e-15 | AK137: 1.531705233e-14 | AL137: 3.301252594e-14 | AM137: 7.044324766e-14 | AN137: 1.488185402e-13 | AO137: 3.112660576e-13 | AP137: 6.445602888e-13 | AQ137: 1.321455006e-12 | AR137: 2.682243931e-12 | AS137: 5.390154541e-12 | AT137: 1.072410896e-11 | AU137: 2.112410289e-11 | AV137: 4.119574729e-11 | AW137: 7.953962734e-11 | AX137: 1.520448707e-10 | AY137: 2.877511384e-10 | AZ137: 5.391621326e-10 | BA137: 1.00018139e-09 | BB137: 1.836941019e-09 | BC137: 3.340171065e-09 | BD137: 6.013111575e-09 | BE137: 1.071733659e-08 | BF137: 1.891174195e-08 | BG137: 3.303948367e-08 | BH137: 5.714681429e-08 | BI137: 9.786059542e-08 | BJ137: 1.659131228e-07 | BK137: 2.784906871e-07 | BL137: 4.628046042e-07 | BM137: 7.614505773e-07 | BN137: 1.240345927e-06 | BO137: 2.000326943e-06 | BP137: 3.193862384e-06 | BQ137: 5.048803516e-06 | BR137: 7.901650109e-06 | BS137: 1.224346024e-05 | BT137: 1.878224975e-05 | BU137: 2.85264745e-05 | BV137: 4.289489883e-05 | BW137: 6.385872586e-05 | BX137: 9.412216438e-05 | BY137: 0.0001373474551 | BZ137: 0.0001984295666 | CA137: 0.0002838240583 | CB137: 0.0004019287595 | CC137: 0.0005635156931 | CD137: 0.0007822039459 | CE137: 0.001074956884 | CF137: 0.001462578358 | CG137: 0.001970172696 | CH137: 0.002627522866 | CI137: 0.003469331245 | CJ137: 0.004535258918 | CK137: 0.005869693981 | CL137: 0.007521178374 | CM137: 0.009541427897 | CN137: 0.0119838927 | CO137: 0.01490182663 | CP137: 0.01834586342 | CQ137: 0.02236113589 | CR137: 0.02698401819 | CS137: 0.03223861947 | CT137: 0.03813320485 | CU137: 0.04465676222 | CV137: 0.05177596627 | CW137: 0.05943280785 | CX137: 0.06754315447 | CY137: 0.07599648154 | CZ137: 0.08465696356 | DA137: 0.09336604103 | DB137: 0.1019464849 | DC137: 0.1102078735 | DD137: 0.1179532862 | DE137: 0.1249869074 | DF137: 0.1311221479 | DG137: 0.1361898189 | DH137: 0.1400458634 | DI137: 0.1425781527 | DJ137: 0.1437119018 | DK137: 0.1434133383 | DL137: 0.141691373 | DM137: 0.1385971588 | DN137: 0.134221566 | DO137: 0.1286907496 | DP137: 0.12216011 | DQ137: 0.1148070491 | DR137: 0.1068229948 | DS137: 0.09840518884 | DT137: 0.08974872843 | DU137: 0.0810392969 | DV137: 0.07244694555 | DW137: 0.06412118657 | DX137: 0.0561875475 | DY137: 0.04874562657 | DZ137: 0.04186858593 | EA137: 0.03560393378 | EB137: 0.02997538233 | EC137: 0.02498552808 | ED137: 0.02061908504 | EE137: 0.0168464075 | EF137: 0.01362706316 | EG137: 0.01091325471 | EH137: 0.008652933558 | EI137: 0.006792497727 | EJ137: 0.005279012492 | EK137: 0.004061934658 | EL137: 0.003094355673
A138: 58 | B138: 164 | C138: 52 | D138: 170 | E138: 25 | F138: 143 | Z138: 1.169965557e-18 | AA138: 2.81837591e-18 | AB138: 6.721741626e-18 | AC138: 1.587163863e-17 | AD138: 3.710383276e-17 | AE138: 8.587620343e-17 | AF138: 1.967813581e-16 | AG138: 4.4642872e-16 | AH138: 1.002714636e-15 | AI138: 2.229767787e-15 | AJ138: 4.909067178e-15 | AK138: 1.070028558e-14 | AL138: 2.309132305e-14 | AM138: 4.933547579e-14 | AN138: 1.043582721e-13 | AO138: 2.185503437e-13 | AP138: 4.531407959e-13 | AQ138: 9.301904739e-13 | AR138: 1.89046076e-12 | AS138: 3.803824769e-12 | AT138: 7.57757759e-12 | AU138: 1.494504879e-11 | AV138: 2.918242228e-11 | AW138: 5.641601331e-11 | AX138: 1.07979299e-10 | AY138: 2.046141527e-10 | AZ138: 3.838732864e-10 | BA138: 7.130125384e-10 | BB138: 1.31118357e-09 | BC138: 2.387189442e-09 | BD138: 4.302960178e-09 | BE138: 7.679002763e-09 | BF138: 1.356748581e-08 | BG138: 2.373290951e-08 | BH138: 4.110168684e-08 | BI138: 7.047342256e-08 | BJ138: 1.19632213e-07 | BK138: 2.010610585e-07 | BL138: 3.345529378e-07 | BM138: 5.511360081e-07 | BN138: 8.988966872e-07 | BO138: 1.451502635e-06 | BP138: 2.320507266e-06 | BQ138: 3.672866067e-06 | BR138: 5.755516538e-06 | BS138: 8.929364999e-06 | BT138: 1.371557124e-05 | BU138: 2.08575974e-05 | BV138: 3.140304166e-05 | BW138: 4.680973748e-05 | BX138: 6.908086245e-05 | BY138: 0.0001009337367 | BZ138: 0.0001460064385 | CA138: 0.0002091051448 | CB138: 0.0002964930273 | CC138: 0.0004162184291 | CD138: 0.0005784757826 | CE138: 0.0007959872549 | CF138: 0.001084386497 | CG138: 0.001462578358 | CH138: 0.001953040459 | CI138: 0.002582024701 | CJ138: 0.003379610106 | CK138: 0.004379553772 | CL138: 0.005618885482 | CM138: 0.00713719486 | CN138: 0.008975568844 | CO138: 0.01117515269 | CP138: 0.01377532978 | CQ138: 0.01681154388 | CR138: 0.02031282128 | CS138: 0.02429908676 | CT138: 0.0287784044 | CU138: 0.03374430794 | CV138: 0.03917341157 | CW138: 0.045023507 | CX138: 0.05123235275 | CY138: 0.05771734374 | CZ138: 0.06437621315 | DA138: 0.07108886362 | DB138: 0.07772035449 | DC138: 0.08412499063 | DD138: 0.09015137189 | DE138: 0.09564817908 | DF138: 0.1004703992 | DG138: 0.1044856394 | DH138: 0.1075801478 | DI138: 0.1096641619 | DJ138: 0.1106762323 | DK138: 0.1105862328 | DL138: 0.1093968498 | DM138: 0.1071434494 | DN138: 0.1038923302 | DO138: 0.0997374833 | DP138: 0.09479607999 | DQ138: 0.08920298909 | DR138: 0.08310468182 | DS138: 0.07665290704 | DT138: 0.06999851459 | DU138: 0.06328577071 | DV138: 0.05664745171 | DW138: 0.05020092708 | DX138: 0.04404535882 | DY138: 0.03826005785 | DZ138: 0.03290395841 | EA138: 0.02801610316 | EB138: 0.02361698009 | EC138: 0.01971051874 | ED138: 0.01628653887 | EE138: 0.01332344708 | EF138: 0.01079099416 | EG138: 0.008652933558 | EH138: 0.006869455834 | EI138: 0.005399311173 | EJ138: 0.004201568365 | EK138: 0.003236991557 | EL138: 0.002469043571
A139: 59 | B139: 163 | C139: 53 | D139: 169 | E139: 26 | F139: 142 | AA139: 1.924762972e-18 | AB139: 4.596317715e-18 | AC139: 1.086675516e-17 | AD139: 2.543588063e-17 | AE139: 5.894551e-17 | AF139: 1.352420472e-16 | AG139: 3.072060737e-16 | AH139: 6.908836493e-16 | AI139: 1.538285997e-15 | AJ139: 3.390988477e-15 | AK139: 7.400696535e-15 | AL139: 1.599101144e-14 | AM139: 3.42086808e-14 | AN139: 7.245256659e-14 | AO139: 1.519246617e-13 | AP139: 3.153986544e-13 | AQ139: 6.482588428e-13 | AR139: 1.319149807e-12 | AS139: 2.657644225e-12 | AT139: 5.30098556e-12 | AU139: 1.046823481e-11 | AV139: 2.046667743e-11 | AW139: 3.961669933e-11 | AX139: 7.592176384e-11 | AY139: 1.440493637e-10 | AZ139: 2.705910665e-10 | BA139: 5.032370636e-10 | BB139: 9.265926269e-10 | BC139: 1.689126268e-09 | BD139: 3.048543853e-09 | BE139: 5.447281672e-09 | BF139: 9.636609794e-09 | BG139: 1.687818607e-08 | BH139: 2.926741204e-08 | BI139: 5.024581889e-08 | BJ139: 8.540289457e-08 | BK139: 1.43715069e-07 | BL139: 2.394357968e-07 | BM139: 3.949416238e-07 | BN139: 6.449614989e-07 | BO139: 1.042777683e-06 | BP139: 1.669193639e-06 | BQ139: 2.645323373e-06 | BR139: 4.150571241e-06 | BS139: 6.447539792e-06 | BT139: 9.916016595e-06 | BU139: 1.5098629e-05 | BV139: 2.276118339e-05 | BW139: 3.39710693e-05 | BX139: 5.019733394e-05 | BY139: 7.343602168e-05 | BZ139: 0.0001063640061 | CA139: 0.0001525236839 | CB139: 0.0002165394061 | CC139: 0.0003043642584 | CD139: 0.0004235526637 | CE139: 0.0005835502213 | CF139: 0.0007959872549 | CG139: 0.001074956884 | CH139: 0.001437252363 | CI139: 0.00190253245 | CJ139: 0.002493378266 | CK139: 0.003235201396 | CL139: 0.004155961621 | CM139: 0.005285654728 | CN139: 0.006655537088 | CO139: 0.008297064771 | CP139: 0.01024054118 | CQ139: 0.01251348828 | CR139: 0.01513878179 | CS139: 0.01813261842 | CT139: 0.0215024116 | CU139: 0.02524473839 | CV139: 0.02934348105 | CW139: 0.03376831943 | CX139: 0.03847373209 | CY139: 0.04339865207 | CZ139: 0.04846689752 | DA139: 0.05358845734 | DB139: 0.05866165954 | DC139: 0.06357618886 | DD139: 0.06821685455 | DE139: 0.07246794496 | DF139: 0.07621794875 | DG139: 0.07936437898 | DH139: 0.08181841147 | DI139: 0.08350904543 | DJ139: 0.08438651481 | DK139: 0.08442472163 | DL139: 0.08362252538 | DM139: 0.08200379965 | DN139: 0.07961625182 | DO139: 0.07652908754 | DP139: 0.07282967932 | DQ139: 0.06861946304 | DR139: 0.06400933099 | DS139: 0.05911481245 | DT139: 0.0540513318 | DU139: 0.04892981093 | DV139: 0.04385284067 | DW139: 0.03891159023 | DX139: 0.03418355952 | DY139: 0.02973121399 | DZ139: 0.0256014791 | EA139: 0.02182601887 | EB139: 0.01842218126 | EC139: 0.01539446607 | ED139: 0.01273635823 | EE139: 0.01043236938 | EF139: 0.008460142949 | EG139: 0.006792497727 | EH139: 0.005399311173 | EI139: 0.004249171582 | EJ139: 0.003310756454 | EK139: 0.002553919803
A140: 60 | B140: 162 | C140: 53 | D140: 169 | E140: 26 | F140: 142 | AA140: 1.30140553e-18 | AB140: 3.111682824e-18 | AC140: 7.366056618e-18 | AD140: 1.72636188e-17 | AE140: 4.005766943e-17 | AF140: 9.20230395e-17 | AG140: 2.092977331e-16 | AH140: 4.712914168e-16 | AI140: 1.050682724e-15 | AJ140: 2.31905318e-15 | AK140: 5.067653114e-15 | AL140: 1.096377479e-14 | AM140: 2.348390894e-14 | AN140: 4.980096117e-14 | AO140: 1.045591676e-13 | AP140: 2.173419526e-13 | AQ140: 4.47282665e-13 | AR140: 9.113341079e-13 | AS140: 1.838358627e-12 | AT140: 3.671469339e-12 | AU140: 7.259498652e-12 | AV140: 1.421118874e-11 | AW140: 2.754299993e-11 | AX140: 5.285050359e-11 | AY140: 1.004023953e-10 | AZ140: 1.88840905e-10 | BA140: 3.516455512e-10 | BB140: 6.482928576e-10 | BC140: 1.183298739e-09 | BD140: 2.138329471e-09 | BE140: 3.825708683e-09 | BF140: 6.776512237e-09 | BG140: 1.188386234e-08 | BH140: 2.063317459e-08 | BI140: 3.546757933e-08 | BJ140: 6.036067667e-08 | BK140: 1.017029865e-07 | BL140: 1.696564469e-07 | BM140: 2.801973889e-07 | BN140: 4.581575582e-07 | BO140: 7.416904421e-07 | BP140: 1.188741883e-06 | BQ140: 1.886294514e-06 | BR140: 2.963387838e-06 | BS140: 4.609189266e-06 | BT140: 7.097700092e-06 | BU140: 1.08210101e-05 | BV140: 1.63333405e-05 | BW140: 2.440839844e-05 | BX140: 3.611275384e-05 | BY140: 5.289796761e-05 | BZ140: 7.671396326e-05 | CA140: 0.0001101455382 | CB140: 0.0001565728488 | CC140: 0.0002203550728 | CD140: 0.0003070341675 | CE140: 0.0004235526637 | CF140: 0.0005784757826 | CG140: 0.0007822039459 | CH140: 0.001047157187 | CI140: 0.001387908413 | CJ140: 0.001821238381 | CK140: 0.002366082235 | CL140: 0.003043336193 | CM140: 0.003875494119 | CN140: 0.004886088046 | CO140: 0.006098914572 | CP140: 0.007537040813 | CQ140: 0.009221599125 | CR140: 0.01117039848 | CS140: 0.01339640129 | CT140: 0.0159061358 | CU140: 0.01869813446 | CV140: 0.02176150495 | CW140: 0.02507475103 | CX140: 0.02860496283 | CY140: 0.0323074887 | CZ140: 0.03612618235 | DA140: 0.0399942902 | DB140: 0.04383600547 | DC140: 0.04756866975 | DD140: 0.05110555345 | DE140: 0.05435909783 | DF140: 0.05724445699 | DG140: 0.05968314428 | DH140: 0.06160656649 | DI140: 0.06295922453 | DJ140: 0.06370137263 | DK140: 0.0638109582 | DL140: 0.06328471038 | DM140: 0.0621383022 | DN140: 0.06040557518 | DO140: 0.0581368799 | DP140: 0.05539664609 | DQ140: 0.05226034572 | DR140: 0.0488110489 | DS140: 0.04513579095 | DT140: 0.04132197109 | DU140: 0.03745398713 | DV140: 0.0336102807 | DW140: 0.02986092641 | DX140: 0.02626585063 | DY140: 0.02287371567 | DZ140: 0.01972145812 | EA140: 0.0168344286 | EB140: 0.0142270479 | EC140: 0.01190387239 | ED140: 0.009860950678 | EE140: 0.008087352367 | EF140: 0.006566757823 | EG140: 0.005279012492 | EH140: 0.004201568365 | EI140: 0.003310756454 | EJ140: 0.002582855379 | EK140: 0.001994940742
A141: 60 | B141: 162 | C141: 53 | D141: 169 | E141: 26 | F141: 142 | AA141: 8.71174381e-19 | AB141: 2.085631893e-18 | AC141: 4.94341736e-18 | AD141: 1.160042639e-17 | AE141: 2.695117364e-17 | AF141: 6.199240236e-17 | AG141: 1.411745157e-16 | AH141: 3.182960151e-16 | AI141: 7.104984775e-16 | AJ141: 1.570189818e-15 | AK141: 3.435565378e-15 | AL141: 7.442199935e-15 | AM141: 1.596105169e-14 | AN141: 3.389055883e-14 | AO141: 7.12447737e-14 | AP141: 1.482806045e-13 | AQ141: 3.05543282e-13 | AR141: 6.23330225e-13 | AS141: 1.258985384e-12 | AT141: 2.517562409e-12 | AU141: 4.98421603e-12 | AV141: 9.769459235e-12 | AW141: 1.895838104e-11 | AX141: 3.642411644e-11 | AY141: 6.928414448e-11 | AZ141: 1.304775361e-10 | BA141: 2.432734366e-10 | BB141: 4.490665317e-10 | BC141: 8.206986947e-10 | BD141: 1.48495691e-09 | BE141: 2.660118697e-09 | BF141: 4.717862018e-09 | BG141: 8.284122448e-09 | BH141: 1.440140418e-08 | BI141: 2.478678639e-08 | BJ141: 4.223696115e-08 | BK141: 7.125611814e-08 | BL141: 1.190169207e-07 | BM141: 1.968123357e-07 | BN141: 3.222203582e-07 | BO141: 5.22288775e-07 | BP141: 8.381571674e-07 | BQ141: 1.331672065e-06 | BR141: 2.094720925e-06 | BS141: 3.26221145e-06 | BT141: 5.029850762e-06 | BU141: 7.678124441e-06 | BV141: 1.1604121e-05 | BW141: 1.73630656e-05 | BX141: 2.572157859e-05 | BY141: 3.772470796e-05 | BZ141: 5.477863542e-05 | CA141: 7.875054853e-05 | CB141: 0.0001120864258 | CC141: 0.0001579463191 | CD141: 0.0002203550728 | CE141: 0.0003043642584 | CF141: 0.0004162184291 | CG141: 0.0005635156931 | CH141: 0.0007553492101 | CI141: 0.001002412789 | CJ141: 0.00131705064 | CK141: 0.001713228947 | CL141: 0.002206405791 | CM141: 0.002813276568 | CN141: 0.003551374929 | CO141: 0.004438514828 | CP141: 0.005492067686 | CQ141: 0.006728079925 | CR141: 0.008160249888 | CS141: 0.009798798556 | CT141: 0.01164928462 | CU141: 0.01371142959 | CV141: 0.01597803156 | CW141: 0.01843405449 | CX141: 0.02105598265 | CY141: 0.02381152533 | CZ141: 0.02665974396 | DA141: 0.02955165358 | DB141: 0.03243132221 | DC141: 0.03523745857 | DD141: 0.03790544125 | DE141: 0.04036970633 | DF141: 0.04256637619 | DG141: 0.04443598615 | DH141: 0.04592614809 | DI141: 0.04699398524 | DJ141: 0.04760818069 | DK141: 0.04775050294 | DL141: 0.04741670484 | DM141: 0.04661673418 | DN141: 0.04537424118 | DO141: 0.04372541706 | DP141: 0.04171724318 | DQ141: 0.03940526902 | DR141: 0.03685106535 | DS141: 0.03411951536 | DT141: 0.03127610878 | DU141: 0.02838439432 | DV141: 0.02550372419 | DW141: 0.02268739487 | DX141: 0.01998125268 | DY141: 0.0174227959 | DZ141: 0.015040769 | EA141: 0.01285521335 | EB141: 0.01087791326 | EC141: 0.00911315904 | ED141: 0.007558739226 | EE141: 0.006207072682 | EF141: 0.005046396312 | EG141: 0.004061934658 | EH141: 0.003236991557 | EI141: 0.002553919803 | EJ141: 0.001994940742 | EK141: 0.0015428006
A142: 61 | B142: 161 | C142: 53 | D142: 169 | E142: 26 | F142: 142 | AA142: 5.773705105e-19 | AB142: 1.384003063e-18 | AC142: 3.284555157e-18 | AD142: 7.717437529e-18 | AE142: 1.795257464e-17 | AF142: 4.134637267e-17 | AG142: 9.427686742e-17 | AH142: 2.128285703e-16 | AI142: 4.756765772e-16 | AJ142: 1.052569209e-15 | AK142: 2.305932609e-15 | AL142: 5.001492427e-15 | AM142: 1.07401334e-14 | AN142: 2.283372628e-14 | AO142: 4.806190281e-14 | AP142: 1.001572026e-13 | AQ142: 2.0664289e-13 | AR142: 4.22100438e-13 | AS142: 8.536270994e-13 | AT142: 1.709140007e-12 | AU142: 3.388005771e-12 | AV142: 6.649173999e-12 | AW142: 1.291957745e-11 | AX142: 2.485340956e-11 | AY142: 4.733481659e-11 | AZ142: 8.92549839e-11 | BA142: 1.666254397e-10 | BB142: 3.07969137e-10 | BC142: 5.635469957e-10 | BD142: 1.020963314e-09 | BE142: 1.831248113e-09 | BF142: 3.251930823e-09 | BG142: 5.717319493e-09 | BH142: 9.951778031e-09 | BI142: 1.715007228e-08 | BJ142: 2.926094068e-08 | BK142: 4.942738883e-08 | BL142: 8.266165714e-08 | BM142: 1.368666389e-07 | BN142: 2.243614055e-07 | BO142: 3.641294095e-07 | BP142: 5.850869574e-07 | BQ142: 9.30769476e-07 | BR142: 1.465955891e-06 | BS142: 2.285897374e-06 | BT142: 3.528983352e-06 | BU142: 5.393858456e-06 | BV142: 8.162186933e-06 | BW142: 1.222842666e-05 | BX142: 1.813809553e-05 | BY142: 2.663605125e-05 | BZ142: 3.872621514e-05 | CA142: 5.574389628e-05 | CB142: 7.944135503e-05 | CC142: 0.0001120864258 | CD142: 0.0001565728488 | CE142: 0.0002165394061 | CF142: 0.0002964930273 | CG142: 0.0004019287595 | CH142: 0.0005394370059 | CI142: 0.0007167858853 | CJ142: 0.000942964208 | CK142: 0.001228168707 | CL142: 0.001583718178 | CM142: 0.002021877461 | CN142: 0.002555576086 | CO142: 0.003198010279 | CP142: 0.003962122968 | CQ142: 0.004859964536 | CR142: 0.005901947003 | CS142: 0.00709601567 | CT142: 0.008446774136 | CU142: 0.009954610052 | CV142: 0.01161487869 | CW142: 0.01341720821 | CX142: 0.01534499304 | CY142: 0.01737513898 | CZ142: 0.01947811537 | DA142: 0.02161835458 | DB142: 0.02375501958 | DC142: 0.02584313552 | DD142: 0.02783505427 | DE142: 0.02968219371 | DF142: 0.03133696791 | DG142: 0.03275480406 | DH142: 0.03389612823 | DI142: 0.03472819706 | DJ142: 0.03522665741 | DK142: 0.0353767302 | DL142: 0.03517393837 | DM142: 0.03462432873 | DN142: 0.03374417242 | DO142: 0.0325591648 | DP142: 0.03110317941 | DQ142: 0.02941666064 | DR142: 0.02754476111 | DS142: 0.02553534356 | DT142: 0.02343696955 | DU142: 0.02129699168 | DV142: 0.01915985076 | DW142: 0.01706565799 | DX142: 0.01504911666 | DY142: 0.01313881008 | DZ142: 0.01135685593 | EA142: 0.009718903118 | EB142: 0.008234428154 | EC142: 0.00690727412 | ED142: 0.005736367858 | EE142: 0.004716549004 | EF142: 0.003839447765 | EG142: 0.003094355673 | EH142: 0.002469043571 | EI142: 0.001950492713 | EJ142: 0.001525516696 | EK142: 0.001181263143
A143: 61 | B143: 161 | C143: 53 | D143: 169 | E143: 26 | F143: 142 | AA143: 3.78844648e-19 | AB143: 9.092713313e-19 | AC143: 2.160642405e-18 | AD143: 5.083108124e-18 | AE143: 1.183948619e-17 | AF143: 2.730193435e-17 | AG143: 6.233199626e-17 | AH143: 1.408917972e-16 | AI143: 3.152952567e-16 | AJ143: 6.985640319e-16 | AK143: 1.532329136e-15 | AL143: 3.32778265e-15 | AM143: 7.155086724e-15 | AN143: 1.523112233e-14 | AO143: 3.210006897e-14 | AP143: 6.697875646e-14 | AQ143: 1.383646822e-13 | AR143: 2.829895996e-13 | AS143: 5.730239245e-13 | AT143: 1.148767367e-12 | AU143: 2.280071575e-12 | AV143: 4.480453001e-12 | AW143: 8.716706574e-12 | AX143: 1.678958582e-11 | AY143: 3.201729179e-11 | AZ143: 6.044860185e-11 | BA143: 1.129912939e-10 | BB143: 2.091032382e-10 | BC143: 3.831189117e-10 | BD143: 6.949658709e-10 | BE143: 1.248102978e-09 | BF143: 2.219189644e-09 | BG143: 3.906568731e-09 | BH143: 6.80853348e-09 | BI143: 1.174812991e-08 | BJ143: 2.006970359e-08 | BK143: 3.394456377e-08 | BL143: 5.684032603e-08 | BM143: 9.423233311e-08 | BN143: 1.546679691e-07 | BO143: 2.513378391e-07 | BP143: 4.043639461e-07 | BQ143: 6.440862539e-07 | BR143: 1.015716927e-06 | BS143: 1.585836483e-06 | BT143: 2.451326583e-06 | BU143: 3.751465872e-06 | BV143: 5.684049878e-06 | BW143: 8.526520013e-06 | BX143: 1.266318077e-05 | BY143: 1.861962167e-05 | BZ143: 2.710540828e-05 | CA143: 3.906592478e-05 | CB143: 5.574389628e-05 | CC143: 7.875054853e-05 | CD143: 0.0001101455382 | CE143: 0.0001525236839 | CF143: 0.0002091051448 | CG143: 0.0002838240583 | CH143: 0.0003814088343 | CI143: 0.0005074454301 | CJ143: 0.0006684131704 | CK143: 0.0008716812546 | CL143: 0.001125453276 | CM143: 0.001438647145 | CN143: 0.001820699034 | CO143: 0.002281282613 | CP143: 0.002829939001 | CQ143: 0.003475618607 | CR143: 0.004226143192 | CS143: 0.005087604671 | CT143: 0.006063725906 | CU143: 0.007155217206 | CV143: 0.008359169602 | CW143: 0.00966853129 | CX143: 0.01107171588 | CY143: 0.01255238968 | CZ143: 0.01408947948 | DA143: 0.0156574322 | DB143: 0.01722674344 | DC143: 0.01876475451 | DD143: 0.02023669767 | DE143: 0.02160694941 | DF143: 0.02284043243 | DG143: 0.02390409158 | DH143: 0.02476835828 | DI143: 0.02540851325 | DJ143: 0.02580586025 | DK143: 0.02594863301 | DL143: 0.02583257398 | DM143: 0.02546114527 | DN143: 0.02484535709 | DO143: 0.02400322558 | DP143: 0.02295889729 | DQ143: 0.02174149976 | DR143: 0.0203837943 | DS143: 0.01892071797 | DT143: 0.01738790471 | DU143: 0.015820272 | DV143: 0.01425074916 | DW143: 0.01270920839 | DX143: 0.01122164074 | DY143: 0.009809599486 | DZ143: 0.00848991313 | EA143: 0.007274652828 | EB143: 0.006171324072 | EC143: 0.005183242034 | ED143: 0.004310043765 | EE143: 0.003548288522 | EF143: 0.002892099484 | EG143: 0.002333805101 | EH143: 0.001864545546 | EI143: 0.001474818116 | EJ143: 0.001154944157 | EK143: 0.000895448397
A144: 62 | B144: 160 | C144: 54 | D144: 168 | E144: 27 | F144: 141 | AB144: 5.914349712e-19 | AC144: 1.40716909e-18 | AD144: 3.314687787e-18 | AE144: 7.730294237e-18 | AF144: 1.784869533e-17 | AG144: 4.080129838e-17 | AH144: 9.234184457e-17 | AI144: 2.069093721e-16 | AJ144: 4.590064997e-16 | AK144: 1.008125414e-15 | AL144: 2.192135251e-15 | AM144: 4.719295633e-15 | AN144: 1.005875145e-14 | AO144: 2.122599343e-14 | AP144: 4.434544619e-14 | AQ144: 9.172486638e-14 | AR144: 1.878374577e-13 | AS144: 3.808328219e-13 | AT144: 7.644403367e-13 | AU144: 1.51918224e-12 | AV144: 2.989050202e-12 | AW144: 5.822554993e-12 | AX144: 1.122925758e-11 | AY144: 2.144102505e-11 | AZ144: 4.05319128e-11 | BA144: 7.585875491e-11 | BB144: 1.40563116e-10 | BC144: 2.578660079e-10 | BD144: 4.68353611e-10 | BE144: 8.421912099e-10 | BF144: 1.499355409e-09 | BG144: 2.642746659e-09 | BH144: 4.611726349e-09 | BI144: 7.967619416e-09 | BJ144: 1.362858253e-08 | BK144: 2.30796836e-08 | BL144: 3.869599946e-08 | BM144: 6.423316785e-08 | BN144: 1.055625005e-07 | BO144: 1.717580307e-07 | BP144: 2.766823721e-07 | BQ144: 4.412685583e-07 | BR144: 6.967573078e-07 | BS144: 1.089223835e-06 | BT144: 1.68581454e-06 | BU144: 2.583208788e-06 | BV144: 3.918918925e-06 | BW144: 5.886133439e-06 | BX144: 8.752880174e-06 | BY144: 1.288632018e-05 | BZ144: 1.878295457e-05 | CA144: 2.710540828e-05 | CB144: 3.872621514e-05 | CC144: 5.477863542e-05 | CD144: 7.671396326e-05 | CE144: 0.0001063640061 | CF144: 0.0001460064385 | CG144: 0.0001984295666 | CH144: 0.0002669917336 | CI144: 0.0003556692359 | CJ144: 0.0004690853221 | CK144: 0.0006125117734 | CL144: 0.0007918339043 | CM144: 0.001013469774 | CN144: 0.001284235182 | CO144: 0.001611147794 | CP144: 0.002001166638 | CQ144: 0.002460867225 | CR144: 0.002996057648 | CS144: 0.003611346867 | CT144: 0.004309682713 | CU144: 0.005091883359 | CV144: 0.005956191475 | CW144: 0.00689788437 | CX144: 0.007908975394 | CY144: 0.008978041199 | CZ144: 0.01009020567 | DA144: 0.01122730443 | DB144: 0.0123682437 | DC144: 0.01348955503 | DD144: 0.01456613296 | DE144: 0.0155721282 | DF144: 0.01648195508 | DG144: 0.01727136003 | DH144: 0.01791848979 | DI144: 0.01840489419 | DJ144: 0.01871639929 | DK144: 0.01884379337 | DL144: 0.01878327947 | DM144: 0.01853666334 | DN144: 0.01811126395 | DO144: 0.01751955264 | DP144: 0.01677854589 | DQ144: 0.01590899271 | DR144: 0.01493441106 | DS144: 0.01388003541 | DT144: 0.01277174099 | DU144: 0.011635008 | DV144: 0.01049398224 | DW144: 0.00937067809 | DX144: 0.008284356279 | DY144: 0.00725109462 | DZ144: 0.006283555159 | EA144: 0.005390938116 | EB144: 0.004579101987 | EC144: 0.003850821087 | ED144: 0.003206146933 | EE144: 0.002642838087 | EF144: 0.002156824199 | EG144: 0.001742673364 | EH144: 0.001394036979 | EI144: 0.001104052309 | EJ144: 0.0008656893241
A145: 63 | B145: 159 | C145: 54 | D145: 168 | E145: 27 | F145: 141 | AB145: 3.808706946e-19 | AC145: 9.073330556e-19 | AD145: 2.13999601e-18 | AE145: 4.99707939e-18 | AF145: 1.15525163e-17 | AG145: 2.644198083e-17 | AH145: 5.991953539e-17 | AI145: 1.344311592e-16 | AJ145: 2.985991074e-16 | AK145: 6.56650262e-16 | AL145: 1.429673258e-15 | AM145: 3.081743728e-15 | AN145: 6.576779827e-15 | AO145: 1.389591473e-14 | AP145: 2.906819287e-14 | AQ145: 6.020131543e-14 | AR145: 1.23438599e-13 | AS145: 2.505838296e-13 | AT145: 5.036306533e-13 | AU145: 1.002139831e-12 | AV145: 1.974247277e-12 | AW145: 3.850630323e-12 | AX145: 7.435653792e-12 | AY145: 1.421554616e-11 | AZ145: 2.690698238e-11 | BA145: 5.042239774e-11 | BB145: 9.35489783e-11 | BC145: 1.718350124e-10 | BD145: 3.124937414e-10 | BE145: 5.626366831e-10 | BF145: 1.002932765e-09 | BG145: 1.769997489e-09 | BH145: 3.092648314e-09 | BI145: 5.349897696e-09 | BJ145: 9.162573544e-09 | BK145: 1.553626159e-08 | BL145: 2.6081504e-08 | BM145: 4.334867161e-08 | BN145: 7.133062187e-08 | BO145: 1.162072657e-07 | BP145: 1.874336704e-07 | BQ145: 2.993084599e-07 | BR145: 4.732029354e-07 | BS145: 7.40683931e-07 | BT145: 1.147824448e-06 | BU145: 1.761063736e-06 | BV145: 2.675048944e-06 | BW145: 4.022957514e-06 | BX145: 5.989853698e-06 | BY145: 8.829661182e-06 | BZ145: 1.288632018e-05 | CA145: 1.861962167e-05 | CB145: 2.663605125e-05 | CC145: 3.772470796e-05 | CD145: 5.289796761e-05 | CE145: 7.343602168e-05 | CF145: 0.0001009337367 | CG145: 0.0001373474551 | CH145: 0.0001850384311 | CI145: 0.0002468086141 | CJ145: 0.0003259235516 | CK145: 0.0004261163815 | CL145: 0.0005515663612 | CM145: 0.0007068452895 | CN145: 0.0008968256477 | CO145: 0.001126545473 | CP145: 0.001401026948 | CQ145: 0.001725048485 | CR145: 0.002102873646 | CS145: 0.002537944414 | CT145: 0.003032550828 | CU145: 0.003587493531 | CV145: 0.004201759781 | CW145: 0.004872236579 | CX145: 0.005593486207 | CY145: 0.006357609225 | CZ145: 0.007154217577 | DA145: 0.007970535731 | DB145: 0.008791640828 | DC145: 0.009600844077 | DD145: 0.01038020549 | DE145: 0.01111116357 | DF145: 0.01177525134 | DG145: 0.01235486163 | DH145: 0.01283401792 | DI145: 0.01319910403 | DJ145: 0.01343950637 | DK145: 0.01354812635 | DL145: 0.01352172858 | DM145: 0.01336110095 | DN145: 0.01307101556 | DO145: 0.01265999323 | DP145: 0.01213988772 | DQ145: 0.01152531813 | DR145: 0.01083298718 | DS145: 0.01008092982 | DT145: 0.009287739133 | DU145: 0.00847181535 | DV145: 0.007650679504 | DW145: 0.006840385729 | DX145: 0.006055056925 | DY145: 0.005306558103 | DZ145: 0.004604311231 | EA145: 0.003955245782 | EB145: 0.003363871017 | EC145: 0.00283244998 | ED145: 0.002361251345 | EE145: 0.001948853722 | EF145: 0.001592477564 | EG145: 0.001288322101 | EH145: 0.001031888202 | EI145: 0.0008182723803 | EJ145: 0.0006424216858
A146: 63 | B146: 159 | C146: 54 | D146: 168 | E146: 27 | F146: 141 | AB146: 2.428315827e-19 | AC146: 5.792209143e-19 | AD146: 1.36785592e-18 | AE146: 3.19811097e-18 | AF146: 7.402931978e-18 | AG146: 1.696567112e-17 | AH146: 3.84942076e-17 | AI146: 8.647225401e-17 | AJ146: 1.92315917e-16 | AK146: 4.234583841e-16 | AL146: 9.23130918e-16 | AM146: 1.992383392e-15 | AN146: 4.257352244e-15 | AO146: 9.006650507e-15 | AP146: 1.88644476e-14 | AQ146: 3.911847621e-14 | AR146: 8.031133059e-14 | AS146: 1.632408203e-13 | AT146: 3.285018131e-13 | AU146: 6.544912255e-13 | AV146: 1.291002078e-12 | AW146: 2.521198901e-12 | AX146: 4.874660029e-12 | AY146: 9.331223906e-12 | AZ146: 1.76843843e-11 | BA146: 3.31816771e-11 | BB146: 6.164016273e-11 | BC146: 1.133669012e-10 | BD146: 2.06426681e-10 | BE146: 3.721366461e-10 | BF146: 6.641957675e-10 | BG146: 1.173672215e-09 | BH146: 2.05331036e-09 | BI146: 3.556472284e-09 | BJ146: 6.098756779e-09 | BK146: 1.035428833e-08 | BL146: 1.740428755e-08 | BM146: 2.89633839e-08 | BN146: 4.771988702e-08 | BO146: 7.784067047e-08 | BP146: 1.257102773e-07 | BQ146: 2.00998148e-07 | BR146: 3.181781722e-07 | BS146: 4.986614145e-07 | BT146: 7.737456166e-07 | BU146: 1.188632755e-06 | BV146: 1.807816065e-06 | BW146: 2.722186301e-06 | BX146: 4.058247239e-06 | BY146: 5.989853698e-06 | BZ146: 8.752880174e-06 | CA146: 1.266318077e-05 | CB146: 1.813809553e-05 | CC146: 2.572157859e-05 | CD146: 3.611275384e-05 | CE146: 5.019733394e-05 | CF146: 6.908086245e-05 | CG146: 9.412216438e-05 | CH146: 0.0001269647363 | CI146: 0.0001695631125 | CJ146: 0.0002242005635 | CK146: 0.0002934938971 | CL146: 0.0003803807281 | CM146: 0.0004880844717 | CN146: 0.0006200525982 | CO146: 0.0007798644572 | CP146: 0.0009711063157 | CQ146: 0.001197213168 | CR146: 0.001461279347 | CS146: 0.001765842898 | CT146: 0.002112651852 | CU146: 0.002502423799 | CV146: 0.002934613046 | CW146: 0.003407201994 | CX146: 0.003916534656 | CY146: 0.004457210259 | CZ146: 0.005022053378 | DA146: 0.005602173856 | DB146: 0.006187125077 | DC146: 0.006765162987 | DD146: 0.00732360121 | DE146: 0.007849250088 | DF146: 0.008328920189 | DG146: 0.008749964473 | DH146: 0.009100828575 | DI146: 0.009371576044 | DJ146: 0.009554355317 | DK146: 0.009643777861 | DL146: 0.009637182053 | DM146: 0.009534764776 | DN146: 0.009339571663 | DO146: 0.009057346644 | DP146: 0.008696251178 | DQ146: 0.008266472326 | DR146: 0.007779745899 | DS146: 0.007248825809 | DT146: 0.006686932975 | DU146: 0.006107216724 | DV146: 0.005522258708 | DW146: 0.004943644362 | DX146: 0.004381620381 | DY146: 0.003844849373 | DZ146: 0.003340265347 | EA146: 0.002873026692 | EB146: 0.002446557396 | EC146: 0.002062662685 | ED146: 0.001721702342 | EE146: 0.001422803693 | EF146: 0.001164096417 | EG146: 0.0009429528474 | EH146: 0.0007562198192 | EI146: 0.0006004311146 | EJ146: 0.0004719928056
A147: 64 | B147: 158 | C147: 54 | D147: 168 | E147: 27 | F147: 141 | AB147: 1.532815341e-19 | AC147: 3.660823509e-19 | AD147: 8.656150531e-19 | AE147: 2.026412538e-18 | AF147: 4.696647682e-18 | AG147: 1.077718051e-17 | AH147: 2.448383174e-17 | AI147: 5.506944133e-17 | AJ147: 1.226306444e-16 | AK147: 2.703612247e-16 | AL147: 5.901288613e-16 | AM147: 1.275282383e-15 | AN147: 2.728493482e-15 | AO147: 5.779583416e-15 | AP147: 1.212068618e-14 | AQ147: 2.516604291e-14 | AR147: 5.173205301e-14 | AS147: 1.052837997e-13 | AT147: 2.12138963e-13 | AU147: 4.231909661e-13 | AV147: 8.358135163e-13 | AW147: 1.634328849e-12 | AX147: 3.163927762e-12 | AY147: 6.064161049e-12 | AZ147: 1.150726062e-11 | BA147: 2.161873245e-11 | BB147: 4.021106352e-11 | BC147: 7.404878684e-11 | BD147: 1.350042346e-10 | BE147: 2.436878574e-10 | BF147: 4.354892541e-10 | BG147: 7.70509596e-10 | BH147: 1.349695239e-09 | BI147: 2.340725223e-09 | BJ147: 4.019038896e-09 | BK147: 6.832050044e-09 | BL147: 1.149838705e-08 | BM147: 1.915930996e-08 | BN147: 3.160675125e-08 | BO147: 5.16222475e-08 | BP147: 8.347395947e-08 | BQ147: 1.336356021e-07 | BR147: 2.118119169e-07 | BS147: 3.323805954e-07 | BT147: 5.163901952e-07 | BU147: 7.942868435e-07 | BV147: 1.209577795e-06 | BW147: 1.823674381e-06 | BX147: 2.722186301e-06 | BY147: 4.022957514e-06 | BZ147: 5.886133439e-06 | CA147: 8.526520013e-06 | CB147: 1.222842666e-05 | CC147: 1.73630656e-05 | CD147: 2.440839844e-05 | CE147: 3.39710693e-05 | CF147: 4.680973748e-05 | CG147: 6.385872586e-05 | CH147: 8.625044565e-05 | CI147: 0.0001153345702 | CJ147: 0.000152691447 | CK147: 0.0002001368107 | CL147: 0.000259714558 | CM147: 0.0003336742315 | CN147: 0.0004244300245 | CO147: 0.0005344986142 | CP147: 0.0006664140177 | CQ147: 0.0008226189675 | CR147: 0.001005333998 | CS147: 0.001216407461 | CT147: 0.001457151931 | CU147: 0.001728174736 | CV147: 0.002029212474 | CW147: 0.002358981037 | CX147: 0.002715053747 | CY147: 0.003093780288 | CZ147: 0.003490258231 | DA147: 0.003898366866 | DB147: 0.004310869832 | DC147: 0.004719588855 | DD147: 0.005115645948 | DE147: 0.00548976618 | DF147: 0.005832627893 | DG147: 0.006135242717 | DH147: 0.006389344161 | DI147: 0.006587761542 | DJ147: 0.00672475574 | DK147: 0.006796294869 | DL147: 0.006800251381 | DM147: 0.006736507174 | DN147: 0.006606959446 | DO147: 0.006415426899 | DP147: 0.006167462757 | DQ147: 0.005870087374 | DR147: 0.005531458403 | DS147: 0.005160500105 | DT147: 0.004766515249 | DU147: 0.004358802963 | DV147: 0.003946304052 | DW147: 0.00353729194 | DX147: 0.003139122912 | DY147: 0.002758054173 | DZ147: 0.002399132969 | EA147: 0.00206615501 | EB147: 0.001761686141 | EC147: 0.001487137859 | ED147: 0.001242885088 | EE147: 0.001028413526 | EF147: 0.0008424839531 | EG147: 0.0006833017775 | EH147: 0.0005486817543 | EI147: 0.0004361998801 | EJ147: 0.0003433267325
A148: 65 | B148: 157 | C148: 55 | D148: 167 | E148: 28 | F148: 140 | AC148: 2.29071154e-19 | AD148: 5.423333372e-19 | AE148: 1.271215718e-18 | AF148: 2.95004922e-18 | AG148: 6.777918231e-18 | AH148: 1.541773027e-17 | AI148: 3.47217509e-17 | AJ148: 7.74176253e-17 | AK148: 1.708972717e-16 | AL148: 3.734973017e-16 | AM148: 8.081590913e-16 | AN148: 1.731264055e-15 | AO148: 3.671865941e-15 | AP148: 7.710230766e-15 | AQ148: 1.602894695e-14 | AR148: 3.299131768e-14 | AS148: 6.722818507e-14 | AT148: 1.356313759e-13 | AU148: 2.709106031e-13 | AV148: 5.357336109e-13 | AW148: 1.048887332e-12 | AX148: 2.033133242e-12 | AY148: 3.90175412e-12 | AZ148: 7.413290335e-12 | BA148: 1.394502111e-11 | BB148: 2.59707444e-11 | BC148: 4.788579203e-11 | BD148: 8.741500915e-11 | BE148: 1.579873792e-10 | BF148: 2.826935096e-10 | BG148: 5.008023237e-10 | BH148: 8.783627068e-10 | BI148: 1.52524109e-09 | BJ148: 2.622165868e-09 | BK148: 4.463123234e-09 | BL148: 7.520983784e-09 | BM148: 1.254779692e-08 | BN148: 2.072608932e-08 | BO148: 3.389411547e-08 | BP148: 5.48767394e-08 | BQ148: 8.796488692e-08 | BR148: 1.396006542e-07 | BS148: 2.193424114e-07 | BT148: 3.412045617e-07 | BU148: 5.254895684e-07 | BV148: 8.012543951e-07 | BW148: 1.209577795e-06 | BX148: 1.807816065e-06 | BY148: 2.675048944e-06 | BZ148: 3.918918925e-06 | CA148: 5.684049878e-06 | CB148: 8.162186933e-06 | CC148: 1.1604121e-05 | CD148: 1.63333405e-05 | CE148: 2.276118339e-05 | CF148: 3.140304166e-05 | CG148: 4.289489883e-05 | CH148: 5.800916786e-05 | CI148: 7.766845721e-05 | CJ148: 0.0001029555532 | CK148: 0.0001351176023 | CL148: 0.0001755622501 | CM148: 0.0002258433993 | CN148: 0.0002876343311 | CO148: 0.0003626862531 | CP148: 0.0004527709181 | CQ148: 0.0005596068325 | CR148: 0.0006847697199 | CS148: 0.0008295893013 | CT148: 0.0009950359974 | CU148: 0.001181602762 | CV148: 0.001389188751 | CW148: 0.001616992752 | CX148: 0.001863425112 | CY148: 0.002126047042 | CZ148: 0.002401545674 | DA148: 0.002685751871 | DB148: 0.002973705652 | DC148: 0.003259771247 | DD148: 0.003537800398 | DE148: 0.003801338843 | DF148: 0.004043867297 | DG148: 0.004259064947 | DH148: 0.004441080907 | DI148: 0.004584797543 | DJ148: 0.004686069178 | DK148: 0.004741920663 | DL148: 0.004750692567 | DM148: 0.004712123073 | DN148: 0.004627360964 | DO148: 0.004498908778 | DP148: 0.004330500082 | DQ148: 0.00412691924 | DR148: 0.003893775825 | DS148: 0.003637248504 | DT148: 0.003363814656 | DU148: 0.003079982141 | DV148: 0.00279203844 | DW148: 0.002505830225 | DX148: 0.002226583307 | DY148: 0.001958769393 | DZ148: 0.001706022384 | EA148: 0.001471103388 | EB148: 0.001255910588 | EC148: 0.001061527631 | ED148: 0.0008883026128 | EE148: 0.0007359488502 | EF148: 0.0006036585802 | EG148: 0.0004902213029 | EH148: 0.0003941395687 | EI148: 0.0003137364292
A149: 66 | B149: 156 | C149: 55 | D149: 167 | E149: 28 | F149: 140 | AC149: 1.419119837e-19 | AD149: 3.36406871e-19 | AE149: 7.89528296e-19 | AF149: 1.834541736e-18 | AG149: 4.220311901e-18 | AH149: 9.612106099e-18 | AI149: 2.167452649e-17 | AJ149: 4.838800716e-17 | AK149: 1.069505221e-16 | AL149: 2.340373313e-16 | AM149: 5.07042567e-16 | AN149: 1.087578864e-15 | AO149: 2.309586076e-15 | AP149: 4.855842607e-15 | AQ149: 1.010769446e-14 | AR149: 2.083035467e-14 | AS149: 4.250091489e-14 | AT149: 8.585329119e-14 | AU149: 1.717009402e-13 | AV149: 3.399738028e-13 | AW149: 6.664618407e-13 | AX149: 1.293487328e-12 | AY149: 2.485456256e-12 | AZ149: 4.728322872e-12 | BA149: 8.905640924e-12 | BB149: 1.660658342e-11 | BC149: 3.065860976e-11 | BD149: 5.603787768e-11 | BE149: 1.014070048e-10 | BF149: 1.816817428e-10 | BG149: 3.222639115e-10 | BH149: 5.659383394e-10 | BI149: 9.839739782e-10 | BJ149: 1.693772845e-09 | BK149: 2.886581164e-09 | BL149: 4.870453891e-09 | BM149: 8.136022749e-09 | BN149: 1.345587448e-08 | BO149: 2.203275249e-08 | BP149: 3.571763042e-08 | BQ149: 5.732625589e-08 | BR149: 9.109227988e-08 | BS149: 1.433067414e-07 | BT149: 2.232074701e-07 | BU149: 3.441976371e-07 | BV149: 5.254895684e-07 | BW149: 7.942868435e-07 | BX149: 1.188632755e-06 | BY149: 1.761063736e-06 | BZ149: 2.583208788e-06 | CA149: 3.751465872e-06 | CB149: 5.393858456e-06 | CC149: 7.678124441e-06 | CD149: 1.08210101e-05 | CE149: 1.5098629e-05 | CF149: 2.08575974e-05 | CG149: 2.85264745e-05 | CH149: 3.862682203e-05 | CI149: 5.178296463e-05 | CJ149: 6.872929637e-05 | CK149: 9.031376345e-05 | CL149: 0.000117495988 | CM149: 0.0001513384182 | CN149: 0.0001929889299 | CO149: 0.0002436535039 | CP149: 0.0003045579772 | CQ149: 0.0003768984512 | CR149: 0.0004617807039 | CS149: 0.0005601499031 | CT149: 0.0006727129748 | CU149: 0.000799857089 | CV149: 0.0009415687748 | CW149: 0.001097359056 | CX149: 0.001266200591 | CY149: 0.001446482976 | CZ149: 0.001635992079 | DA149: 0.001831918388 | DB149: 0.002030897955 | DC149: 0.00222908761 | DD149: 0.002422273782 | DE149: 0.00260601178 | DF149: 0.002775789801 | DG149: 0.002927209676 | DH149: 0.00305617447 | DI149: 0.003159071897 | DJ149: 0.003232942139 | DK149: 0.003275619207 | DL149: 0.003285836437 | DM149: 0.003263288937 | DN149: 0.003208648703 | DO149: 0.003123531348 | DP149: 0.003010416751 | DQ149: 0.002872529054 | DR149: 0.00271368412 | DS149: 0.002538114509 | DT149: 0.002350283142 | DU149: 0.002154697036 | DV149: 0.001955731804 | DW149: 0.001757476139 | DX149: 0.001563603493 | DY149: 0.001377275688 | DZ149: 0.001201080694 | EA149: 0.001037004273 | EB149: 0.0008864330932 | EC149: 0.0007501850956 | ED149: 0.0006285617611 | EE149: 0.0005214162209 | EF149: 0.0004282310694 | EG149: 0.0003482000783 | EH149: 0.0002803087216 | EI149: 0.0002234093845
A150: 67 | B150: 155 | C150: 55 | D150: 167 | E150: 28 | F150: 140 | AC150: 8.704118466e-20 | AD150: 2.065953151e-19 | AE150: 4.854820754e-19 | AF150: 1.129491549e-18 | AG150: 2.601655731e-18 | AH150: 5.932991465e-18 | AI150: 1.33953688e-17 | AJ150: 2.994281879e-17 | AK150: 6.626554038e-17 | AL150: 1.45191055e-16 | AM150: 3.149553815e-16 | AN150: 6.764181634e-16 | AO150: 1.43826378e-15 | AP150: 3.027742113e-15 | AQ150: 6.310391072e-15 | AR150: 1.30211914e-14 | AS150: 2.660126111e-14 | AT150: 5.380353179e-14 | AU150: 1.077398579e-13 | AV150: 2.135989274e-13 | AW150: 4.192555222e-13 | AX150: 8.147334944e-13 | AY150: 1.567506699e-12 | AZ150: 2.985797122e-12 | BA150: 5.630775859e-12 | BB150: 1.051315918e-11 | BC150: 1.94336911e-11 | BD150: 3.556594935e-11 | BE150: 6.444223157e-11 | BF150: 1.156015859e-10 | BG150: 2.053118744e-10 | BH150: 3.610118013e-10 | BI150: 6.284717855e-10 | BJ150: 1.083196447e-09 | BK150: 1.848356434e-09 | BL150: 3.122635375e-09 | BM150: 5.222926117e-09 | BN150: 8.64895315e-09 | BO150: 1.417980511e-08 | BP150: 2.301622183e-08 | BQ150: 3.698749013e-08 | BR150: 5.884814061e-08 | BS150: 9.26974278e-08 | BT150: 1.445638403e-07 | BU150: 2.232074701e-07 | BV150: 3.412045617e-07 | BW150: 5.163901952e-07 | BX150: 7.737456166e-07 | BY150: 1.147824448e-06 | BZ150: 1.68581454e-06 | CA150: 2.451326583e-06 | CB150: 3.528983352e-06 | CC150: 5.029850762e-06 | CD150: 7.097700092e-06 | CE150: 9.916016595e-06 | CF150: 1.371557124e-05 | CG150: 1.878224975e-05 | CH150: 2.546468902e-05 | CI150: 3.418111283e-05 | CJ150: 4.542459606e-05 | CK150: 5.976583692e-05 | CL150: 7.78523976e-05 | CM150: 0.0001004033108 | CN150: 0.0001281979648 | CO150: 0.0001620583015 | CP150: 0.0002028236014 | CQ150: 0.0002513175125 | CR150: 0.0003083074861 | CS150: 0.0003744574219 | CT150: 0.0004502750374 | CU150: 0.0005360562379 | CV150: 0.0006318294903 | CW150: 0.0007373038235 | CX150: 0.0008518245152 | CY150: 0.0009743406876 | CZ150: 0.001103388867 | DA150: 0.001237096027 | DB150: 0.001373204701 | DC150: 0.001509121499 | DD150: 0.001641988783 | DE150: 0.001768777564 | DF150: 0.00188639793 | DG150: 0.001991821686 | DH150: 0.002082210619 | DI150: 0.002155042864 | DJ150: 0.002208229583 | DK150: 0.002240214427 | DL150: 0.002250049181 | DM150: 0.002237440461 | DN150: 0.002202764248 | DO150: 0.002147047269 | DP150: 0.002071916494 | DQ150: 0.001979520232 | DR150: 0.001872426148 | DS150: 0.001753502966 | DT150: 0.001625793443 | DU150: 0.001492386409 | DV150: 0.001356295305 | DW150: 0.001220349666 | DX150: 0.001087104692 | DY150: 0.0009587723674 | DZ150: 0.0008371758709 | EA150: 0.0007237272941 | EB150: 0.0006194271768 | EC150: 0.0005248831306 | ED150: 0.0004403439457 | EE150: 0.0003657450855 | EF150: 0.000300761349 | EG150: 0.0002448626832 | EH150: 0.0001973695902 | EI150: 0.0001575052121
A151: 68 | B151: 154 | C151: 56 | D151: 166 | E151: 29 | F151: 139 | AD151: 1.256125799e-19 | AE151: 2.95553261e-19 | AF151: 6.884865027e-19 | AG151: 1.587859826e-18 | AH151: 3.625650576e-18 | AI151: 8.196280014e-18 | AJ151: 1.834444947e-17 | AK151: 4.064897827e-17 | AL151: 8.917674988e-17 | AM151: 1.93691562e-16 | AN151: 4.165113284e-16 | AO151: 8.867475347e-16 | AP151: 1.869090012e-15 | AQ151: 3.900475001e-15 | AR151: 8.058641501e-15 | AS151: 1.648402363e-14 | AT151: 3.338271665e-14 | AU151: 6.693252039e-14 | AV151: 1.328647385e-13 | AW151: 2.611195269e-13 | AX151: 5.080728857e-13 | AY151: 9.787454183e-13 | AZ151: 1.866682778e-12 | BA151: 3.524750288e-12 | BB151: 6.58936013e-12 | BC151: 1.219593744e-11 | BD151: 2.23482843e-11 | BE151: 4.054434065e-11 | BF151: 7.282380251e-11 | BG151: 1.295011178e-10 | BH151: 2.279978424e-10 | BI151: 3.974156931e-10 | BJ151: 6.858297863e-10 | BK151: 1.171776351e-09 | BL151: 1.982121031e-09 | BM151: 3.319499945e-09 | BN151: 5.503921321e-09 | BO151: 9.035013867e-09 | BP151: 1.468393607e-08 | BQ151: 2.362725138e-08 | BR151: 3.763925111e-08 | BS151: 5.93643615e-08 | BT151: 9.26974278e-08 | BU151: 1.433067414e-07 | BV151: 2.193424114e-07 | BW151: 3.323805954e-07 | BX151: 4.986614145e-07 | BY151: 7.40683931e-07 | BZ151: 1.089223835e-06 | CA151: 1.585836483e-06 | CB151: 2.285897374e-06 | CC151: 3.26221145e-06 | CD151: 4.609189266e-06 | CE151: 6.447539792e-06 | CF151: 8.929364999e-06 | CG151: 1.224346024e-05 | CH151: 1.662052853e-05 | CI151: 2.233791018e-05 | CJ151: 2.972331921e-05 | CK151: 3.915697429e-05 | CL151: 5.107142804e-05 | CM151: 6.594834973e-05 | CN151: 8.431151987e-05 | CO151: 0.0001067153663 | CP151: 0.0001337285254 | CQ151: 0.0001659121561 | CR151: 0.0002037930711 | CS151: 0.0002478321679 | CT151: 0.0002983891264 | CU151: 0.0003556848483 | CV151: 0.0004197636162 | CW151: 0.0004904573815 | CX151: 0.0005673549038 | CY151: 0.0006497786028 | CZ151: 0.0007367719005 | DA151: 0.0008270994983 | DB151: 0.0009192624404 | DC151: 0.00101152898 | DD151: 0.001101981233 | DE151: 0.001188576454 | DF151: 0.001269220569 | DG151: 0.001341850512 | DH151: 0.001404520963 | DI151: 0.001455490484 | DJ151: 0.001493301737 | DK151: 0.001516850662 | DL151: 0.00152544002 | DM151: 0.001518813684 | DN151: 0.00149716933 | DO151: 0.001461148639 | DP151: 0.001411805693 | DQ151: 0.001350555746 | DR151: 0.001279107827 | DS151: 0.001199385663 | DT151: 0.001113442014 | DU151: 0.001023371721 | DV151: 0.000931228532 | DW151: 0.0008389502179 | DX151: 0.000748295552 | DY151: 0.0006607956743 | DZ151: 0.0005777211595 | EA151: 0.0005000649462 | EB151: 0.000428540237 | EC151: 0.0003635916105 | ED151: 0.0003054169652 | EE151: 0.0002539975433 | EF151: 0.0002091331746 | EG151: 0.0001704799853 | EH151: 0.0001375881159
A152: 68 | B152: 154 | C152: 56 | D152: 166 | E152: 29 | F152: 139 | AD152: 7.56141122e-20 | AE152: 1.781375054e-19 | AF152: 4.154941663e-19 | AG152: 9.594703308e-19 | AH152: 2.193588822e-18 | AI152: 4.965190938e-18 | AJ152: 1.112688857e-17 | AK152: 2.468701489e-17 | AL152: 5.422761128e-17 | AM152: 1.17931392e-16 | AN152: 2.539191352e-16 | AO152: 5.412756511e-16 | AP152: 1.142348477e-15 | AQ152: 2.386908539e-15 | AR152: 4.937760311e-15 | AS152: 1.011302978e-14 | AT152: 2.050640936e-14 | AU152: 4.116754933e-14 | AV152: 8.182338868e-14 | AW152: 1.610115252e-13 | AX152: 3.136848335e-13 | AY152: 6.050442443e-13 | AZ152: 1.155414469e-12 | BA152: 2.184467183e-12 | BB152: 4.088935904e-12 | BC152: 7.577608021e-12 | BD152: 1.390308009e-11 | BE152: 2.525497647e-11 | BF152: 4.54192509e-11 | BG152: 8.087048007e-11 | BH152: 1.425598174e-10 | BI152: 2.488062553e-10 | BJ152: 4.299149171e-10 | BK152: 7.354629327e-10 | BL152: 1.245650249e-09 | BM152: 2.088759818e-09 | BN152: 3.467671464e-09 | BO152: 5.699600817e-09 | BP152: 9.27487341e-09 | BQ152: 1.494268346e-08 | BR152: 2.383451163e-08 | BS152: 3.763925111e-08 | BT152: 5.884814061e-08 | BU152: 9.109227988e-08 | BV152: 1.396006542e-07 | BW152: 2.118119169e-07 | BX152: 3.181781722e-07 | BY152: 4.732029354e-07 | BZ152: 6.967573078e-07 | CA152: 1.015716927e-06 | CB152: 1.465955891e-06 | CC152: 2.094720925e-06 | CD152: 2.963387838e-06 | CE152: 4.150571241e-06 | CF152: 5.755516538e-06 | CG152: 7.901650109e-06 | CH152: 1.074010034e-05 | CI152: 1.445293129e-05 | CJ152: 1.92557568e-05 | CK152: 2.53993324e-05 | CL152: 3.316966355e-05 | CM152: 4.288613281e-05 | CN152: 5.489714528e-05 | CO152: 6.957283352e-05 | CP152: 8.72944588e-05 | CQ152: 0.0001084403017 | CR152: 0.0001333680536 | CS152: 0.0001623939943 | CT152: 0.0001957695624 | CU152: 0.0002336562656 | CV152: 0.0002761002169 | CW152: 0.0003230078816 | CX152: 0.0003741248419 | CY152: 0.000429019496 | CZ152: 0.0004870735716 | DA152: 0.0005474811337 | DB152: 0.0006092573897 | DC152: 0.0006712580519 | DD152: 0.0007322093429 | DE152: 0.0007907479582 | DF152: 0.0008454695044 | DG152: 0.0008949831749 | DH152: 0.0009379697871 | DI152: 0.0009732398506 | DJ152: 0.000999788121 | DK152: 0.001016841158 | DL152: 0.001023894749 | DM152: 0.001020738676 | DN152: 0.001007467117 | DO152: 0.0009844739869 | DP152: 0.0009524335059 | DQ152: 0.0009122673682 | DR152: 0.0008651007149 | DS152: 0.0008122098583 | DT152: 0.0007549651374 | DU152: 0.000694772457 | DV152: 0.0006330169579 | DW152: 0.0005710118891 | DX152: 0.0005099551856 | DY152: 0.0004508955291 | DZ152: 0.0003947088835 | EA152: 0.0003420857063 | EB152: 0.0002935283209 | EC152: 0.000249357335 | ED152: 0.0002097255492 | EE152: 0.0001746375332 | EF152: 0.0001439729459 | EG152: 0.0001175117379 | EH152: 9.495955322e-05
A153: 69 | B153: 153 | C153: 57 | D153: 165 | E153: 30 | F153: 138 | AE153: 1.062996984e-19 | AF153: 2.482512738e-19 | AG153: 5.739948475e-19 | AH153: 1.313958224e-18 | AI153: 2.97791417e-18 | AJ153: 6.68189813e-18 | AK153: 1.48437824e-17 | AL153: 3.264723186e-17 | AM153: 7.1089458e-17 | AN153: 1.532572745e-16 | AO153: 3.271101706e-16 | AP153: 6.91232346e-16 | AQ153: 1.446142577e-15 | AR153: 2.995402778e-15 | AS153: 6.142658886e-15 | AT153: 1.247138322e-14 | AU153: 2.506858988e-14 | AV153: 4.988870624e-14 | AW153: 9.829504658e-14 | AX153: 1.917423648e-13 | AY153: 3.703067094e-13 | AZ153: 7.080470827e-13 | BA153: 1.340354725e-12 | BB153: 2.512085501e-12 | BC153: 4.661290173e-12 | BD153: 8.56317692e-12 | BE153: 1.5574738e-11 | BF153: 2.804552909e-11 | BG153: 4.999926045e-11 | BH153: 8.825119176e-11 | BI153: 1.542178458e-10 | BJ153: 2.668122351e-10 | BK153: 4.570186307e-10 | BL153: 7.75031089e-10 | BM153: 1.301251964e-09 | BN153: 2.163020958e-09 | BO153: 3.559730436e-09 | BP153: 5.800034163e-09 | BQ153: 9.356233386e-09 | BR153: 1.494268346e-08 | BS153: 2.362725138e-08 | BT153: 3.698749013e-08 | BU153: 5.732625589e-08 | BV153: 8.796488692e-08 | BW153: 1.336356021e-07 | BX153: 2.00998148e-07 | BY153: 2.993084599e-07 | BZ153: 4.412685583e-07 | CA153: 6.440862539e-07 | CB153: 9.30769476e-07 | CC153: 1.331672065e-06 | CD153: 1.886294514e-06 | CE153: 2.645323373e-06 | CF153: 3.672866067e-06 | CG153: 5.048803516e-06 | CH153: 6.871141664e-06 | CI153: 9.258196427e-06 | CJ153: 1.235039746e-05 | CK153: 1.631144863e-05 | CL153: 2.132854288e-05 | CM153: 2.761130258e-05 | CN153: 3.538911151e-05 | CO153: 4.490652802e-05 | CP153: 5.641652771e-05 | CQ153: 7.017142283e-05 | CR153: 8.641144495e-05 | CS153: 0.0001053511565 | CT153: 0.000127164065 | CU153: 0.0001519660422 | CV153: 0.0001797983734 | CW153: 0.0002106114698 | CX153: 0.0002442504288 | CY153: 0.0002804437114 | CZ153: 0.0003187961972 | DA153: 0.0003587877558 | DB153: 0.0003997782386 | DC153: 0.0004410194487 | DD153: 0.0004816742047 | DE153: 0.0005208421118 | DF153: 0.0005575911196 | DG153: 0.0005909934409 | DH153: 0.0006201639663 | DI153: 0.0006442989914 | DJ153: 0.0006627129078 | DK153: 0.0006748705282 | DL153: 0.0006804129193 | DM153: 0.0006791750052 | DN153: 0.0006711937342 | DO153: 0.0006567062469 | DP153: 0.0006361381721 | DQ153: 0.0006100828559 | DR153: 0.0005792729387 | DS153: 0.0005445461791 | DT153: 0.0005068077472 | DU153: 0.0004669913433 | DV153: 0.000426021454 | DW153: 0.0003847788264 | DX153: 0.0003440708784 | DY153: 0.0003046082924 | DZ153: 0.0002669885169 | EA153: 0.0002316863774 | EB153: 0.0001990515072 | EC153: 0.0001693119053 | ED153: 0.000142582616 | EE153: 0.0001188783354 | EF153: 9.812866882e-05 | EG153: 8.019479002e-05
A154: 70 | B154: 152 | C154: 57 | D154: 165 | E154: 30 | F154: 138 | AE154: 6.28008835e-20 | AF154: 1.468503871e-19 | AG154: 3.39970703e-19 | AH154: 7.792287109e-19 | AI154: 1.768257276e-18 | AJ154: 3.972674811e-18 | AK154: 8.836446143e-18 | AL154: 1.945939385e-17 | AM154: 4.242658117e-17 | AN154: 9.158067083e-17 | AO154: 1.957161479e-16 | AP154: 4.141012613e-16 | AQ154: 8.67448105e-16 | AR154: 1.799026278e-15 | AS154: 3.693929195e-15 | AT154: 7.509252044e-15 | AU154: 1.511338868e-14 | AV154: 3.011508384e-14 | AW154: 5.941052045e-14 | AX154: 1.160378551e-13 | AY154: 2.243846186e-13 | AZ154: 4.29579481e-13 | BA154: 8.142373687e-13 | BB154: 1.52797267e-12 | BC154: 2.838815695e-12 | BD154: 5.221747462e-12 | BE154: 9.509366506e-12 | BF154: 1.714527136e-11 | BG154: 3.060512765e-11 | BH154: 5.408801988e-11 | BI154: 9.46378848e-11 | BJ154: 1.639404122e-10 | BK154: 2.811668242e-10 | BL154: 4.774184337e-10 | BM154: 8.025855696e-10 | BN154: 1.335797312e-09 | BO154: 2.201135808e-09 | BP154: 3.590956694e-09 | BQ154: 5.800034163e-09 | BR154: 9.27487341e-09 | BS154: 1.468393607e-08 | BT154: 2.301622183e-08 | BU154: 3.571763042e-08 | BV154: 5.48767394e-08 | BW154: 8.347395947e-08 | BX154: 1.257102773e-07 | BY154: 1.874336704e-07 | BZ154: 2.766823721e-07 | CA154: 4.043639461e-07 | CB154: 5.850869574e-07 | CC154: 8.381571674e-07 | CD154: 1.188741883e-06 | CE154: 1.669193639e-06 | CF154: 2.320507266e-06 | CG154: 3.193862384e-06 | CH154: 4.35217672e-06 | CI154: 5.871565348e-06 | CJ154: 7.842568689e-06 | CK154: 1.037098052e-05 | CL154: 1.357807995e-05 | CM154: 1.760005234e-05 | CN154: 2.258637906e-05 | CO154: 2.869698831e-05 | CP154: 3.609799532e-05 | CQ154: 4.495592137e-05 | CR154: 5.543036991e-05 | CS154: 6.766525235e-05 | CT154: 8.177879181e-05 | CU154: 9.785268107e-05 | CV154: 0.0001159209213 | CW154: 0.0001359590038 | CX154: 0.0001578742057 | CY154: 0.0001814978308 | CZ154: 0.0002065802288 | DA154: 0.000232789359 | DB154: 0.0002597135151 | DC154: 0.0002868686113 | DD154: 0.0003137101476 | DE154: 0.0003396496397 | DF154: 0.0003640749551 | DG154: 0.0003863736549 | DH154: 0.0004059581483 | DI154: 0.0004222912422 | DJ154: 0.000434910549 | DK154: 0.0004434502093 | DL154: 0.0004476585067 | DM154: 0.0004474101932 | DN154: 0.0004427126811 | DO154: 0.0004337056752 | DP154: 0.0004206542715 | DQ154: 0.0004039359964 | DR154: 0.0003840226721 | DS154: 0.0003614583226 | DT154: 0.0003368345624 | DU154: 0.0003107650154 | DV154: 0.0002838602959 | DW154: 0.0002567049455 | DX154: 0.0002298374927 | DY154: 0.0002037344964 | DZ154: 0.0001787990966 | EA154: 0.0001553542452 | EB154: 0.0001336404673 | EC154: 0.0001138177251 | ED154: 9.597074626e-05 | EE154: 8.011704042e-05 | EF154: 6.621676793e-05 | EG154: 5.418363226e-05
A155: 72 | B155: 150 | C155: 57 | D155: 165 | E155: 30 | F155: 138 | AE155: 3.673301109e-20 | AF155: 8.600342783e-20 | AG155: 1.993572562e-19 | AH155: 4.575150549e-19 | AI155: 1.03952703e-18 | AJ155: 2.338423885e-18 | AK155: 5.207961266e-18 | AL155: 1.148336867e-17 | AM155: 2.50684756e-17 | AN155: 5.418057356e-17 | AO155: 1.159354698e-16 | AP155: 2.456100363e-16 | AQ155: 5.151491026e-16 | AR155: 1.069736566e-15 | AS155: 2.199266149e-15 | AT155: 4.476471188e-15 | AU155: 9.02092044e-15 | AV155: 1.799794693e-14 | AW155: 3.555102577e-14 | AX155: 6.952457789e-14 | AY155: 1.346113378e-13 | AZ155: 2.580369949e-13 | BA155: 4.897104432e-13 | BB155: 9.201397886e-13 | BC155: 1.71169078e-12 | BD155: 3.152491084e-12 | BE155: 5.748300691e-12 | BF155: 1.037724676e-11 | BG155: 1.854734989e-11 | BH155: 3.282000489e-11 | BI155: 5.749796483e-11 | BJ155: 9.972943524e-11 | BK155: 1.71258171e-10 | BL155: 2.911630759e-10 | BM155: 4.900928323e-10 | BN155: 8.167280256e-10 | BO155: 1.34751504e-09 | BP155: 2.201135808e-09 | BQ155: 3.559730436e-09 | BR155: 5.699600817e-09 | BS155: 9.035013867e-09 | BT155: 1.417980511e-08 | BU155: 2.203275249e-08 | BV155: 3.389411547e-08 | BW155: 5.16222475e-08 | BX155: 7.784067047e-08 | BY155: 1.162072657e-07 | BZ155: 1.717580307e-07 | CA155: 2.513378391e-07 | CB155: 3.641294095e-07 | CC155: 5.22288775e-07 | CD155: 7.416904421e-07 | CE155: 1.042777683e-06 | CF155: 1.451502635e-06 | CG155: 2.000326943e-06 | CH155: 2.729236656e-06 | CI155: 3.686705628e-06 | CJ155: 4.930520665e-06 | CK155: 6.528360975e-06 | CL155: 8.558006102e-06 | CM155: 1.110703342e-05 | CN155: 1.427186145e-05 | CO155: 1.815600185e-05 | CP155: 2.286740433e-05 | CQ155: 2.851481633e-05 | CR155: 3.520313503e-05 | CS155: 4.30278018e-05 | CT155: 5.206837605e-05 | CU155: 6.238152123e-05 | CV155: 7.399373414e-05 | CW155: 8.68942389e-05 | CX155: 0.0001010285402 | CY155: 0.0001162931748 | CZ155: 0.0001325322073 | DA155: 0.0001495359763 | DB155: 0.0001670425093 | DC155: 0.0001847418869 | DD155: 0.0002022836588 | DE155: 0.0002192871991 | DF155: 0.0002353546677 | DG155: 0.0002500860151 | DH155: 0.0002630952773 | DI155: 0.0002740272506 | DJ155: 0.0002825735511 | DK155: 0.0002884870487 | DL155: 0.000291593734 | DM155: 0.0002918012238 | DN155: 0.0002891033245 | DO155: 0.0002835803393 | DP155: 0.0002753950977 | DQ155: 0.0002647849809 | DR155: 0.0002520504894 | DS155: 0.0002375411189 | DT155: 0.0002216394715 | DU155: 0.0002047446059 | DV155: 0.0001872556314 | DW155: 0.0001695564678 | DX155: 0.0001520025555 | DY155: 0.0001349101028 | DZ155: 0.0001185482405 | EA155: 0.0001031342243 | EB155: 8.883161462e-05 | EC155: 7.575117272e-05 | ED155: 6.395407478e-05 | EE155: 5.345694495e-05 | EF155: 4.423816514e-05 | EG155: 3.624491877e-05
